Workbook

Sheet Aktualisierungen (hidden)

Sheet Erläuterungen (hidden)

Sheet Eingabe
AK1: Jahreseinkommen | AL1: 25000 | AM1: =M29*0.015 -> 404.85 | AN1: =20.68/100*AM1 -> 83.72298 | AO1: =AM1*AQ9/100 -> 141.6975 | AP1: =SUM(AN1:AO1) -> 225.42048
B2: E-Mobilitätsrechner E_MOB_Rechner_0221_Vers.6.0 | AL2: Jahr der Anschaffung | AM2: CO2 Grenzwert | AO2: Einkommen | AP2: Einkommenssteuer
AL3: 2016 | AM3: 130 | AO3: 11000 | AP3: 0
C4: 1. Fahrzeugauswahl | V4: 7. Ausfüllhilfe | AL4: 2017 | AM4: 127 | AO4: 18000 | AP4: 25
AL5: 2018 | AM5: 124 | AO5: 31000 | AP5: 35
C6: Allgemeine Angaben | V6: Alle weißen Felder sind veränderbar und mit überschreibbaren Defaultwerten befüllt. Tragen Sie in der ersten Kategorie "Fahrzeugwahl" die allgemeinen Eingaben ein und wählen Sie ein Fahrzeug, das Sie vergleichen wollen, aus. Scrollen Sie nach unten und kontrollieren Sie die Defaultwerte aus den Kategorien 2-5. Passen Sie diese Ihren individuellen Gegebenheiten an und entnehmen Sie aus den Grafiken die Ergebnisse. Viel Erfolg wünscht Ihnen Ihr strommobil-team | AL6: 2019 | AM6: 121 | AO6: 60000 | AP6: 42
D7: Jahreskilometerleistung: | G7: 14000 | H7: [km/a] | N7: Betrachtungszeitraum1: | Q7: 12 | R7: [a] | AL7: 2020 | AM7: 118 | AO7: 90000 | AP7: 48
D8: =IF(G8="privat","Nutzung (Privater Investor):",IF(G8="betrieblich","Nutzung (Betrieb ist Investor):",IF(G8="betrieblich + privat (<6000km/a):","Nutzung (Betrieb ist Investor):","Nutzung (Betrieb ist Investor):"))) -> Nutzung (Privater Investor): | G8: privat | AE8: Laufzeit | AF8: =Q7 -> 12 | AO8: 1000000 | AP8: 50
AF9: Benzinfahrzeug | AO9: >1000000 | AP9: 55 | AQ9: =IF(AL1<AO3,AP3,IF(AL1<AO4,AP4,IF(AL1<AO5,AP5,IF(AL1<AO6,AP6,IF(AL1<AO7,AP7,IF(AL1<AO8,AP8,AP9)))))) -> 35
C10: Auswahl | F10: Elektrofahrzeug | L10: Verbrennungs-Kfz | AE10: =IF(VLOOKUP($G$12,'Daten-Elektrofahrzeug'!C22:M269,'Daten-Elektrofahrzeug'!K5,FALSE)="","ja",IF(VLOOKUP($G$12,'Daten-Elektrofahrzeug'!C22:M269,'Daten-Elektrofahrzeug'!L5,FALSE)="","nein",H13)) -> ja
O11: * | AE11: Investition | AF11: =M29/AF8 -> 2249.166667 | AG11: =AF11/$AF$16 -> 0.5753688415
D12: =IF(H137="","Neuwagen (inkl.Akku):","Neuwagen:") -> Neuwagen (inkl.Akku): | G12: VW ID.3 Pro (58 kWh) Basis | M12: VW Golf - Benzin | AE12: Heimladestation | AF12: =M31/10 -> 0 | AG12: =AF12/$AF$16 -> 0
D13: Batterie mieten oder kaufen: | G13: Akku kaufen! | AE13: Motorbez. Versicherungssteuer | AF13: =M43 -> 328.32 | AG13: =AF13/$AF$16 -> 0.08398892836
D14: Batterieleasing Laufzeit: | G14: 36 | H14: [Monate] | AE14: Wartung | AF14: =M45 -> 500 | AG14: =AF14/$AF$16 -> 0.1279071156
C15: Leistungsdaten | V15: 8. Vollkosten pro Kilometer | AE15: Verbrauch | AF15: =M61 -> 831.6 | AG15: =AF15/$AF$16 -> 0.2127351146
D16: Kraftstoff: | G16: =VLOOKUP($G$12,'Daten-Elektrofahrzeug'!C6:M269,'Daten-Elektrofahrzeug'!F5,FALSE) -> Elektrizität | M16: =VLOOKUP($M$12,'Daten-Benzin-Dieselfahrzeug'!C6:M215,'Daten-Benzin-Dieselfahrzeug'!E5,FALSE) -> Benzin | P16: Leistungsunterschied | AF16: =SUM(AF11:AF15) -> 3909.086667
D17: Leistung: | G17: =VLOOKUP($G$12,'Daten-Elektrofahrzeug'!C6:M269,'Daten-Elektrofahrzeug'!E5,FALSE) -> 107 | I17: [kW] | M17: =VLOOKUP($M$12,'Daten-Benzin-Dieselfahrzeug'!C6:M215,'Daten-Benzin-Dieselfahrzeug'!D5,FALSE) -> 96 | N17: [kW] | Q17: =IF(M17-G17<0,(M17-G17)*-1,M17-G17) -> 11 | R17: [kW]
G18: =G17*1.3596216 -> 145.4795112 | I18: [PS] | M18: =M17*1.3596216 -> 130.5236736 | N18: [PS] | Q18: =IF(M18-G18<0,(M18-G18)*-1,M18-G18) -> 14.9558376 | R18: [PS] | AF18: Elektrofahrzeug
D19: Spezifischer Energiebedarf: | G19: =VLOOKUP($G$12,'Daten-Elektrofahrzeug'!C6:M269,'Daten-Elektrofahrzeug'!G5,FALSE) -> 15.7 | I19: [kWh/100km] | M19: =VLOOKUP($M$12,'Daten-Benzin-Dieselfahrzeug'!C6:M215,'Daten-Benzin-Dieselfahrzeug'!G5,FALSE) -> 5.4 | N19: [l/100km]
D20: Ladewirkungsgrad2: | G20: 0.95 | I20: [] | M20: =M19/100*$G$7 -> 756 | N20: [l/a] | P20: Energieeinsparung | AE20: Investition (inkl. Förderung) | AF20: =($G$29-$G$32)/$AF$8 -> 2535 | AG20: =AF20/$AF$25 -> 0.7654866216
D21: Jahresbedarf: | G21: =(G19/100*$G$7)/G20 -> 2313.684211 | I21: [kWh/a] | M21: =IF(M16="Benzin",M20*'Daten-Benzin-Dieselfahrzeug'!$O$3,M20*'Daten-Benzin-Dieselfahrzeug'!$O$4) -> 6456.24 | N21: [kWh/a] | Q21: =M21-G21 -> 4142.555789 | R21: [kWh/a] | AE21: Heimladestation | AF21: =$G$31/$AF$8 -> 100 | AG21: =AF21/$AF$25 -> 0.03019671091
D22: direkte CO2-Emissionen3: | G22: =VLOOKUP($G$12,'Daten-Elektrofahrzeug'!C6:M269,'Daten-Elektrofahrzeug'!I5,FALSE) -> 0 | I22: [g/km] | M22: =VLOOKUP($M$12,'Daten-Benzin-Dieselfahrzeug'!C6:M215,'Daten-Benzin-Dieselfahrzeug'!H5,FALSE) -> 122 | N22: [g/km] | AE22: Motorbez. Versicherungssteuer | AF22: =$G$43 -> 0 | AG22: =AF22/$AF$25 -> 0
D23: Jährlichen direkten CO2-Emissionen: | G23: =G22*G7/1000 -> 0 | I23: [kg/a] | M23: =M22*G7/1000 -> 1708 | N23: [kg/a] | AE23: Wartung | AF23: =$G$45 -> 200 | AG23: =AF23/$AF$25 -> 0.06039342182
AE24: Verbrauch | AF24: =$G$61 -> 476.6189474 | AG24: =AF24/$AF$25 -> 0.1439232457
AF25: =SUM(AF20:AF24) -> 3311.618947
C26: 2. Investitionskosten | F26: Elektrofahrzeug | L26: Verbrennungs-Kfz | P26: Differenz | V26: 9. Vollkosten (Betrachtungszeitraum 12 Jahre)
G28: BRUTTO | I28: NETTO | V28: Monatliche Vollkosten
D29: =IF(G8="Privat","Privatfahrzeug:","Vorsteuerabzug (Betriebsfahrzeug):") -> Privatfahrzeug: | G29: =VLOOKUP($G$12,'Daten-Elektrofahrzeug'!C6:M269,IF(OR(G13=H136,H137=""),'Daten-Elektrofahrzeug'!L5,'Daten-Elektrofahrzeug'!J5),FALSE) -> 35420 | H29: [€] | I29: =IF((G29-G32)<80000,IF((G29-G32)<=40000,(G29-G32)/1.2,(G29-G32)-(40000-(40000/1.2))),(G29-G32)) -> 25350 | J29: [€] | M29: =VLOOKUP($M$12,'Daten-Benzin-Dieselfahrzeug'!C6:M215,'Daten-Benzin-Dieselfahrzeug'!I5,FALSE) -> 26990 | N29: [€] | Q29: =IF(G8<>C117,M29-I29,M29-G29) -> -8430 | R29: [€]
D31: Heimladestation (Investition Wallbox): | G31: 1200 | H31: [€] | I31: =G31*$C$125 -> 1000 | J31: [€] | Q31: =IF(G8<>C117,I31*-1,G31*-1) -> -1200 | R31: [€]
D32: Förderung (Auto + Heimladestation): | G32: 5000 | H32: [€] | L32: =IF($G$8<>$C$117," Förderung ist im Nettoanschaffungswert integriert!","") ->  | Q32: =IF($G$8=C117,G32-M32,I32-M32) -> 5000 | R32: [€]
Q33: =SUM(Q29:Q32) -> -4630 | R33: [€]
D34: Investitionen in den Akku erfolgen im Jahr: | G34: 9 | H34: [a]
D35: Höhe der Investition (dzt. 200€/kWh)4: | G35: 2000 | H35: [€] | I35: =G35*$C$125 -> 1666.666667 | J35: [€] | Q35: =IF($G$8<>C117,I35*-1,G35*-1) -> -2000 | R35: [€]
C36: =VLOOKUP($G$12,'Daten-Elektrofahrzeug'!C22:N269,'Daten-Elektrofahrzeug'!N5,FALSE) -> Info zur Akkugarantie: 8 Jahre bis 160.000 km | AF36: jährliche Vollkosten | AH36: monatliche Vollkosten | AJ36: tägliche Vollkosten
AF37: =F10 -> Elektrofahrzeug | AG37: =L10 -> Verbrennungs-Kfz | AH37: =AF37 -> Elektrofahrzeug | AI37: =AG37 -> Verbrennungs-Kfz | AJ37: =AH37 -> Elektrofahrzeug | AK37: =AI37 -> Verbrennungs-Kfz
AE38: Investition | AF38: =IF(G8<>C117,((I29+I31+I35)/AF8),(G29+G31+G35-G32)/AF8) -> 2801.666667 | AG38: =M29/AF8 -> 2249.166667 | AH38: =AF38/12 -> 233.4722222 | AI38: =AG38/12 -> 187.4305556 | AJ38: =AH38/30.4 -> 7.68000731 | AK38: =AI38/30.4 -> 6.165478801
C39: 3. Betriebskosten | F39: Elektrofahrzeug | L39: Verbrennungs-Kfz | P39: Differenz | V39: Jährliche Vollkosten | AE39: Betriebskosten | AF39: =IF(G8<>C117,SUM(I43:I48),SUM(G43:G48)) -> 705.4 | AG39: =SUM(M43:M48) -> 1333.72 | AH39: =AF39/12 -> 58.78333333 | AI39: =AG39/12 -> 111.1433333 | AJ39: =AH39/30.4 -> 1.933662281 | AK39: =AI39/30.4 -> 3.656030702
AE40: Verbrauchskosten | AF40: =IF(G8<>C117,SUM(I61+I64),SUM(G61+G64)) -> 476.6189474 | AG40: =M61 -> 831.6 | AH40: 39.71824561 | AI40: 69.3 | AJ40: 1.306521237 | AK40: 2.279605263
G41: BRUTTO | I41: NETTO | AE41: Summe: | AF41: =SUM(AF38:AF40) -> 3983.685614 | AG41: 4414.486667 | AH41: 331.9738012 | AI41: 367.8738889 | AJ41: 10.92019083 | AK41: 12.10111477
C42: jährliche | D42: Zahlungsweise der motorbez. | AE42: Vollkosten [€/km] | AF42: =AF41/$G$7 -> 0.2845489724 | AG42: =AG41/$G$7 -> 0.3153204762
D43: Versicherungssteuer: | G43: 0 | H43: [€/a] | I43: 0 | J43: [€/a] | M43: ='Motorbez. Versicherungssteuer'!E2 -> 328.32 | N43: [€/a] | Q43: =M43-G43 -> 328.32 | R43: [€] | AE43: Verbauchskosten [€/km] | AF43: =AF40/$G$7*100 -> 3.404421053 | AG43: =AG40/$G$7*100 -> 5.94
D44: Versicherungsprämie (exkl. motorb. Vers.): | G44: 300 | H44: [€/a] | I44: =G44 -> 300 | J44: [€/a] | M44: 300 | N44: [€/a] | Q44: =IF($G$8<>C117,M44-I44,M44-G44) -> 0 | R44: [€]
C45: 0.6 | D45: ="Wartungseinsparung("&C45*100&"%):" -> Wartungseinsparung(60%): | G45: =M45*(1-C45) -> 200 | H45: [€/a] | I45: =G45*$C$125 -> 166.6666667 | J45: [€/a] | M45: 500 | N45: [€/a] | Q45: =IF($G$8<>C117,M45-I45,M45-G45) -> 300 | R45: [€]
D46: Mitgliedsbeitrag Autofahrerclub: | G46: 121 | H46: [€/a] | I46: 100.8333333 | J46: [€/a] | M46: 121 | N46: [€/a] | Q46: =IF($G$8<>C117,M46-I46,M46-G46) -> 0 | R46: [€]
D47: Vignette/Umweltplakette...: | G47: 84.4 | H47: [€/a] | I47: 70.33333333 | J47: [€/a] | M47: 84.4 | N47: [€/a] | Q47: =IF($G$8<>C117,M47-I47,M47-G47) -> 0 | R47: [€]
C48: 0.3 | D48: Lohnnebenkosten Sachbezug:5 | G48: 0 | H48: [€/a] | I48: 0 | J48: [€/a] | M48: =IF(OR(G8=C117,G8=C118),0,IF(G8=C119,(VLOOKUP($M$12,'Daten-Benzin-Dieselfahrzeug'!C6:O215,'Daten-Benzin-Dieselfahrzeug'!K5,FALSE))*6,(VLOOKUP($M$12,'Daten-Benzin-Dieselfahrzeug'!C6:O215,'Daten-Benzin-Dieselfahrzeug'!K5,FALSE))*12)) -> 0 | N48: [€/a] | Q48: =IF($G$8<>C117,M48-I48,M48-G48) -> 0 | R48: [€]
D49: =IF(OR(C117=G8,C118=G8),"","(Arbeitnehmervorteile bleiben unberücksichtigt!)") ->  | Q49: =SUM(Q43:Q48) -> 628.32 | R49: [€]
C52: 4. Verbrauchskosten | F52: Elektrofahrzeug | L52: Verbrennungs-Kfz | P52: Differenz | V52: 10. Übersicht über die jährlichen Ersparnisse (Barwerte)
C54: Energieträger | G54: BRUTTO | I54: NETTO
D55: Ladung an der Heimladestation: | G55: 0.9
D56: Tarif Heimladestation: | G56: 19 | H56: [c/kWh] | I56: =G56*$C$125 -> 15.83333333 | J56: [c/kWh]
D57: Tarif Tankstellen: | G57: 35 | H57: [c/kWh] | I57: =G57*$C$125 -> 29.16666667 | J57: [c/kWh] | AG57: <=24 | AH57: >24-91 | AI57: >92-111 | AJ57: >111
D58: Mischtarif Heimladung/öffentliche Ladung: | G58: =G56*$G$55+G57*(1-$G$55) -> 20.6 | H58: [c/kWh] | I58: =I56*$G$55+I57*(1-$G$55) -> 17.16666667 | J58: [c/kWh] | AF58: jährliche | AG58: 0 | AH58: 0.62 | AI58: 0.66 | AJ58: 0.75
AF59: ½-jährliche | AG59: 0 | AH59: 0.6572 | AI59: 0.6996 | AJ59: 0.795
D60: Kraftstoffpreise: | M60: 1.1 | N60: [€/l] | AF60: ¼-jährliche | AG60: 0 | AH60: 0.6696 | AI60: 0.7128 | AJ60: 0.81
D61: Kraftstoffkosten: | G61: =$G$21*G58/100 -> 476.6189474 | H61: [€/a] | I61: =$G$21*I58/100 -> 397.1824561 | J61: [€/a] | M61: =M20*M60 -> 831.6 | N61: [€/a] | Q61: =IF($G$8<>C117,M61-I61,M61-G61) -> 354.9810526 | R61: [€] | AF61: monatliche | AG61: 0 | AH61: 0.682 | AI61: 0.726 | AJ61: 0.825
C62: Sonstiges
D63: Batteriemiete: | G63: =G64/12 -> 0 | H63: [€/m] | I63: =G63*$C$125 -> 0 | J63: [€/m]
G64: =IF(G8="betrieblich",((VLOOKUP($G$12,'Daten-Elektrofahrzeug'!C6:M269,IF(OR(G13=H136,H137=""),'Daten-Elektrofahrzeug'!M5,'Daten-Elektrofahrzeug'!K5),FALSE))*12),((VLOOKUP($G$12,'Daten-Elektrofahrzeug'!C6:M269,IF(OR(G13=H136,H137=""),'Daten-Elektrofahrzeug'!M5,'Daten-Elektrofahrzeug'!K5),FALSE))*12)) -> 0 | H64: [€/a] | I64: =G64*$C$125 -> 0 | J64: [€/a] | Q64: =IF(G8=C118,I64*-1,G64*-1) -> 0 | R64: [€]
Q65: =Q61+Q64 -> 354.9810526 | R65: [€]
B68: 5. Wirtschaftliche Entwicklung | V68: 11. Übersicht Rentabilität (Kapitalwerteverlauf)
D70: Inflationsrate/Jahr: | G70: 1.5 | H70: [%]
D71: Strompreissteigerung/Jahr: | G71: 1.5 | H71: [%]
D72: Spritpreissteigerung/Jahr: | G72: 2 | H72: [%]
D73: Kalkulationszinssatz: | G73: 1.5 | H73: [%]
C76: 6. Zusammenfassung
C78: Energie
D79: Energieeinsparungen pro Jahr: | G79: =Q21 -> 4142.555789 | H79: [kWh/a]
D80: Eingesparte Energie nach 12 Jahren: | G80: =G79*$Q$7 -> 49710.66947 | H80: [kWh]
C81: CO2
D82: CO2-Einsparungen pro Jahr: | G82: =M23 -> 1708 | H82: [kg CO2/a]
D83: CO2-Einsparungen nach 12 Jahren: | G83: =(M23*$Q$7) -> 20496 | H83: [kg CO2]
C84: Rentabilität
D85: Mehreinnahmen nach 12 Jahren: | G85: =Berechnungen!$I$20 -> 4245.634165 | H85: [€]
D86: Amortisationsdauer: | G86: =Berechnungen!H17 -> 5 | H86: [Jahre]
C89: Rechtliche Information:
D90: Wir möchten darauf hinweisen, dass sich dieses Programm in stetiger Entwicklung befindet und wir die Nutzer bitten, im Falle eines auftretenden Fehlers folgende Person zu kontaktieren, um diese zu korrigieren:
D91: Kontakt: | G91: DI (FH) Franz Jetzinger
G92: f.jetzinger@linzag.at
D93: Die LINZ AG sowie alle Mitwirkenden an diesem Programm haben deren Inhalte sorgfältig recherchiert und erstellt. Fehler können dennoch nicht gänzlich ausgeschlossen werden. Die Genannten übernehmen daher keine Haftung für die Richtigkeit, Vollständigkeit und Aktualität der Inhalte, insbesondere übernehmen sie keinerlei Haftung für eventuelle unmittelbare oder mittelbare Schäden, die durch direkte oder indirekte Nutzung des angebotenen Programms entstehen.
C94: Annahmen:
C95: 1 | D95: Das Fahrzeug wird nach 12 Jahren außer Betrieb gesetzt wird (Restwert = 0).
C96: 2 | D96: Der Ladewirkungsgrad Li-Ion mit 0,95 angenommen.
C97: 3 | D97: Das Fahrzeug wird zu 100% mit Ökostrom betrieben (direkte CO2-Emissionen eines Elektroautos liegen bei Versorgung mittels Ökostrom bei 0g CO2/km).
C98: 4 | D98: Dieses Feld bietet die Möglichkeit eine Akku-Reinvestition einzugeben - die Kosten liegen dzt. bei 200€/kWh.
C99: 5 | D99: Für Kraftfahrzeuge mit einem CO2-Emmissionswert von 0g/km gilt seit dem Kalenderjahr 2016 ein Sachbezugswert von Null.
C100: * | D100: Die angeführten Verbrennungskraftfahrzeuge sind nicht vorsteuerabzugsfähig!
C101: Quellen:
D102: www.topprodukte.at
D103: Recknagel, Sprenger, Schramek; Taschenbuch für Heizung + Klimatechnik; 2001; Seite 209
C105: Die derzeit aktuelle Version:
D106: E_MOB_Rechner_0221_Vers.6.0
C117: privat
C118: betrieblich
C119: betrieblich + privat (<6000km/a)
C120: betrieblich + privat (>6000km/a)
C124: Prozentsatz mit dem die Vorsteuer bei den Verbrauchs- und Betriebskosten abgezogen werden darf
C125: =I29/(G29-G32) -> 0.8333333333
C136: =VLOOKUP($G$12,'Daten-Elektrofahrzeug'!C6:M269,'Daten-Elektrofahrzeug'!K5,FALSE) -> 0 | D136: =IF(C136=0,"Hersteller bietet keine Akku-Mietvariante!","Akkumietvariante möglich") -> Hersteller bietet keine Akku-Mietvariante! | H136: =D137 -> Akku kaufen!
D137: Akku kaufen! | H137: =IF(D136="Hersteller bietet keine Akku-Mietvariante!","",D138) -> 
D138: Akku mieten!
C143: ja | G143: 12
C144: nein | G144: 24
G145: 36

Sheet Daten-Elektrofahrzeug
A1: Allgemeine Daten Elektrofahrzeuge | AG1: Batteriemiete und Berechnung "Nissan Leaf" | AP1: Batteriemiete und Berechnung "Renault Zoe R90 - Standard"
A2: http://www.topprodukte.at | G2: Stromverbrauch | I2: CO2-Emissionen | AE2: =VLOOKUP(AF2,AG2:AL5,IF(AM7+1<=1,6,AM7+1),TRUE) -> 86 | AF2: =IF(Eingabe!G14<='Daten-Elektrofahrzeug'!AG3,'Daten-Elektrofahrzeug'!AG3,IF(Eingabe!G14<='Daten-Elektrofahrzeug'!AG4,'Daten-Elektrofahrzeug'!AG4,'Daten-Elektrofahrzeug'!AG5)) -> 36 | AG2: Vertragslaufzeit | AH2: 12500 | AI2: 15000 | AJ2: 17500 | AK2: 20000 | AL2: 25000 | AN2: =VLOOKUP(AO2,AP2:AW5,IF(AX7+1<=1,8,AX7+1),TRUE) -> 89 | AO2: =IF(Eingabe!$G$14<='Daten-Elektrofahrzeug'!AP3,'Daten-Elektrofahrzeug'!AP3,IF(Eingabe!$G$14<='Daten-Elektrofahrzeug'!AP4,'Daten-Elektrofahrzeug'!AP4,'Daten-Elektrofahrzeug'!AP5)) -> 36 | AP2: Vertragslaufzeit | AQ2: 7500 | AR2: 10000 | AS2: 12500 | AT2: 15000 | AU2: 17500 | AV2: 20000 | AW2: 20200
A3: Marke | B3: Modell | D3: Typ | E3: Leistung | F3: Kraftstoff | G3: kombiniert | I3: kombiniert | J3: Preis bei Batteriemiete | L3: Preis bei Batteriekauf | N3: Anmerkung Garantie | AG3: 12 | AH3: 99 | AI3: 106 | AJ3: 114 | AK3: 122 | AL3: 142 | AP3: 12 | AQ3: 59 | AR3: 69 | AS3: 79 | AT3: 89 | AU3: 99 | AV3: 109 | AW3: =IF(Eingabe!$G$8="privat",119,109) -> 119
E4: [kW] | F4: 4 | G4: kWh/100km | H4: l/100km | I4: [g/km] | J4: [€] | K4: [€/Monat] | L4: [€] | M4: [€/Monat] | AG4: 24 | AH4: 89 | AI4: 96 | AJ4: 104 | AK4: 112 | AL4: 132 | AP4: 24 | AQ4: 59 | AR4: 69 | AS4: 79 | AT4: 89 | AU4: 99 | AV4: 109 | AW4: =IF(Eingabe!$G$8="privat",119,109) -> 119
C5: 1 | D5: 2 | E5: 3 | F5: 4 | G5: 5 | H5: 6 | I5: 7 | J5: 8 | K5: 9 | L5: 10 | M5: 11 | N5: 12 | AG5: 36 | AH5: 79 | AI5: 86 | AJ5: 94 | AK5: 102 | AL5: 122 | AP5: 36 | AQ5: 59 | AR5: 69 | AS5: 79 | AT5: 89 | AU5: 99 | AV5: 109 | AW5: =IF(Eingabe!$G$8="privat",119,109) -> 119
A6: Audi | B6: e-tron (50 quattro) | C6: =CONCATENATE(A6," ",B6) -> Audi e-tron (50 quattro) | D6: EV | E6: 230 | F6: Elektrizität | G6: 23.6 | I6: 0 | L6: 69100 | N6: Info zur Akkugarantie: 8 Jahre bis 160.000 km | AH6: =IF(AND(Eingabe!$G$7<=AH2),AH2) -> FALSE | AI6: =IF(AND(Eingabe!$G$7<=AI2,Eingabe!$G$7>AH2),AI2) -> 15000 | AJ6: =IF(AND(Eingabe!$G$7<=AJ2,Eingabe!$G$7>AI2),AJ2) -> FALSE | AK6: =IF(AND(Eingabe!$G$7<=AK2,Eingabe!$G$7>AJ2),AK2) -> FALSE | AL6: =IF(AND(Eingabe!$G$7<=AL2,Eingabe!$G$7>AK2),AL2) -> FALSE | AQ6: =IF(AND(Eingabe!$G$7<=AQ2),AQ2) -> FALSE | AR6: =IF(AND(Eingabe!$G$7<=AR2,Eingabe!$G$7>AQ2),AR2) -> FALSE | AS6: =IF(AND(Eingabe!$G$7<=AS2,Eingabe!$G$7>AR2),AS2) -> FALSE | AT6: =IF(AND(Eingabe!$G$7<=AT2,Eingabe!$G$7>AS2),AT2) -> 15000 | AU6: =IF(AND(Eingabe!$G$7<=AU2,Eingabe!$G$7>AT2),AU2) -> FALSE | AV6: =IF(AND(Eingabe!$G$7<=AV2,Eingabe!$G$7>AU2),AV2) -> FALSE | AW6: =IF(AND(Eingabe!$G$7<=AW2,Eingabe!$G$7>AV2),AW2) -> FALSE
A7: Audi | B7: e-tron (55 quattro) | C7: =CONCATENATE(A7," ",B7) -> Audi e-tron (55 quattro) | D7: EV | E7: 300 | F7: Elektrizität | G7: 24.2 | I7: 0 | L7: 81500 | N7: Info zur Akkugarantie: 8 Jahre bis 160.000 km | AH7: =IF(AH6=AH2,1,0) -> 0 | AI7: =IF(AI6=AI2,2,0) -> 2 | AJ7: =IF(AJ6=AJ2,3,0) -> 0 | AK7: =IF(AK6=AK2,4,0) -> 0 | AL7: =IF(AL6=AL2,5,0) -> 0 | AM7: =SUM(AH7:AL7) -> 2 | AQ7: =IF(AQ6=AQ2,1,0) -> 0 | AR7: =IF(AR6=AR2,2,0) -> 0 | AS7: =IF(AS6=AS2,3,0) -> 0 | AT7: =IF(AT6=AT2,4,0) -> 4 | AU7: =IF(AU6=AU2,5,0) -> 0 | AV7: =IF(AV6=AV2,6,0) -> 0 | AW7: =IF(AW6=AW2,7,0) -> 0 | AX7: =SUM(AQ7:AW7) -> 4
A8: Audi | B8: e-tron advanced (50 quattro) | C8: =CONCATENATE(A8," ",B8) -> Audi e-tron advanced (50 quattro) | D8: EV | E8: 230 | F8: Elektrizität | G8: 23.6 | I8: 0 | L8: 70550 | N8: Info zur Akkugarantie: 8 Jahre bis 160.000 km
A9: Audi | B9: e-tron advanced (55 quattro) | C9: =CONCATENATE(A9," ",B9) -> Audi e-tron advanced (55 quattro) | D9: EV | E9: 300 | F9: Elektrizität | G9: 24.2 | I9: 0 | L9: 82950 | N9: Info zur Akkugarantie: 8 Jahre bis 160.000 km
A10: Audi | B10: e-tron business (50 quattro) | C10: Audi e-tron business (50 quattro) | D10: EV | E10: 230 | F10: Elektrizität | G10: 24.2 | I10: 0 | L10: 59990 | N10: Info zur Akkugarantie: 8 Jahre bis 160.000 km
A11: Audi | B11: e-tron business (55 quattro) | C11: Audi e-tron business (55 quattro) | D11: EV | E11: 300 | F11: Elektrizität | G11: 24.2 | I11: 0 | L11: 74300 | N11: Info zur Akkugarantie: 8 Jahre bis 160.000 km
A12: Audi | B12: e-tron S line (50 quattro) | C12: Audi e-tron S line (50 quattro) | D12: EV | E12: 230 | F12: Elektrizität | G12: 23.6 | I12: 0 | L12: 72050 | N12: Info zur Akkugarantie: 8 Jahre bis 160.000 km
A13: Audi | B13: e-tron S line (55 quattro) | C13: Audi e-tron S line (55 quattro) | D13: EV | E13: 300 | F13: Elektrizität | G13: 24.2 | I13: 0 | L13: 84450 | N13: Info zur Akkugarantie: 8 Jahre bis 160.000 km
A14: Audi | B14: e-tron S | C14: Audi e-tron S | D14: EV | E14: 370 | F14: Elektrizität | G14: 27.3 | I14: 0 | L14: 93800 | N14: Info zur Akkugarantie: 8 Jahre bis 160.000 km
A15: Audi | B15: e-tron Sportback (50 quattro) | C15: Audi e-tron Sportback (50 quattro) | D15: EV | E15: 230 | F15: Elektrizität | G15: 23.3 | I15: 0 | L15: 71350 | N15: Info zur Akkugarantie: 8 Jahre bis 160.000 km
A16: Audi | B16: e-tron Sportback (55 quattro) | C16: =CONCATENATE(A16," ",B16) -> Audi e-tron Sportback (55 quattro) | D16: EV | E16: 300 | F16: Elektrizität | G16: 23.8 | I16: 0 | L16: 83750 | N16: Info zur Akkugarantie: 8 Jahre bis 160.000 km
A17: Audi | B17: e-tron Sportback advanced (50 quattro) | C17: =CONCATENATE(A17," ",B17) -> Audi e-tron Sportback advanced (50 quattro) | D17: EV | E17: 230 | F17: Elektrizität | G17: 23.3 | I17: 0 | L17: 72800 | N17: Info zur Akkugarantie: 8 Jahre bis 160.000 km
A18: Audi | B18: e-tron Sportback advanced (55 quattro) | C18: =CONCATENATE(A18," ",B18) -> Audi e-tron Sportback advanced (55 quattro) | D18: EV | E18: 300 | F18: Elektrizität | G18: 23.8 | I18: 0 | L18: 85200 | N18: Info zur Akkugarantie: 8 Jahre bis 160.000 km
A19: Audi | B19: e-tron Sportback S line (50 quattro) | C19: =CONCATENATE(A19," ",B19) -> Audi e-tron Sportback S line (50 quattro) | D19: EV | E19: 230 | F19: Elektrizität | G19: 23.3 | I19: 0 | L19: 74300 | N19: Info zur Akkugarantie: 8 Jahre bis 160.000 km
A20: Audi | B20: e-tron Sportback S line (55 quattro) | C20: Audi e-tron Sportback S line (55 quattro) | D20: EV | E20: 300 | F20: Elektrizität | G20: 23.8 | I20: 0 | L20: 86700 | N20: Info zur Akkugarantie: 8 Jahre bis 160.000 km
A21: Audi | B21: e-tron S Sportback | C21: Audi e-tron S Sportback | D21: EV | E21: 370 | F21: Elektrizität | G21: 26.9 | I21: 0 | L21: 96050 | N21: Info zur Akkugarantie: 8 Jahre bis 160.000 km
A22: BMW | B22: i3 120 Ah | C22: =CONCATENATE(A22," ",B22) -> BMW i3 120 Ah | D22: EV | E22: 125 | F22: Elektrizität | G22: 13.1 | I22: 0 | J22: 0 | K22: 0 | L22: 39000 | N22: Info zur Akkugarantie: 8 Jahre bis 160.000 km | O22: 2017 ok
A23: BMW | B23: i3 S 120 Ah | C23: =CONCATENATE(A23," ",B23) -> BMW i3 S 120 Ah | D23: EV | E23: 135 | F23: Elektrizität | G23: 14.3 | I23: 0 | J23: 0 | K23: 0 | L23: 42600 | N23: Info zur Akkugarantie: 8 Jahre bis 160.000 km
A24: BMW | B24: iX3 (Modell INSPIRING) | C24: =CONCATENATE(A24," ",B24) -> BMW iX3 (Modell INSPIRING) | D24: EV | E24: 210 | F24: Elektrizität | G24: 17.7 | I24: 0 | L24: 66300 | N24: Info zur Akkugarantie: 8 Jahre bis 160.000 km
A25: BMW | B25: iX3 (Modell IMPRESSIVE) | C25: =CONCATENATE(A25," ",B25) -> BMW iX3 (Modell IMPRESSIVE) | D25: EV | E25: 210 | F25: Elektrizität | G25: 17.7 | I25: 0 | L25: 71800 | N25: Info zur Akkugarantie: 8 Jahre bis 160.000 km
A26: CITROEN | B26: C Zero | C26: =CONCATENATE(A26," ",B26) -> CITROEN C Zero | D26: EV | E26: 49 | F26: Elektrizität | G26: 17 | I26: 0 | J26: 0 | K26: 0 | L26: 21990 | N26: Info zur Akkugarantie: 8 Jahre bis 100.000 km | O26: 2017 ok
A27: CITROEN | B27: e-C4 (Feel) | C27: =CONCATENATE(A27," ",B27) -> CITROEN e-C4 (Feel) | D27: EV | E27: 100 | F27: Elektrizität | G27: 16.6 | I27: 0 | L27: 35950 | N27: Info zur Akkugarantie: 8 Jahre bis 160.000 km
A28: CITROEN | B28: e-C4 (Shine) | C28: =CONCATENATE(A28," ",B28) -> CITROEN e-C4 (Shine) | D28: EV | E28: 100 | F28: Elektrizität | G28: 16.6 | I28: 0 | L28: 37150 | N28: Info zur Akkugarantie: 8 Jahre bis 160.000 km
A29: CITROEN | B29: e-C4 (Shine edition) | C29: =CONCATENATE(A29," ",B29) -> CITROEN e-C4 (Shine edition) | D29: EV | E29: 100 | F29: Elektrizität | G29: 16.6 | I29: 0 | L29: 38650 | N29: Info zur Akkugarantie: 8 Jahre bis 160.000 km
A30: CITROEN | B30: e-SpaceTourer (Feel) XS (Batterie 50kWh) | C30: CITROEN e-SpaceTourer (Feel) XS (Batterie 50kWh) | D30: EV | E30: 100 | F30: Elektrizität | G30: 23.9 | I30: 0 | L30: 57500 | N30: Info zur Akkugarantie: 8 Jahre bis 160.000 km
A31: CITROEN | B31: e-SpaceTourer (Feel) M (Batterie 50kWh) | C31: =CONCATENATE(A31," ",B31) -> CITROEN e-SpaceTourer (Feel) M (Batterie 50kWh) | D31: EV | E31: 100 | F31: Elektrizität | G31: 23.9 | I31: 0 | L31: 58450 | N31: Info zur Akkugarantie: 8 Jahre bis 160.000 km
A32: CITROEN | B32: e-SpaceTourer (Feel) XL (Batterie 75kWh) | C32: CITROEN e-SpaceTourer (Feel) XL (Batterie 75kWh) | D32: EV | E32: 100 | F32: Elektrizität | G32: 25.9 | I32: 0 | L32: 64950 | N32: Info zur Akkugarantie: 8 Jahre bis 160.000 km
A33: CITROEN | B33: e-SpaceTourer (Shine) M (Batterie 50kWh) | C33: CITROEN e-SpaceTourer (Shine) M (Batterie 50kWh) | D33: EV | E33: 100 | F33: Elektrizität | G33: 23.9 | I33: 0 | L33: 66200 | N33: Info zur Akkugarantie: 8 Jahre bis 160.000 km
A34: CITROEN | B34: e-SpaceTourer (Shine) M (Batterie 75kWh) | C34: =CONCATENATE(A34," ",B34) -> CITROEN e-SpaceTourer (Shine) M (Batterie 75kWh) | D34: EV | E34: 100 | F34: Elektrizität | G34: 25.9 | I34: 0 | L34: 72200 | N34: Info zur Akkugarantie: 8 Jahre bis 160.000 km
A35: CITROEN | B35: e-SpaceTourer (Shine) XL (Batterie 50kWh) | C35: CITROEN e-SpaceTourer (Shine) XL (Batterie 50kWh) | D35: EV | E35: 100 | F35: Elektrizität | G35: 23.9 | I35: 0 | L35: 66700 | N35: Info zur Akkugarantie: 8 Jahre bis 160.000 km
A36: CITROEN | B36: e-SpaceTourer (Shine) XL (Batterie 75kWh) | C36: CITROEN e-SpaceTourer (Shine) XL (Batterie 75kWh) | D36: EV | E36: 100 | F36: Elektrizität | G36: 25.9 | I36: 0 | L36: 72700 | N36: Info zur Akkugarantie: 8 Jahre bis 160.000 km
A37: CITROEN | B37: e-SpaceTourer (Business) M (Batterie 50kWh) | C37: CITROEN e-SpaceTourer (Business) M (Batterie 50kWh) | D37: EV | E37: 100 | F37: Elektrizität | G37: 23.9 | I37: 0 | L37: 57350 | N37: Info zur Akkugarantie: 8 Jahre bis 160.000 km
A38: CITROEN | B38: e-SpaceTourer (Business) M (Batterie 75kWh) | C38: =CONCATENATE(A38," ",B38) -> CITROEN e-SpaceTourer (Business) M (Batterie 75kWh) | D38: EV | E38: 100 | F38: Elektrizität | G38: 25.9 | I38: 0 | L38: 63350 | N38: Info zur Akkugarantie: 8 Jahre bis 160.000 km
A39: CITROEN | B39: e-SpaceTourer (Business) XL (Batterie 50kWh) | C39: CITROEN e-SpaceTourer (Business) XL (Batterie 50kWh) | D39: EV | E39: 100 | F39: Elektrizität | G39: 23.9 | I39: 0 | L39: 57850 | N39: Info zur Akkugarantie: 8 Jahre bis 160.000 km
A40: CITROEN | B40: e-SpaceTourer (Business) XL (Batterie 75kWh) | C40: CITROEN e-SpaceTourer (Business) XL (Batterie 75kWh) | D40: EV | E40: 100 | F40: Elektrizität | G40: 25.9 | I40: 0 | L40: 63850 | N40: Info zur Akkugarantie: 8 Jahre bis 160.000 km
A41: CITROEN | B41: e-SpaceTourer (Business Lounge) M (Batterie 75kWh) | C41: =CONCATENATE(A41," ",B41) -> CITROEN e-SpaceTourer (Business Lounge) M (Batterie 75kWh) | D41: EV | E41: 100 | F41: Elektrizität | G41: 25.9 | I41: 0 | L41: 71400 | N41: Info zur Akkugarantie: 8 Jahre bis 160.000 km
A42: CITROEN | B42: e-SpaceTourer (Business Lounge) XL (Batterie 75kWh) | C42: CITROEN e-SpaceTourer (Business Lounge) XL (Batterie 75kWh) | D42: EV | E42: 100 | F42: Elektrizität | G42: 25.9 | I42: 0 | L42: 71900 | N42: Info zur Akkugarantie: 8 Jahre bis 160.000 km
A43: DS AUTOMOBILES | B43: DS 3 CROSSBACK & E-TENSE (SO CHIC) | C43: =CONCATENATE(A43," ",B43) -> DS AUTOMOBILES DS 3 CROSSBACK & E-TENSE (SO CHIC) | D43: EV | E43: 100 | F43: Elektrizität | G43: 17.8 | I43: 0 | L43: 39190 | N43: Info zur Akkugarantie: 8 Jahre bis 160.000 km
A44: DS AUTOMOBILES | B44: DS 3 CROSSBACK & E-TENSE (PERFORMANCE LINE) | C44: =CONCATENATE(A44," ",B44) -> DS AUTOMOBILES DS 3 CROSSBACK & E-TENSE (PERFORMANCE LINE) | D44: EV | E44: 100 | F44: Elektrizität | G44: 17.8 | I44: 0 | L44: 39740 | N44: Info zur Akkugarantie: 8 Jahre bis 160.000 km
A45: FIAT | B45: 500 electric HATCHBACK (Action) | C45: FIAT 500 electric HATCHBACK (Action) | D45: EV | E45: 70 | F45: Elektrizität | G45: 13 | I45: 0 | L45: 24990 | N45: Info zur Akkugarantie: 8 Jahre bis 160.000 km
A46: FIAT | B46: 500 electric HATCHBACK (Passion) | C46: =CONCATENATE(A46," ",B46) -> FIAT 500 electric HATCHBACK (Passion) | D46: EV | E46: 87 | F46: Elektrizität | G46: 14.5 | I46: 0 | L46: 28390 | N46: Info zur Akkugarantie: 8 Jahre bis 160.000 km
A47: FIAT | B47: 500 electric HATCHBACK (Icon) | C47: =CONCATENATE(A47," ",B47) -> FIAT 500 electric HATCHBACK (Icon) | D47: EV | E47: 87 | F47: Elektrizität | G47: 14.5 | I47: 0 | L47: 29990 | N47: Info zur Akkugarantie: 8 Jahre bis 160.000 km
A48: FIAT | B48: 500 electric HATCHBACK (La Prima) | C48: =CONCATENATE(A48," ",B48) -> FIAT 500 electric HATCHBACK (La Prima) | D48: EV | E48: 87 | F48: Elektrizität | G48: 14.5 | I48: 0 | L48: 35490 | N48: Info zur Akkugarantie: 8 Jahre bis 160.000 km
A49: FIAT | B49: 500 electric 3+1 (Passion) | C49: FIAT 500 electric 3+1 (Passion) | D49: EV | E49: 87 | F49: Elektrizität | G49: 14.5 | I49: 0 | L49: 30390 | N49: Info zur Akkugarantie: 8 Jahre bis 160.000 km
A50: FIAT | B50: 500 electric 3+1 (Icon) | C50: FIAT 500 electric 3+1 (Icon) | D50: EV | E50: 87 | F50: Elektrizität | G50: 14.5 | I50: 0 | L50: 31990 | N50: Info zur Akkugarantie: 8 Jahre bis 160.000 km
A51: FIAT | B51: 500 electric 3+1 (La Prima) | C51: =CONCATENATE(A51," ",B51) -> FIAT 500 electric 3+1 (La Prima) | D51: EV | E51: 87 | F51: Elektrizität | G51: 14.5 | I51: 0 | L51: 37490 | N51: Info zur Akkugarantie: 8 Jahre bis 160.000 km
A52: FIAT | B52: 500 electric Cabrio (Passion) | C52: FIAT 500 electric Cabrio (Passion) | D52: EV | E52: 87 | F52: Elektrizität | G52: 14.5 | I52: 0 | L52: 31390 | N52: Info zur Akkugarantie: 8 Jahre bis 160.000 km
A53: FIAT | B53: 500 electric Cabrio (Icon) | C53: FIAT 500 electric Cabrio (Icon) | D53: EV | E53: 87 | F53: Elektrizität | G53: 14.5 | I53: 0 | L53: 32990 | N53: Info zur Akkugarantie: 8 Jahre bis 160.000 km
A54: FIAT | B54: 500 electric Cabrio (La Prima) | C54: =CONCATENATE(A54," ",B54) -> FIAT 500 electric Cabrio (La Prima) | D54: EV | E54: 87 | F54: Elektrizität | G54: 14.5 | I54: 0 | L54: 38490 | N54: Info zur Akkugarantie: 8 Jahre bis 160.000 km
A55: FORD | B55: Mustang Mach-E (Batterie Standard Range) | C55: FORD Mustang Mach-E (Batterie Standard Range) | D55: EV | E55: 198 | F55: Elektrizität | G55: 17.2 | I55: 0 | L55: 46900
A56: FORD | B56: Mustang Mach-E (Batterie Extended Range) | C56: =CONCATENATE(A56," ",B56) -> FORD Mustang Mach-E (Batterie Extended Range) | D56: EV | E56: 216 | F56: Elektrizität | G56: 16.5 | I56: 0 | L56: 54475
A57: FORD | B57: Mustang Mach-E AWD (Batterie Standard Range) | C57: FORD Mustang Mach-E AWD (Batterie Standard Range) | D57: EV | E57: 198 | F57: Elektrizität | G57: 19.5 | I57: 0 | L57: 54000
A58: FORD | B58: Mustang Mach-E AWD (Batterie Extended Range) | C58: =CONCATENATE(A58," ",B58) -> FORD Mustang Mach-E AWD (Batterie Extended Range) | D58: EV | E58: 258 | F58: Elektrizität | G58: 18.7 | I58: 0 | L58: 62900
A59: HONDA | B59: Honda e | C59: =CONCATENATE(A59," ",B59) -> HONDA Honda e | D59: EV | E59: 100 | F59: Elektrizität | G59: 17.2 | I59: 0 | L59: 35690 | N59: Info zur Akkugarantie: 8 Jahre bis 160.000 km
A60: HONDA | B60: Honda e Advance | C60: HONDA Honda e Advance | D60: EV | E60: 113 | F60: Elektrizität | G60: 17.2 | I60: 0 | L60: 38690 | N60: Info zur Akkugarantie: 8 Jahre bis 160.000 km
A61: HYUNDAI | B61: IONIQ Elektro (LEVEL 3) | C61: HYUNDAI IONIQ Elektro (LEVEL 3) | D61: EV | E61: 100 | F61: Elektrizität | G61: 13.8 | I61: 0 | L61: 37490 | N61: Info zur Akkugarantie: 8 Jahre bis 200.000 km | O61: 2017 ok
A62: HYUNDAI | B62: IONIQ Elektro (LEVEL 4) | C62: HYUNDAI IONIQ Elektro (LEVEL 4) | D62: EV | E62: 100 | F62: Elektrizität | G62: 13.8 | I62: 0 | L62: 39490 | N62: Info zur Akkugarantie: 8 Jahre bis 200.000 km | O62: 2017 ok
A63: HYUNDAI | B63: IONIQ Elektro (LEVEL 5) | C63: HYUNDAI IONIQ Elektro (LEVEL 5) | D63: EV | E63: 100 | F63: Elektrizität | G63: 13.8 | I63: 0 | L63: 40990 | N63: Info zur Akkugarantie: 8 Jahre bis 200.000 km
A64: HYUNDAI | B64: IONIQ Elektro (LEVEL 6) | C64: HYUNDAI IONIQ Elektro (LEVEL 6) | D64: EV | E64: 100 | F64: Elektrizität | G64: 13.8 | I64: 0 | L64: 42490 | N64: Info zur Akkugarantie: 8 Jahre bis 200.000 km
A65: HYUNDAI | B65: KONA LEVEL 3 (39,2 kWh) | C65: HYUNDAI KONA LEVEL 3 (39,2 kWh) | D65: EV | E65: 100 | F65: Elektrizität | G65: 15 | I65: 0 | L65: 39990 | N65: Info zur Akkugarantie: 8 Jahre bis 160.000 km
A66: HYUNDAI | B66: KONA LEVEL 4 (39,2 kWh) | C66: HYUNDAI KONA LEVEL 4 (39,2 kWh) | D66: EV | E66: 100 | F66: Elektrizität | G66: 15 | I66: 0 | L66: 42290 | N66: Info zur Akkugarantie: 8 Jahre bis 160.000 km
A67: HYUNDAI | B67: KONA LEVEL 4 (64 kWh) | C67: HYUNDAI KONA LEVEL 4 (64 kWh) | D67: EV | E67: 150 | F67: Elektrizität | G67: 15.4 | I67: 0 | L67: 46790 | N67: Info zur Akkugarantie: 8 Jahre bis 160.000 km
A68: HYUNDAI | B68: KONA LEVEL 5 (39,2 kWh) | C68: HYUNDAI KONA LEVEL 5 (39,2 kWh) | D68: EV | E68: 100 | F68: Elektrizität | G68: 15 | I68: 0 | L68: 45290 | N68: Info zur Akkugarantie: 8 Jahre bis 160.000 km
A69: HYUNDAI | B69: KONA LEVEL 5 (64 kWh) | C69: HYUNDAI KONA LEVEL 5 (64 kWh) | D69: EV | E69: 150 | F69: Elektrizität | G69: 15.4 | I69: 0 | L69: 49790 | N69: Info zur Akkugarantie: 8 Jahre bis 160.000 km
A70: HYUNDAI | B70: KONA LEVEL 6 (64 kWh) | C70: HYUNDAI KONA LEVEL 6 (64 kWh) | D70: EV | E70: 150 | F70: Elektrizität | G70: 15.4 | I70: 0 | L70: 51290 | N70: Info zur Akkugarantie: 8 Jahre bis 160.000 km
A71: JAGUAR | B71: I-PACE AUSTRIA EDITION | C71: JAGUAR I-PACE AUSTRIA EDITION | D71: EV | E71: 235 | F71: Elektrizität | G71: 23.4 | I71: 0 | L71: 59900 | N71: Info zur Akkugarantie: 8 Jahre bis 160.000 km
A72: JAGUAR | B72: I-PACE S | C72: JAGUAR I-PACE S | D72: EV | E72: 294 | F72: Elektrizität | G72: 23.4 | I72: 0 | L72: 79700 | N72: Info zur Akkugarantie: 8 Jahre bis 160.000 km
A73: JAGUAR | B73: I-PACE SE | C73: JAGUAR I-PACE SE | D73: EV | E73: 294 | F73: Elektrizität | G73: 23.4 | I73: 0 | L73: 87850 | N73: Info zur Akkugarantie: 8 Jahre bis 160.000 km
A74: JAGUAR | B74: I-PACE HSE | C74: JAGUAR I-PACE HSE | D74: EV | E74: 294 | F74: Elektrizität | G74: 23.4 | I74: 0 | L74: 94700 | N74: Info zur Akkugarantie: 8 Jahre bis 160.000 km
A75: KIA | B75: e-Niro (TITAN) | C75: KIA e-Niro (TITAN) | D75: EV | E75: 100 | F75: Elektrizität | G75: 15.3 | I75: 0 | L75: 37990 | N75: Info zur Akkugarantie: 7 Jahre bis 150.000 km
A76: KIA | B76: e-Niro Long Range (TITAN) | C76: KIA e-Niro Long Range (TITAN) | D76: EV | E76: 150 | F76: Elektrizität | G76: 15.9 | I76: 0 | L76: 42390 | N76: Info zur Akkugarantie: 7 Jahre bis 150.000 km | AP76: Batteriemiete und Berechnung "Renault Zoe - 40kWh/50 Batterie"
A77: KIA | B77: e-Niro (SILBER) | C77: KIA e-Niro (SILBER) | D77: EV | E77: 100 | F77: Elektrizität | G77: 15.3 | I77: 0 | L77: 41190 | N77: Info zur Akkugarantie: 7 Jahre bis 150.000 km | AN77: =VLOOKUP(AO77,AP77:AU80,IF(AV82+1<=1,6,AV82+1),TRUE) -> 99 | AO77: =IF(Eingabe!$G$14<='Daten-Elektrofahrzeug'!AP78,'Daten-Elektrofahrzeug'!AP78,IF(Eingabe!$G$14<='Daten-Elektrofahrzeug'!AP79,'Daten-Elektrofahrzeug'!AP79,'Daten-Elektrofahrzeug'!AP80)) -> 36 | AP77: Vertragslaufzeit | AQ77: 7500 | AR77: 10000 | AS77: 12500 | AT77: 15000 | AU77: 17500
A78: KIA | B78: e-Niro Long Range (SILBER) | C78: KIA e-Niro Long Range (SILBER) | D78: EV | E78: 150 | F78: Elektrizität | G78: 15.9 | I78: 0 | L78: 45590 | N78: Info zur Akkugarantie: 7 Jahre bis 150.000 km | AP78: 12 | AQ78: 74 | AR78: 84 | AS78: 94 | AT78: 104 | AU78: 114
A79: KIA | B79: e-Niro (GOLD) | C79: KIA e-Niro (GOLD) | D79: EV | E79: 100 | F79: Elektrizität | G79: 15.3 | I79: 0 | L79: 43390 | N79: Info zur Akkugarantie: 7 Jahre bis 150.000 km | AP79: 24 | AQ79: 69 | AR79: 79 | AS79: 89 | AT79: 99 | AU79: 109
A80: KIA | B80: e-Niro Long Range (GOLD) | C80: KIA e-Niro Long Range (GOLD) | D80: EV | E80: 150 | F80: Elektrizität | G80: 15.9 | I80: 0 | L80: 47790 | N80: Info zur Akkugarantie: 7 Jahre bis 150.000 km | AP80: 36 | AQ80: 69 | AR80: 79 | AS80: 89 | AT80: 99 | AU80: 109
A81: KIA | B81: e-Niro (PLATIN) | C81: KIA e-Niro (PLATIN) | D81: EV | E81: 100 | F81: Elektrizität | G81: 15.3 | I81: 0 | L81: 45190 | N81: Info zur Akkugarantie: 7 Jahre bis 150.000 km | AG81: Batteriemiete und Berechnung "Nissan ev200" | AQ81: =IF(AND(Eingabe!$G$7<=AQ77),AQ77) -> FALSE | AR81: =IF(AND(Eingabe!$G$7<=AR77,Eingabe!$G$7>AQ77),AR77) -> FALSE | AS81: =IF(AND(Eingabe!$G$7<=AS77,Eingabe!$G$7>AR77),AS77) -> FALSE | AT81: =IF(AND(Eingabe!$G$7<=AT77,Eingabe!$G$7>AS77),AT77) -> 15000 | AU81: =IF(AND(Eingabe!$G$7<=AU77,Eingabe!$G$7>AT77),AU77) -> FALSE
A82: KIA | B82: e-Niro Long Range (PLATIN) | C82: KIA e-Niro Long Range (PLATIN) | D82: EV | E82: 150 | F82: Elektrizität | G82: 15.9 | I82: 0 | L82: 49590 | N82: Info zur Akkugarantie: 7 Jahre bis 150.000 km | O82: 2017 ok | AE82: =VLOOKUP(AF82,AG82:AK85,IF(AL87+1<=1,5,AL87+1),TRUE) -> 91.2 | AF82: =IF(Eingabe!G14<='Daten-Elektrofahrzeug'!AG83,'Daten-Elektrofahrzeug'!AG83,IF(Eingabe!G14<='Daten-Elektrofahrzeug'!AG84,'Daten-Elektrofahrzeug'!AG84,'Daten-Elektrofahrzeug'!AG85)) -> 36 | AG82: Vertragslaufzeit | AH82: 10000 | AI82: 15000 | AJ82: 20000 | AK82: 25000 | AQ82: =IF(AQ81=AQ77,1,0) -> 0 | AR82: =IF(AR81=AR77,2,0) -> 0 | AS82: =IF(AS81=AS77,3,0) -> 0 | AT82: =IF(AT81=AT77,4,0) -> 4 | AU82: =IF(AU81=AU77,5,0) -> 0 | AV82: =SUM(AQ82:AU82) -> 4
A83: KIA | B83: e-Soul (TITAN) | C83: KIA e-Soul (TITAN) | D83: EV | E83: 100 | F83: Elektrizität | G83: 15.6 | I83: 0 | L83: 34990 | N83: Info zur Akkugarantie: 7 Jahre bis 150.000 km | O83: 2017 ok | AG83: 12 | AH83: 111.6 | AI83: 115.2 | AJ83: 132 | AK83: 151.2 | AP83: 220d 2C31 + 7LC 140/190 5% 4,4 115 EU6 30.300,00 37.475,- 180,-
A84: KIA | B84: e-Soul Long Range (TITAN) | C84: KIA e-Soul Long Range (TITAN) | D84: EV | E84: 150 | F84: Elektrizität | G84: 15.7 | I84: 0 | L84: 39390 | N84: Info zur Akkugarantie: 7 Jahre bis 150.000 km | AG84: 24 | AH84: 99.6 | AI84: 103.2 | AJ84: 120 | AK84: 139.2 | AP84: Österreich-Paket Plus 5% 1.000,00 1.250,-
A85: KIA | B85: e-Soul (SILBER) | C85: KIA e-Soul (SILBER) | D85: EV | E85: 100 | F85: Elektrizität | G85: 15.6 | I85: 0 | L85: 37990 | N85: Info zur Akkugarantie: 7 Jahre bis 150.000 km | AG85: 36 | AH85: 87.6 | AI85: 91.2 | AJ85: 108 | AK85: 127.2
A86: KIA | B86: e-Soul Long Range (SILBER) | C86: KIA e-Soul Long Range (SILBER) | D86: EV | E86: 150 | F86: Elektrizität | G86: 15.7 | I86: 0 | L86: 42390 | N86: Info zur Akkugarantie: 7 Jahre bis 150.000 km | AH86: =IF(AND(Eingabe!$G$7<=AH82),AH82) -> FALSE | AI86: =IF(AND(Eingabe!$G$7<=AI82,Eingabe!$G$7>AH82),AI82) -> 15000 | AJ86: =IF(AND(Eingabe!$G$7<=AJ82,Eingabe!$G$7>AI82),AJ82) -> FALSE | AK86: =IF(AND(Eingabe!$G$7<=AK82,Eingabe!$G$7>AJ82),AK82) -> FALSE | AP86: 220d A 2C31 + 7LC + 2TB 140/190 4% 4,3 112 EU6 32.230,00 39.565,- 190,-
A87: KIA | B87: e-Soul (GOLD) | C87: KIA e-Soul (GOLD) | D87: EV | E87: 100 | F87: Elektrizität | G87: 15.6 | I87: 0 | L87: 40690 | N87: Info zur Akkugarantie: 7 Jahre bis 150.000 km | AH87: =IF(AH86=AH82,1,0) -> 0 | AI87: =IF(AI86=AI82,2,0) -> 2 | AJ87: =IF(AJ86=AJ82,3,0) -> 0 | AK87: =IF(AK86=AK82,4,0) -> 0 | AL87: =SUM(AH87:AK87) -> 2 | AQ87: Österreich-Paket Plus 4% 1.000,00 1.240,-
A88: KIA | B88: e-Soul Long Range (GOLD) | C88: KIA e-Soul Long Range (GOLD) | D88: EV | E88: 150 | F88: Elektrizität | G88: 15.7 | I88: 0 | L88: 45090 | N88: Info zur Akkugarantie: 7 Jahre bis 150.000 km | AQ88: 220d xDrive A 2C51 + 7LC + 2TB 140/190 6% 4,6 122 EU6 33.250,48 41.496,- 199,-
A89: KIA | B89: e-Soul (PLATIN) | C89: KIA e-Soul (PLATIN) | D89: EV | E89: 100 | F89: Elektrizität | G89: 15.6 | I89: 0 | L89: 42490 | N89: Info zur Akkugarantie: 7 Jahre bis 150.000 km
A90: KIA | B90: e-Soul Long Range (PLATIN) | C90: KIA e-Soul Long Range (PLATIN) | D90: EV | E90: 150 | F90: Elektrizität | G90: 15.7 | I90: 0 | L90: 46890 | N90: Info zur Akkugarantie: 7 Jahre bis 150.000 km
A91: MAZDA | B91: MX-30 GTE | C91: =CONCATENATE(A91," ",B91) -> MAZDA MX-30 GTE | D91: EV | E91: 107 | F91: Elektrizität | G91: 19 | I91: 0 | L91: 34990 | N91: Info zur Akkugarantie: 8 Jahre bis 160.000 km
A92: MAZDA | B92: MX-30 GTE + | C92: MAZDA MX-30 GTE + | D92: EV | E92: 107 | F92: Elektrizität | G92: 19 | I92: 0 | L92: 35990 | N92: Info zur Akkugarantie: 8 Jahre bis 160.000 km
A93: Mercedes-Benz | B93: EQC 400 4MATIC | C93: Mercedes-Benz EQC 400 4MATIC | D93: EV | E93: 300 | F93: Elektrizität | G93: 23.9 | I93: 0 | L93: 75620 | N93: Info zur Akkugarantie: 8 Jahre bis 160.000 km
A94: Mercedes-Benz | B94: EQA 250 | C94: Mercedes-Benz EQA 250 | D94: EV | E94: 140 | F94: Elektrizität | G94: 18.5 | I94: 0 | L94: 48590 | N94: Info zur Akkugarantie: 8 Jahre bis 160.000 km
A95: MINI | B95: Cooper SE | C95: MINI Cooper SE | D95: EV | E95: 135 | F95: Elektrizität | G95: 15.6 | I95: 0 | L95: 33050 | N95: Info zur Akkugarantie: 8 Jahre bis 160.000 km
A96: NISSAN | B96: Leaf Visia | C96: NISSAN Leaf Visia | D96: EV | E96: 110 | F96: Elektrizität | G96: 17.1 | L96: 29990 | N96: Info zur Akkugarantie: 8 Jahre bis 160.000 km
A97: NISSAN | B97: Leaf Acenta | C97: =CONCATENATE(A97," ",B97) -> NISSAN Leaf Acenta | D97: EV | E97: 110 | F97: Elektrizität | G97: 17.1 | I97: 0 | J97: - | K97: 0 | L97: 33200 | M97: 0 | N97: Info zur Akkugarantie: 8 Jahre bis 160.000 km | AQ97: Österreich-Paket Plus 6% 1.000,00 1.260,-
A98: NISSAN | B98: Leaf N-Connecta | C98: NISSAN Leaf N-Connecta | D98: EV | E98: 110 | F98: Elektrizität | G98: 17.1 | I98: 0 | J98: - | K98: 0 | L98: 34900 | M98: 0 | N98: Info zur Akkugarantie: 8 Jahre bis 160.000 km
A99: NISSAN | B99: Leaf Tekna | C99: NISSAN Leaf Tekna | D99: EV | E99: 110 | F99: Elektrizität | G99: 17.1 | I99: 0 | J99: - | K99: 0 | L99: 37050 | N99: Info zur Akkugarantie: 8 Jahre bis 160.000 km
A100: NISSAN | B100: Leaf e+ Acenta | C100: =CONCATENATE(A100," ",B100) -> NISSAN Leaf e+ Acenta | D100: EV | E100: 160 | F100: Elektrizität | G100: 18.5 | I100: 0 | J100: - | K100: 0 | L100: 38350 | M100: 0 | N100: Info zur Akkugarantie: 8 Jahre bis 160.000 km | AQ100: Österreich-Paket Plus 6% 1.000,00 1.260,-
A101: NISSAN | B101: Leaf e+ N-Connecta | C101: NISSAN Leaf e+ N-Connecta | D101: EV | E101: 160 | F101: Elektrizität | G101: 18.5 | I101: 0 | J101: - | K101: 0 | L101: 39900 | M101: 0 | N101: Info zur Akkugarantie: 8 Jahre bis 160.000 km
A102: NISSAN | B102: Leaf e+ Tekna | C102: NISSAN Leaf e+ Tekna | D102: EV | E102: 160 | F102: Elektrizität | G102: 18.5 | I102: 0 | J102: - | K102: 0 | L102: 42050 | N102: Info zur Akkugarantie: 8 Jahre bis 160.000 km
A103: NISSAN | B103: e-NV200 EVALIA 5-Sitzer/7-Sitzer | C103: NISSAN e-NV200 EVALIA 5-Sitzer/7-Sitzer | D103: EV | E103: 80 | F103: Elektrizität | G103: 25.9 | I103: 0 | J103: - | K103: 0 | L103: 44200 | N103: Info zur Akkugarantie: 8 Jahre bis 160.000 km | O103: 2017 ok
A104: NISSAN | B104: e-NV200 Kastenwagen 2-Sitzer (PRO) | C104: NISSAN e-NV200 Kastenwagen 2-Sitzer (PRO) | D104: EV | E104: 80 | F104: Elektrizität | G104: 25.9 | I104: 0 | L104: 37200 | N104: Info zur Akkugarantie: 8 Jahre bis 160.000 km | O104: 2017 ok
A105: NISSAN | B105: e-NV200 Kastenwagen 2-Sitzer (COMFORT) | C105: NISSAN e-NV200 Kastenwagen 2-Sitzer (COMFORT) | D105: EV | E105: 80 | F105: Elektrizität | G105: 25.9 | I105: 0 | L105: 40080 | N105: Info zur Akkugarantie: 8 Jahre bis 160.000 km | O105: 2017 ok
A106: NISSAN | B106: e-NV200 Kastenwagen 2-Sitzer (COMFORT Kombi) | C106: NISSAN e-NV200 Kastenwagen 2-Sitzer (COMFORT Kombi) | D106: EV | E106: 80 | F106: Elektrizität | G106: 25.9 | I106: 0 | L106: 42520 | N106: Info zur Akkugarantie: 8 Jahre bis 160.000 km
A107: NISSAN | B107: e-NV200 Kastenwagen 2-Sitzer (PREMIUM) | C107: NISSAN e-NV200 Kastenwagen 2-Sitzer (PREMIUM) | D107: EV | E107: 80 | F107: Elektrizität | G107: 25.9 | I107: 0 | L107: 41760 | N107: Info zur Akkugarantie: 8 Jahre bis 160.000 km | O107: 2017 ok
A108: OPEL | B108: Corsa-e-EDITION | C108: OPEL Corsa-e-EDITION | D108: EV | E108: 100 | F108: Elektrizität | G108: 16.8 | I108: 0 | L108: 29999 | N108: Info zur Akkugarantie: 8 Jahre bis 160.000 km | O108: 2017 ok
A109: OPEL | B109: Corsa-e-ELEGANCE | C109: OPEL Corsa-e-ELEGANCE | D109: EV | E109: 100 | F109: Elektrizität | G109: 16.8 | I109: 0 | L109: 31699 | N109: Info zur Akkugarantie: 8 Jahre bis 160.000 km
A110: OPEL | B110: Corsa-e-GS-LINE | C110: =CONCATENATE(A110," ",B110) -> OPEL Corsa-e-GS-LINE | D110: EV | E110: 100 | F110: Elektrizität | G110: 16.8 | I110: 0 | L110: 31799 | N110: Info zur Akkugarantie: 8 Jahre bis 160.000 km
A111: OPEL | B111: Mokka-e | C111: OPEL Mokka-e | D111: EV | E111: 100 | F111: Elektrizität | G111: 17.6 | I111: 0 | L111: 34439 | N111: Info zur Akkugarantie: 8 Jahre bis 160.000 km
A112: OPEL | B112: Mokka-e-EDITION | C112: OPEL Mokka-e-EDITION | D112: EV | E112: 100 | F112: Elektrizität | G112: 17.6 | I112: 0 | L112: 35039 | N112: Info zur Akkugarantie: 8 Jahre bis 160.000 km
A113: OPEL | B113: Mokka-e-ELEGANCE | C113: OPEL Mokka-e-ELEGANCE | D113: EV | E113: 100 | F113: Elektrizität | G113: 17.6 | I113: 0 | L113: 37339 | N113: Info zur Akkugarantie: 8 Jahre bis 160.000 km
A114: OPEL | B114: Mokka-e-GS-LINE | C114: OPEL Mokka-e-GS-LINE | D114: EV | E114: 100 | F114: Elektrizität | G114: 17.6 | I114: 0 | L114: 38719 | N114: Info zur Akkugarantie: 8 Jahre bis 160.000 km
A115: OPEL | B115: Mokka-e-ULTIMATE | C115: OPEL Mokka-e-ULTIMATE | D115: EV | E115: 100 | F115: Elektrizität | G115: 17.6 | I115: 0 | L115: 40849 | N115: Info zur Akkugarantie: 8 Jahre bis 160.000 km
A116: OPEL | B116: Zafira-e-Edition (50 kWh) Länge S | C116: OPEL Zafira-e-Edition (50 kWh) Länge S | D116: EV | E116: 100 | F116: Elektrizität | G116: 23.9 | I116: 0 | L116: 58750 | N116: Info zur Akkugarantie: 8 Jahre bis 160.000 km
A117: OPEL | B117: Zafira-e-Edition (50 kWh) Länge M | C117: =CONCATENATE(A117," ",B117) -> OPEL Zafira-e-Edition (50 kWh) Länge M | D117: EV | E117: 100 | F117: Elektrizität | G117: 23.9 | I117: 0 | L117: 59700 | N117: Info zur Akkugarantie: 8 Jahre bis 160.000 km
A118: OPEL | B118: Zafira-e-Edition (50 kWh) Länge L | C118: OPEL Zafira-e-Edition (50 kWh) Länge L | D118: EV | E118: 100 | F118: Elektrizität | G118: 23.9 | I118: 0 | L118: 60200 | N118: Info zur Akkugarantie: 8 Jahre bis 160.000 km
A119: OPEL | B119: Zafira-e-Edition (75 kWh) Länge S | C119: OPEL Zafira-e-Edition (75 kWh) Länge S | D119: EV | E119: 100 | F119: Elektrizität | G119: 25.9 | I119: 0 | L119: - | N119: Info zur Akkugarantie: 8 Jahre bis 160.000 km
A120: OPEL | B120: Zafira-e-Edition (75 kWh) Länge M | C120: =CONCATENATE(A120," ",B120) -> OPEL Zafira-e-Edition (75 kWh) Länge M | D120: EV | E120: 100 | F120: Elektrizität | G120: 25.9 | I120: 0 | L120: 65700 | N120: Info zur Akkugarantie: 8 Jahre bis 160.000 km
A121: OPEL | B121: Zafira-e-Edition (75 kWh) Länge L | C121: OPEL Zafira-e-Edition (75 kWh) Länge L | D121: EV | E121: 100 | F121: Elektrizität | G121: 25.9 | I121: 0 | L121: 66200 | N121: Info zur Akkugarantie: 8 Jahre bis 160.000 km
A122: OPEL | B122: Zafira-e-Elegance (50 kWh) Länge S | C122: =CONCATENATE(A122," ",B122) -> OPEL Zafira-e-Elegance (50 kWh) Länge S | D122: EV | E122: 100 | F122: Elektrizität | G122: 23.9 | I122: 0 | L122: - | N122: Info zur Akkugarantie: 8 Jahre bis 160.000 km
A123: OPEL | B123: Zafira-e-Elegance (50 kWh) Länge M | C123: OPEL Zafira-e-Elegance (50 kWh) Länge M | D123: EV | E123: 100 | F123: Elektrizität | G123: 23.9 | I123: 0 | L123: 67210 | N123: Info zur Akkugarantie: 8 Jahre bis 160.000 km
A124: OPEL | B124: Zafira-e-Elegance (50 kWh) Länge L | C124: OPEL Zafira-e-Elegance (50 kWh) Länge L | D124: EV | E124: 100 | F124: Elektrizität | G124: 23.9 | I124: 0 | L124: 67710 | N124: Info zur Akkugarantie: 8 Jahre bis 160.000 km
A125: OPEL | B125: Zafira-e-Elegance (75 kWh) Länge S | C125: =CONCATENATE(A125," ",B125) -> OPEL Zafira-e-Elegance (75 kWh) Länge S | D125: EV | E125: 100 | F125: Elektrizität | G125: 25.9 | I125: 0 | L125: - | N125: Info zur Akkugarantie: 8 Jahre bis 160.000 km
A126: OPEL | B126: Zafira-e-Elegance (75 kWh) Länge M | C126: OPEL Zafira-e-Elegance (75 kWh) Länge M | D126: EV | E126: 100 | F126: Elektrizität | G126: 25.9 | I126: 0 | L126: 73210 | N126: Info zur Akkugarantie: 8 Jahre bis 160.000 km
A127: OPEL | B127: Zafira-e-Elegance (75 kWh) Länge L | C127: OPEL Zafira-e-Elegance (75 kWh) Länge L | D127: EV | E127: 100 | F127: Elektrizität | G127: 25.9 | I127: 0 | L127: 73710 | N127: Info zur Akkugarantie: 8 Jahre bis 160.000 km
A128: OPEL | B128: Zafira-e-Business Edition (50 kWh) Länge S | C128: OPEL Zafira-e-Business Edition (50 kWh) Länge S | D128: EV | E128: 100 | F128: Elektrizität | G128: 23.9 | I128: 0 | L128: 57650 | N128: Info zur Akkugarantie: 8 Jahre bis 160.000 km
A129: OPEL | B129: Zafira-e-Business Edition (50 kWh) Länge M | C129: OPEL Zafira-e-Business Edition (50 kWh) Länge M | D129: EV | E129: 100 | F129: Elektrizität | G129: 23.9 | I129: 0 | L129: 58600 | N129: Info zur Akkugarantie: 8 Jahre bis 160.000 km
A130: OPEL | B130: Zafira-e-Business Edition (50 kWh) Länge L | C130: OPEL Zafira-e-Business Edition (50 kWh) Länge L | D130: EV | E130: 100 | F130: Elektrizität | G130: 23.9 | I130: 0 | L130: 59100 | N130: Info zur Akkugarantie: 8 Jahre bis 160.000 km
A131: OPEL | B131: Zafira-e-Business Edition (75 kWh) Länge S | C131: =CONCATENATE(A131," ",B131) -> OPEL Zafira-e-Business Edition (75 kWh) Länge S | D131: EV | E131: 100 | F131: Elektrizität | G131: 25.9 | I131: 0 | L131: - | N131: Info zur Akkugarantie: 8 Jahre bis 160.000 km
A132: OPEL | B132: Zafira-e-Business Edition (75 kWh) Länge M | C132: OPEL Zafira-e-Business Edition (75 kWh) Länge M | D132: EV | E132: 100 | F132: Elektrizität | G132: 25.9 | I132: 0 | L132: 64600 | N132: Info zur Akkugarantie: 8 Jahre bis 160.000 km
A133: OPEL | B133: Zafira-e-Business Edition (75 kWh) Länge L | C133: OPEL Zafira-e-Business Edition (75 kWh) Länge L | D133: EV | E133: 100 | F133: Elektrizität | G133: 25.9 | I133: 0 | L133: 65100 | N133: Info zur Akkugarantie: 8 Jahre bis 160.000 km
A134: OPEL | B134: Zafira-e-Business Elegance Edition (50 kWh) Länge S | C134: OPEL Zafira-e-Business Elegance Edition (50 kWh) Länge S | D134: EV | E134: 100 | F134: Elektrizität | G134: 23.9 | I134: 0 | L134: - | N134: Info zur Akkugarantie: 8 Jahre bis 160.000 km
A135: OPEL | B135: Zafira-e-Business Elegance Edition (50 kWh) Länge M | C135: OPEL Zafira-e-Business Elegance Edition (50 kWh) Länge M | D135: EV | E135: 100 | F135: Elektrizität | G135: 23.9 | I135: 0 | L135: 66650 | N135: Info zur Akkugarantie: 8 Jahre bis 160.000 km
A136: OPEL | B136: Zafira-e-Business Elegance Edition (50 kWh) Länge L | C136: OPEL Zafira-e-Business Elegance Edition (50 kWh) Länge L | D136: EV | E136: 100 | F136: Elektrizität | G136: 23.9 | I136: 0 | L136: 67150 | N136: Info zur Akkugarantie: 8 Jahre bis 160.000 km
A137: OPEL | B137: Zafira-e-Business Elegance Edition (75 kWh) Länge S | C137: =CONCATENATE(A137," ",B137) -> OPEL Zafira-e-Business Elegance Edition (75 kWh) Länge S | D137: EV | E137: 100 | F137: Elektrizität | G137: 25.9 | I137: 0 | L137: - | N137: Info zur Akkugarantie: 8 Jahre bis 160.000 km
A138: OPEL | B138: Zafira-e-Business Elegance Edition (75 kWh) Länge M | C138: OPEL Zafira-e-Business Elegance Edition (75 kWh) Länge M | D138: EV | E138: 100 | F138: Elektrizität | G138: 25.9 | I138: 0 | L138: 72650 | N138: Info zur Akkugarantie: 8 Jahre bis 160.000 km
A139: OPEL | B139: Zafira-e-Business Elegance Edition (75 kWh) Länge L | C139: OPEL Zafira-e-Business Elegance Edition (75 kWh) Länge L | D139: EV | E139: 100 | F139: Elektrizität | G139: 25.9 | I139: 0 | L139: 73150 | N139: Info zur Akkugarantie: 8 Jahre bis 160.000 km
A140: PEUGEOT | B140: e-208 (ACTIVE) | C140: PEUGEOT e-208 (ACTIVE) | D140: EV | E140: 100 | F140: Elektrizität | G140: 16.3 | I140: 0 | L140: 32450 | N140: Info zur Akkugarantie: 8 Jahre bis 160.000 km
A141: PEUGEOT | B141: e-208 (ACTIVE PACK) | C141: =CONCATENATE(A141," ",B141) -> PEUGEOT e-208 (ACTIVE PACK) | D141: EV | E141: 100 | F141: Elektrizität | G141: 16.3 | I141: 0 | L141: 33180 | N141: Info zur Akkugarantie: 8 Jahre bis 160.000 km
A142: PEUGEOT | B142: e-208 (ALLURE) | C142: PEUGEOT e-208 (ALLURE) | D142: EV | E142: 100 | F142: Elektrizität | G142: 16.3 | I142: 0 | L142: 33500 | N142: Info zur Akkugarantie: 8 Jahre bis 160.000 km
A143: PEUGEOT | B143: e-208 (ALLURE PACK) | C143: =CONCATENATE(A143," ",B143) -> PEUGEOT e-208 (ALLURE PACK) | D143: EV | E143: 100 | F143: Elektrizität | G143: 16.3 | I143: 0 | L143: 34000 | N143: Info zur Akkugarantie: 8 Jahre bis 160.000 km
A144: PEUGEOT | B144: e-208 (GT) | C144: PEUGEOT e-208 (GT) | D144: EV | E144: 100 | F144: Elektrizität | G144: 16.3 | I144: 0 | L144: 36400 | N144: Info zur Akkugarantie: 8 Jahre bis 160.000 km
A145: PEUGEOT | B145: e-208 (GT PACK) | C145: PEUGEOT e-208 (GT PACK) | D145: EV | E145: 100 | F145: Elektrizität | G145: 16.3 | I145: 0 | L145: 38050 | N145: Info zur Akkugarantie: 8 Jahre bis 160.000 km
A146: PEUGEOT | B146: e-2008 (ACTIVE) | C146: PEUGEOT e-2008 (ACTIVE) | D146: EV | E146: 100 | F146: Elektrizität | G146: 17.8 | I146: 0 | L146: 38500 | N146: Info zur Akkugarantie: 8 Jahre bis 160.000 km
A147: PEUGEOT | B147: e-2008 (ACTIVE PACK) | C147: =CONCATENATE(A147," ",B147) -> PEUGEOT e-2008 (ACTIVE PACK) | D147: EV | E147: 100 | F147: Elektrizität | G147: 17.8 | I147: 0 | L147: 38950 | N147: Info zur Akkugarantie: 8 Jahre bis 160.000 km
A148: PEUGEOT | B148: e-2008 (ALLURE) | C148: PEUGEOT e-2008 (ALLURE) | D148: EV | E148: 100 | F148: Elektrizität | G148: 17.8 | I148: 0 | L148: 39250 | N148: Info zur Akkugarantie: 8 Jahre bis 160.000 km
A149: PEUGEOT | B149: e-2008 (ALLURE PACK) | C149: =CONCATENATE(A149," ",B149) -> PEUGEOT e-2008 (ALLURE PACK) | D149: EV | E149: 100 | F149: Elektrizität | G149: 17.8 | I149: 0 | L149: 39900 | N149: Info zur Akkugarantie: 8 Jahre bis 160.000 km
A150: PEUGEOT | B150: e-2008 (GT) | C150: PEUGEOT e-2008 (GT) | D150: EV | E150: 100 | F150: Elektrizität | G150: 17.8 | I150: 0 | L150: 42150 | N150: Info zur Akkugarantie: 8 Jahre bis 160.000 km
A151: PEUGEOT | B151: e-2008 (GT PACK) | C151: PEUGEOT e-2008 (GT PACK) | D151: EV | E151: 100 | F151: Elektrizität | G151: 17.8 | I151: 0 | L151: 43700 | N151: Info zur Akkugarantie: 8 Jahre bis 160.000 km | AP151: Batteriemiete und Berechnung "Renault Kangoo"
A152: PEUGEOT | B152: e-TRAVELLER (ACTIVE) Kompakt L1 | C152: PEUGEOT e-TRAVELLER (ACTIVE) Kompakt L1 | D152: EV | E152: 100 | F152: Elektrizität | G152: 23.9 | I152: 0 | L152: 57550 | N152: Info zur Akkugarantie: 8 Jahre bis 160.000 km
A153: PEUGEOT | B153: e-TRAVELLER (ACTIVE) Standard L2 | C153: =CONCATENATE(A153," ",B153) -> PEUGEOT e-TRAVELLER (ACTIVE) Standard L2 | D153: EV | E153: 100 | F153: Elektrizität | G153: 23.9 | I153: 0 | L153: 58500 | N153: Info zur Akkugarantie: 8 Jahre bis 160.000 km
A154: PEUGEOT | B154: e-TRAVELLER (ACTIVE) Lang L3 | C154: PEUGEOT e-TRAVELLER (ACTIVE) Lang L3 | D154: EV | E154: 100 | F154: Elektrizität | G154: 25.9 | I154: 0 | L154: 65000 | N154: Info zur Akkugarantie: 8 Jahre bis 160.000 km
A155: PEUGEOT | B155: e-TRAVELLER (ALLURE) Standard L2 (50 kWh) | C155: =CONCATENATE(A155," ",B155) -> PEUGEOT e-TRAVELLER (ALLURE) Standard L2 (50 kWh) | D155: EV | E155: 100 | F155: Elektrizität | G155: 23.9 | I155: 0 | L155: 66250 | N155: Info zur Akkugarantie: 8 Jahre bis 160.000 km
A156: PEUGEOT | B156: e-TRAVELLER (ALLURE) Standard L2 (75 kWh) | C156: PEUGEOT e-TRAVELLER (ALLURE) Standard L2 (75 kWh) | D156: EV | E156: 100 | F156: Elektrizität | G156: 25.9 | I156: 0 | L156: 72250 | N156: Info zur Akkugarantie: 8 Jahre bis 160.000 km
A157: PEUGEOT | B157: e-TRAVELLER (ALLURE) Lang L3 (50 kWh) | C157: PEUGEOT e-TRAVELLER (ALLURE) Lang L3 (50 kWh) | D157: EV | E157: 100 | F157: Elektrizität | G157: 25.9 | I157: 0 | L157: 66750 | N157: Info zur Akkugarantie: 8 Jahre bis 160.000 km
A158: PEUGEOT | B158: e-TRAVELLER (ALLURE) Lang L3 (75 kWh) | C158: PEUGEOT e-TRAVELLER (ALLURE) Lang L3 (75 kWh) | D158: EV | E158: 100 | F158: Elektrizität | G158: 25.9 | I158: 0 | L158: 72750 | N158: Info zur Akkugarantie: 8 Jahre bis 160.000 km
A159: PEUGEOT | B159: e-TRAVELLER (BUSINESS) Standard L2 (50 kWh) | C159: =CONCATENATE(A159," ",B159) -> PEUGEOT e-TRAVELLER (BUSINESS) Standard L2 (50 kWh) | D159: EV | E159: 100 | F159: Elektrizität | G159: 23.9 | I159: 0 | L159: 57400 | N159: Info zur Akkugarantie: 8 Jahre bis 160.000 km
A160: PEUGEOT | B160: e-TRAVELLER (BUSINESS) Standard L2 (75 kWh) | C160: PEUGEOT e-TRAVELLER (BUSINESS) Standard L2 (75 kWh) | D160: EV | E160: 100 | F160: Elektrizität | G160: 25.9 | I160: 0 | L160: 63400 | N160: Info zur Akkugarantie: 8 Jahre bis 160.000 km
A161: PEUGEOT | B161: e-TRAVELLER (BUSINESS) Lang L3 (75 kWh) | C161: PEUGEOT e-TRAVELLER (BUSINESS) Lang L3 (75 kWh) | D161: EV | E161: 100 | F161: Elektrizität | G161: 25.9 | I161: 0 | L161: 63900 | N161: Info zur Akkugarantie: 8 Jahre bis 160.000 km
A162: PEUGEOT | B162: e-TRAVELLER (BUSINESS VIP) Standard L2 (75 kWh) | C162: =CONCATENATE(A162," ",B162) -> PEUGEOT e-TRAVELLER (BUSINESS VIP) Standard L2 (75 kWh) | D162: EV | E162: 100 | F162: Elektrizität | G162: 25.9 | I162: 0 | L162: 71450 | N162: Info zur Akkugarantie: 8 Jahre bis 160.000 km
A163: PEUGEOT | B163: e-TRAVELLER (BUSINESS VIP) Lang L3 (75 kWh) | C163: PEUGEOT e-TRAVELLER (BUSINESS VIP) Lang L3 (75 kWh) | D163: EV | E163: 100 | F163: Elektrizität | G163: 25.9 | I163: 0 | L163: 71950 | N163: Info zur Akkugarantie: 8 Jahre bis 160.000 km
A164: PORSCHE | B164: Taycan | C164: PORSCHE Taycan | D164: EV | E164: 280 | F164: Elektrizität | G164: 28.7 | I164: 0 | L164: 86868 | N164: Info zur Akkugarantie: 8 Jahre bis 160.000 km
A165: PORSCHE | B165: Taycan 4S | C165: PORSCHE Taycan 4S | D165: EV | E165: 360 | F165: Elektrizität | G165: 23.4 | I165: 0 | L165: 110034 | N165: Info zur Akkugarantie: 8 Jahre bis 160.000 km
A166: PORSCHE | B166: Taycan Turbo | C166: PORSCHE Taycan Turbo | D166: EV | E166: 500 | F166: Elektrizität | G166: 24.9 | I166: 0 | L166: 157050 | N166: Info zur Akkugarantie: 8 Jahre bis 160.000 km
A167: PORSCHE | B167: Taycan Turbo S | C167: PORSCHE Taycan Turbo S | D167: EV | E167: 560 | F167: Elektrizität | G167: 25.1 | I167: 0 | L167: 190571 | N167: Info zur Akkugarantie: 8 Jahre bis 160.000 km | AN167: =VLOOKUP(AO167,AP167:AV171,IF(AV184+1<=1,6,AV184+1),TRUE) ->  | AO167: =IF(Eingabe!$G$14<='Daten-Elektrofahrzeug'!AP168,'Daten-Elektrofahrzeug'!AP168,IF(Eingabe!$G$14<=AP170,AP170,AP171)) -> 36 | AP167: Vertragslaufzeit | AQ167: 7500 | AR167: 10000 | AS167: 12500 | AT167: 15000 | AU167: 17500 | AV167: 20000
A168: RENAULT | B168: ZOE LIFE R110 Z.E. 40 | C168: RENAULT ZOE LIFE R110 Z.E. 40 | D168: EV | E168: 80 | F168: Elektrizität | G168: 17.6 | I168: 0 | L168: 30890 | N168: Info zur Akkugarantie: 8 Jahre bis 160.000 km | AP168: 12 | AQ168: 58 | AR168: 66 | AS168: 74 | AT168: 82 | AU168: 90 | AV168: 98
A169: RENAULT | B169: ZOE LIFE R110 Z.E. 50 | C169: =CONCATENATE(A169," ",B169) -> RENAULT ZOE LIFE R110 Z.E. 50 | D169: EV | E169: 80 | F169: Elektrizität | G169: 17.6 | I169: 0 | L169: 33390 | N169: Info zur Akkugarantie: 8 Jahre bis 160.000 km | AP169: 12 | AQ169: 58 | AR169: 66 | AS169: 74 | AT169: 82 | AU169: 90 | AV169: 98
A170: RENAULT | B170: ZOE ZEN R110 | C170: RENAULT ZOE ZEN R110 | D170: EV | E170: 80 | F170: Elektrizität | G170: 17.6 | I170: 0 | L170: 34290 | N170: Info zur Akkugarantie: 8 Jahre bis 160.000 km | AP170: 24 | AQ170: 58 | AR170: 66 | AS170: 74 | AT170: 82 | AU170: 90 | AV170: 98
A171: RENAULT | B171: ZOE ZEN R135 | C171: RENAULT ZOE ZEN R135 | D171: EV | E171: 100 | F171: Elektrizität | G171: 18.5 | I171: 0 | L171: 35290 | N171: Info zur Akkugarantie: 8 Jahre bis 160.000 km | AP171: 36 | AQ171: 58 | AR171: 66 | AS171: 74 | AT171: 82 | AU171: 90 | AV171: 98
A172: RENAULT | B172: ZOE INTENS R135 | C172: RENAULT ZOE INTENS R135 | D172: EV | E172: 100 | F172: Elektrizität | G172: 18.5 | I172: 0 | L172: 36990 | N172: Info zur Akkugarantie: 8 Jahre bis 160.000 km | AQ172: =IF(AND(Eingabe!$G$7<=AQ167),AQ167) -> FALSE | AR172: =IF(AND(Eingabe!$G$7<=AR167,Eingabe!$G$7>AQ167),AR167) -> FALSE | AS172: =IF(AND(Eingabe!$G$7<=AS167,Eingabe!$G$7>AR167),AS167) -> FALSE | AT172: =IF(AND(Eingabe!$G$7<=AT167,Eingabe!$G$7>AS167),AT167) -> 15000 | AU172: =IF(AND(Eingabe!$G$7<=AU167,Eingabe!$G$7>AT167),AU167) -> FALSE | AV172: =IF(AND(Eingabe!$G$7<=AV167,Eingabe!$G$7>AU167),AV167) -> FALSE
A173: RENAULT | B173: ZOE RIVIERA R135 | C173: =CONCATENATE(A173," ",B173) -> RENAULT ZOE RIVIERA R135 | D173: EV | E173: 100 | F173: Elektrizität | G173: 18.5 | I173: 0 | L173: 38690 | N173: Info zur Akkugarantie: 8 Jahre bis 160.000 km | AQ173: =IF(AND(Eingabe!$G$7<=AQ168),AQ168) -> FALSE | AR173: =IF(AND(Eingabe!$G$7<=AR168,Eingabe!$G$7>AQ168),AR168) -> FALSE | AS173: =IF(AND(Eingabe!$G$7<=AS168,Eingabe!$G$7>AR168),AS168) -> FALSE | AT173: =IF(AND(Eingabe!$G$7<=AT168,Eingabe!$G$7>AS168),AT168) -> FALSE | AU173: =IF(AND(Eingabe!$G$7<=AU168,Eingabe!$G$7>AT168),AU168) -> FALSE | AV173: =IF(AND(Eingabe!$G$7<=AV168,Eingabe!$G$7>AU168),AV168) -> FALSE
A174: RENAULT | B174: Kangoo Z.E. COMPLETE 2-Sitzer | C174: =CONCATENATE(A174," ",B174) -> RENAULT Kangoo Z.E. COMPLETE 2-Sitzer | D174: EV | E174: 44 | F174: Elektrizität | G174: 12.3 | I174: 0 | L174: 33880 | N174: Info zur Akkugarantie: 5 Jahre bis 100.000 km | O174: 2017 ok | AQ174: =IF(#REF!=AQ170,1,0) ->  | AR174: =IF(#REF!=AR170,2,0) ->  | AS174: =IF(#REF!=AS170,3,0) ->  | AT174: =IF(#REF!=AT170,4,0) ->  | AU174: =IF(#REF!=AU170,5,0) ->  | AV174: =IF(#REF!=AV170,5,0) -> 
A175: RENAULT | B175: Kangoo Maxi Z.E. COMPLETE 2-Sitzer | C175: RENAULT Kangoo Maxi Z.E. COMPLETE 2-Sitzer | D175: EV | E175: 44 | F175: Elektrizität | G175: 12.3 | I175: 0 | L175: 35320 | N175: Info zur Akkugarantie: 5 Jahre bis 100.000 km | O175: 2017 ok
A176: RENAULT | B176: Kangoo Maxi Z.E. COMPLETE 5-Sitzer | C176: RENAULT Kangoo Maxi Z.E. COMPLETE 5-Sitzer | D176: EV | E176: 44 | F176: Elektrizität | G176: 12.3 | I176: 0 | L176: 36280 | N176: Info zur Akkugarantie: 5 Jahre bis 100.000 km
A177: RENAULT | B177: Master Z.E. Kastenwagen L1H1 3-Sitzer | C177: RENAULT Master Z.E. Kastenwagen L1H1 3-Sitzer | D177: EV | E177: 57 | F177: Elektrizität | G177: 21 | I177: 0 | L177: 63960 | N177: Info zur Akkugarantie: 5 Jahre bis 100.000 km
A178: RENAULT | B178: Master Z.E. Kastenwagen L1H2 3-Sitzer | C178: RENAULT Master Z.E. Kastenwagen L1H2 3-Sitzer | D178: EV | E178: 57 | F178: Elektrizität | G178: 21 | I178: 0 | L178: 64920 | N178: Info zur Akkugarantie: 5 Jahre bis 100.000 km
A179: RENAULT | B179: Master Z.E. Kastenwagen L1H2 3-Sitzer | C179: =CONCATENATE(A179," ",B179) -> RENAULT Master Z.E. Kastenwagen L1H2 3-Sitzer | D179: EV | E179: 57 | F179: Elektrizität | G179: 21 | I179: 0 | L179: 70920 | N179: Info zur Akkugarantie: 5 Jahre bis 100.000 km
A180: RENAULT | B180: Master Z.E. Kastenwagen L2H2 3-Sitzer | C180: RENAULT Master Z.E. Kastenwagen L2H2 3-Sitzer | D180: EV | E180: 57 | F180: Elektrizität | G180: 21 | I180: 0 | L180: 65880 | N180: Info zur Akkugarantie: 5 Jahre bis 100.000 km
A181: RENAULT | B181: Master Z.E. Kastenwagen L2H2 3-Sitzer | C181: =CONCATENATE(A181," ",B181) -> RENAULT Master Z.E. Kastenwagen L2H2 3-Sitzer | D181: EV | E181: 57 | F181: Elektrizität | G181: 21 | I181: 0 | L181: 71880 | N181: Info zur Akkugarantie: 5 Jahre bis 100.000 km
A182: RENAULT | B182: Master Z.E. Kastenwagen L3H2 3-Sitzer | C182: RENAULT Master Z.E. Kastenwagen L3H2 3-Sitzer | D182: EV | E182: 57 | F182: Elektrizität | G182: 21 | I182: 0 | L182: 67080 | N182: Info zur Akkugarantie: 5 Jahre bis 100.000 km
A183: RENAULT | B183: Master Z.E. Kastenwagen L3H2 3-Sitzer | C183: =CONCATENATE(A183," ",B183) -> RENAULT Master Z.E. Kastenwagen L3H2 3-Sitzer | D183: EV | E183: 57 | F183: Elektrizität | G183: 21 | I183: 0 | L183: 73080 | N183: Info zur Akkugarantie: 5 Jahre bis 100.000 km
A184: RENAULT | B184: Master Z.E. Plattform L2 3-Sitzer | C184: RENAULT Master Z.E. Plattform L2 3-Sitzer | D184: EV | E184: 57 | F184: Elektrizität | G184: 21 | I184: 0 | L184: 62760 | N184: Info zur Akkugarantie: 5 Jahre bis 100.000 km | AV184: =SUM(#REF!) -> 
A185: RENAULT | B185: Master Z.E. Plattform L2 3-Sitzer | C185: =CONCATENATE(A185," ",B185) -> RENAULT Master Z.E. Plattform L2 3-Sitzer | D185: EV | E185: 57 | F185: Elektrizität | G185: 21 | I185: 0 | L185: 68760 | N185: Info zur Akkugarantie: 5 Jahre bis 100.000 km | AV185: =SUM(#REF!) -> 
A186: RENAULT | B186: Master Z.E. Plattform L3 3-Sitzer | C186: =CONCATENATE(A186," ",B186) -> RENAULT Master Z.E. Plattform L3 3-Sitzer | D186: EV | E186: 57 | F186: Elektrizität | G186: 21 | I186: 0 | L186: 63960 | N186: Info zur Akkugarantie: 5 Jahre bis 100.000 km
A187: RENAULT | B187: Master Z.E. Plattform L3 3-Sitzer | C187: =CONCATENATE(A187," ",B187) -> RENAULT Master Z.E. Plattform L3 3-Sitzer | D187: EV | E187: 57 | F187: Elektrizität | G187: 21 | I187: 0 | L187: 69960 | N187: Info zur Akkugarantie: 5 Jahre bis 100.000 km
A188: RENAULT | B188: Master Z.E. Fahrgestell L2 3-Sitzer | C188: RENAULT Master Z.E. Fahrgestell L2 3-Sitzer | D188: EV | E188: 57 | F188: Elektrizität | G188: 21 | I188: 0 | L188: 69780 | N188: Info zur Akkugarantie: 5 Jahre bis 100.000 km | AV188: =SUM(#REF!) -> 
A189: RENAULT | B189: Master Z.E. Fahrgestell L3 3-Sitzer | C189: =CONCATENATE(A189," ",B189) -> RENAULT Master Z.E. Fahrgestell L3 3-Sitzer | D189: EV | E189: 57 | F189: Elektrizität | G189: 21 | I189: 0 | L189: 70980 | N189: Info zur Akkugarantie: 5 Jahre bis 100.000 km | AV189: =SUM(#REF!) -> 
A190: RENAULT | B190: TWINGO Electric (LIFE) | C190: RENAULT TWINGO Electric (LIFE) | D190: EV | E190: 60 | F190: Elektrizität | G190: 16 | I190: 0 | L190: 20490 | N190: Info zur Akkugarantie: 8 Jahre bis 160.000 km
A191: RENAULT | B191: TWINGO Electric (ZEN) | C191: =CONCATENATE(A191," ",B191) -> RENAULT TWINGO Electric (ZEN) | D191: EV | E191: 60 | F191: Elektrizität | G191: 16 | I191: 0 | L191: 21990 | N191: Info zur Akkugarantie: 8 Jahre bis 160.000 km
A192: RENAULT | B192: TWINGO Electric (INTENS) | C192: RENAULT TWINGO Electric (INTENS) | D192: EV | E192: 60 | F192: Elektrizität | G192: 16 | I192: 0 | L192: 23290 | N192: Info zur Akkugarantie: 8 Jahre bis 160.000 km
A193: RENAULT | B193: TWINGO Electric (VIBES) | C193: RENAULT TWINGO Electric (VIBES) | D193: EV | E193: 60 | F193: Elektrizität | G193: 16 | I193: 0 | L193: 24490 | N193: Info zur Akkugarantie: 8 Jahre bis 160.000 km
A194: SEAT | B194: Mii electric | C194: SEAT Mii electric | D194: EV | E194: 61 | F194: Elektrizität | G194: 14.7 | I194: 0 | L194: 21490 | N194: Info zur Akkugarantie: 8 Jahre bis 160.000 km
A195: SEAT | B195: Mii electric PLUS | C195: SEAT Mii electric PLUS | D195: EV | E195: 61 | F195: Elektrizität | G195: 14.8 | I195: 0 | L195: 22490 | N195: Info zur Akkugarantie: 8 Jahre bis 160.000 km | O195: 2017 ok
A196: SKODA | B196: CITIGOe iV | C196: SKODA CITIGOe iV | D196: EV | E196: 61 | F196: Elektrizität | G196: 14.5 | I196: 0 | L196: 21350 | N196: Info zur Akkugarantie: 8 Jahre bis 160.000 km | O196: 2017 ok
A197: SKODA | B197: Enyaq iV 60 | C197: SKODA Enyaq iV 60 | D197: EV | E197: 132 | F197: Elektrizität | G197: 15.7 | I197: 0 | L197: 39230 | N197: Info zur Akkugarantie: 8 Jahre bis 160.000 km
A198: SKODA | B198: Enyaq iV 80 | C198: =CONCATENATE(A198," ",B198) -> SKODA Enyaq iV 80 | D198: EV | E198: 150 | F198: Elektrizität | G198: 16.7 | I198: 0 | L198: 45540 | N198: Info zur Akkugarantie: 8 Jahre bis 160.000 km
A199: smart | B199: EQ fortwo | C199: smart EQ fortwo | D199: EV | E199: 60 | F199: Elektrizität | G199: 16.7 | I199: 0 | J199: - | K199: 0 | L199: 25510 | N199: Info zur Akkugarantie: 8 Jahre bis 100.000 km | O199: 2017 ok | AN199: =VLOOKUP(AO199,AP199:AU202,AV211+1,TRUE) -> 106 | AO199: =IF(Eingabe!$G$14<='Daten-Elektrofahrzeug'!AP200,'Daten-Elektrofahrzeug'!AP200,IF(Eingabe!$G$14<='Daten-Elektrofahrzeug'!AP201,'Daten-Elektrofahrzeug'!AP201,'Daten-Elektrofahrzeug'!AP202)) -> 36 | AP199: Vertragslaufzeit | AQ199: 7500 | AR199: 10000 | AS199: 12500 | AT199: 15000
A200: smart | B200: EQ fortwo cabrio | C200: smart EQ fortwo cabrio | D200: EV | E200: 60 | F200: Elektrizität | G200: 17 | I200: 0 | L200: 28820 | N200: Info zur Akkugarantie: 8 Jahre bis 100.000 km | AP200: 12 | AQ200: 93 | AR200: 96 | AS200: 110 | AT200: 126
... 52 more rows

Sheet Daten-Benzin-Dieselfahrzeug
A1: Allgemeine Daten Verbrennungskraftfahrzeuge
A2: http://www.topprodukte.at | F2: Kraftstoffverbrauch | H2: CO2-Emissionen
A3: Marke | B3: Modell | C3: Modellauswahl | D3: Leistung | E3: Kraftstoff | F3: kombiniert | H3: kombiniert | I3: Preis | J3: Sachbezug | K3: Lohnnebenkosten | L3: Quelle | N3: * Energieinhalt: | O3: =O8*0.72/3600 -> 8.54 | P3: kWh/liter Benzin | S3: Anschaffungsjahr: | U3: 2021 | X3: Jahr der Anschaffung | Y3: CO2 Grenzwert
D4: [kW] | F4: kWh/100km* | G4: l/100km | H4: [g/km] | I4: [€] | J4: [€/m] | K4: [€/m] | O4: =O9*0.87/3600 -> 10.1065 | P4: kWh/liter Diesel | S4: CO2 Grenzwert: | U4: =VLOOKUP(U3,X5:Y15,2,TRUE) -> 138 | V4: [g/km] | X4: [a] | Y4: [g/km]
C5: 1 | D5: 2 | E5: 3 | F5: 4 | G5: 5 | H5: 6 | I5: 7 | J5: 8 | K5: 9 | X5: 2016 | Y5: 130 | Z5: (NEFZ-Wert)
A6: Eingabe | B6: eigenes Fahrzeug | C6: =CONCATENATE(A6," ",B6," - ",E6) -> Eingabe eigenes Fahrzeug - | F6: =IF(E6="Benzin",$O$3*G6,$O$4*G6) -> 0 | J6: =IF(H6>$U$4,IF(I6*0.02>960,960,I6*0.02),IF(H6>0,IF(I6*0.015>720,720,I6*0.015),0)) -> 0 | K6: =J6*Eingabe!$C$48 -> 0 | X6: 2017 | Y6: 127 | Z6: (NEFZ-Wert)
A7: Eingabe | B7: eigenes Fahrzeug | C7: Eingabe eigenes Fahrzeug - | F7: 0 | J7: =IF(H7>$U$4,IF(I7*0.02>960,960,I7*0.02),IF(H7>0,IF(I7*0.015>720,720,I7*0.015),0)) -> 0 | K7: =J7*Eingabe!$C$48 -> 0 | X7: 2018 | Y7: 124 | Z7: (NEFZ-Wert)
A8: Eingabe | B8: eigenes Fahrzeug | C8: Eingabe eigenes Fahrzeug - | F8: =IF(E8="Benzin",$O$3*G8,$O$4*G8) -> 0 | J8: =IF(H8>$U$4,IF(I8*0.02>960,960,I8*0.02),IF(H8>0,IF(I8*0.015>720,720,I8*0.015),0)) -> 0 | K8: =J8*Eingabe!$C$48 -> 0 | N8: Hu Benzin(Mittelwert) = | O8: 42700 | P8: kJ/kg | R8: Benzin | X8: 2019 | Y8: 121 | Z8: (NEFZ-Wert)
A9: ='topprodukte-benzin-diesel'!A2 -> Audi | B9: ='topprodukte-benzin-diesel'!B2 -> A1 SB | C9: Audi A1 SB - Benzin | D9: ='topprodukte-benzin-diesel'!O2 -> 70 | E9: ='topprodukte-benzin-diesel'!J2 -> Benzin | F9: =IF(E9="Benzin",$O$3*G9,$O$4*G9) -> 47.824 | G9: ='topprodukte-benzin-diesel'!I2 -> 5.6 | H9: ='topprodukte-benzin-diesel'!K2 -> 126 | I9: ='topprodukte-benzin-diesel'!F2 -> 21780 | J9: =IF(H9>$U$4,IF(I9*0.02>960,960,I9*0.02),IF(H9>0,IF(I9*0.015>720,720,I9*0.015),0)) -> 326.7 | K9: =J9*Eingabe!$C$48 -> 98.01 | L9: topprodukte.at | N9: Hu Gasöl (Diesel) = | O9: 41820 | P9: kJ/kg | R9: Diesel | X9: bis März 2020 | Y9: 118 | Z9: (NEFZ-Wert)
A10: ='topprodukte-benzin-diesel'!A3 -> Audi | B10: ='topprodukte-benzin-diesel'!B3 -> A3 SB | C10: Audi A3 SB - Benzin | D10: ='topprodukte-benzin-diesel'!O3 -> 85 | E10: ='topprodukte-benzin-diesel'!J3 -> Benzin | F10: 37.576 | G10: ='topprodukte-benzin-diesel'!I3 -> 4.4 | H10: ='topprodukte-benzin-diesel'!K3 -> 114 | I10: ='topprodukte-benzin-diesel'!F3 -> 29600 | J10: =IF(H10>$U$4,IF(I10*0.02>960,960,I10*0.02),IF(H10>0,IF(I10*0.015>720,720,I10*0.015),0)) -> 444 | K10: =J10*Eingabe!$C$48 -> 133.2 | L10: topprodukte.at | X10: ab April 2020 | Y10: 141 | Z10: (WLTP-Wert)
A11: ='topprodukte-benzin-diesel'!A4 -> Audi | B11: ='topprodukte-benzin-diesel'!B4 -> A4 Limousine | C11: Audi A4 Limousine - Benzin | D11: ='topprodukte-benzin-diesel'!O4 -> 90 | E11: ='topprodukte-benzin-diesel'!J4 -> Benzin | F11: 41.846 | G11: ='topprodukte-benzin-diesel'!I4 -> 4.9 | H11: ='topprodukte-benzin-diesel'!K4 -> 128 | I11: ='topprodukte-benzin-diesel'!F4 -> 36970 | J11: 554.55 | K11: =J11*Eingabe!$C$48 -> 166.365 | L11: topprodukte.at | N11: Quelle: Recknagel, Sprenger, Schramek; Taschenbuch für Heizung + Klimatechnik; 2001; Seite 209 | X11: 2021 | Y11: 138 | Z11: (WLTP-Wert)
A12: ='topprodukte-benzin-diesel'!A5 -> Audi | B12: ='topprodukte-benzin-diesel'!B5 -> A3 SB | C12: Audi A3 SB - Diesel | D12: ='topprodukte-benzin-diesel'!O5 -> 85 | E12: ='topprodukte-benzin-diesel'!J5 -> Diesel | F12: 44.4686 | G12: ='topprodukte-benzin-diesel'!I5 -> 4.4 | H12: ='topprodukte-benzin-diesel'!K5 -> 114 | I12: ='topprodukte-benzin-diesel'!F5 -> 29600 | J12: 444 | K12: =J12*Eingabe!$C$48 -> 133.2 | L12: topprodukte.at | X12: 2022 | Y12: 135 | Z12: (WLTP-Wert)
A13: ='topprodukte-benzin-diesel'!A6 -> Audi | B13: ='topprodukte-benzin-diesel'!B6 -> A4 Limousine | C13: Audi A4 Limousine - Diesel | D13: ='topprodukte-benzin-diesel'!O6 -> 90 | E13: ='topprodukte-benzin-diesel'!J6 -> Diesel | F13: 49.52185 | G13: ='topprodukte-benzin-diesel'!I6 -> 4.9 | H13: ='topprodukte-benzin-diesel'!K6 -> 128 | I13: ='topprodukte-benzin-diesel'!F6 -> 36970 | J13: 554.55 | K13: =J13*Eingabe!$C$48 -> 166.365 | L13: topprodukte.at | X13: 2023 | Y13: 132 | Z13: (WLTP-Wert)
A14: ='topprodukte-benzin-diesel'!A7 -> BMW | B14: ='topprodukte-benzin-diesel'!B7 -> 2er Gran Tourer | C14: BMW 2er Gran Tourer - Benzin | D14: ='topprodukte-benzin-diesel'!O7 -> 80 | E14: ='topprodukte-benzin-diesel'!J7 -> Benzin | F14: =IF(E14="Benzin",$O$3*G14,$O$4*G14) -> 54.656 | G14: ='topprodukte-benzin-diesel'!I7 -> 6.4 | H14: ='topprodukte-benzin-diesel'!K7 -> 146 | I14: ='topprodukte-benzin-diesel'!F7 -> 31350 | J14: =IF(H14>$U$4,IF(I14*0.02>960,960,I14*0.02),IF(H14>0,IF(I14*0.015>720,720,I14*0.015),0)) -> 627 | K14: =J14*Eingabe!$C$48 -> 188.1 | L14: topprodukte.at | X14: 2024 | Y14: 129 | Z14: (WLTP-Wert)
A15: ='topprodukte-benzin-diesel'!A8 -> BMW | B15: ='topprodukte-benzin-diesel'!B8 -> 1er Limousine | C15: BMW 1er Limousine - Benzin | D15: ='topprodukte-benzin-diesel'!O8 -> 85 | E15: ='topprodukte-benzin-diesel'!J8 -> Benzin | F15: 38.43 | G15: ='topprodukte-benzin-diesel'!I8 -> 4.5 | H15: ='topprodukte-benzin-diesel'!K8 -> 118 | I15: ='topprodukte-benzin-diesel'!F8 -> 31160 | J15: 467.4 | K15: =J15*Eingabe!$C$48 -> 140.22 | L15: topprodukte.at | X15: 2025 | Y15: 126 | Z15: (WLTP-Wert)
A16: ='topprodukte-benzin-diesel'!A9 -> BMW | B16: ='topprodukte-benzin-diesel'!B9 -> 3er Limousine | C16: BMW 3er Limousine - Benzin | D16: ='topprodukte-benzin-diesel'!O9 -> 110 | E16: ='topprodukte-benzin-diesel'!J9 -> Benzin | F16: 40.992 | G16: ='topprodukte-benzin-diesel'!I9 -> 4.8 | H16: ='topprodukte-benzin-diesel'!K9 -> 125 | I16: ='topprodukte-benzin-diesel'!F9 -> 38950 | J16: 584.25 | K16: =J16*Eingabe!$C$48 -> 175.275 | L16: topprodukte.at
A17: ='topprodukte-benzin-diesel'!A10 -> BMW | B17: ='topprodukte-benzin-diesel'!B10 -> 2er Active Tourer | C17: BMW 2er Active Tourer - Benzin | D17: ='topprodukte-benzin-diesel'!O10 -> 85 | E17: ='topprodukte-benzin-diesel'!J10 -> Benzin | F17: 40.138 | G17: ='topprodukte-benzin-diesel'!I10 -> 4.7 | H17: ='topprodukte-benzin-diesel'!K10 -> 123 | I17: ='topprodukte-benzin-diesel'!F10 -> 32050 | J17: 480.75 | K17: =J17*Eingabe!$C$48 -> 144.225 | L17: topprodukte.at
A18: ='topprodukte-benzin-diesel'!A11 -> BMW | B18: ='topprodukte-benzin-diesel'!B11 -> 2er Gran Tourer | C18: BMW 2er Gran Tourer - Benzin | D18: ='topprodukte-benzin-diesel'!O11 -> 85 | E18: ='topprodukte-benzin-diesel'!J11 -> Benzin | F18: 41.846 | G18: ='topprodukte-benzin-diesel'!I11 -> 4.9 | H18: ='topprodukte-benzin-diesel'!K11 -> 128 | I18: ='topprodukte-benzin-diesel'!F11 -> 33600 | J18: 504 | K18: =J18*Eingabe!$C$48 -> 151.2 | L18: topprodukte.at
A19: ='topprodukte-benzin-diesel'!A12 -> BMW | B19: ='topprodukte-benzin-diesel'!B12 -> 1er Limousine | C19: BMW 1er Limousine - Diesel | D19: ='topprodukte-benzin-diesel'!O12 -> 85 | E19: ='topprodukte-benzin-diesel'!J12 -> Diesel | F19: 45.47925 | G19: ='topprodukte-benzin-diesel'!I12 -> 4.5 | H19: ='topprodukte-benzin-diesel'!K12 -> 118 | I19: ='topprodukte-benzin-diesel'!F12 -> 31160 | J19: 467.4 | K19: =J19*Eingabe!$C$48 -> 140.22 | L19: topprodukte.at
A20: ='topprodukte-benzin-diesel'!A13 -> BMW | B20: ='topprodukte-benzin-diesel'!B13 -> 3er Limousine | C20: BMW 3er Limousine - Diesel | D20: ='topprodukte-benzin-diesel'!O13 -> 110 | E20: ='topprodukte-benzin-diesel'!J13 -> Diesel | F20: 48.5112 | G20: ='topprodukte-benzin-diesel'!I13 -> 4.8 | H20: ='topprodukte-benzin-diesel'!K13 -> 125 | I20: ='topprodukte-benzin-diesel'!F13 -> 38950 | J20: 584.25 | K20: =J20*Eingabe!$C$48 -> 175.275 | L20: topprodukte.at
A21: ='topprodukte-benzin-diesel'!A14 -> BMW | B21: ='topprodukte-benzin-diesel'!B14 -> 2er Active Tourer | C21: BMW 2er Active Tourer - Diesel | D21: ='topprodukte-benzin-diesel'!O14 -> 85 | E21: ='topprodukte-benzin-diesel'!J14 -> Diesel | F21: 47.50055 | G21: ='topprodukte-benzin-diesel'!I14 -> 4.7 | H21: ='topprodukte-benzin-diesel'!K14 -> 123 | I21: ='topprodukte-benzin-diesel'!F14 -> 32050 | J21: 480.75 | K21: =J21*Eingabe!$C$48 -> 144.225 | L21: topprodukte.at
A22: ='topprodukte-benzin-diesel'!A15 -> Citroen | B22: ='topprodukte-benzin-diesel'!B15 -> C1 | C22: Citroen C1 - Benzin | D22: ='topprodukte-benzin-diesel'!O15 -> 53 | E22: ='topprodukte-benzin-diesel'!J15 -> Benzin | F22: 40.992 | G22: ='topprodukte-benzin-diesel'!I15 -> 4.8 | H22: ='topprodukte-benzin-diesel'!K15 -> 110 | I22: ='topprodukte-benzin-diesel'!F15 -> 11490 | J22: 172.35 | K22: =J22*Eingabe!$C$48 -> 51.705 | L22: topprodukte.at
A23: ='topprodukte-benzin-diesel'!A16 -> Citroen | B23: ='topprodukte-benzin-diesel'!B16 -> C3 | C23: Citroen C3 - Benzin | D23: ='topprodukte-benzin-diesel'!O16 -> 61 | E23: ='topprodukte-benzin-diesel'!J16 -> Benzin | F23: 48.678 | G23: ='topprodukte-benzin-diesel'!I16 -> 5.7 | H23: ='topprodukte-benzin-diesel'!K16 -> 127 | I23: ='topprodukte-benzin-diesel'!F16 -> 13390 | J23: 200.85 | K23: =J23*Eingabe!$C$48 -> 60.255 | L23: topprodukte.at
A24: ='topprodukte-benzin-diesel'!A17 -> Citroen | B24: ='topprodukte-benzin-diesel'!B17 -> C3 Aircross | C24: Citroen C3 Aircross - Benzin | D24: ='topprodukte-benzin-diesel'!O17 -> 81 | E24: ='topprodukte-benzin-diesel'!J17 -> Benzin | F24: 52.948 | G24: ='topprodukte-benzin-diesel'!I17 -> 6.2 | H24: ='topprodukte-benzin-diesel'!K17 -> 141 | I24: ='topprodukte-benzin-diesel'!F17 -> 20320 | J24: 406.4 | K24: =J24*Eingabe!$C$48 -> 121.92 | L24: topprodukte.at
A25: ='topprodukte-benzin-diesel'!A18 -> Citroen | B25: ='topprodukte-benzin-diesel'!B18 -> Grand C4 Spacetourer | C25: Citroen Grand C4 Spacetourer - Benzin | D25: ='topprodukte-benzin-diesel'!O18 -> 96 | E25: ='topprodukte-benzin-diesel'!J18 -> Benzin | F25: 53.802 | G25: ='topprodukte-benzin-diesel'!I18 -> 6.3 | H25: ='topprodukte-benzin-diesel'!K18 -> 143 | I25: ='topprodukte-benzin-diesel'!F18 -> 28550 | J25: 571 | K25: =J25*Eingabe!$C$48 -> 171.3 | L25: topprodukte.at
A26: ='topprodukte-benzin-diesel'!A19 -> Citroen | B26: ='topprodukte-benzin-diesel'!B19 -> C5 Aircross | C26: Citroen C5 Aircross - Benzin | D26: ='topprodukte-benzin-diesel'!O19 -> 96 | E26: ='topprodukte-benzin-diesel'!J19 -> Benzin | F26: 56.364 | G26: ='topprodukte-benzin-diesel'!I19 -> 6.6 | H26: ='topprodukte-benzin-diesel'!K19 -> 149 | I26: ='topprodukte-benzin-diesel'!F19 -> 26690 | J26: 533.8 | K26: =J26*Eingabe!$C$48 -> 160.14 | L26: topprodukte.at
A27: ='topprodukte-benzin-diesel'!A20 -> Citroen | B27: ='topprodukte-benzin-diesel'!B20 -> C4 Cactus | C27: Citroen C4 Cactus - Benzin | D27: ='topprodukte-benzin-diesel'!O20 -> 75 | E27: ='topprodukte-benzin-diesel'!J20 -> Benzin | F27: 38.43 | G27: ='topprodukte-benzin-diesel'!I20 -> 4.5 | H27: ='topprodukte-benzin-diesel'!K20 -> 118 | I27: ='topprodukte-benzin-diesel'!F20 -> 20275 | J27: 304.125 | K27: =J27*Eingabe!$C$48 -> 91.2375 | L27: topprodukte.at
A28: ='topprodukte-benzin-diesel'!A21 -> Citroen | B28: ='topprodukte-benzin-diesel'!B21 -> C3 Aircross | C28: Citroen C3 Aircross - Benzin | D28: ='topprodukte-benzin-diesel'!O21 -> 75 | E28: ='topprodukte-benzin-diesel'!J21 -> Benzin | F28: 40.138 | G28: ='topprodukte-benzin-diesel'!I21 -> 4.7 | H28: ='topprodukte-benzin-diesel'!K21 -> 123 | I28: ='topprodukte-benzin-diesel'!F21 -> 20790 | J28: 311.85 | K28: =J28*Eingabe!$C$48 -> 93.555 | L28: topprodukte.at
A29: ='topprodukte-benzin-diesel'!A22 -> Citroen | B29: ='topprodukte-benzin-diesel'!B22 -> C4 Spacetourer | C29: Citroen C4 Spacetourer - Benzin | D29: ='topprodukte-benzin-diesel'!O22 -> 96 | E29: ='topprodukte-benzin-diesel'!J22 -> Benzin | F29: 42.7 | G29: ='topprodukte-benzin-diesel'!I22 -> 5 | H29: ='topprodukte-benzin-diesel'!K22 -> 130 | I29: ='topprodukte-benzin-diesel'!F22 -> 28400 | J29: 426 | K29: =J29*Eingabe!$C$48 -> 127.8 | L29: topprodukte.at
A30: ='topprodukte-benzin-diesel'!A23 -> Citroen | B30: ='topprodukte-benzin-diesel'!B23 -> C5 Aircross | C30: Citroen C5 Aircross - Benzin | D30: ='topprodukte-benzin-diesel'!O23 -> 96 | E30: ='topprodukte-benzin-diesel'!J23 -> Benzin | F30: 44.408 | G30: ='topprodukte-benzin-diesel'!I23 -> 5.2 | H30: ='topprodukte-benzin-diesel'!K23 -> 138 | I30: ='topprodukte-benzin-diesel'!F23 -> 29390 | J30: 440.85 | K30: =J30*Eingabe!$C$48 -> 132.255 | L30: topprodukte.at
A31: ='topprodukte-benzin-diesel'!A24 -> Citroen | B31: ='topprodukte-benzin-diesel'!B24 -> C3 | C31: Citroen C3 - Diesel | D31: ='topprodukte-benzin-diesel'!O24 -> 75 | E31: ='topprodukte-benzin-diesel'!J24 -> Diesel | F31: 45.47925 | G31: ='topprodukte-benzin-diesel'!I24 -> 4.5 | H31: ='topprodukte-benzin-diesel'!K24 -> 117 | I31: ='topprodukte-benzin-diesel'!F24 -> 18290 | J31: 274.35 | K31: =J31*Eingabe!$C$48 -> 82.305 | L31: topprodukte.at
A32: ='topprodukte-benzin-diesel'!A25 -> Citroen | B32: ='topprodukte-benzin-diesel'!B25 -> C4 Cactus | C32: Citroen C4 Cactus - Diesel | D32: ='topprodukte-benzin-diesel'!O25 -> 75 | E32: ='topprodukte-benzin-diesel'!J25 -> Diesel | F32: 45.47925 | G32: ='topprodukte-benzin-diesel'!I25 -> 4.5 | H32: ='topprodukte-benzin-diesel'!K25 -> 118 | I32: ='topprodukte-benzin-diesel'!F25 -> 20275 | J32: 304.125 | K32: =J32*Eingabe!$C$48 -> 91.2375 | L32: topprodukte.at
A33: ='topprodukte-benzin-diesel'!A26 -> Citroen | B33: ='topprodukte-benzin-diesel'!B26 -> C3 Aircross | C33: Citroen C3 Aircross - Diesel | D33: ='topprodukte-benzin-diesel'!O26 -> 75 | E33: ='topprodukte-benzin-diesel'!J26 -> Diesel | F33: 47.50055 | G33: ='topprodukte-benzin-diesel'!I26 -> 4.7 | H33: ='topprodukte-benzin-diesel'!K26 -> 123 | I33: ='topprodukte-benzin-diesel'!F26 -> 20790 | J33: 311.85 | K33: =J33*Eingabe!$C$48 -> 93.555 | L33: topprodukte.at
A34: ='topprodukte-benzin-diesel'!A27 -> Dacia | B34: ='topprodukte-benzin-diesel'!B27 -> Logan MCV | C34: Dacia Logan MCV - Benzin | D34: ='topprodukte-benzin-diesel'!O27 -> 54 | E34: ='topprodukte-benzin-diesel'!J27 -> Benzin | F34: 48.678 | G34: ='topprodukte-benzin-diesel'!I27 -> 5.7 | H34: ='topprodukte-benzin-diesel'!K27 -> 129 | I34: ='topprodukte-benzin-diesel'!F27 -> 8590 | J34: 128.85 | K34: =J34*Eingabe!$C$48 -> 38.655 | L34: topprodukte.at
A35: ='topprodukte-benzin-diesel'!A28 -> Dacia | B35: ='topprodukte-benzin-diesel'!B28 -> Sandero | C35: Dacia Sandero - Benzin | D35: ='topprodukte-benzin-diesel'!O28 -> 54 | E35: ='topprodukte-benzin-diesel'!J28 -> Benzin | F35: 48.678 | G35: ='topprodukte-benzin-diesel'!I28 -> 5.7 | H35: ='topprodukte-benzin-diesel'!K28 -> 129 | I35: ='topprodukte-benzin-diesel'!F28 -> 7790 | J35: 116.85 | K35: =J35*Eingabe!$C$48 -> 35.055 | L35: topprodukte.at
A36: ='topprodukte-benzin-diesel'!A29 -> Dacia | B36: ='topprodukte-benzin-diesel'!B29 -> Duster | C36: Dacia Duster - Benzin | D36: ='topprodukte-benzin-diesel'!O29 -> 74 | E36: ='topprodukte-benzin-diesel'!J29 -> Benzin | F36: =IF(E36="Benzin",$O$3*G36,$O$4*G36) -> 52.094 | G36: ='topprodukte-benzin-diesel'!I29 -> 6.1 | H36: ='topprodukte-benzin-diesel'!K29 -> 138 | I36: ='topprodukte-benzin-diesel'!F29 -> 12990 | J36: 194.85 | K36: =J36*Eingabe!$C$48 -> 58.455 | L36: topprodukte.at
A37: ='topprodukte-benzin-diesel'!A30 -> Dacia | B37: ='topprodukte-benzin-diesel'!B30 -> Sandero | C37: Dacia Sandero - Benzin | D37: ='topprodukte-benzin-diesel'!O30 -> 55 | E37: ='topprodukte-benzin-diesel'!J30 -> Benzin | F37: 37.576 | G37: ='topprodukte-benzin-diesel'!I30 -> 4.4 | H37: ='topprodukte-benzin-diesel'!K30 -> 116 | I37: ='topprodukte-benzin-diesel'!F30 -> 11340 | J37: =IF(H37>$U$4,IF(I37*0.02>960,960,I37*0.02),IF(H37>0,IF(I37*0.015>720,720,I37*0.015),0)) -> 170.1 | K37: =J37*Eingabe!$C$48 -> 51.03 | L37: topprodukte.at
A38: ='topprodukte-benzin-diesel'!A31 -> Dacia | B38: ='topprodukte-benzin-diesel'!B31 -> Lodgy | C38: Dacia Lodgy - Benzin | D38: ='topprodukte-benzin-diesel'!O31 -> 70 | E38: ='topprodukte-benzin-diesel'!J31 -> Benzin | F38: 40.992 | G38: ='topprodukte-benzin-diesel'!I31 -> 4.8 | H38: ='topprodukte-benzin-diesel'!K31 -> 126 | I38: ='topprodukte-benzin-diesel'!F31 -> 15350 | J38: 230.25 | K38: =J38*Eingabe!$C$48 -> 69.075 | L38: topprodukte.at
A39: ='topprodukte-benzin-diesel'!A32 -> Dacia | B39: ='topprodukte-benzin-diesel'!B32 -> Duster | C39: Dacia Duster - Benzin | D39: ='topprodukte-benzin-diesel'!O32 -> 70 | E39: ='topprodukte-benzin-diesel'!J32 -> Benzin | F39: 41.846 | G39: ='topprodukte-benzin-diesel'!I32 -> 4.9 | H39: ='topprodukte-benzin-diesel'!K32 -> 128 | I39: ='topprodukte-benzin-diesel'!F32 -> 15490 | J39: 232.35 | K39: =J39*Eingabe!$C$48 -> 69.705 | L39: topprodukte.at
A40: ='topprodukte-benzin-diesel'!A33 -> Dacia | B40: ='topprodukte-benzin-diesel'!B33 -> Dokker | C40: Dacia Dokker - Benzin | D40: ='topprodukte-benzin-diesel'!O33 -> 70 | E40: ='topprodukte-benzin-diesel'!J33 -> Benzin | F40: 42.7 | G40: ='topprodukte-benzin-diesel'!I33 -> 5 | H40: ='topprodukte-benzin-diesel'!K33 -> 132 | I40: ='topprodukte-benzin-diesel'!F33 -> 14250 | J40: 213.75 | K40: =J40*Eingabe!$C$48 -> 64.125 | L40: topprodukte.at
A41: ='topprodukte-benzin-diesel'!A34 -> Dacia | B41: ='topprodukte-benzin-diesel'!B34 -> Sandero | C41: Dacia Sandero - Diesel | D41: ='topprodukte-benzin-diesel'!O34 -> 55 | E41: ='topprodukte-benzin-diesel'!J34 -> Diesel | F41: 44.4686 | G41: ='topprodukte-benzin-diesel'!I34 -> 4.4 | H41: ='topprodukte-benzin-diesel'!K34 -> 116 | I41: ='topprodukte-benzin-diesel'!F34 -> 11340 | J41: 170.1 | K41: =J41*Eingabe!$C$48 -> 51.03 | L41: topprodukte.at
A42: ='topprodukte-benzin-diesel'!A35 -> DS Automobiles | B42: ='topprodukte-benzin-diesel'!B35 -> DS 7 | C42: DS Automobiles DS 7 - Benzin | D42: ='topprodukte-benzin-diesel'!O35 -> 96 | E42: ='topprodukte-benzin-diesel'!J35 -> Benzin | F42: 44.408 | G42: ='topprodukte-benzin-diesel'!I35 -> 5.2 | H42: ='topprodukte-benzin-diesel'!K35 -> 136 | I42: ='topprodukte-benzin-diesel'!F35 -> 41290 | J42: 619.35 | K42: =J42*Eingabe!$C$48 -> 185.805 | L42: topprodukte.at
A43: ='topprodukte-benzin-diesel'!A36 -> Fiat | B43: ='topprodukte-benzin-diesel'!B36 -> 500 | C43: Fiat 500 - Benzin | D43: ='topprodukte-benzin-diesel'!O36 -> 51 | E43: ='topprodukte-benzin-diesel'!J36 -> Benzin | F43: 46.97 | G43: ='topprodukte-benzin-diesel'!I36 -> 5.5 | H43: ='topprodukte-benzin-diesel'!K36 -> 135 | I43: ='topprodukte-benzin-diesel'!F36 -> 18170 | J43: 272.55 | K43: =J43*Eingabe!$C$48 -> 81.765 | L43: topprodukte.at
A44: ='topprodukte-benzin-diesel'!A37 -> Fiat | B44: ='topprodukte-benzin-diesel'!B37 -> Panda | C44: Fiat Panda - Benzin | D44: ='topprodukte-benzin-diesel'!O37 -> 51 | E44: ='topprodukte-benzin-diesel'!J37 -> Benzin | F44: 48.678 | G44: ='topprodukte-benzin-diesel'!I37 -> 5.7 | H44: ='topprodukte-benzin-diesel'!K37 -> 133 | I44: ='topprodukte-benzin-diesel'!F37 -> 12100 | J44: 181.5 | K44: =J44*Eingabe!$C$48 -> 54.45 | L44: topprodukte.at
A45: ='topprodukte-benzin-diesel'!A38 -> Fiat | B45: ='topprodukte-benzin-diesel'!B38 -> Tipo Kombi | C45: Fiat Tipo Kombi - Benzin | D45: ='topprodukte-benzin-diesel'!O38 -> 70 | E45: ='topprodukte-benzin-diesel'!J38 -> Benzin | F45: 39.284 | G45: ='topprodukte-benzin-diesel'!I38 -> 4.6 | H45: ='topprodukte-benzin-diesel'!K38 -> 120 | I45: ='topprodukte-benzin-diesel'!F38 -> 21170 | J45: 317.55 | K45: =J45*Eingabe!$C$48 -> 95.265 | L45: topprodukte.at
A46: ='topprodukte-benzin-diesel'!A39 -> Fiat | B46: ='topprodukte-benzin-diesel'!B39 -> 500X Urban | C46: Fiat 500X Urban - Benzin | D46: ='topprodukte-benzin-diesel'!O39 -> 70 | E46: ='topprodukte-benzin-diesel'!J39 -> Benzin | F46: 35.4 | G46: ='topprodukte-benzin-diesel'!I39 -> 4.8 | H46: ='topprodukte-benzin-diesel'!K39 -> 126 | I46: ='topprodukte-benzin-diesel'!F39 -> 22100 | J46: 331.5 | K46: =J46*Eingabe!$C$48 -> 99.45 | L46: topprodukte.at
A47: ='topprodukte-benzin-diesel'!A40 -> Fiat | B47: ='topprodukte-benzin-diesel'!B40 -> Tipo Kombi | C47: Fiat Tipo Kombi - Diesel | D47: ='topprodukte-benzin-diesel'!O40 -> 70 | E47: ='topprodukte-benzin-diesel'!J40 -> Diesel | F47: =IF(E47="Benzin",$O$3*G47,$O$4*G47) -> 46.4899 | G47: ='topprodukte-benzin-diesel'!I40 -> 4.6 | H47: ='topprodukte-benzin-diesel'!K40 -> 120 | I47: ='topprodukte-benzin-diesel'!F40 -> 21170 | J47: 317.55 | K47: =J47*Eingabe!$C$48 -> 95.265 | L47: topprodukte.at
A48: ='topprodukte-benzin-diesel'!A41 -> Fiat | B48: ='topprodukte-benzin-diesel'!B41 -> 500X Urban | C48: Fiat 500X Urban - Diesel | D48: ='topprodukte-benzin-diesel'!O41 -> 70 | E48: ='topprodukte-benzin-diesel'!J41 -> Diesel | F48: 48.5112 | G48: ='topprodukte-benzin-diesel'!I41 -> 4.8 | H48: ='topprodukte-benzin-diesel'!K41 -> 126 | I48: ='topprodukte-benzin-diesel'!F41 -> 22100 | J48: 331.5 | K48: =J48*Eingabe!$C$48 -> 99.45 | L48: topprodukte.at
A49: ='topprodukte-benzin-diesel'!A42 -> Ford | B49: ='topprodukte-benzin-diesel'!B42 -> Fiesta Coupe | C49: Ford Fiesta Coupe - Benzin | D49: ='topprodukte-benzin-diesel'!O42 -> 70 | E49: ='topprodukte-benzin-diesel'!J42 -> Benzin | F49: 43.554 | G49: ='topprodukte-benzin-diesel'!I42 -> 5.1 | H49: ='topprodukte-benzin-diesel'!K42 -> 115 | I49: ='topprodukte-benzin-diesel'!F42 -> 15300 | J49: 229.5 | K49: =J49*Eingabe!$C$48 -> 68.85 | L49: topprodukte.at
A50: ='topprodukte-benzin-diesel'!A43 -> Ford | B50: ='topprodukte-benzin-diesel'!B43 -> Focus | C50: Ford Focus - Benzin | D50: ='topprodukte-benzin-diesel'!O43 -> 74 | E50: ='topprodukte-benzin-diesel'!J43 -> Benzin | F50: 45.262 | G50: ='topprodukte-benzin-diesel'!I43 -> 5.3 | H50: ='topprodukte-benzin-diesel'!K43 -> 119 | I50: ='topprodukte-benzin-diesel'!F43 -> 22100 | J50: 331.5 | K50: =J50*Eingabe!$C$48 -> 99.45 | L50: topprodukte.at
A51: ='topprodukte-benzin-diesel'!A44 -> Ford | B51: ='topprodukte-benzin-diesel'!B44 -> Focus Turnier | C51: Ford Focus Turnier - Benzin | D51: ='topprodukte-benzin-diesel'!O44 -> 74 | E51: ='topprodukte-benzin-diesel'!J44 -> Benzin | F51: 45.262 | G51: ='topprodukte-benzin-diesel'!I44 -> 5.3 | H51: ='topprodukte-benzin-diesel'!K44 -> 119 | I51: ='topprodukte-benzin-diesel'!F44 -> 23600 | J51: 354 | K51: =J51*Eingabe!$C$48 -> 106.2 | L51: topprodukte.at
A52: ='topprodukte-benzin-diesel'!A45 -> Ford | B52: ='topprodukte-benzin-diesel'!B45 -> EcoSport | C52: Ford EcoSport - Benzin | D52: ='topprodukte-benzin-diesel'!O45 -> 74 | E52: ='topprodukte-benzin-diesel'!J45 -> Benzin | F52: 50.386 | G52: ='topprodukte-benzin-diesel'!I45 -> 5.9 | H52: ='topprodukte-benzin-diesel'!K45 -> 134 | I52: ='topprodukte-benzin-diesel'!F45 -> 20300 | J52: 304.5 | K52: =J52*Eingabe!$C$48 -> 91.35 | L52: topprodukte.at
A53: ='topprodukte-benzin-diesel'!A46 -> Ford | B53: ='topprodukte-benzin-diesel'!B46 -> Fiesta | C53: Ford Fiesta - Benzin | D53: ='topprodukte-benzin-diesel'!O46 -> 63 | E53: ='topprodukte-benzin-diesel'!J46 -> Benzin | F53: 35.868 | G53: ='topprodukte-benzin-diesel'!I46 -> 4.2 | H53: ='topprodukte-benzin-diesel'!K46 -> 111 | I53: ='topprodukte-benzin-diesel'!F46 -> 16650 | J53: 249.75 | K53: =J53*Eingabe!$C$48 -> 74.925 | L53: topprodukte.at
A54: ='topprodukte-benzin-diesel'!A47 -> Ford | B54: ='topprodukte-benzin-diesel'!B47 -> Focus | C54: Ford Focus - Benzin | D54: ='topprodukte-benzin-diesel'!O47 -> 70 | E54: ='topprodukte-benzin-diesel'!J47 -> Benzin | F54: 38.43 | G54: ='topprodukte-benzin-diesel'!I47 -> 4.5 | H54: ='topprodukte-benzin-diesel'!K47 -> 117 | I54: ='topprodukte-benzin-diesel'!F47 -> 23650 | J54: 354.75 | K54: =J54*Eingabe!$C$48 -> 106.425 | L54: topprodukte.at
A55: ='topprodukte-benzin-diesel'!A48 -> Ford | B55: ='topprodukte-benzin-diesel'!B48 -> Puma | C55: Ford Puma - Benzin | D55: ='topprodukte-benzin-diesel'!O48 -> 88 | E55: ='topprodukte-benzin-diesel'!J48 -> Benzin | F55: 38.43 | G55: ='topprodukte-benzin-diesel'!I48 -> 4.5 | H55: ='topprodukte-benzin-diesel'!K48 -> 118 | I55: ='topprodukte-benzin-diesel'!F48 -> 25890 | J55: 388.35 | K55: =J55*Eingabe!$C$48 -> 116.505 | L55: topprodukte.at
A56: ='topprodukte-benzin-diesel'!A49 -> Ford | B56: ='topprodukte-benzin-diesel'!B49 -> Focus Turnier | C56: Ford Focus Turnier - Benzin | D56: ='topprodukte-benzin-diesel'!O49 -> 70 | E56: ='topprodukte-benzin-diesel'!J49 -> Benzin | F56: 38.43 | G56: ='topprodukte-benzin-diesel'!I49 -> 4.5 | H56: ='topprodukte-benzin-diesel'!K49 -> 119 | I56: ='topprodukte-benzin-diesel'!F49 -> 25150 | J56: 377.25 | K56: =J56*Eingabe!$C$48 -> 113.175 | L56: topprodukte.at
A57: ='topprodukte-benzin-diesel'!A50 -> Ford | B57: ='topprodukte-benzin-diesel'!B50 -> Mondeo | C57: Ford Mondeo - Benzin | D57: ='topprodukte-benzin-diesel'!O50 -> 88 | E57: ='topprodukte-benzin-diesel'!J50 -> Benzin | F57: 41.846 | G57: ='topprodukte-benzin-diesel'!I50 -> 4.9 | H57: ='topprodukte-benzin-diesel'!K50 -> 128 | I57: ='topprodukte-benzin-diesel'!F50 -> 34100 | J57: 511.5 | K57: =J57*Eingabe!$C$48 -> 153.45 | L57: topprodukte.at
A58: ='topprodukte-benzin-diesel'!A51 -> Ford | B58: ='topprodukte-benzin-diesel'!B51 -> EcoSport | C58: Ford EcoSport - Benzin | D58: ='topprodukte-benzin-diesel'!O51 -> 74 | E58: ='topprodukte-benzin-diesel'!J51 -> Benzin | F58: 41.846 | G58: ='topprodukte-benzin-diesel'!I51 -> 4.9 | H58: ='topprodukte-benzin-diesel'!K51 -> 129 | I58: ='topprodukte-benzin-diesel'!F51 -> 23700 | J58: 355.5 | K58: =J58*Eingabe!$C$48 -> 106.65 | L58: topprodukte.at
A59: ='topprodukte-benzin-diesel'!A52 -> Ford | B59: ='topprodukte-benzin-diesel'!B52 -> Tourneo Courier | C59: Ford Tourneo Courier - Benzin | D59: ='topprodukte-benzin-diesel'!O52 -> 55 | E59: ='topprodukte-benzin-diesel'!J52 -> Benzin | F59: 46.116 | G59: ='topprodukte-benzin-diesel'!I52 -> 5.4 | H59: ='topprodukte-benzin-diesel'!K52 -> 141 | I59: ='topprodukte-benzin-diesel'!F52 -> 18142 | J59: 362.84 | K59: =J59*Eingabe!$C$48 -> 108.852 | L59: topprodukte.at
A60: ='topprodukte-benzin-diesel'!A53 -> Ford | B60: ='topprodukte-benzin-diesel'!B53 -> Fiesta | C60: Ford Fiesta - Diesel | D60: ='topprodukte-benzin-diesel'!O53 -> 63 | E60: ='topprodukte-benzin-diesel'!J53 -> Diesel | F60: 42.4473 | G60: ='topprodukte-benzin-diesel'!I53 -> 4.2 | H60: ='topprodukte-benzin-diesel'!K53 -> 111 | I60: ='topprodukte-benzin-diesel'!F53 -> 16650 | J60: 249.75 | K60: =J60*Eingabe!$C$48 -> 74.925 | L60: topprodukte.at
A61: ='topprodukte-benzin-diesel'!A54 -> Ford | B61: ='topprodukte-benzin-diesel'!B54 -> Focus | C61: Ford Focus - Diesel | D61: ='topprodukte-benzin-diesel'!O54 -> 70 | E61: ='topprodukte-benzin-diesel'!J54 -> Diesel | F61: 45.47925 | G61: ='topprodukte-benzin-diesel'!I54 -> 4.5 | H61: ='topprodukte-benzin-diesel'!K54 -> 117 | I61: ='topprodukte-benzin-diesel'!F54 -> 23650 | J61: 354.75 | K61: =J61*Eingabe!$C$48 -> 106.425 | L61: topprodukte.at
A62: ='topprodukte-benzin-diesel'!A55 -> Ford | B62: ='topprodukte-benzin-diesel'!B55 -> Puma | C62: Ford Puma - Diesel | D62: ='topprodukte-benzin-diesel'!O55 -> 88 | E62: ='topprodukte-benzin-diesel'!J55 -> Diesel | F62: 45.47925 | G62: ='topprodukte-benzin-diesel'!I55 -> 4.5 | H62: ='topprodukte-benzin-diesel'!K55 -> 118 | I62: ='topprodukte-benzin-diesel'!F55 -> 25890 | J62: 388.35 | K62: =J62*Eingabe!$C$48 -> 116.505 | L62: topprodukte.at
A63: ='topprodukte-benzin-diesel'!A56 -> Ford | B63: ='topprodukte-benzin-diesel'!B56 -> Focus Turnier | C63: Ford Focus Turnier - Diesel | D63: ='topprodukte-benzin-diesel'!O56 -> 70 | E63: ='topprodukte-benzin-diesel'!J56 -> Diesel | F63: 45.47925 | G63: ='topprodukte-benzin-diesel'!I56 -> 4.5 | H63: ='topprodukte-benzin-diesel'!K56 -> 119 | I63: ='topprodukte-benzin-diesel'!F56 -> 25150 | J63: 377.25 | K63: =J63*Eingabe!$C$48 -> 113.175 | L63: topprodukte.at
A64: ='topprodukte-benzin-diesel'!A57 -> Ford | B64: ='topprodukte-benzin-diesel'!B57 -> Mondeo | C64: Ford Mondeo - Diesel | D64: ='topprodukte-benzin-diesel'!O57 -> 88 | E64: ='topprodukte-benzin-diesel'!J57 -> Diesel | F64: 41 | G64: ='topprodukte-benzin-diesel'!I57 -> 4.9 | H64: ='topprodukte-benzin-diesel'!K57 -> 128 | I64: ='topprodukte-benzin-diesel'!F57 -> 34100 | J64: 511.5 | K64: =J64*Eingabe!$C$48 -> 153.45 | L64: topprodukte.at
A65: ='topprodukte-benzin-diesel'!A58 -> Ford | B65: ='topprodukte-benzin-diesel'!B58 -> EcoSport | C65: Ford EcoSport - Diesel | D65: ='topprodukte-benzin-diesel'!O58 -> 74 | E65: ='topprodukte-benzin-diesel'!J58 -> Diesel | F65: =IF(E65="Benzin",$O$3*G65,$O$4*G65) -> 49.52185 | G65: ='topprodukte-benzin-diesel'!I58 -> 4.9 | H65: ='topprodukte-benzin-diesel'!K58 -> 129 | I65: ='topprodukte-benzin-diesel'!F58 -> 23700 | J65: 355.5 | K65: =J65*Eingabe!$C$48 -> 106.65 | L65: topprodukte.at
A66: ='topprodukte-benzin-diesel'!A59 -> Ford | B66: ='topprodukte-benzin-diesel'!B59 -> Tourneo Courier | C66: Ford Tourneo Courier - Diesel | D66: ='topprodukte-benzin-diesel'!O59 -> 55 | E66: ='topprodukte-benzin-diesel'!J59 -> Diesel | F66: =IF(E66="Benzin",$O$3*G66,$O$4*G66) -> 54.5751 | G66: ='topprodukte-benzin-diesel'!I59 -> 5.4 | H66: ='topprodukte-benzin-diesel'!K59 -> 141 | I66: ='topprodukte-benzin-diesel'!F59 -> 18142 | J66: 362.84 | K66: =J66*Eingabe!$C$48 -> 108.852 | L66: topprodukte.at
A67: ='topprodukte-benzin-diesel'!A60 -> Honda | B67: ='topprodukte-benzin-diesel'!B60 -> Civic | C67: Honda Civic - Benzin | D67: ='topprodukte-benzin-diesel'!O60 -> 93 | E67: ='topprodukte-benzin-diesel'!J60 -> Benzin | F67: =IF(E67="Benzin",$O$3*G67,$O$4*G67) -> 48.678 | G67: ='topprodukte-benzin-diesel'!I60 -> 5.7 | H67: ='topprodukte-benzin-diesel'!K60 -> 128 | I67: ='topprodukte-benzin-diesel'!F60 -> 22890 | J67: 343.35 | K67: =J67*Eingabe!$C$48 -> 103.005 | L67: topprodukte.at
A68: ='topprodukte-benzin-diesel'!A61 -> Honda | B68: ='topprodukte-benzin-diesel'!B61 -> HR-V | C68: Honda HR-V - Benzin | D68: ='topprodukte-benzin-diesel'!O61 -> 96 | E68: ='topprodukte-benzin-diesel'!J61 -> Benzin | F68: 36.3 | G68: ='topprodukte-benzin-diesel'!I61 -> 6.6 | H68: ='topprodukte-benzin-diesel'!K61 -> 148 | I68: ='topprodukte-benzin-diesel'!F61 -> 23290 | J68: 465.8 | K68: =J68*Eingabe!$C$48 -> 139.74 | L68: topprodukte.at
A69: ='topprodukte-benzin-diesel'!A62 -> Honda | B69: ='topprodukte-benzin-diesel'!B62 -> Civic | C69: Honda Civic - Benzin | D69: ='topprodukte-benzin-diesel'!O62 -> 88 | E69: ='topprodukte-benzin-diesel'!J62 -> Benzin | F69: =IF(E69="Benzin",$O$3*G69,$O$4*G69) -> 39.284 | G69: ='topprodukte-benzin-diesel'!I62 -> 4.6 | H69: ='topprodukte-benzin-diesel'!K62 -> 121 | I69: ='topprodukte-benzin-diesel'!F62 -> 24390 | J69: 365.85 | K69: =J69*Eingabe!$C$48 -> 109.755 | L69: topprodukte.at
A70: ='topprodukte-benzin-diesel'!A63 -> Honda | B70: ='topprodukte-benzin-diesel'!B63 -> HR-V | C70: =CONCATENATE(A70," ",B70," - ",E70) -> Honda HR-V - Benzin | D70: ='topprodukte-benzin-diesel'!O63 -> 88 | E70: ='topprodukte-benzin-diesel'!J63 -> Benzin | F70: 42.7 | G70: ='topprodukte-benzin-diesel'!I63 -> 5 | H70: ='topprodukte-benzin-diesel'!K63 -> 132 | I70: ='topprodukte-benzin-diesel'!F63 -> 25790 | J70: 386.85 | K70: =J70*Eingabe!$C$48 -> 116.055 | L70: topprodukte.at
A71: ='topprodukte-benzin-diesel'!A64 -> Honda | B71: ='topprodukte-benzin-diesel'!B64 -> Civic | C71: Honda Civic - Diesel | D71: ='topprodukte-benzin-diesel'!O64 -> 88 | E71: ='topprodukte-benzin-diesel'!J64 -> Diesel | F71: 46.4899 | G71: ='topprodukte-benzin-diesel'!I64 -> 4.6 | H71: ='topprodukte-benzin-diesel'!K64 -> 121 | I71: ='topprodukte-benzin-diesel'!F64 -> 24390 | J71: 365.85 | K71: =J71*Eingabe!$C$48 -> 109.755 | L71: topprodukte.at
A72: ='topprodukte-benzin-diesel'!A65 -> Hyundai | B72: ='topprodukte-benzin-diesel'!B65 -> i10 | C72: Hyundai i10 - Benzin | D72: ='topprodukte-benzin-diesel'!O65 -> 49 | E72: ='topprodukte-benzin-diesel'!J65 -> Benzin | F72: 40.992 | G72: ='topprodukte-benzin-diesel'!I65 -> 4.8 | H72: ='topprodukte-benzin-diesel'!K65 -> 110 | I72: ='topprodukte-benzin-diesel'!F65 -> 10990 | J72: 164.85 | K72: =J72*Eingabe!$C$48 -> 49.455 | L72: topprodukte.at
A73: ='topprodukte-benzin-diesel'!A66 -> Hyundai | B73: ='topprodukte-benzin-diesel'!B66 -> i20 | C73: Hyundai i20 - Benzin | D73: ='topprodukte-benzin-diesel'!O66 -> 74 | E73: ='topprodukte-benzin-diesel'!J66 -> Benzin | F73: 46.97 | G73: ='topprodukte-benzin-diesel'!I66 -> 5.5 | H73: ='topprodukte-benzin-diesel'!K66 -> 126 | I73: ='topprodukte-benzin-diesel'!F66 -> 17190 | J73: 257.85 | K73: =J73*Eingabe!$C$48 -> 77.355 | L73: topprodukte.at
A74: ='topprodukte-benzin-diesel'!A67 -> Hyundai | B74: ='topprodukte-benzin-diesel'!B67 -> i30 Combi | C74: Hyundai i30 Combi - Benzin | D74: ='topprodukte-benzin-diesel'!O67 -> 88 | E74: ='topprodukte-benzin-diesel'!J67 -> Benzin | F74: 46.116 | G74: ='topprodukte-benzin-diesel'!I67 -> 5.4 | H74: ='topprodukte-benzin-diesel'!K67 -> 123 | I74: ='topprodukte-benzin-diesel'!F67 -> 20590 | J74: 308.85 | K74: =J74*Eingabe!$C$48 -> 92.655 | L74: topprodukte.at
A75: ='topprodukte-benzin-diesel'!A68 -> Hyundai | B75: ='topprodukte-benzin-diesel'!B68 -> Kona | C75: Hyundai Kona - Benzin | D75: ='topprodukte-benzin-diesel'!O68 -> 88 | E75: ='topprodukte-benzin-diesel'!J68 -> Benzin | F75: 52.948 | G75: ='topprodukte-benzin-diesel'!I68 -> 6.2 | H75: ='topprodukte-benzin-diesel'!K68 -> 142 | I75: ='topprodukte-benzin-diesel'!F68 -> 20690 | J75: 413.8 | K75: =J75*Eingabe!$C$48 -> 124.14 | L75: topprodukte.at
A76: ='topprodukte-benzin-diesel'!A69 -> Hyundai | B76: ='topprodukte-benzin-diesel'!B69 -> i30 | C76: Hyundai i30 - Benzin | D76: ='topprodukte-benzin-diesel'!O69 -> 85 | E76: ='topprodukte-benzin-diesel'!J69 -> Benzin | F76: 39.284 | G76: ='topprodukte-benzin-diesel'!I69 -> 4.6 | H76: ='topprodukte-benzin-diesel'!K69 -> 118 | I76: ='topprodukte-benzin-diesel'!F69 -> 22590 | J76: 338.85 | K76: =J76*Eingabe!$C$48 -> 101.655 | L76: topprodukte.at
A77: ='topprodukte-benzin-diesel'!A70 -> Hyundai | B77: ='topprodukte-benzin-diesel'!B70 -> i30 CW | C77: Hyundai i30 CW - Benzin | D77: ='topprodukte-benzin-diesel'!O70 -> 85 | E77: ='topprodukte-benzin-diesel'!J70 -> Benzin | F77: 38.43 | G77: ='topprodukte-benzin-diesel'!I70 -> 4.5 | H77: ='topprodukte-benzin-diesel'!K70 -> 118 | I77: ='topprodukte-benzin-diesel'!F70 -> 22590 | J77: 338.85 | K77: =J77*Eingabe!$C$48 -> 101.655 | L77: topprodukte.at
A78: ='topprodukte-benzin-diesel'!A71 -> Hyundai | B78: ='topprodukte-benzin-diesel'!B71 -> Kona | C78: Hyundai Kona - Benzin | D78: ='topprodukte-benzin-diesel'!O71 -> 85 | E78: ='topprodukte-benzin-diesel'!J71 -> Benzin | F78: 42.7 | G78: ='topprodukte-benzin-diesel'!I71 -> 5 | H78: ='topprodukte-benzin-diesel'!K71 -> 129 | I78: ='topprodukte-benzin-diesel'!F71 -> 22690 | J78: 340.35 | K78: =J78*Eingabe!$C$48 -> 102.105 | L78: topprodukte.at
A79: ='topprodukte-benzin-diesel'!A72 -> Hyundai | B79: ='topprodukte-benzin-diesel'!B72 -> i30 | C79: Hyundai i30 - Diesel | D79: ='topprodukte-benzin-diesel'!O72 -> 85 | E79: ='topprodukte-benzin-diesel'!J72 -> Diesel | F79: 46.4899 | G79: ='topprodukte-benzin-diesel'!I72 -> 4.6 | H79: ='topprodukte-benzin-diesel'!K72 -> 118 | I79: ='topprodukte-benzin-diesel'!F72 -> 22590 | J79: 338.85 | K79: =J79*Eingabe!$C$48 -> 101.655 | L79: topprodukte.at
A80: ='topprodukte-benzin-diesel'!A73 -> Hyundai | B80: ='topprodukte-benzin-diesel'!B73 -> i30 CW | C80: Hyundai i30 CW - Diesel | D80: ='topprodukte-benzin-diesel'!O73 -> 85 | E80: ='topprodukte-benzin-diesel'!J73 -> Diesel | F80: 45.47925 | G80: ='topprodukte-benzin-diesel'!I73 -> 4.5 | H80: ='topprodukte-benzin-diesel'!K73 -> 118 | I80: ='topprodukte-benzin-diesel'!F73 -> 22590 | J80: 338.85 | K80: =J80*Eingabe!$C$48 -> 101.655 | L80: topprodukte.at
A81: ='topprodukte-benzin-diesel'!A74 -> Hyundai | B81: ='topprodukte-benzin-diesel'!B74 -> Kona | C81: Hyundai Kona - Diesel | D81: ='topprodukte-benzin-diesel'!O74 -> 85 | E81: ='topprodukte-benzin-diesel'!J74 -> Diesel | F81: 50.5325 | G81: ='topprodukte-benzin-diesel'!I74 -> 5 | H81: ='topprodukte-benzin-diesel'!K74 -> 129 | I81: ='topprodukte-benzin-diesel'!F74 -> 22690 | J81: 340.35 | K81: =J81*Eingabe!$C$48 -> 102.105 | L81: topprodukte.at
A82: ='topprodukte-benzin-diesel'!A75 -> KIA | B82: ='topprodukte-benzin-diesel'!B75 -> Picanto | C82: KIA Picanto - Benzin | D82: ='topprodukte-benzin-diesel'!O75 -> 49 | E82: ='topprodukte-benzin-diesel'!J75 -> Benzin | F82: 43.554 | G82: ='topprodukte-benzin-diesel'!I75 -> 5.1 | H82: ='topprodukte-benzin-diesel'!K75 -> 116 | I82: ='topprodukte-benzin-diesel'!F75 -> 10190 | J82: 152.85 | K82: =J82*Eingabe!$C$48 -> 45.855 | L82: topprodukte.at
A83: ='topprodukte-benzin-diesel'!A76 -> KIA | B83: ='topprodukte-benzin-diesel'!B76 -> Rio | C83: KIA Rio - Benzin | D83: ='topprodukte-benzin-diesel'!O76 -> 74 | E83: ='topprodukte-benzin-diesel'!J76 -> Benzin | F83: 46.97 | G83: ='topprodukte-benzin-diesel'!I76 -> 5.5 | H83: ='topprodukte-benzin-diesel'!K76 -> 126 | I83: ='topprodukte-benzin-diesel'!F76 -> 18090 | J83: 271.35 | K83: =J83*Eingabe!$C$48 -> 81.405 | L83: topprodukte.at
A84: ='topprodukte-benzin-diesel'!A77 -> KIA | B84: ='topprodukte-benzin-diesel'!B77 -> Ceed | C84: KIA Ceed - Benzin | D84: ='topprodukte-benzin-diesel'!O77 -> 74 | E84: ='topprodukte-benzin-diesel'!J77 -> Benzin | F84: 47.824 | G84: ='topprodukte-benzin-diesel'!I77 -> 5.6 | H84: ='topprodukte-benzin-diesel'!K77 -> 126 | I84: ='topprodukte-benzin-diesel'!F77 -> 17790 | J84: 266.85 | K84: =J84*Eingabe!$C$48 -> 80.055 | L84: topprodukte.at
A85: ='topprodukte-benzin-diesel'!A78 -> KIA | B85: ='topprodukte-benzin-diesel'!B78 -> Ceed SW | C85: KIA Ceed SW - Benzin | D85: ='topprodukte-benzin-diesel'!O78 -> 74 | E85: ='topprodukte-benzin-diesel'!J78 -> Benzin | F85: =IF(E85="Benzin",$O$3*G85,$O$4*G85) -> 47.824 | G85: ='topprodukte-benzin-diesel'!I78 -> 5.6 | H85: ='topprodukte-benzin-diesel'!K78 -> 127 | I85: ='topprodukte-benzin-diesel'!F78 -> 18990 | J85: 284.85 | K85: =J85*Eingabe!$C$48 -> 85.455 | L85: topprodukte.at
A86: ='topprodukte-benzin-diesel'!A79 -> KIA | B86: ='topprodukte-benzin-diesel'!B79 -> ceed SW | C86: KIA ceed SW - Benzin | D86: ='topprodukte-benzin-diesel'!O79 -> 85 | E86: ='topprodukte-benzin-diesel'!J79 -> Benzin | F86: =IF(E86="Benzin",$O$3*G86,$O$4*G86) -> 39.284 | G86: ='topprodukte-benzin-diesel'!I79 -> 4.6 | H86: ='topprodukte-benzin-diesel'!K79 -> 121 | I86: ='topprodukte-benzin-diesel'!F79 -> 22790 | J86: 341.85 | K86: =J86*Eingabe!$C$48 -> 102.555 | L86: topprodukte.at
A87: ='topprodukte-benzin-diesel'!A80 -> KIA | B87: ='topprodukte-benzin-diesel'!B80 -> Sportage | C87: KIA Sportage - Benzin | D87: ='topprodukte-benzin-diesel'!O80 -> 85 | E87: ='topprodukte-benzin-diesel'!J80 -> Benzin | F87: =IF(E87="Benzin",$O$3*G87,$O$4*G87) -> 45.262 | G87: ='topprodukte-benzin-diesel'!I80 -> 5.3 | H87: ='topprodukte-benzin-diesel'!K80 -> 135 | I87: ='topprodukte-benzin-diesel'!F80 -> 31190 | J87: 467.85 | K87: =J87*Eingabe!$C$48 -> 140.355 | L87: topprodukte.at
A88: ='topprodukte-benzin-diesel'!A81 -> KIA | B88: ='topprodukte-benzin-diesel'!B81 -> ceed SW | C88: KIA ceed SW - Diesel | D88: ='topprodukte-benzin-diesel'!O81 -> 85 | E88: ='topprodukte-benzin-diesel'!J81 -> Diesel | F88: 39.4 | G88: ='topprodukte-benzin-diesel'!I81 -> 4.6 | H88: ='topprodukte-benzin-diesel'!K81 -> 121 | I88: ='topprodukte-benzin-diesel'!F81 -> 22790 | J88: 341.85 | K88: =J88*Eingabe!$C$48 -> 102.555 | L88: topprodukte.at
A89: ='topprodukte-benzin-diesel'!A82 -> Mazda | B89: ='topprodukte-benzin-diesel'!B82 -> 2 | C89: Mazda 2 - Benzin | D89: ='topprodukte-benzin-diesel'!O82 -> 55 | E89: ='topprodukte-benzin-diesel'!J82 -> Benzin | F89: =IF(E89="Benzin",$O$3*G89,$O$4*G89) -> 45.262 | G89: ='topprodukte-benzin-diesel'!I82 -> 5.3 | H89: ='topprodukte-benzin-diesel'!K82 -> 120 | I89: ='topprodukte-benzin-diesel'!F82 -> 14690 | J89: 220.35 | K89: =J89*Eingabe!$C$48 -> 66.105 | L89: topprodukte.at
A90: ='topprodukte-benzin-diesel'!A83 -> Mercedes | B90: ='topprodukte-benzin-diesel'!B83 -> A-Klasse | C90: Mercedes A-Klasse - Benzin | D90: ='topprodukte-benzin-diesel'!O83 -> 100 | E90: ='topprodukte-benzin-diesel'!J83 -> Benzin | F90: 50.386 | G90: ='topprodukte-benzin-diesel'!I83 -> 5.9 | H90: ='topprodukte-benzin-diesel'!K83 -> 133 | I90: ='topprodukte-benzin-diesel'!F83 -> 29670 | J90: 445.05 | K90: =J90*Eingabe!$C$48 -> 133.515 | L90: topprodukte.at
A91: ='topprodukte-benzin-diesel'!A84 -> Mercedes | B91: ='topprodukte-benzin-diesel'!B84 -> A-Klasse | C91: Mercedes A-Klasse - Benzin | D91: ='topprodukte-benzin-diesel'!O84 -> 70 | E91: ='topprodukte-benzin-diesel'!J84 -> Benzin | F91: 38.43 | G91: ='topprodukte-benzin-diesel'!I84 -> 4.5 | H91: ='topprodukte-benzin-diesel'!K84 -> 118 | I91: ='topprodukte-benzin-diesel'!F84 -> 29590 | J91: 443.85 | K91: =J91*Eingabe!$C$48 -> 133.155 | L91: topprodukte.at
A92: ='topprodukte-benzin-diesel'!A85 -> Mercedes | B92: ='topprodukte-benzin-diesel'!B85 -> CLA-Klasse | C92: Mercedes CLA-Klasse - Benzin | D92: ='topprodukte-benzin-diesel'!O85 -> 85 | E92: ='topprodukte-benzin-diesel'!J85 -> Benzin | F92: 38.43 | G92: ='topprodukte-benzin-diesel'!I85 -> 4.5 | H92: ='topprodukte-benzin-diesel'!K85 -> 118 | I92: ='topprodukte-benzin-diesel'!F85 -> 35460 | J92: 531.9 | K92: =J92*Eingabe!$C$48 -> 159.57 | L92: topprodukte.at
A93: ='topprodukte-benzin-diesel'!A86 -> Mercedes | B93: ='topprodukte-benzin-diesel'!B86 -> C-Klasse | C93: Mercedes C-Klasse - Benzin | D93: ='topprodukte-benzin-diesel'!O86 -> 118 | E93: ='topprodukte-benzin-diesel'!J86 -> Benzin | F93: 40.992 | G93: ='topprodukte-benzin-diesel'!I86 -> 4.8 | H93: ='topprodukte-benzin-diesel'!K86 -> 127 | I93: ='topprodukte-benzin-diesel'!F86 -> 40470 | J93: 607.05 | K93: =J93*Eingabe!$C$48 -> 182.115 | L93: topprodukte.at
A94: ='topprodukte-benzin-diesel'!A87 -> Mercedes | B94: ='topprodukte-benzin-diesel'!B87 -> A-Klasse | C94: Mercedes A-Klasse - Diesel | D94: ='topprodukte-benzin-diesel'!O87 -> 70 | E94: ='topprodukte-benzin-diesel'!J87 -> Diesel | F94: 45.47925 | G94: ='topprodukte-benzin-diesel'!I87 -> 4.5 | H94: ='topprodukte-benzin-diesel'!K87 -> 118 | I94: ='topprodukte-benzin-diesel'!F87 -> 29590 | J94: 443.85 | K94: =J94*Eingabe!$C$48 -> 133.155 | L94: topprodukte.at
A95: ='topprodukte-benzin-diesel'!A88 -> Mercedes | B95: ='topprodukte-benzin-diesel'!B88 -> CLA-Klasse | C95: Mercedes CLA-Klasse - Diesel | D95: ='topprodukte-benzin-diesel'!O88 -> 85 | E95: ='topprodukte-benzin-diesel'!J88 -> Diesel | F95: 45.47925 | G95: ='topprodukte-benzin-diesel'!I88 -> 4.5 | H95: ='topprodukte-benzin-diesel'!K88 -> 118 | I95: ='topprodukte-benzin-diesel'!F88 -> 35460 | J95: 531.9 | K95: =J95*Eingabe!$C$48 -> 159.57 | L95: topprodukte.at
A96: ='topprodukte-benzin-diesel'!A89 -> Mercedes | B96: ='topprodukte-benzin-diesel'!B89 -> C-Klasse | C96: Mercedes C-Klasse - Diesel | D96: ='topprodukte-benzin-diesel'!O89 -> 118 | E96: ='topprodukte-benzin-diesel'!J89 -> Diesel | F96: 48.5112 | G96: ='topprodukte-benzin-diesel'!I89 -> 4.8 | H96: ='topprodukte-benzin-diesel'!K89 -> 127 | I96: ='topprodukte-benzin-diesel'!F89 -> 40470 | J96: 607.05 | K96: =J96*Eingabe!$C$48 -> 182.115 | L96: topprodukte.at
A97: ='topprodukte-benzin-diesel'!A90 -> Mini | B97: ='topprodukte-benzin-diesel'!B90 -> Mini 3-Türer | C97: Mini Mini 3-Türer - Benzin | D97: ='topprodukte-benzin-diesel'!O90 -> 55 | E97: ='topprodukte-benzin-diesel'!J90 -> Benzin | F97: 49.532 | G97: ='topprodukte-benzin-diesel'!I90 -> 5.8 | H97: ='topprodukte-benzin-diesel'!K90 -> 133 | I97: ='topprodukte-benzin-diesel'!F90 -> 19750 | J97: 296.25 | K97: =J97*Eingabe!$C$48 -> 88.875 | L97: topprodukte.at
A98: ='topprodukte-benzin-diesel'!A91 -> Mini | B98: ='topprodukte-benzin-diesel'!B91 -> Countryman | C98: Mini Countryman - Benzin | D98: ='topprodukte-benzin-diesel'!O91 -> 85 | E98: ='topprodukte-benzin-diesel'!J91 -> Benzin | F98: 41.846 | G98: ='topprodukte-benzin-diesel'!I91 -> 4.9 | H98: ='topprodukte-benzin-diesel'!K91 -> 129 | I98: ='topprodukte-benzin-diesel'!F91 -> 28500 | J98: 427.5 | K98: =J98*Eingabe!$C$48 -> 128.25 | L98: topprodukte.at
A99: ='topprodukte-benzin-diesel'!A92 -> Mini | B99: ='topprodukte-benzin-diesel'!B92 -> Countryman | C99: Mini Countryman - Diesel | D99: ='topprodukte-benzin-diesel'!O92 -> 85 | E99: ='topprodukte-benzin-diesel'!J92 -> Diesel | F99: 49.52185 | G99: ='topprodukte-benzin-diesel'!I92 -> 4.9 | H99: ='topprodukte-benzin-diesel'!K92 -> 129 | I99: ='topprodukte-benzin-diesel'!F92 -> 28500 | J99: 427.5 | K99: =J99*Eingabe!$C$48 -> 128.25 | L99: topprodukte.at
A100: ='topprodukte-benzin-diesel'!A93 -> MItsubishi | B100: ='topprodukte-benzin-diesel'!B93 -> Space Star | C100: MItsubishi Space Star - Benzin | D100: ='topprodukte-benzin-diesel'!O93 -> 52 | E100: ='topprodukte-benzin-diesel'!J93 -> Benzin | F100: 43.554 | G100: ='topprodukte-benzin-diesel'!I93 -> 5.1 | H100: ='topprodukte-benzin-diesel'!K93 -> 115 | I100: ='topprodukte-benzin-diesel'!F93 -> 12990 | J100: 194.85 | K100: =J100*Eingabe!$C$48 -> 58.455 | L100: topprodukte.at
A101: ='topprodukte-benzin-diesel'!A94 -> Nissan | B101: ='topprodukte-benzin-diesel'!B94 -> Micra | C101: Nissan Micra - Benzin | D101: ='topprodukte-benzin-diesel'!O94 -> 74 | E101: ='topprodukte-benzin-diesel'!J94 -> Benzin | F101: 47.824 | G101: ='topprodukte-benzin-diesel'!I94 -> 5.6 | H101: ='topprodukte-benzin-diesel'!K94 -> 126 | I101: ='topprodukte-benzin-diesel'!F94 -> 15090 | J101: =IF(H101>$U$4,IF(I101*0.02>960,960,I101*0.02),IF(H101>0,IF(I101*0.015>720,720,I101*0.015),0)) -> 226.35 | K101: =J101*Eingabe!$C$48 -> 67.905 | L101: topprodukte.at
A102: ='topprodukte-benzin-diesel'!A95 -> Nissan | B102: ='topprodukte-benzin-diesel'!B95 -> Juke | C102: Nissan Juke - Benzin | D102: ='topprodukte-benzin-diesel'!O95 -> 86 | E102: ='topprodukte-benzin-diesel'!J95 -> Benzin | F102: 50.386 | G102: ='topprodukte-benzin-diesel'!I95 -> 5.9 | H102: ='topprodukte-benzin-diesel'!K95 -> 135 | I102: ='topprodukte-benzin-diesel'!F95 -> 19600 | J102: 294 | K102: =J102*Eingabe!$C$48 -> 88.2 | L102: topprodukte.at
A103: ='topprodukte-benzin-diesel'!A96 -> Opel | B103: ='topprodukte-benzin-diesel'!B96 -> Astra | C103: Opel Astra - Benzin | D103: ='topprodukte-benzin-diesel'!O96 -> 81 | E103: ='topprodukte-benzin-diesel'!J96 -> Benzin | F103: 44.408 | G103: ='topprodukte-benzin-diesel'!I96 -> 5.2 | H103: ='topprodukte-benzin-diesel'!K96 -> 119 | I103: ='topprodukte-benzin-diesel'!F96 -> 21739 | J103: 326.085 | K103: =J103*Eingabe!$C$48 -> 97.8255 | L103: topprodukte.at
A104: ='topprodukte-benzin-diesel'!A97 -> Opel | B104: ='topprodukte-benzin-diesel'!B97 -> Corsa | C104: Opel Corsa - Benzin | D104: ='topprodukte-benzin-diesel'!O97 -> 55 | E104: ='topprodukte-benzin-diesel'!J97 -> Benzin | F104: 46.116 | G104: ='topprodukte-benzin-diesel'!I97 -> 5.4 | H104: ='topprodukte-benzin-diesel'!K97 -> 123 | I104: ='topprodukte-benzin-diesel'!F97 -> 14999 | J104: 224.985 | K104: =J104*Eingabe!$C$48 -> 67.4955 | L104: topprodukte.at
A105: ='topprodukte-benzin-diesel'!A98 -> Opel | B105: ='topprodukte-benzin-diesel'!B98 -> Astra ST | C105: Opel Astra ST - Benzin | D105: ='topprodukte-benzin-diesel'!O98 -> 81 | E105: ='topprodukte-benzin-diesel'!J98 -> Benzin | F105: 46.116 | G105: ='topprodukte-benzin-diesel'!I98 -> 5.4 | H105: ='topprodukte-benzin-diesel'!K98 -> 122 | I105: ='topprodukte-benzin-diesel'!F98 -> 23339 | J105: 350.085 | K105: =J105*Eingabe!$C$48 -> 105.0255 | L105: topprodukte.at
A106: ='topprodukte-benzin-diesel'!A99 -> Opel | B106: ='topprodukte-benzin-diesel'!B99 -> Insignia | C106: Opel Insignia - Benzin | D106: ='topprodukte-benzin-diesel'!O99 -> 103 | E106: ='topprodukte-benzin-diesel'!J99 -> Benzin | F106: 52.094 | G106: ='topprodukte-benzin-diesel'!I99 -> 6.1 | H106: ='topprodukte-benzin-diesel'!K99 -> 138 | I106: ='topprodukte-benzin-diesel'!F99 -> 30730 | J106: 460.95 | K106: =J106*Eingabe!$C$48 -> 138.285 | L106: topprodukte.at
A107: ='topprodukte-benzin-diesel'!A100 -> Opel | B107: ='topprodukte-benzin-diesel'!B100 -> Crossland X | C107: Opel Crossland X - Benzin | D107: ='topprodukte-benzin-diesel'!O100 -> 60 | E107: ='topprodukte-benzin-diesel'!J100 -> Benzin | F107: 52.948 | G107: ='topprodukte-benzin-diesel'!I100 -> 6.2 | H107: ='topprodukte-benzin-diesel'!K100 -> 139 | I107: ='topprodukte-benzin-diesel'!F100 -> 19839 | J107: 396.78 | K107: =J107*Eingabe!$C$48 -> 119.034 | L107: topprodukte.at
A108: ='topprodukte-benzin-diesel'!A101 -> Opel | B108: ='topprodukte-benzin-diesel'!B101 -> Grandland X | C108: Opel Grandland X - Benzin | D108: ='topprodukte-benzin-diesel'!O101 -> 96 | E108: ='topprodukte-benzin-diesel'!J101 -> Benzin | F108: 54.656 | G108: ='topprodukte-benzin-diesel'!I101 -> 6.4 | H108: ='topprodukte-benzin-diesel'!K101 -> 145 | I108: ='topprodukte-benzin-diesel'!F101 -> 26729 | J108: 534.58 | K108: =J108*Eingabe!$C$48 -> 160.374 | L108: topprodukte.at
A109: ='topprodukte-benzin-diesel'!A102 -> Opel | B109: ='topprodukte-benzin-diesel'!B102 -> Corsa | C109: Opel Corsa - Benzin | D109: ='topprodukte-benzin-diesel'!O102 -> 75 | E109: ='topprodukte-benzin-diesel'!J102 -> Benzin | F109: 35.014 | G109: ='topprodukte-benzin-diesel'!I102 -> 4.1 | H109: ='topprodukte-benzin-diesel'!K102 -> 107 | I109: ='topprodukte-benzin-diesel'!F102 -> 20389 | J109: 305.835 | K109: =J109*Eingabe!$C$48 -> 91.7505 | L109: topprodukte.at
A110: ='topprodukte-benzin-diesel'!A103 -> Opel | B110: ='topprodukte-benzin-diesel'!B103 -> Astra | C110: Opel Astra - Benzin | D110: ='topprodukte-benzin-diesel'!O103 -> 77 | E110: ='topprodukte-benzin-diesel'!J103 -> Benzin | F110: 36.722 | G110: ='topprodukte-benzin-diesel'!I103 -> 4.3 | H110: ='topprodukte-benzin-diesel'!K103 -> 112 | I110: ='topprodukte-benzin-diesel'!F103 -> 23739 | J110: 356.085 | K110: =J110*Eingabe!$C$48 -> 106.8255 | L110: topprodukte.at
A111: ='topprodukte-benzin-diesel'!A104 -> Opel | B111: ='topprodukte-benzin-diesel'!B104 -> Astra Sports Tourer | C111: Opel Astra Sports Tourer - Benzin | D111: ='topprodukte-benzin-diesel'!O104 -> 77 | E111: ='topprodukte-benzin-diesel'!J104 -> Benzin | F111: 36.722 | G111: ='topprodukte-benzin-diesel'!I104 -> 4.3 | H111: ='topprodukte-benzin-diesel'!K104 -> 113 | I111: ='topprodukte-benzin-diesel'!F104 -> 25339 | J111: 380.085 | K111: =J111*Eingabe!$C$48 -> 114.0255 | L111: topprodukte.at
A112: ='topprodukte-benzin-diesel'!A105 -> Opel | B112: ='topprodukte-benzin-diesel'!B105 -> Insignia | C112: Opel Insignia - Benzin | D112: ='topprodukte-benzin-diesel'!O105 -> 90 | E112: ='topprodukte-benzin-diesel'!J105 -> Benzin | F112: 39.284 | G112: ='topprodukte-benzin-diesel'!I105 -> 4.6 | H112: ='topprodukte-benzin-diesel'!K105 -> 121 | I112: ='topprodukte-benzin-diesel'!F105 -> 32699 | J112: 490.485 | K112: =J112*Eingabe!$C$48 -> 147.1455 | L112: topprodukte.at
A113: ='topprodukte-benzin-diesel'!A106 -> Opel | B113: ='topprodukte-benzin-diesel'!B106 -> Crossland X | C113: Opel Crossland X - Benzin | D113: ='topprodukte-benzin-diesel'!O106 -> 75 | E113: ='topprodukte-benzin-diesel'!J106 -> Benzin | F113: 40.138 | G113: ='topprodukte-benzin-diesel'!I106 -> 4.7 | H113: ='topprodukte-benzin-diesel'!K106 -> 123 | I113: ='topprodukte-benzin-diesel'!F106 -> 22349 | J113: 335.235 | K113: =J113*Eingabe!$C$48 -> 100.5705 | L113: topprodukte.at
A114: ='topprodukte-benzin-diesel'!A107 -> Opel | B114: ='topprodukte-benzin-diesel'!B107 -> Grandland X | C114: Opel Grandland X - Benzin | D114: ='topprodukte-benzin-diesel'!O107 -> 96 | E114: ='topprodukte-benzin-diesel'!J107 -> Benzin | F114: 44.408 | G114: ='topprodukte-benzin-diesel'!I107 -> 5.2 | H114: ='topprodukte-benzin-diesel'!K107 -> 136 | I114: ='topprodukte-benzin-diesel'!F107 -> 29309 | J114: 439.635 | K114: =J114*Eingabe!$C$48 -> 131.8905 | L114: topprodukte.at
A115: ='topprodukte-benzin-diesel'!A108 -> Opel | B115: ='topprodukte-benzin-diesel'!B108 -> Corsa | C115: Opel Corsa - Diesel | D115: ='topprodukte-benzin-diesel'!O108 -> 75 | E115: ='topprodukte-benzin-diesel'!J108 -> Diesel | F115: 41.43665 | G115: ='topprodukte-benzin-diesel'!I108 -> 4.1 | H115: ='topprodukte-benzin-diesel'!K108 -> 107 | I115: ='topprodukte-benzin-diesel'!F108 -> 20389 | J115: 305.835 | K115: =J115*Eingabe!$C$48 -> 91.7505 | L115: topprodukte.at
A116: ='topprodukte-benzin-diesel'!A109 -> Opel | B116: ='topprodukte-benzin-diesel'!B109 -> Astra | C116: Opel Astra - Diesel | D116: ='topprodukte-benzin-diesel'!O109 -> 77 | E116: ='topprodukte-benzin-diesel'!J109 -> Diesel | F116: 43.45795 | G116: ='topprodukte-benzin-diesel'!I109 -> 4.3 | H116: ='topprodukte-benzin-diesel'!K109 -> 112 | I116: ='topprodukte-benzin-diesel'!F109 -> 23739 | J116: 356.085 | K116: =J116*Eingabe!$C$48 -> 106.8255 | L116: topprodukte.at
A117: ='topprodukte-benzin-diesel'!A110 -> Opel | B117: ='topprodukte-benzin-diesel'!B110 -> Astra Sports Tourer | C117: Opel Astra Sports Tourer - Diesel | D117: ='topprodukte-benzin-diesel'!O110 -> 77 | E117: ='topprodukte-benzin-diesel'!J110 -> Diesel | F117: 43.45795 | G117: ='topprodukte-benzin-diesel'!I110 -> 4.3 | H117: ='topprodukte-benzin-diesel'!K110 -> 113 | I117: ='topprodukte-benzin-diesel'!F110 -> 25339 | J117: 380.085 | K117: =J117*Eingabe!$C$48 -> 114.0255 | L117: topprodukte.at
A118: ='topprodukte-benzin-diesel'!A111 -> Opel | B118: ='topprodukte-benzin-diesel'!B111 -> Insignia | C118: Opel Insignia - Diesel | D118: ='topprodukte-benzin-diesel'!O111 -> 90 | E118: ='topprodukte-benzin-diesel'!J111 -> Diesel | F118: 46.4899 | G118: ='topprodukte-benzin-diesel'!I111 -> 4.6 | H118: ='topprodukte-benzin-diesel'!K111 -> 121 | I118: ='topprodukte-benzin-diesel'!F111 -> 32699 | J118: 490.485 | K118: =J118*Eingabe!$C$48 -> 147.1455 | L118: topprodukte.at
A119: ='topprodukte-benzin-diesel'!A112 -> Peugeot | B119: ='topprodukte-benzin-diesel'!B112 -> 208 | C119: Peugeot 208 - Benzin | D119: ='topprodukte-benzin-diesel'!O112 -> 55 | E119: ='topprodukte-benzin-diesel'!J112 -> Benzin | F119: 46.116 | G119: ='topprodukte-benzin-diesel'!I112 -> 5.4 | H119: ='topprodukte-benzin-diesel'!K112 -> 123 | I119: ='topprodukte-benzin-diesel'!F112 -> 15990 | J119: 239.85 | K119: =J119*Eingabe!$C$48 -> 71.955 | L119: topprodukte.at
A120: ='topprodukte-benzin-diesel'!A113 -> Peugeot | B120: ='topprodukte-benzin-diesel'!B113 -> 308 SW | C120: Peugeot 308 SW - Benzin | D120: ='topprodukte-benzin-diesel'!O113 -> 81 | E120: ='topprodukte-benzin-diesel'!J113 -> Benzin | F120: 50.386 | G120: ='topprodukte-benzin-diesel'!I113 -> 5.9 | H120: ='topprodukte-benzin-diesel'!K113 -> 134 | I120: ='topprodukte-benzin-diesel'!F113 -> 23600 | J120: 354 | K120: =J120*Eingabe!$C$48 -> 106.2 | L120: topprodukte.at
A121: ='topprodukte-benzin-diesel'!A114 -> Peugeot | B121: ='topprodukte-benzin-diesel'!B114 -> 508 | C121: Peugeot 508 - Benzin | D121: ='topprodukte-benzin-diesel'!O114 -> 133 | E121: ='topprodukte-benzin-diesel'!J114 -> Benzin | F121: =IF(E121="Benzin",$O$3*G121,$O$4*G121) -> 55.51 | G121: ='topprodukte-benzin-diesel'!I114 -> 6.5 | H121: ='topprodukte-benzin-diesel'!K114 -> 145 | I121: ='topprodukte-benzin-diesel'!F114 -> 42250 | J121: 845 | K121: =J121*Eingabe!$C$48 -> 253.5 | L121: topprodukte.at
A122: ='topprodukte-benzin-diesel'!A115 -> Peugeot | B122: ='topprodukte-benzin-diesel'!B115 -> 3008 | C122: Peugeot 3008 - Benzin | D122: ='topprodukte-benzin-diesel'!O115 -> 96 | E122: ='topprodukte-benzin-diesel'!J115 -> Benzin | F122: 53.802 | G122: ='topprodukte-benzin-diesel'!I115 -> 6.3 | H122: ='topprodukte-benzin-diesel'!K115 -> 144 | I122: ='topprodukte-benzin-diesel'!F115 -> 26790 | J122: 535.8 | K122: =J122*Eingabe!$C$48 -> 160.74 | L122: topprodukte.at
A123: ='topprodukte-benzin-diesel'!A116 -> Peugeot | B123: ='topprodukte-benzin-diesel'!B116 -> 5008 | C123: Peugeot 5008 - Benzin | D123: ='topprodukte-benzin-diesel'!O116 -> 96 | E123: ='topprodukte-benzin-diesel'!J116 -> Benzin | F123: 55.51 | G123: ='topprodukte-benzin-diesel'!I116 -> 6.5 | H123: ='topprodukte-benzin-diesel'!K116 -> 147 | I123: ='topprodukte-benzin-diesel'!F116 -> 28790 | J123: 575.8 | K123: =J123*Eingabe!$C$48 -> 172.74 | L123: topprodukte.at
A124: ='topprodukte-benzin-diesel'!A117 -> Peugeot | B124: ='topprodukte-benzin-diesel'!B117 -> 208 | C124: Peugeot 208 - Benzin | D124: ='topprodukte-benzin-diesel'!O117 -> 75 | E124: ='topprodukte-benzin-diesel'!J117 -> Benzin | F124: 35.014 | G124: ='topprodukte-benzin-diesel'!I117 -> 4.1 | H124: ='topprodukte-benzin-diesel'!K117 -> 108 | I124: ='topprodukte-benzin-diesel'!F117 -> 19530 | J124: 292.95 | K124: =J124*Eingabe!$C$48 -> 87.885 | L124: topprodukte.at
A125: ='topprodukte-benzin-diesel'!A118 -> Peugeot | B125: ='topprodukte-benzin-diesel'!B118 -> 308 | C125: Peugeot 308 - Benzin | D125: ='topprodukte-benzin-diesel'!O118 -> 75 | E125: ='topprodukte-benzin-diesel'!J118 -> Benzin | F125: 38.43 | G125: ='topprodukte-benzin-diesel'!I118 -> 4.5 | H125: ='topprodukte-benzin-diesel'!K118 -> 118 | I125: ='topprodukte-benzin-diesel'!F118 -> 23850 | J125: 357.75 | K125: =J125*Eingabe!$C$48 -> 107.325 | L125: topprodukte.at
A126: ='topprodukte-benzin-diesel'!A119 -> Peugeot | B126: ='topprodukte-benzin-diesel'!B119 -> 508 | C126: Peugeot 508 - Benzin | D126: ='topprodukte-benzin-diesel'!O119 -> 96 | E126: ='topprodukte-benzin-diesel'!J119 -> Benzin | F126: 40.138 | G126: ='topprodukte-benzin-diesel'!I119 -> 4.7 | H126: ='topprodukte-benzin-diesel'!K119 -> 120 | I126: ='topprodukte-benzin-diesel'!F119 -> 36750 | J126: 551.25 | K126: =J126*Eingabe!$C$48 -> 165.375 | L126: topprodukte.at
A127: ='topprodukte-benzin-diesel'!A120 -> Peugeot | B127: ='topprodukte-benzin-diesel'!B120 -> 308 SW | C127: Peugeot 308 SW - Benzin | D127: ='topprodukte-benzin-diesel'!O120 -> 96 | E127: ='topprodukte-benzin-diesel'!J120 -> Benzin | F127: 40.138 | G127: ='topprodukte-benzin-diesel'!I120 -> 4.7 | H127: ='topprodukte-benzin-diesel'!K120 -> 122 | I127: ='topprodukte-benzin-diesel'!F120 -> 27800 | J127: 417 | K127: =J127*Eingabe!$C$48 -> 125.1 | L127: topprodukte.at
A128: ='topprodukte-benzin-diesel'!A121 -> Peugeot | B128: ='topprodukte-benzin-diesel'!B121 -> 2008 | C128: Peugeot 2008 - Benzin | D128: ='topprodukte-benzin-diesel'!O121 -> 75 | E128: ='topprodukte-benzin-diesel'!J121 -> Benzin | F128: 38.43 | G128: ='topprodukte-benzin-diesel'!I121 -> 4.5 | H128: ='topprodukte-benzin-diesel'!K121 -> 118 | I128: ='topprodukte-benzin-diesel'!F121 -> 25510 | J128: 382.65 | K128: =J128*Eingabe!$C$48 -> 114.795 | L128: topprodukte.at
A129: ='topprodukte-benzin-diesel'!A122 -> Peugeot | B129: ='topprodukte-benzin-diesel'!B122 -> 3008 | C129: Peugeot 3008 - Benzin | D129: ='topprodukte-benzin-diesel'!O122 -> 96 | E129: ='topprodukte-benzin-diesel'!J122 -> Benzin | F129: 44.408 | G129: ='topprodukte-benzin-diesel'!I122 -> 5.2 | H129: ='topprodukte-benzin-diesel'!K122 -> 136 | I129: ='topprodukte-benzin-diesel'!F122 -> 33000 | J129: 495 | K129: =J129*Eingabe!$C$48 -> 148.5 | L129: topprodukte.at
A130: ='topprodukte-benzin-diesel'!A123 -> Peugeot | B130: ='topprodukte-benzin-diesel'!B123 -> 5008 | C130: Peugeot 5008 - Benzin | D130: ='topprodukte-benzin-diesel'!O123 -> 96 | E130: ='topprodukte-benzin-diesel'!J123 -> Benzin | F130: 45.262 | G130: ='topprodukte-benzin-diesel'!I123 -> 5.3 | H130: ='topprodukte-benzin-diesel'!K123 -> 137 | I130: ='topprodukte-benzin-diesel'!F123 -> 34900 | J130: 523.5 | K130: =J130*Eingabe!$C$48 -> 157.05 | L130: topprodukte.at
A131: ='topprodukte-benzin-diesel'!A124 -> Peugeot | B131: ='topprodukte-benzin-diesel'!B124 -> 208 | C131: Peugeot 208 - Diesel | D131: ='topprodukte-benzin-diesel'!O124 -> 75 | E131: ='topprodukte-benzin-diesel'!J124 -> Diesel | F131: 41.43665 | G131: ='topprodukte-benzin-diesel'!I124 -> 4.1 | H131: ='topprodukte-benzin-diesel'!K124 -> 108 | I131: ='topprodukte-benzin-diesel'!F124 -> 19530 | J131: 292.95 | K131: =J131*Eingabe!$C$48 -> 87.885 | L131: topprodukte.at
A132: ='topprodukte-benzin-diesel'!A125 -> Peugeot | B132: ='topprodukte-benzin-diesel'!B125 -> 308 | C132: Peugeot 308 - Diesel | D132: ='topprodukte-benzin-diesel'!O125 -> 75 | E132: ='topprodukte-benzin-diesel'!J125 -> Diesel | F132: 45.47925 | G132: ='topprodukte-benzin-diesel'!I125 -> 4.5 | H132: ='topprodukte-benzin-diesel'!K125 -> 118 | I132: ='topprodukte-benzin-diesel'!F125 -> 23850 | J132: 357.75 | K132: =J132*Eingabe!$C$48 -> 107.325 | L132: topprodukte.at
A133: ='topprodukte-benzin-diesel'!A126 -> Peugeot | B133: ='topprodukte-benzin-diesel'!B126 -> 508 | C133: Peugeot 508 - Diesel | D133: ='topprodukte-benzin-diesel'!O126 -> 96 | E133: ='topprodukte-benzin-diesel'!J126 -> Diesel | F133: 47.50055 | G133: ='topprodukte-benzin-diesel'!I126 -> 4.7 | H133: ='topprodukte-benzin-diesel'!K126 -> 120 | I133: ='topprodukte-benzin-diesel'!F126 -> 36750 | J133: 551.25 | K133: =J133*Eingabe!$C$48 -> 165.375 | L133: topprodukte.at
A134: ='topprodukte-benzin-diesel'!A127 -> Peugeot | B134: ='topprodukte-benzin-diesel'!B127 -> 308 SW | C134: =CONCATENATE(A134," ",B134," - ",E134) -> Peugeot 308 SW - Diesel | D134: ='topprodukte-benzin-diesel'!O127 -> 96 | E134: ='topprodukte-benzin-diesel'!J127 -> Diesel | F134: 47.50055 | G134: ='topprodukte-benzin-diesel'!I127 -> 4.7 | H134: ='topprodukte-benzin-diesel'!K127 -> 122 | I134: ='topprodukte-benzin-diesel'!F127 -> 27800 | J134: 417 | K134: =J134*Eingabe!$C$48 -> 125.1 | L134: topprodukte.at
A135: ='topprodukte-benzin-diesel'!A128 -> Peugeot | B135: ='topprodukte-benzin-diesel'!B128 -> 2008 | C135: Peugeot 2008 - Diesel | D135: ='topprodukte-benzin-diesel'!O128 -> 75 | E135: ='topprodukte-benzin-diesel'!J128 -> Diesel | F135: 45.47925 | G135: ='topprodukte-benzin-diesel'!I128 -> 4.5 | H135: ='topprodukte-benzin-diesel'!K128 -> 118 | I135: ='topprodukte-benzin-diesel'!F128 -> 25510 | J135: 382.65 | K135: =J135*Eingabe!$C$48 -> 114.795 | L135: topprodukte.at
A136: ='topprodukte-benzin-diesel'!A129 -> Peugeot | B136: ='topprodukte-benzin-diesel'!B129 -> 108 | C136: Peugeot 108 - Benzin | D136: ='topprodukte-benzin-diesel'!O129 -> 53 | E136: ='topprodukte-benzin-diesel'!J129 -> Benzin | F136: 40.992 | G136: ='topprodukte-benzin-diesel'!I129 -> 4.8 | H136: ='topprodukte-benzin-diesel'!K129 -> 109 | I136: ='topprodukte-benzin-diesel'!F129 -> 12740 | J136: 191.1 | K136: =J136*Eingabe!$C$48 -> 57.33 | L136: topprodukte.at
A137: ='topprodukte-benzin-diesel'!A130 -> Renault | B137: ='topprodukte-benzin-diesel'!B130 -> Twingo | C137: Renault Twingo - Benzin | D137: ='topprodukte-benzin-diesel'!O130 -> 54 | E137: ='topprodukte-benzin-diesel'!J130 -> Benzin | F137: 45.262 | G137: ='topprodukte-benzin-diesel'!I130 -> 5.3 | H137: ='topprodukte-benzin-diesel'!K130 -> 119 | I137: ='topprodukte-benzin-diesel'!F130 -> 9990 | J137: 149.85 | K137: =J137*Eingabe!$C$48 -> 44.955 | L137: topprodukte.at
A138: ='topprodukte-benzin-diesel'!A131 -> Renault | B138: ='topprodukte-benzin-diesel'!B131 -> Clio | C138: Renault Clio - Benzin | D138: ='topprodukte-benzin-diesel'!O131 -> 53 | E138: ='topprodukte-benzin-diesel'!J131 -> Benzin | F138: 46.116 | G138: ='topprodukte-benzin-diesel'!I131 -> 5.4 | H138: ='topprodukte-benzin-diesel'!K131 -> 120 | I138: ='topprodukte-benzin-diesel'!F131 -> 12940 | J138: 194.1 | K138: =J138*Eingabe!$C$48 -> 58.23 | L138: topprodukte.at
A139: ='topprodukte-benzin-diesel'!A132 -> Renault | B139: ='topprodukte-benzin-diesel'!B132 -> Megane Grandtour | C139: Renault Megane Grandtour - Benzin | D139: ='topprodukte-benzin-diesel'!O132 -> 84 | E139: ='topprodukte-benzin-diesel'!J132 -> Benzin | F139: 50.386 | G139: ='topprodukte-benzin-diesel'!I132 -> 5.9 | H139: ='topprodukte-benzin-diesel'!K132 -> 135 | I139: ='topprodukte-benzin-diesel'!F132 -> 19290 | J139: 289.35 | K139: =J139*Eingabe!$C$48 -> 86.805 | L139: topprodukte.at
A140: ='topprodukte-benzin-diesel'!A133 -> Renault | B140: ='topprodukte-benzin-diesel'!B133 -> Captur | C140: Renault Captur - Benzin | D140: ='topprodukte-benzin-diesel'!O133 -> 74 | E140: ='topprodukte-benzin-diesel'!J133 -> Benzin | F140: 50.386 | G140: ='topprodukte-benzin-diesel'!I133 -> 5.9 | H140: ='topprodukte-benzin-diesel'!K133 -> 134 | I140: ='topprodukte-benzin-diesel'!F133 -> 18540 | J140: 278.1 | K140: =J140*Eingabe!$C$48 -> 83.43 | L140: topprodukte.at
A141: ='topprodukte-benzin-diesel'!A134 -> Renault | B141: ='topprodukte-benzin-diesel'!B134 -> Kadjar | C141: Renault Kadjar - Benzin | D141: ='topprodukte-benzin-diesel'!O134 -> 103 | E141: ='topprodukte-benzin-diesel'!J134 -> Benzin | F141: 55.51 | G141: ='topprodukte-benzin-diesel'!I134 -> 6.5 | H141: ='topprodukte-benzin-diesel'!K134 -> 146 | I141: ='topprodukte-benzin-diesel'!F134 -> 22890 | J141: 457.8 | K141: =J141*Eingabe!$C$48 -> 137.34 | L141: topprodukte.at
A142: ='topprodukte-benzin-diesel'!A135 -> Renault | B142: ='topprodukte-benzin-diesel'!B135 -> Scenic | C142: Renault Scenic - Benzin | D142: ='topprodukte-benzin-diesel'!O135 -> 85 | E142: ='topprodukte-benzin-diesel'!J135 -> Benzin | F142: 56.364 | G142: ='topprodukte-benzin-diesel'!I135 -> 6.6 | H142: ='topprodukte-benzin-diesel'!K135 -> 149 | I142: ='topprodukte-benzin-diesel'!F135 -> 21390 | J142: 427.8 | K142: =J142*Eingabe!$C$48 -> 128.34 | L142: topprodukte.at
A143: ='topprodukte-benzin-diesel'!A136 -> Renault | B143: ='topprodukte-benzin-diesel'!B136 -> Clio | C143: Renault Clio - Benzin | D143: ='topprodukte-benzin-diesel'!O136 -> 63 | E143: ='topprodukte-benzin-diesel'!J136 -> Benzin | F143: 35.868 | G143: ='topprodukte-benzin-diesel'!I136 -> 4.2 | H143: ='topprodukte-benzin-diesel'!K136 -> 109 | I143: ='topprodukte-benzin-diesel'!F136 -> 18790 | J143: 281.85 | K143: =J143*Eingabe!$C$48 -> 84.555 | L143: topprodukte.at
A144: ='topprodukte-benzin-diesel'!A137 -> Renault | B144: ='topprodukte-benzin-diesel'!B137 -> Megane | C144: Renault Megane - Benzin | D144: ='topprodukte-benzin-diesel'!O137 -> 85 | E144: ='topprodukte-benzin-diesel'!J137 -> Benzin | F144: 38.43 | G144: ='topprodukte-benzin-diesel'!I137 -> 4.5 | H144: ='topprodukte-benzin-diesel'!K137 -> 117 | I144: ='topprodukte-benzin-diesel'!F137 -> 24090 | J144: 361.35 | K144: =J144*Eingabe!$C$48 -> 108.405 | L144: topprodukte.at
A145: ='topprodukte-benzin-diesel'!A138 -> Renault | B145: ='topprodukte-benzin-diesel'!B138 -> Megane Grandtour | C145: Renault Megane Grandtour - Benzin | D145: ='topprodukte-benzin-diesel'!O138 -> 85 | E145: ='topprodukte-benzin-diesel'!J138 -> Benzin | F145: 38.43 | G145: ='topprodukte-benzin-diesel'!I138 -> 4.5 | H145: ='topprodukte-benzin-diesel'!K138 -> 118 | I145: ='topprodukte-benzin-diesel'!F138 -> 25090 | J145: 376.35 | K145: =J145*Eingabe!$C$48 -> 112.905 | L145: topprodukte.at
A146: ='topprodukte-benzin-diesel'!A139 -> Renault | B146: ='topprodukte-benzin-diesel'!B139 -> Captur | C146: Renault Captur - Benzin | D146: ='topprodukte-benzin-diesel'!O139 -> 85 | E146: ='topprodukte-benzin-diesel'!J139 -> Benzin | F146: 40.138 | G146: ='topprodukte-benzin-diesel'!I139 -> 4.7 | H146: ='topprodukte-benzin-diesel'!K139 -> 123 | I146: ='topprodukte-benzin-diesel'!F139 -> 24890 | J146: 373.35 | K146: =J146*Eingabe!$C$48 -> 112.005 | L146: topprodukte.at
A147: ='topprodukte-benzin-diesel'!A140 -> Renault | B147: ='topprodukte-benzin-diesel'!B140 -> Kadjar | C147: Renault Kadjar - Benzin | D147: ='topprodukte-benzin-diesel'!O140 -> 85 | E147: ='topprodukte-benzin-diesel'!J140 -> Benzin | F147: 42.7 | G147: ='topprodukte-benzin-diesel'!I140 -> 5 | H147: ='topprodukte-benzin-diesel'!K140 -> 131 | I147: ='topprodukte-benzin-diesel'!F140 -> 27090 | J147: 406.35 | K147: =J147*Eingabe!$C$48 -> 121.905 | L147: topprodukte.at
A148: ='topprodukte-benzin-diesel'!A141 -> Renault | B148: ='topprodukte-benzin-diesel'!B141 -> Clio | C148: Renault Clio - Diesel | D148: ='topprodukte-benzin-diesel'!O141 -> 63 | E148: ='topprodukte-benzin-diesel'!J141 -> Diesel | F148: 42.4473 | G148: ='topprodukte-benzin-diesel'!I141 -> 4.2 | H148: ='topprodukte-benzin-diesel'!K141 -> 109 | I148: ='topprodukte-benzin-diesel'!F141 -> 18790 | J148: 281.85 | K148: =J148*Eingabe!$C$48 -> 84.555 | L148: topprodukte.at
A149: ='topprodukte-benzin-diesel'!A142 -> Renault | B149: ='topprodukte-benzin-diesel'!B142 -> Megane | C149: Renault Megane - Diesel | D149: ='topprodukte-benzin-diesel'!O142 -> 85 | E149: ='topprodukte-benzin-diesel'!J142 -> Diesel | F149: 45.47925 | G149: ='topprodukte-benzin-diesel'!I142 -> 4.5 | H149: ='topprodukte-benzin-diesel'!K142 -> 117 | I149: ='topprodukte-benzin-diesel'!F142 -> 24090 | J149: 361.35 | K149: =J149*Eingabe!$C$48 -> 108.405 | L149: topprodukte.at
A150: ='topprodukte-benzin-diesel'!A143 -> Renault | B150: ='topprodukte-benzin-diesel'!B143 -> Megane Grandtour | C150: Renault Megane Grandtour - Diesel | D150: ='topprodukte-benzin-diesel'!O143 -> 85 | E150: ='topprodukte-benzin-diesel'!J143 -> Diesel | F150: 45.47925 | G150: ='topprodukte-benzin-diesel'!I143 -> 4.5 | H150: ='topprodukte-benzin-diesel'!K143 -> 118 | I150: ='topprodukte-benzin-diesel'!F143 -> 25090 | J150: 376.35 | K150: =J150*Eingabe!$C$48 -> 112.905 | L150: topprodukte.at
A151: ='topprodukte-benzin-diesel'!A144 -> Renault | B151: ='topprodukte-benzin-diesel'!B144 -> Captur | C151: Renault Captur - Diesel | D151: ='topprodukte-benzin-diesel'!O144 -> 85 | E151: ='topprodukte-benzin-diesel'!J144 -> Diesel | F151: 47.50055 | G151: ='topprodukte-benzin-diesel'!I144 -> 4.7 | H151: ='topprodukte-benzin-diesel'!K144 -> 123 | I151: ='topprodukte-benzin-diesel'!F144 -> 24890 | J151: 373.35 | K151: =J151*Eingabe!$C$48 -> 112.005 | L151: topprodukte.at
A152: ='topprodukte-benzin-diesel'!A145 -> Seat | B152: ='topprodukte-benzin-diesel'!B145 -> Ibiza | C152: =CONCATENATE(A152," ",B152," - ",E152) -> Seat Ibiza - Benzin | D152: ='topprodukte-benzin-diesel'!O145 -> 59 | E152: ='topprodukte-benzin-diesel'!J145 -> Benzin | F152: =IF(E152="Benzin",$O$3*G152,$O$4*G152) -> 46.116 | G152: ='topprodukte-benzin-diesel'!I145 -> 5.4 | H152: ='topprodukte-benzin-diesel'!K145 -> 122 | I152: ='topprodukte-benzin-diesel'!F145 -> 12990 | J152: =IF(H152>$U$4,IF(I152*0.02>960,960,I152*0.02),IF(H152>0,IF(I152*0.015>720,720,I152*0.015),0)) -> 194.85 | K152: =J152*Eingabe!$C$48 -> 58.455 | L152: topprodukte.at
A153: ='topprodukte-benzin-diesel'!A146 -> Seat | B153: ='topprodukte-benzin-diesel'!B146 -> Leon | C153: Seat Leon - Benzin | D153: ='topprodukte-benzin-diesel'!O146 -> 81 | E153: ='topprodukte-benzin-diesel'!J146 -> Benzin | F153: 46.116 | G153: ='topprodukte-benzin-diesel'!I146 -> 5.4 | H153: ='topprodukte-benzin-diesel'!K146 -> 122 | I153: ='topprodukte-benzin-diesel'!F146 -> 19990 | J153: 299.85 | K153: =J153*Eingabe!$C$48 -> 89.955 | L153: topprodukte.at
A154: ='topprodukte-benzin-diesel'!A147 -> Seat | B154: ='topprodukte-benzin-diesel'!B147 -> Arona | C154: Seat Arona - Benzin | D154: ='topprodukte-benzin-diesel'!O147 -> 70 | E154: ='topprodukte-benzin-diesel'!J147 -> Benzin | F154: 47.824 | G154: ='topprodukte-benzin-diesel'!I147 -> 5.6 | H154: ='topprodukte-benzin-diesel'!K147 -> 128 | I154: ='topprodukte-benzin-diesel'!F147 -> 16690 | J154: 250.35 | K154: =J154*Eingabe!$C$48 -> 75.105 | L154: topprodukte.at
A155: ='topprodukte-benzin-diesel'!A148 -> Seat | B155: ='topprodukte-benzin-diesel'!B148 -> Ateca | C155: Seat Ateca - Benzin | D155: ='topprodukte-benzin-diesel'!O148 -> 85 | E155: ='topprodukte-benzin-diesel'!J148 -> Benzin | F155: 55.51 | G155: ='topprodukte-benzin-diesel'!I148 -> 6.5 | H155: ='topprodukte-benzin-diesel'!K148 -> 146 | I155: ='topprodukte-benzin-diesel'!F148 -> 16690 | J155: 333.8 | K155: =J155*Eingabe!$C$48 -> 100.14 | L155: topprodukte.at
A156: ='topprodukte-benzin-diesel'!A149 -> Seat | B156: ='topprodukte-benzin-diesel'!B149 -> Alhambra | C156: Seat Alhambra - Benzin | D156: ='topprodukte-benzin-diesel'!O149 -> 110 | E156: ='topprodukte-benzin-diesel'!J149 -> Benzin | F156: 55.51 | G156: ='topprodukte-benzin-diesel'!I149 -> 6.5 | H156: ='topprodukte-benzin-diesel'!K149 -> 150 | I156: ='topprodukte-benzin-diesel'!F149 -> 40130 | J156: 802.6 | K156: =J156*Eingabe!$C$48 -> 240.78 | L156: topprodukte.at
A157: ='topprodukte-benzin-diesel'!A150 -> Seat | B157: ='topprodukte-benzin-diesel'!B150 -> Arona | C157: Seat Arona - Benzin | D157: ='topprodukte-benzin-diesel'!O150 -> 70 | E157: ='topprodukte-benzin-diesel'!J150 -> Benzin | F157: 40.992 | G157: ='topprodukte-benzin-diesel'!I150 -> 4.8 | H157: ='topprodukte-benzin-diesel'!K150 -> 125 | I157: ='topprodukte-benzin-diesel'!F150 -> 19990 | J157: 299.85 | K157: =J157*Eingabe!$C$48 -> 89.955 | L157: topprodukte.at
A158: ='topprodukte-benzin-diesel'!A151 -> Seat | B158: ='topprodukte-benzin-diesel'!B151 -> Ateca | C158: Seat Ateca - Benzin | D158: ='topprodukte-benzin-diesel'!O151 -> 85 | E158: ='topprodukte-benzin-diesel'!J151 -> Benzin | F158: 42.7 | G158: ='topprodukte-benzin-diesel'!I151 -> 5 | H158: ='topprodukte-benzin-diesel'!K151 -> 139 | I158: ='topprodukte-benzin-diesel'!F151 -> 25880 | J158: 517.6 | K158: =J158*Eingabe!$C$48 -> 155.28 | L158: topprodukte.at
A159: ='topprodukte-benzin-diesel'!A152 -> Seat | B159: ='topprodukte-benzin-diesel'!B152 -> Arona | C159: Seat Arona - Diesel | D159: ='topprodukte-benzin-diesel'!O152 -> 70 | E159: ='topprodukte-benzin-diesel'!J152 -> Diesel | F159: 48.5112 | G159: ='topprodukte-benzin-diesel'!I152 -> 4.8 | H159: ='topprodukte-benzin-diesel'!K152 -> 125 | I159: ='topprodukte-benzin-diesel'!F152 -> 19990 | J159: 299.85 | K159: =J159*Eingabe!$C$48 -> 89.955 | L159: topprodukte.at
A160: ='topprodukte-benzin-diesel'!A153 -> Skoda | B160: ='topprodukte-benzin-diesel'!B153 -> Fabia | C160: Skoda Fabia - Benzin | D160: ='topprodukte-benzin-diesel'!O153 -> 70 | E160: ='topprodukte-benzin-diesel'!J153 -> Benzin | F160: 46.116 | G160: ='topprodukte-benzin-diesel'!I153 -> 5.4 | H160: ='topprodukte-benzin-diesel'!K153 -> 123 | I160: ='topprodukte-benzin-diesel'!F153 -> 13240 | J160: 198.6 | K160: =J160*Eingabe!$C$48 -> 59.58 | L160: topprodukte.at
A161: ='topprodukte-benzin-diesel'!A154 -> Skoda | B161: ='topprodukte-benzin-diesel'!B154 -> Fabia Combi | C161: Skoda Fabia Combi - Benzin | D161: ='topprodukte-benzin-diesel'!O154 -> 70 | E161: ='topprodukte-benzin-diesel'!J154 -> Benzin | F161: 45.262 | G161: ='topprodukte-benzin-diesel'!I154 -> 5.3 | H161: ='topprodukte-benzin-diesel'!K154 -> 119 | I161: ='topprodukte-benzin-diesel'!F154 -> 13590 | J161: 203.85 | K161: =J161*Eingabe!$C$48 -> 61.155 | L161: topprodukte.at
A162: ='topprodukte-benzin-diesel'!A155 -> Skoda | B162: ='topprodukte-benzin-diesel'!B155 -> Scala | C162: Skoda Scala - Benzin | D162: ='topprodukte-benzin-diesel'!O155 -> 70 | E162: ='topprodukte-benzin-diesel'!J155 -> Benzin | F162: 46.97 | G162: ='topprodukte-benzin-diesel'!I155 -> 5.5 | H162: ='topprodukte-benzin-diesel'!K155 -> 126 | I162: ='topprodukte-benzin-diesel'!F155 -> 18980 | J162: 284.7 | K162: =J162*Eingabe!$C$48 -> 85.41 | L162: topprodukte.at
A163: ='topprodukte-benzin-diesel'!A156 -> Skoda | B163: ='topprodukte-benzin-diesel'!B156 -> Octavia Combi | C163: Skoda Octavia Combi - Benzin | D163: ='topprodukte-benzin-diesel'!O156 -> 84 | E163: ='topprodukte-benzin-diesel'!J156 -> Benzin | F163: 45.262 | G163: ='topprodukte-benzin-diesel'!I156 -> 5.3 | H163: ='topprodukte-benzin-diesel'!K156 -> 120 | I163: ='topprodukte-benzin-diesel'!F156 -> 26880 | J163: 403.2 | K163: =J163*Eingabe!$C$48 -> 120.96 | L163: topprodukte.at
A164: ='topprodukte-benzin-diesel'!A157 -> Skoda | B164: ='topprodukte-benzin-diesel'!B157 -> Superb | C164: Skoda Superb - Benzin | D164: ='topprodukte-benzin-diesel'!O157 -> 110 | E164: ='topprodukte-benzin-diesel'!J157 -> Benzin | F164: 52.948 | G164: ='topprodukte-benzin-diesel'!I157 -> 6.2 | H164: ='topprodukte-benzin-diesel'!K157 -> 141 | I164: ='topprodukte-benzin-diesel'!F157 -> 33840 | J164: 676.8 | K164: =J164*Eingabe!$C$48 -> 203.04 | L164: topprodukte.at
A165: ='topprodukte-benzin-diesel'!A158 -> Skoda | B165: ='topprodukte-benzin-diesel'!B158 -> Karoq | C165: Skoda Karoq - Benzin | D165: ='topprodukte-benzin-diesel'!O158 -> 85 | E165: ='topprodukte-benzin-diesel'!J158 -> Benzin | F165: 53.802 | G165: ='topprodukte-benzin-diesel'!I158 -> 6.3 | H165: ='topprodukte-benzin-diesel'!K158 -> 142 | I165: ='topprodukte-benzin-diesel'!F158 -> 23980 | J165: 479.6 | K165: =J165*Eingabe!$C$48 -> 143.88 | L165: topprodukte.at
A166: ='topprodukte-benzin-diesel'!A159 -> Skoda | B166: ='topprodukte-benzin-diesel'!B159 -> Octavia Combi | C166: Skoda Octavia Combi - Benzin | D166: ='topprodukte-benzin-diesel'!O159 -> 85 | E166: ='topprodukte-benzin-diesel'!J159 -> Benzin | F166: 37.576 | G166: ='topprodukte-benzin-diesel'!I159 -> 4.4 | H166: ='topprodukte-benzin-diesel'!K159 -> 117 | I166: ='topprodukte-benzin-diesel'!F159 -> 29970 | J166: 449.55 | K166: =J166*Eingabe!$C$48 -> 134.865 | L166: topprodukte.at
A167: ='topprodukte-benzin-diesel'!A160 -> Skoda | B167: ='topprodukte-benzin-diesel'!B160 -> Kamiq | C167: Skoda Kamiq - Benzin | D167: ='topprodukte-benzin-diesel'!O160 -> 85 | E167: ='topprodukte-benzin-diesel'!J160 -> Benzin | F167: 42.7 | G167: ='topprodukte-benzin-diesel'!I160 -> 5 | H167: ='topprodukte-benzin-diesel'!K160 -> 131 | I167: ='topprodukte-benzin-diesel'!F160 -> 24050 | J167: 360.75 | K167: =J167*Eingabe!$C$48 -> 108.225 | L167: topprodukte.at
A168: ='topprodukte-benzin-diesel'!A161 -> Skoda | B168: ='topprodukte-benzin-diesel'!B161 -> Octavia Combi | C168: Skoda Octavia Combi - Diesel | D168: ='topprodukte-benzin-diesel'!O161 -> 85 | E168: ='topprodukte-benzin-diesel'!J161 -> Diesel | F168: 44.4686 | G168: ='topprodukte-benzin-diesel'!I161 -> 4.4 | H168: ='topprodukte-benzin-diesel'!K161 -> 117 | I168: ='topprodukte-benzin-diesel'!F161 -> 29970 | J168: 449.55 | K168: =J168*Eingabe!$C$48 -> 134.865 | L168: topprodukte.at
A169: ='topprodukte-benzin-diesel'!A162 -> Skoda | B169: ='topprodukte-benzin-diesel'!B162 -> Kamiq | C169: Skoda Kamiq - Diesel | D169: ='topprodukte-benzin-diesel'!O162 -> 85 | E169: ='topprodukte-benzin-diesel'!J162 -> Diesel | F169: 50.5325 | G169: ='topprodukte-benzin-diesel'!I162 -> 5 | H169: ='topprodukte-benzin-diesel'!K162 -> 131 | I169: ='topprodukte-benzin-diesel'!F162 -> 24050 | J169: 360.75 | K169: =J169*Eingabe!$C$48 -> 108.225 | L169: topprodukte.at
A170: ='topprodukte-benzin-diesel'!A163 -> Suzuki | B170: ='topprodukte-benzin-diesel'!B163 -> Swift | C170: Suzuki Swift - Benzin | D170: ='topprodukte-benzin-diesel'!O163 -> 66 | E170: ='topprodukte-benzin-diesel'!J163 -> Benzin | F170: 43.554 | G170: ='topprodukte-benzin-diesel'!I163 -> 5.1 | H170: ='topprodukte-benzin-diesel'!K163 -> 115 | I170: ='topprodukte-benzin-diesel'!F163 -> 13490 | J170: 202.35 | K170: =J170*Eingabe!$C$48 -> 60.705 | L170: topprodukte.at
A171: ='topprodukte-benzin-diesel'!A164 -> Suzuki | B171: ='topprodukte-benzin-diesel'!B164 -> Ignis | C171: Suzuki Ignis - Benzin | D171: ='topprodukte-benzin-diesel'!O164 -> 66 | E171: ='topprodukte-benzin-diesel'!J164 -> Benzin | F171: 47.824 | G171: ='topprodukte-benzin-diesel'!I164 -> 5.6 | H171: ='topprodukte-benzin-diesel'!K164 -> 126 | I171: ='topprodukte-benzin-diesel'!F164 -> 16390 | J171: 245.85 | K171: =J171*Eingabe!$C$48 -> 73.755 | L171: topprodukte.at
A172: ='topprodukte-benzin-diesel'!A165 -> Suzuki | B172: ='topprodukte-benzin-diesel'!B165 -> Vitara | C172: Suzuki Vitara - Benzin | D172: ='topprodukte-benzin-diesel'!O165 -> 103 | E172: ='topprodukte-benzin-diesel'!J165 -> Benzin | F172: 63.196 | G172: ='topprodukte-benzin-diesel'!I165 -> 7.4 | H172: ='topprodukte-benzin-diesel'!K165 -> 167 | I172: ='topprodukte-benzin-diesel'!F165 -> 26490 | J172: 529.8 | K172: =J172*Eingabe!$C$48 -> 158.94 | L172: topprodukte.at
A173: ='topprodukte-benzin-diesel'!A166 -> Toyota | B173: ='topprodukte-benzin-diesel'!B166 -> Aygo | C173: Toyota Aygo - Benzin | D173: ='topprodukte-benzin-diesel'!O166 -> 53 | E173: ='topprodukte-benzin-diesel'!J166 -> Benzin | F173: 42.7 | G173: ='topprodukte-benzin-diesel'!I166 -> 5 | H173: ='topprodukte-benzin-diesel'!K166 -> 112 | I173: ='topprodukte-benzin-diesel'!F166 -> 11490 | J173: 172.35 | K173: =J173*Eingabe!$C$48 -> 51.705 | L173: topprodukte.at
A174: ='topprodukte-benzin-diesel'!A167 -> Toyota | B174: ='topprodukte-benzin-diesel'!B167 -> Yaris | C174: Toyota Yaris - Benzin | D174: ='topprodukte-benzin-diesel'!O167 -> 53 | E174: ='topprodukte-benzin-diesel'!J167 -> Benzin | F174: 49.532 | G174: ='topprodukte-benzin-diesel'!I167 -> 5.8 | H174: ='topprodukte-benzin-diesel'!K167 -> 131 | I174: ='topprodukte-benzin-diesel'!F167 -> 13190 | J174: 197.85 | K174: =J174*Eingabe!$C$48 -> 59.355 | L174: topprodukte.at
A175: ='topprodukte-benzin-diesel'!A168 -> Toyota | B175: ='topprodukte-benzin-diesel'!B168 -> Corolla Kombi | C175: Toyota Corolla Kombi - Benzin | D175: ='topprodukte-benzin-diesel'!O168 -> 85 | E175: ='topprodukte-benzin-diesel'!J168 -> Benzin | F175: 52.948 | G175: ='topprodukte-benzin-diesel'!I168 -> 6.2 | H175: ='topprodukte-benzin-diesel'!K168 -> 140 | I175: ='topprodukte-benzin-diesel'!F168 -> 22290 | J175: 445.8 | K175: =J175*Eingabe!$C$48 -> 133.74 | L175: topprodukte.at
A176: ='topprodukte-benzin-diesel'!A169 -> VW | B176: ='topprodukte-benzin-diesel'!B169 -> up! | C176: VW up! - Benzin | D176: ='topprodukte-benzin-diesel'!O169 -> 44 | E176: ='topprodukte-benzin-diesel'!J169 -> Benzin | F176: 46.116 | G176: ='topprodukte-benzin-diesel'!I169 -> 5.4 | H176: ='topprodukte-benzin-diesel'!K169 -> 123 | I176: ='topprodukte-benzin-diesel'!F169 -> 12680 | J176: 190.2 | K176: =J176*Eingabe!$C$48 -> 57.06 | L176: topprodukte.at
A177: ='topprodukte-benzin-diesel'!A170 -> VW | B177: ='topprodukte-benzin-diesel'!B170 -> Polo | C177: VW Polo - Benzin | D177: ='topprodukte-benzin-diesel'!O170 -> 85 | E177: ='topprodukte-benzin-diesel'!J170 -> Benzin | F177: 45.262 | G177: ='topprodukte-benzin-diesel'!I170 -> 5.3 | H177: ='topprodukte-benzin-diesel'!K170 -> 120 | I177: ='topprodukte-benzin-diesel'!F170 -> 15110 | J177: 226.65 | K177: =J177*Eingabe!$C$48 -> 67.995 | L177: topprodukte.at
A178: ='topprodukte-benzin-diesel'!A171 -> VW | B178: ='topprodukte-benzin-diesel'!B171 -> Golf | C178: VW Golf - Benzin | D178: ='topprodukte-benzin-diesel'!O171 -> 96 | E178: ='topprodukte-benzin-diesel'!J171 -> Benzin | F178: 46.116 | G178: ='topprodukte-benzin-diesel'!I171 -> 5.4 | H178: ='topprodukte-benzin-diesel'!K171 -> 122 | I178: ='topprodukte-benzin-diesel'!F171 -> 26990 | J178: 404.85 | K178: =J178*Eingabe!$C$48 -> 121.455 | L178: topprodukte.at
A179: ='topprodukte-benzin-diesel'!A172 -> VW | B179: ='topprodukte-benzin-diesel'!B172 -> Golf Variant | C179: VW Golf Variant - Benzin | D179: ='topprodukte-benzin-diesel'!O172 -> 85 | E179: ='topprodukte-benzin-diesel'!J172 -> Benzin | F179: 47.824 | G179: ='topprodukte-benzin-diesel'!I172 -> 5.6 | H179: ='topprodukte-benzin-diesel'!K172 -> 126 | I179: ='topprodukte-benzin-diesel'!F172 -> 25570 | J179: 383.55 | K179: =J179*Eingabe!$C$48 -> 115.065 | L179: topprodukte.at
A180: ='topprodukte-benzin-diesel'!A173 -> VW | B180: ='topprodukte-benzin-diesel'!B173 -> Passat | C180: VW Passat - Benzin | D180: ='topprodukte-benzin-diesel'!O173 -> 110 | E180: ='topprodukte-benzin-diesel'!J173 -> Benzin | F180: 49.532 | G180: ='topprodukte-benzin-diesel'!I173 -> 5.8 | H180: ='topprodukte-benzin-diesel'!K173 -> 133 | I180: ='topprodukte-benzin-diesel'!F173 -> 32590 | J180: 488.85 | K180: =J180*Eingabe!$C$48 -> 146.655 | L180: topprodukte.at
A181: ='topprodukte-benzin-diesel'!A174 -> VW | B181: ='topprodukte-benzin-diesel'!B174 -> T-Cross | C181: VW T-Cross - Benzin | D181: ='topprodukte-benzin-diesel'!O174 -> 70 | E181: ='topprodukte-benzin-diesel'!J174 -> Benzin | F181: 50.386 | G181: ='topprodukte-benzin-diesel'!I174 -> 5.9 | H181: ='topprodukte-benzin-diesel'!K174 -> 133 | I181: ='topprodukte-benzin-diesel'!F174 -> 19790 | J181: 296.85 | K181: =J181*Eingabe!$C$48 -> 89.055 | L181: topprodukte.at
A182: ='topprodukte-benzin-diesel'!A175 -> VW | B182: ='topprodukte-benzin-diesel'!B175 -> Golf Sportsvan | C182: VW Golf Sportsvan - Benzin | D182: ='topprodukte-benzin-diesel'!O175 -> 85 | E182: ='topprodukte-benzin-diesel'!J175 -> Benzin | F182: 50.386 | G182: ='topprodukte-benzin-diesel'!I175 -> 5.9 | H182: ='topprodukte-benzin-diesel'!K175 -> 133 | I182: ='topprodukte-benzin-diesel'!F175 -> 27420 | J182: 411.3 | K182: =J182*Eingabe!$C$48 -> 123.39 | L182: topprodukte.at
A183: ='topprodukte-benzin-diesel'!A176 -> VW | B183: ='topprodukte-benzin-diesel'!B176 -> Golf | C183: VW Golf - Benzin | D183: ='topprodukte-benzin-diesel'!O176 -> 85 | E183: ='topprodukte-benzin-diesel'!J176 -> Benzin | F183: 35.014 | G183: ='topprodukte-benzin-diesel'!I176 -> 4.1 | H183: ='topprodukte-benzin-diesel'!K176 -> 107 | I183: ='topprodukte-benzin-diesel'!F176 -> 29390 | J183: 440.85 | K183: =J183*Eingabe!$C$48 -> 132.255 | L183: topprodukte.at
A184: ='topprodukte-benzin-diesel'!A177 -> VW | B184: ='topprodukte-benzin-diesel'!B177 -> Passat Limousine | C184: =CONCATENATE(A184," ",B184," - ",E184) -> VW Passat Limousine - Benzin | D184: ='topprodukte-benzin-diesel'!O177 -> 110 | E184: ='topprodukte-benzin-diesel'!J177 -> Benzin | F184: =IF(E184="Benzin",$O$3*G184,$O$4*G184) -> 40.138 | G184: ='topprodukte-benzin-diesel'!I177 -> 4.7 | H184: ='topprodukte-benzin-diesel'!K177 -> 122 | I184: ='topprodukte-benzin-diesel'!F177 -> 36659 | J184: =IF(H184>$U$4,IF(I184*0.02>960,960,I184*0.02),IF(H184>0,IF(I184*0.015>720,720,I184*0.015),0)) -> 549.885 | K184: =J184*Eingabe!$C$48 -> 164.9655 | L184: topprodukte.at
A185: ='topprodukte-benzin-diesel'!A178 -> VW | B185: ='topprodukte-benzin-diesel'!B178 -> T-Roc | C185: =CONCATENATE(A185," ",B185," - ",E185) -> VW T-Roc - Benzin | D185: ='topprodukte-benzin-diesel'!O178 -> 85 | E185: ='topprodukte-benzin-diesel'!J178 -> Benzin | F185: =IF(E185="Benzin",$O$3*G185,$O$4*G185) -> 44.408 | G185: ='topprodukte-benzin-diesel'!I178 -> 5.2 | H185: ='topprodukte-benzin-diesel'!K178 -> 136 | I185: ='topprodukte-benzin-diesel'!F178 -> 25770 | J185: =IF(H185>$U$4,IF(I185*0.02>960,960,I185*0.02),IF(H185>0,IF(I185*0.015>720,720,I185*0.015),0)) -> 386.55 | K185: =J185*Eingabe!$C$48 -> 115.965 | L185: topprodukte.at
A186: ='topprodukte-benzin-diesel'!A179 -> VW | B186: ='topprodukte-benzin-diesel'!B179 -> Golf Sportsvan | C186: VW Golf Sportsvan - Benzin | D186: ='topprodukte-benzin-diesel'!O179 -> 85 | E186: ='topprodukte-benzin-diesel'!J179 -> Benzin | F186: 44.408 | G186: ='topprodukte-benzin-diesel'!I179 -> 5.2 | H186: ='topprodukte-benzin-diesel'!K179 -> 136 | I186: ='topprodukte-benzin-diesel'!F179 -> 30120 | J186: 451.8 | K186: =J186*Eingabe!$C$48 -> 135.54 | L186: topprodukte.at
A187: ='topprodukte-benzin-diesel'!A180 -> VW | B187: ='topprodukte-benzin-diesel'!B180 -> Golf | C187: VW Golf - Diesel | D187: ='topprodukte-benzin-diesel'!O180 -> 85 | E187: ='topprodukte-benzin-diesel'!J180 -> Diesel | F187: 41.43665 | G187: ='topprodukte-benzin-diesel'!I180 -> 4.1 | H187: ='topprodukte-benzin-diesel'!K180 -> 107 | I187: ='topprodukte-benzin-diesel'!F180 -> 29390 | J187: 440.85 | K187: =J187*Eingabe!$C$48 -> 132.255 | L187: topprodukte.at
A188: ='topprodukte-benzin-diesel'!A181 -> VW | B188: ='topprodukte-benzin-diesel'!B181 -> Passat Limousine | C188: VW Passat Limousine - Diesel | D188: ='topprodukte-benzin-diesel'!O181 -> 110 | E188: ='topprodukte-benzin-diesel'!J181 -> Diesel | F188: 47.50055 | G188: ='topprodukte-benzin-diesel'!I181 -> 4.7 | H188: ='topprodukte-benzin-diesel'!K181 -> 122 | I188: ='topprodukte-benzin-diesel'!F181 -> 36659 | J188: 549.885 | K188: =J188*Eingabe!$C$48 -> 164.9655 | L188: topprodukte.at
A189: ='topprodukte-benzin-diesel'!A182 -> VW | B189: ='topprodukte-benzin-diesel'!B182 -> T-Roc | C189: VW T-Roc - Diesel | D189: ='topprodukte-benzin-diesel'!O182 -> 85 | E189: ='topprodukte-benzin-diesel'!J182 -> Diesel | F189: 52.5538 | G189: ='topprodukte-benzin-diesel'!I182 -> 5.2 | H189: ='topprodukte-benzin-diesel'!K182 -> 136 | I189: ='topprodukte-benzin-diesel'!F182 -> 25770 | J189: 386.55 | K189: =J189*Eingabe!$C$48 -> 115.965 | L189: topprodukte.at
A190: Audi | B190: Q3 35 TFSi | C190: Audi Q3 35 TFSi - Benzin | D190: 110 | E190: Benzin | F190: =IF(E190="Benzin",$O$3*G190,$O$4*G190) -> 50.386 | G190: 5.9 | H190: 153 | I190: 38720 | J190: 774.4 | K190: =J190*Eingabe!$C$48 -> 232.32 | L190: Link
A191: BMW | B191: X3 xDrive20d | C191: BMW X3 xDrive20d - Diesel | D191: 140 | E191: Diesel | F191: 59.62835 | G191: 5.9 | H191: 154 | I191: 53500 | J191: 960 | K191: =J191*Eingabe!$C$48 -> 288 | L191: Link
A192: Ford | B192: Edge | C192: Ford Edge - Diesel | D192: 174 | E192: Diesel | F192: 65.69225 | G192: 6.5 | H192: 211 | I192: 62400 | J192: 960 | K192: =J192*Eingabe!$C$48 -> 288 | L192: Link
A193: Honda | B193: CR-V | C193: Honda CR-V - Benzin | D193: 127 | E193: Benzin | F193: 62.342 | G193: 7.3 | H193: 166 | I193: 31290 | J193: 625.8 | K193: =J193*Eingabe!$C$48 -> 187.74 | L193: Link
A194: Hyundai | B194: Tucson | C194: Hyundai Tucson - Diesel | D194: 85 | E194: Diesel | F194: 55.58575 | G194: 5.5 | H194: 145 | I194: 36790 | J194: 735.8 | K194: =J194*Eingabe!$C$48 -> 220.74 | L194: Link
A195: Hyundai | B195: Tucson | C195: Hyundai Tucson - Benzin | D195: 97 | E195: Benzin | F195: 67.466 | G195: 7.9 | H195: 179 | I195: 27290 | J195: 545.8 | K195: =J195*Eingabe!$C$48 -> 163.74 | L195: Link
A196: KIA | B196: PLATIN | C196: KIA PLATIN - Diesel | D196: 148 | E196: Diesel | F196: 65.69225 | G196: 6.5 | H196: 176 | I196: 61990 | J196: 960 | K196: =J196*Eingabe!$C$48 -> 288 | L196: Link
A197: Mazda | B197: CX-30 | C197: Mazda CX-30 - Diesel | D197: 85 | E197: Diesel | F197: 51.54315 | G197: 5.1 | H197: 135 | I197: 28490 | J197: 427.35 | K197: =J197*Eingabe!$C$48 -> 128.205 | L197: Link
A198: Seat | B198: Tarraca | C198: Seat Tarraca - Benzin | D198: 110 | E198: Benzin | F198: 66.612 | G198: 7.8 | H198: 161 | I198: 31990 | J198: 639.8 | K198: =J198*Eingabe!$C$48 -> 191.94 | L198: Link
A199: Seat | B199: Tarraca | C199: Seat Tarraca - Diesel | D199: 110 | E199: Diesel | F199: 57.60705 | G199: 5.7 | H199: 150 | I199: 38240 | J199: 764.8 | K199: =J199*Eingabe!$C$48 -> 229.44 | L199: Link
A200: VW | B200: Tiguan | C200: VW Tiguan - Benzin | D200: 110 | E200: Benzin | F200: 57.218 | G200: 6.7 | H200: 152 | I200: 32680 | J200: 653.6 | K200: =J200*Eingabe!$C$48 -> 196.08 | L200: Link
... 408 more rows

Sheet Berechnungen
B2: Jahre | C2: Einnahmen | D2: Ausgaben | E2: Cash Flow | F2: Barwerte | G2: Kapitalwert | H2: Zeit
C3: [€] | D3: [€] | E3: [€] | F3: [€] | G3: [€]
B4: 0 | D4: =Eingabe!Q33*-1 -> 4630 | E4: =C4-D4 -> -4630 | F4: =E4/(1+(Eingabe!G$73/100))^B4 -> -4630 | G4: =F4 -> -4630 | H4: =IF(G4<0,I4,0) -> 1 | I4: 1
B5: 1 | C5: =E27+Eingabe!$Q$49 -> 992.7837684 | D5: =Eingabe!$G$64+IF(Eingabe!$G$34=B5,Eingabe!$G$35,0) -> 0 | E5: =(C5-D5)/(1+(Eingabe!$G$70/100))^B5 -> 978.1120871 | F5: =E5/(1+(Eingabe!G$73/100))^B5 -> 963.6572287 | G5: =G4+F5 -> -3666.342771 | H5: =IF(G5<0,I5,0) -> 2 | I5: 2
B6: 2 | C6: =E28+Eingabe!$Q$49 -> 1002.491885 | D6: =Eingabe!$G$64+IF(Eingabe!$G$34=B6,Eingabe!$G$35,0) -> 0 | E6: =(C6-D6)/(1+(Eingabe!$G$70/100))^B6 -> 973.080526 | F6: =E6/(1+(Eingabe!G$73/100))^B6 -> 944.532045 | G6: -2721.810726 | H6: =IF(G6<0,I6,0) -> 3 | I6: 3
B7: 3 | C7: =E29+Eingabe!$Q$49 -> 1012.430446 | D7: =Eingabe!$G$64+IF(Eingabe!$G$34=B7,Eingabe!$G$35,0) -> 0 | E7: =(C7-D7)/(1+(Eingabe!$G$70/100))^B7 -> 968.2044409 | F7: =E7/(1+(Eingabe!G$73/100))^B7 -> 925.9103602 | G7: -1795.900366 | H7: 4 | I7: 4
B8: 4 | C8: =E30+Eingabe!$Q$49 -> 1022.604606 | D8: =Eingabe!$G$64+IF(Eingabe!$G$34=B8,Eingabe!$G$35,0) -> 0 | E8: =(C8-D8)/(1+(Eingabe!$G$70/100))^B8 -> 963.4819336 | F8: =E8/(1+(Eingabe!G$73/100))^B8 -> 907.777484 | G8: -888.1228821 | H8: 5 | I8: 5
B9: 5 | C9: =E31+Eingabe!$Q$49 -> 1033.019628 | D9: =Eingabe!$G$64+IF(Eingabe!$G$34=B9,Eingabe!$G$35,0) -> 0 | E9: =(C9-D9)/(1+(Eingabe!$G$70/100))^B9 -> 958.911136 | F9: =E9/(1+(Eingabe!G$73/100))^B9 -> 890.1191632 | G9: 1.996281062 | H9: 0 | I9: 6
B10: 6 | C10: =E32+Eingabe!$Q$49 -> 1043.68089 | D10: =Eingabe!$G$64+IF(Eingabe!$G$34=B10,Eingabe!$G$35,0) -> 0 | E10: =(C10-D10)/(1+(Eingabe!$G$70/100))^B10 -> 954.4902098 | F10: =E10/(1+(Eingabe!G$73/100))^B10 -> 872.9215692 | G10: 874.9178503 | H10: 0 | I10: 7
B11: 7 | C11: =E33+Eingabe!$Q$49 -> 1054.593887 | D11: =Eingabe!$G$64+IF(Eingabe!$G$34=B11,Eingabe!$G$35,0) -> 0 | E11: =(C11-D11)/(1+(Eingabe!$G$70/100))^B11 -> 950.2173455 | F11: =E11/(1+(Eingabe!G$73/100))^B11 -> 856.1712853 | G11: 1731.089136 | H11: 0 | I11: 8
B12: 8 | C12: =E34+Eingabe!$Q$49 -> 1065.76423 | D12: =Eingabe!$G$64+IF(Eingabe!$G$34=B12,Eingabe!$G$35,0) -> 0 | E12: =(C12-D12)/(1+(Eingabe!$G$70/100))^B12 -> 946.0907627 | F12: =E12/(1+(Eingabe!G$73/100))^B12 -> 839.8552942 | G12: 2570.94443 | H12: 0 | I12: 9
B13: 9 | C13: =E35+Eingabe!$Q$49 -> 1077.197654 | D13: =Eingabe!$G$64+IF(Eingabe!$G$34=B13,Eingabe!$G$35,0) -> 2000 | E13: =(C13-D13)/(1+(Eingabe!$G$70/100))^B13 -> -807.0757714 | F13: =E13/(1+(Eingabe!G$73/100))^B13 -> -705.8622069 | G13: 1865.082223 | H13: 0 | I13: 10
B14: 10 | C14: =E36+Eingabe!$Q$49 -> 1088.900013 | D14: =Eingabe!$G$64+IF(Eingabe!$G$34=B14,Eingabe!$G$35,0) -> 0 | E14: =(C14-D14)/(1+(Eingabe!$G$70/100))^B14 -> 938.2694601 | F14: =E14/(1+(Eingabe!G$73/100))^B14 -> 808.4760483 | G14: 2673.558271 | H14: 0 | I14: 11
B15: 11 | C15: =E37+Eingabe!$Q$49 -> 1100.877292 | D15: =Eingabe!$G$64+IF(Eingabe!$G$34=B15,Eingabe!$G$35,0) -> 0 | E15: =(C15-D15)/(1+(Eingabe!$G$70/100))^B15 -> 934.5713191 | F15: =E15/(1+(Eingabe!G$73/100))^B15 -> 793.3886516 | G15: 3466.946923 | H15: 0 | I15: 12
B16: 12 | C16: =E38+Eingabe!$Q$49 -> 1113.135602 | D16: =Eingabe!$G$64+IF(Eingabe!$G$34=B16,Eingabe!$G$35,0) -> 0 | E16: =(C16-D16)/(1+(Eingabe!$G$70/100))^B16 -> 931.0126164 | F16: =E16/(1+(Eingabe!G$73/100))^B16 -> 778.687242 | G16: 4245.634165 | H16: 0 | I16: 13
B17: Summen | C17: =SUM(C5:C16) -> 12607.4799 | D17: =SUM(D4:D16) -> 6630 | E17: =SUM(E4:E16) -> 5059.366066 | F17: =SUM(F4:F16) -> 4245.634165 | H17: =IF(MAX(H4:H16)>12,">12",MAX(H4:H16)) -> 5
H20: Mehreinnahmen nach 12 Jahren: | I20: =NPV(Eingabe!G$73/100,Berechnungen!E5:E16)+E4 -> 4245.634165
H21: Interner Zinsfuß: | I21: =IRR(F4:F16) -> 0.1372599725
B24: Entwicklung Kraftstoffpreise
B25: Jahre | C25: Strom | D25: Benzin-/Diesel | E25: DELTA | F25: Strom | G25: Benzin-/Diesel
C26: [€] | D26: [€] | E26: [€] | F26: [€] | G26: [€]
B27: 1 | C27: =Eingabe!$G$61*(1+(Eingabe!G$71/100))^B27 -> 483.7682316 | D27: =Eingabe!$M$61*(1+(Eingabe!G$72/100))^B27 -> 848.232 | E27: =D27-C27 -> 364.4637684 | F27: =C27/$C$27 -> 1 | G27: =D27/$D$27 -> 1
B28: 2 | C28: =Eingabe!$G$61*(1+(Eingabe!G$71/100))^B28 -> 491.0247551 | D28: =Eingabe!$M$61*(1+(Eingabe!G$72/100))^B28 -> 865.19664 | E28: =D28-C28 -> 374.1718849 | F28: =C28/$C$27 -> 1.015 | G28: =D28/$D$27 -> 1.02
B29: 3 | C29: =Eingabe!$G$61*(1+(Eingabe!G$71/100))^B29 -> 498.3901264 | D29: =Eingabe!$M$61*(1+(Eingabe!G$72/100))^B29 -> 882.5005728 | E29: 384.1104464 | F29: 1.030225 | G29: 1.0404
B30: 4 | C30: =Eingabe!$G$61*(1+(Eingabe!G$71/100))^B30 -> 505.8659783 | D30: =Eingabe!$M$61*(1+(Eingabe!G$72/100))^B30 -> 900.1505843 | E30: 394.284606 | F30: 1.045678375 | G30: 1.061208
B31: 5 | C31: =Eingabe!$G$61*(1+(Eingabe!G$71/100))^B31 -> 513.4539679 | D31: =Eingabe!$M$61*(1+(Eingabe!G$72/100))^B31 -> 918.1535959 | E31: 404.699628 | F31: 1.061363551 | G31: 1.08243216
B32: 6 | C32: =Eingabe!$G$61*(1+(Eingabe!G$71/100))^B32 -> 521.1557775 | D32: =Eingabe!$M$61*(1+(Eingabe!G$72/100))^B32 -> 936.5166679 | E32: 415.3608904 | F32: 1.077284004 | G32: 1.104080803
B33: 7 | C33: =Eingabe!$G$61*(1+(Eingabe!G$71/100))^B33 -> 528.9731141 | D33: =Eingabe!$M$61*(1+(Eingabe!G$72/100))^B33 -> 955.2470012 | E33: 426.2738871 | F33: 1.093443264 | G33: 1.126162419
B34: 8 | C34: =Eingabe!$G$61*(1+(Eingabe!G$71/100))^B34 -> 536.9077108 | D34: =Eingabe!$M$61*(1+(Eingabe!G$72/100))^B34 -> 974.3519412 | E34: 437.4442304 | F34: 1.109844913 | G34: 1.148685668
B35: 9 | C35: =Eingabe!$G$61*(1+(Eingabe!G$71/100))^B35 -> 544.9613265 | D35: =Eingabe!$M$61*(1+(Eingabe!G$72/100))^B35 -> 993.8389801 | E35: 448.8776536 | F35: 1.126492587 | G35: 1.171659381
B36: 10 | C36: =Eingabe!$G$61*(1+(Eingabe!G$71/100))^B36 -> 553.1357464 | D36: =Eingabe!$M$61*(1+(Eingabe!G$72/100))^B36 -> 1013.71576 | E36: 460.5800133 | F36: 1.143389975 | G36: 1.195092569
B37: 11 | C37: =Eingabe!$G$61*(1+(Eingabe!G$71/100))^B37 -> 561.4327826 | D37: =Eingabe!$M$61*(1+(Eingabe!G$72/100))^B37 -> 1033.990075 | E37: 472.5572923 | F37: 1.160540825 | G37: 1.21899442
B38: 12 | C38: =Eingabe!$G$61*(1+(Eingabe!G$71/100))^B38 -> 569.8542743 | D38: =Eingabe!$M$61*(1+(Eingabe!G$72/100))^B38 -> 1054.669876 | E38: 484.815602 | F38: 1.177948937 | G38: 1.243374308
E55: pes_

Sheet Förderungen (hidden)
B3: Gesamte Förderung: | J3: Landesförderungen: | S3: Bundesförderungen:
B5: Förderung für Burgenland | J5: Förderungen aktualisiert am 11.12.2013 | S5: Klima- und Energiefonds Förderaktion Photovoltaik-Anlagen 2014
C6: Anlagengröße | E6: Landesförderung | G6: Bundesförderung
E7: Investition | G7: Investition | H7: Tarif
C8: 1 - 3 | D8: kWp | E8: 300 | F8: €/kWp | G8: =IF(H11<>0,200,IF(Eingabe!#REF!=Eingabe!C123,IF(Eingabe!#REF!=Eingabe!C175,275,IF(Eingabe!#REF!=Eingabe!C174,375,0)),0)) ->  | H8: -
C9: 4 | D9: kWp | E9: 300 | F9: €/kWp | G9: =$G$8 ->  | H9: - | K9: Nähere Informationen zur Förderung:
C10: 5 | D10: kWp | E10: 300 | F10: €/kWp | G10: =$G$8 ->  | H10: - | K10: http://www.eabgld.at/index.php?id=986
C11: > 5 | D11: kWp | E11: - | F11: - | G11: =IF(AND($G$8<275,H11<>0),200,0) ->  | H11: =IF(AND(Eingabe!#REF!>5,Eingabe!#REF!<=200,Eingabe!#REF!=Eingabe!C121),IF(AND(Eingabe!#REF!=Eingabe!$C$174,Eingabe!#REF!<=20,Eingabe!#REF!=Eingabe!$C$148),Eingabe!$W$182,IF(Eingabe!#REF!=Eingabe!$C$176,Eingabe!$P$191,Eingabe!$I$191)),0) -> 
B13: Information:
B14: =Eingabe!P161 -> 0
B17: Förderung für Kärnten | J17: Förderungen aktualisiert am 11.12.2013
C18: Anlagengröße | E18: Landesförderung | G18: Bundesförderung
E19: Investition | G19: Investition | H19: Tarif
C20: 1 - 3 | D20: kWp | E20: - | F20: - | G20: =$G$8 ->  | H20: -
C21: 4 | D21: kWp | E21: - | F21: - | G21: =$G$8 ->  | H21: - | K21: Nähere Informationen zur Förderung:
C22: 5 | D22: kWp | E22: - | F22: - | G22: =$G$8 ->  | H22: - | K22: http://www.ktn.gv.at/42109_DE-ktn.gv.at-THEMEN?detail=2&thema=1&subthema=
C23: > 5 | D23: kWp | E23: - | F23: - | G23: =$G$11 ->  | H23: =$H$11 -> 
B25: Information:
B26: =Eingabe!P162 -> 0
B29: Förderung für Niederösterreich | J29: Förderungen aktualisiert am 20.01.2015
C30: Fahrzeug | E30: Landesförderung | G30: Bundesförderung
E31: Investition | G31: Investition | H31: Tarif
C32: "reines" E-Fahrzeug | E32: 3000 | F32: € | G32: =$G$8 ->  | H32: -
C33: Plug-In-Hybrid | E33: 1500 | F33: € | G33: =$G$8 ->  | H33: - | K33: Nähere Informationen zur Förderung:
C34: e-Krafträder inkl. Leichtfahrzeuge | E34: - | F34: - | G34: =$G$8 ->  | H34: - | K34: http://www.ecoplus.at/de/ecoplus/cluster-niederoesterreich/e-mobil/foerderungen-fuer-e-fahrzeuge
E35: - | F35: - | G35: =$G$11 ->  | H35: =$H$11 ->  | T35: Zur Registrierung:
T36: https://www.meinefoerderung.at/pv2014/
B37: Information:
B38: =Eingabe!P163 -> 0 | T38: Zum Leitfaden:
T39: http://www.umweltfoerderung.at/uploads/leitfaden_pv.pdf
B41: Förderung für Oberösterreich | J41: Förderungen aktualisiert am 11.12.2013
C42: Anlagengröße | E42: Landesförderung | G42: Bundesförderung
E43: Investition | G43: Investition | H43: Tarif
C44: 1 - 3 | D44: kWp | E44: - | F44: - | G44: =$G$8 ->  | H44: -
C45: 4 | D45: kWp | E45: - | F45: - | G45: =$G$8 ->  | H45: - | K45: Nähere Informationen zur Förderung:
C46: 5 | D46: kWp | E46: - | F46: - | G46: =$G$8 ->  | H46: - | K46: http://www.esv.or.at/foerderungen/oekostrom/photovoltaik/
C47: > 5 | D47: kWp | E47: - | F47: - | G47: =$G$11 ->  | H47: =$H$11 -> 
B49: Information:
B50: Keine Förderung durch das Land Oberösterreich
B53: Förderung für Salzburg | J53: Förderungen aktualisiert am 11.12.2013
C54: Anlagengröße | E54: Landesförderung | G54: Bundesförderung
E55: Investition | G55: Investition | H55: Tarif
C56: 1 - 3 | D56: kWp | E56: =IF(Eingabe!#REF!<900,"-",Eingabe!W191) ->  | F56: €/kWp | G56: =$G$8 ->  | H56: -
C57: 4 | D57: kWp | E57: - | F57: - | G57: =$G$8 ->  | H57: - | K57: Nähere Informationen zur Förderung:
C58: 5 | D58: kWp | E58: - | F58: - | G58: =$G$8 ->  | H58: - | K58: http://www.energieaktiv.at/information-und-beratung/foerdermoeglichkeiten/direktzuschuss/solar/fotovoltaik-oekostrom/?utm_source=wes&utm_medium=banner&utm_campaign=weitere+Informationen
C59: > 5 | D59: kWp | E59: - | F59: - | G59: =$G$11 ->  | H59: =$H$11 ->  | J59: Außerdem gibt es folgende Förderung:
J60: Kombination der PV-Anlage mit einer Wärmepumpe:
B61: Information: | J61: Förderung erfolgt auf Basis eines Punktesystemes;
B62: =Eingabe!P165 -> 0 | J62: für die Photovoltaikanlage erhält man maximal 40 Punkte; diese entsprechen 4.000 €
J63: Die PV-Anlage muss jedoch mindestens 2 kWp groß sein!
B65: Gesamte Förderung: | J65: Landesförderungen:
B67: Förderung für Steiermark | J67: Förderungen aktualisiert am 11.12.2013
C68: Anlagengröße | E68: Landesförderung | G68: Bundesförderung
E69: Investition | G69: Investition | H69: Tarif
C70: 1 - 3 | D70: kWp | E70: =IF(OR(Eingabe!$AE$231<2,Eingabe!#REF!<900),"-",Eingabe!$AE$232) ->  | F70: =IF(E70="-","-","€ für "&Eingabe!$AE$231&"kWp") ->  | G70: =$G$8 ->  | H70: -
C71: 4 | D71: kWp | E71: - | F71: - | G71: =$G$8 ->  | H71: - | K71: Nähere Informationen zur Landesförderung:
C72: 5 | D72: kWp | E72: - | F72: - | G72: =$G$8 ->  | H72: - | K72: http://www.technik.steiermark.at/cms/ziel/59689784/DE/
C73: > 5 | D73: kWp | E73: - | F73: - | G73: =$G$11 ->  | H73: =$H$11 -> 
K74: Nähere Informationen zu den Gemeindeförderungen:
B75: Information: | K75: http://www.lev.at/index.asp?S=main/foerderungen/gemausw.asp&S1=left/left.asp
B76: =Eingabe!P166 -> 0
B79: Förderung für Tirol | J79: Förderungen aktualisiert am 11.12.2013
C80: Anlagengröße | E80: Landesförderung | G80: Bundesförderung
E81: Investition | G81: Investition | H81: Tarif
C82: 1 - 3 | D82: kWp | E82: - | F82: €/kWp | G82: =$G$8 ->  | H82: -
C83: 4 | D83: kWp | E83: - | F83: €/kWp | G83: =$G$8 ->  | H83: - | K83: Nähere Informationen zur Förderung:
C84: 5 | D84: kWp | E84: - | F84: €/kWp | G84: =$G$8 ->  | H84: - | K84: https://www.tirol.gv.at/umwelt/energie/energiefoerderungen/
C85: > 5 | D85: kWp | E85: - | F85: - | G85: =$G$11 ->  | H85: =$H$11 -> 
B87: Information:
B88: =Eingabe!P167 -> 0
B91: Förderung für Vorarlberg | J91: Förderungen aktualisiert am 29.01.2014
C92: Anlagengröße | E92: Landesförderung | G92: Bundesförderung
E93: Investition | G93: Investition | H93: Tarif
C94: 1 - 3 | D94: kWp | E94: - | F94: €/kWp | G94: =$G$8 ->  | H94: -
C95: 4 | D95: kWp | E95: - | F95: €/kWp | G95: =$G$8 ->  | H95: - | K95: Nähere Informationen zur Förderung:
C96: 5 | D96: kWp | E96: - | F96: €/kWp | G96: =$G$8 ->  | H96: - | K96: http://www.vorarlberg.at/vorarlberg/wasser_energie/energie/energie/foerderungen/sub/foerderungvonphotovoltaik.htm
C97: > 5 | D97: kWp | E97: - | F97: - | G97: =$G$11 ->  | H97: =$H$11 -> 
B99: Information:
B100: =Eingabe!P168 -> 0
B103: Förderung für Wien | J103: Förderungen aktualisiert am 11.12.2013
C104: Anlagengröße | E104: Landesförderung | G104: Bundesförderung
E105: Investition | G105: Investition | H105: Tarif
C106: 1 - 3 | D106: kWp | E106: 275 | F106: €/kWp | G106: =$G$8 ->  | H106: -
C107: 4 | D107: kWp | E107: 275 | F107: €/kWp | G107: =$G$8 ->  | H107: - | K107: Nähere Informationen zur Förderung:
C108: 5 | D108: kWp | E108: 275 | F108: €/kWp | G108: =$G$8 ->  | H108: - | K108: http://www.umweltfoerderung.at/kpc/de/home/umweltfrderung/fr_private/weitere_frderungen/landesfrderung_wien/
C109: > 5 | D109: kWp | E109: 400 | F109: €/kWp | G109: =$G$11 ->  | H109: =$H$11 -> 
B111: Information:
B112: =Eingabe!P169 -> 0

Sheet Wetterdaten (hidden)
A1: Ort | B1: PLZ | C1: Land | D1: PLZ-Differenz | E1: Jährliche Einstrahlung | F1: mittlere Aussentemperatur | G1: Längengrad | H1: Breitengrad | I1: Ermittlung der Einstrahlung
E2: [kWh/m²a] | F2: [°C] | G2: [°] | H2: [°]
A3: Admont | B3: 8911 | C3: AUT | D3: =IF(B3>$L$3,B3-$L$3,$L$3-B3) ->  | E3: 1028.32 | F3: 5.86 | G3: -14.45 | H3: 47.57 | I3: =IF($L$4=D3,E3,0) ->  | J3: =IF(I3=0,0,1) ->  | K3: PLZ: | L3: =Eingabe!M12 -> VW Golf - Benzin
A4: Amstetten | B4: 3300 | C4: AUT | E4: 1069.1 | F4: 8.79 | G4: -14.83 | H4: 48.08 | J4: =IF(I4=0,0,1) ->  | K4: Diff: | L4: =MIN(D3:D53) -> 
A5: Arriach | B5: 9543 | C5: AUT | E5: 1144.54 | F5: 6.46 | G5: -13.85 | H5: 46.72 | K5: Einstrahlung | L5: =ROUNDDOWN(K54,-0.5) ->  | M5: kWh/m²a
A6: Bad Gleichenberg | B6: 8344 | C6: AUT | E6: 1153.19 | F6: 9.14 | G6: -15.88 | H6: 46.87
A7: Bad Ischl | B7: 4820 | C7: AUT | E7: 1093.31 | F7: 7.90 | G7: -13.60 | H7: 47.72
A8: Bludenz | B8: 6700 | C8: AUT | E8: 1079.79 | F8: 7.97 | G8: -9.82 | H8: 48.50
A9: Bruck an der Mur | B9: 8600 | C9: AUT | E9: 1070.77 | F9: 8.07 | G9: -15.25 | H9: 47.42
A10: Eisenerz | B10: 8790 | C10: AUT | E10: 1071.43 | F10: 7.11 | G10: -14.88 | H10: 47.53
A11: Eisenstadt | B11: 7000 | C11: AUT | E11: 1132.17 | F11: 10.01 | G11: -16.68 | H11: 47.90
A12: Feldkirch | B12: 6800 | C12: AUT | E12: 1100.38 | F12: 8.30 | G12: -9.58 | H12: 47.23
A13: Ferlach | B13: 9170 | C13: AUT | E13: 1156.25 | F13: 7.82 | G13: -14.28 | H13: 46.52
A14: Fresach | B14: 9712 | C14: AUT | E14: 1207.36 | F14: 7.07 | G14: -13.68 | H14: 46.70
A15: Gargellen | B15: 6787 | C15: AUT | E15: 1174.51 | F15: 4.42 | G15: -9.92 | H15: 46.97
A16: Gmunden | B16: 4810 | C16: AUT | E16: 1088.42 | F16: 8.57 | G16: -13.80 | H16: 47.92
A17: Graz | B17: 8010 | C17: AUT | E17: 1126.02 | F17: 9.17 | G17: -15.42 | H17: 47.67
A18: Gumpoldskirchen | B18: 2352 | C18: AUT | E18: 1125.22 | F18: 9.11 | G18: -16.27 | H18: 48.33
A19: Hallstadt | B19: 4830 | C19: AUT | E19: 1054.8 | F19: 8.00 | G19: -13.63 | H19: 47.55
A20: Imst | B20: 6460 | C20: AUT | E20: 1069.11 | F20: 7.31 | G20: -10.72 | H20: 47.23
A21: Innsbruck | B21: 6020 | C21: AUT | E21: 1089.72 | F21: 8.61 | G21: -11.40 | H21: 47.27
A22: Kitzbuehl | B22: 6370 | C22: AUT | E22: 1069.88 | F22: 6.19 | G22: -12.38 | H22: 47.45
A23: Klagenfurt | B23: 9010 | C23: AUT | E23: 1131 | F23: 8.14 | G23: -14.30 | H23: 46.62
A24: Krems a. d. Donau | B24: 3500 | C24: AUT | E24: 1071.4 | F24: 9.62 | G24: -15.58 | H24: 48.50
A25: Kremsmünster | B25: 4550 | C25: AUT | E25: 1046.5 | F25: 7.69 | G25: -14.12 | H25: 48.05
A26: Leoben | B26: 8700 | C26: AUT | E26: 1068.49 | F26: 8.30 | G26: -15.83 | H26: 47.37
A27: Lienz | B27: 9900 | C27: AUT | E27: 1147.74 | F27: 7.41 | G27: -12.80 | H27: 46.83
A28: Lilienfeld | B28: 3180 | C28: AUT | E28: 1075.26 | F28: 8.36 | G28: -15.62 | H28: 48.17
A29: Millstatt | B29: 9872 | C29: AUT | E29: 1189.53 | F29: 8.67 | G29: -13.57 | H29: 46.80
A30: Mondsee | B30: 5310 | C30: AUT | E30: 1046.56 | F30: 7.84 | G30: -13.33 | H30: 47.85
A31: Mönichkirchen | B31: 2872 | C31: AUT | E31: 1083.3 | F31: 6.25 | G31: -16.17 | H31: 47.50
A32: Nauders | B32: 6543 | C32: AUT | E32: 1201.41 | F32: 4.71 | G32: -10.50 | H32: 46.88
A33: Neumarkt in der Steiermark | B33: 8820 | C33: AUT | E33: 1161.95 | F33: 6.39 | G33: -14.42 | H33: 47.67
A34: Obervellach | B34: 9821 | C34: AUT | E34: 1226.7 | F34: 8.44 | G34: -13.20 | H34: 46.93
A35: Oberwölz Stadt | B35: 8832 | C35: AUT | D35: =IF(B35>$L$3,B35-$L$3,$L$3-B35) ->  | E35: 1107.85 | F35: 6.20 | G35: -14.27 | H35: 47.20 | I35: =IF($L$4=D35,E35,0) -> 
A36: Radentheim | B36: 9545 | C36: AUT | E36: 1133.12 | F36: 7.53 | G36: -13.70 | H36: 46.80
A37: Ramsau Dachstein | B37: 8972 | C37: AUT | E37: 1129.03 | F37: 5.16 | G37: -12.88 | H37: 47.60
A38: Rauris | B38: 5661 | C38: AUT | E38: 1124.15 | F38: 5.82 | G38: -12.98 | H38: 47.23
A39: Reichersberg | B39: 4981 | C39: AUT | E39: 1037.37 | F39: 8.48 | G39: -13.37 | H39: 48.33
A40: Reichraming | B40: 4462 | C40: AUT | E40: 1068.82 | F40: 8.13 | G40: -14.45 | H40: 47.88
A41: Salzburg | B41: 5020 | C41: AUT | E41: 1113.61 | F41: 8.39 | G41: -13.33 | H41: 47.82
A42: St. Lorenzen im Lesachtal | B42: 9654 | C42: AUT | E42: 1217.13 | F42: 5.73 | G42: 12.77 | H42: 46.70
A43: St. Michael i. Lundgau | B43: 5582 | C43: AUT | E43: 1194.76 | F43: 6.55 | G43: -13.48 | H43: 47.83
A44: St. Pölten | B44: 3100 | C44: AUT | E44: 1031.18 | F44: 8.59 | G44: -15.60 | H44: 48.20
A45: Velden am Wörtersee | B45: 9220 | C45: AUT | E45: 1189.4 | F45: 8.04 | G45: -14.33 | H45: 46.62
A46: Villach | B46: 9500 | C46: AUT | E46: 1188.95 | F46: 8.04 | G46: -13.83 | H46: 46.62
A47: Wels | B47: 4600 | C47: AUT | E47: 1036.5 | F47: 8.67 | G47: -14.17 | H47: 48.17
A48: Weyer Mark | B48: 3335 | C48: AUT | E48: 1106.53 | F48: 7.58 | G48: -14.65 | H48: 47.85
A49: Wien | B49: 1190 | C49: AUT | E49: 1084.48 | F49: 9.77 | G49: -16.33 | H49: 48.20
A50: Wiener Neustadt | B50: 2700 | C50: AUT | E50: 1080.56 | F50: 9.44 | G50: -16.23 | H50: 47.82
A51: Wolfsberg | B51: 9400 | C51: AUT | E51: 1066.68 | F51: 7.86 | G51: -14.83 | H51: 46.85
A52: Zell am See | B52: 5700 | C52: AUT | E52: 1080.32 | F52: 6.55 | G52: -12.77 | H52: 47.32
A53: Zwettl | B53: 3910 | C53: AUT | E53: 1051.52 | F53: 5.71 | G53: -15.15 | H53: 48.58
H54: Einstrahlungswert: | I54: =SUM(I3:I53) ->  | J54: =SUM(J3:J53) ->  | K54: =I54/J54 -> 

Sheet PLZ-Zuordnung (hidden)
A1: PLZ | B1: Ort | C1: Bundesland | D1: NamePLZTyp | E1: intern_extern | F1: adressierbar | G1: Postfach
I2: Zuordnung der PLZ und des Ortes (Bundesland):
A3: 1004 | B3: Wien | C3: W | D3: InteressentenPLZ | E3: extern | F3: Nein | G3: Ja | I3: =Eingabe!M12 -> VW Golf - Benzin | J3: =VLOOKUP(I3,A3:C2460,3,TRUE) -> 
A4: 1010 | B4: Wien | C4: W | D4: PLZ-Adressierung | E4: extern | F4: Ja | G4: Ja | J4: =VLOOKUP(J3,I7:J15,2,TRUE) -> 
A5: 1011 | B5: Wien Postfach | C5: W | D5: PLZ-Postfach | E5: extern | F5: Nein | G5: Ja | J5: =VLOOKUP(I3,A3:C2460,2,FALSE) -> 
A6: 1012 | B6: Wien | C6: W | D6: PLZ-Postfach | E6: extern | F6: Nein | G6: Ja
A7: 1013 | B7: Wien | C7: W | D7: PLZ-Postfach | E7: extern | F7: Nein | G7: Ja | I7: B | J7: Burgenland
A8: 1014 | B8: Wien | C8: W | D8: PLZ-Postfach | E8: extern | F8: Nein | G8: Ja | I8: K | J8: Kärnten
A9: 1015 | B9: Wien | C9: W | D9: PLZ-Postfach | E9: extern | F9: Nein | G9: Ja | I9: N | J9: Niederösterreich
A10: 1016 | B10: Wien | C10: W | D10: PLZ-Postfach | E10: extern | F10: Nein | G10: Ja | I10: O | J10: Oberösterreich
A11: 1017 | B11: Wien-Parlament | C11: W | D11: PLZ-Postfach | E11: extern | F11: Nein | G11: Ja | I11: Sa | J11: Salzburg
A12: 1018 | B12: Wien | C12: W | D12: PLZ-Postfach | E12: extern | F12: Nein | G12: Ja | I12: St | J12: Steiermark
A13: 1020 | B13: Wien | C13: W | D13: PLZ-Adressierung | E13: extern | F13: Ja | G13: Ja | I13: T | J13: Tirol
A14: 1021 | B14: Wien Postfach | C14: W | D14: PLZ-Postfach | E14: extern | F14: Nein | G14: Ja | I14: V | J14: Vorarlberg
A15: 1022 | B15: Wien | C15: W | D15: PLZ-Postfach | E15: extern | F15: Nein | G15: Ja | I15: W | J15: Wien
A16: 1023 | B16: Wien | C16: W | D16: PLZ-Postfach | E16: extern | F16: Nein | G16: Ja
A17: 1024 | B17: Wien | C17: W | D17: PLZ-Postfach | E17: extern | F17: Nein | G17: Ja
A18: 1025 | B18: Wien | C18: W | D18: PLZ-Postfach | E18: extern | F18: Nein | G18: Ja
A19: 1029 | B19: Wien | C19: W | D19: InteressentenPLZ | E19: extern | F19: Nein | G19: Ja
A20: 1030 | B20: Wien | C20: W | D20: PLZ-Adressierung | E20: extern | F20: Ja | G20: Ja
A21: 1031 | B21: Wien Postfach | C21: W | D21: PLZ-Postfach | E21: extern | F21: Nein | G21: Ja
A22: 1033 | B22: Wien | C22: W | D22: PLZ-Postfach | E22: extern | F22: Nein | G22: Ja
A23: 1034 | B23: Wien | C23: W | D23: PLZ-Postfach | E23: extern | F23: Nein | G23: Ja
A24: 1035 | B24: Wien | C24: W | D24: PLZ-Postfach | E24: extern | F24: Nein | G24: Ja
A25: 1036 | B25: Wien | C25: W | D25: PLZ-Postfach | E25: extern | F25: Nein | G25: Ja
A26: 1037 | B26: Wien | C26: W | D26: PLZ-Postfach | E26: extern | F26: Nein | G26: Ja
A27: 1038 | B27: Wien | C27: W | D27: InteressentenPLZ | E27: extern | F27: Nein | G27: Ja
A28: 1039 | B28: Wien | C28: W | D28: InteressentenPLZ | E28: extern | F28: Nein | G28: Ja
A29: 1040 | B29: Wien | C29: W | D29: PLZ-Adressierung | E29: extern | F29: Ja | G29: Ja
A30: 1041 | B30: Wien Postfach | C30: W | D30: PLZ-Postfach | E30: extern | F30: Nein | G30: Ja
A31: 1042 | B31: Wien | C31: W | D31: PLZ-Postfach | E31: extern | F31: Nein | G31: Ja
A32: 1043 | B32: Wien | C32: W | D32: PLZ-Postfach | E32: extern | F32: Nein | G32: Ja
A33: 1045 | B33: Wien | C33: W | D33: InteressentenPLZ | E33: extern | F33: Nein | G33: Ja
A34: 1050 | B34: Wien | C34: W | D34: PLZ-Adressierung | E34: extern | F34: Ja | G34: Ja
A35: 1051 | B35: Wien Postfach | C35: W | D35: PLZ-Postfach | E35: extern | F35: Nein | G35: Ja
A36: 1052 | B36: Wien | C36: W | D36: PLZ-Postfach | E36: extern | F36: Nein | G36: Ja
A37: 1053 | B37: Wien | C37: W | D37: PLZ-Postfach | E37: extern | F37: Nein | G37: Ja
A38: 1060 | B38: Wien | C38: W | D38: PLZ-Adressierung | E38: extern | F38: Ja | G38: Ja
A39: 1061 | B39: Wien Postfach | C39: W | D39: PLZ-Postfach | E39: extern | F39: Nein | G39: Ja
A40: 1062 | B40: Wien | C40: W | D40: PLZ-Postfach | E40: extern | F40: Nein | G40: Ja
A41: 1063 | B41: Wien-VÖPh | C41: W | D41: InteressentenPLZ | E41: extern | F41: Nein | G41: Ja
A42: 1070 | B42: Wien | C42: W | D42: PLZ-Adressierung | E42: extern | F42: Ja | G42: Ja
A43: 1071 | B43: Wien Postfach | C43: W | D43: PLZ-Postfach | E43: extern | F43: Nein | G43: Ja
A44: 1072 | B44: Wien | C44: W | D44: PLZ-Postfach | E44: extern | F44: Nein | G44: Ja
A45: 1080 | B45: Wien | C45: W | D45: PLZ-Adressierung | E45: extern | F45: Ja | G45: Ja
A46: 1081 | B46: Wien Postfach | C46: W | D46: PLZ-Postfach | E46: extern | F46: Nein | G46: Ja
A47: 1082 | B47: Wien | C47: W | D47: PLZ-Postfach | E47: extern | F47: Nein | G47: Ja
A48: 1090 | B48: Wien | C48: W | D48: PLZ-Adressierung | E48: extern | F48: Ja | G48: Ja
A49: 1091 | B49: Wien Postfach | C49: W | D49: PLZ-Postfach | E49: extern | F49: Nein | G49: Ja
A50: 1092 | B50: Wien | C50: W | D50: PLZ-Postfach | E50: extern | F50: Nein | G50: Ja
A51: 1093 | B51: Wien | C51: W | D51: PLZ-Postfach | E51: extern | F51: Nein | G51: Ja
A52: 1094 | B52: Wien | C52: W | D52: PLZ-Postfach | E52: extern | F52: Nein | G52: Ja
A53: 1095 | B53: Wien | C53: W | D53: PLZ-Postfach | E53: extern | F53: Nein | G53: Ja
A54: 1096 | B54: Wien | C54: W | D54: PLZ-Postfach | E54: extern | F54: Nein | G54: Ja
A55: 1097 | B55: Wien | C55: W | D55: PLZ-Postfach | E55: extern | F55: Nein | G55: Ja
A56: 1100 | B56: Wien | C56: W | D56: PLZ-Adressierung | E56: extern | F56: Ja | G56: Ja
A57: 1101 | B57: Wien Postfach | C57: W | D57: PLZ-Postfach | E57: extern | F57: Nein | G57: Ja
A58: 1102 | B58: Wien | C58: W | D58: PLZ-Postfach | E58: extern | F58: Nein | G58: Ja
A59: 1103 | B59: Wien | C59: W | D59: PLZ-Postfach | E59: extern | F59: Nein | G59: Ja
A60: 1104 | B60: Wien | C60: W | D60: PLZ-Postfach | E60: extern | F60: Nein | G60: Ja
A61: 1105 | B61: Wien | C61: W | D61: PLZ-Postfach | E61: extern | F61: Nein | G61: Ja
A62: 1106 | B62: Wien | C62: W | D62: PLZ-Postfach | E62: extern | F62: Nein | G62: Ja
A63: 1107 | B63: Wien | C63: W | D63: PLZ-Postfach | E63: extern | F63: Nein | G63: Ja
A64: 1108 | B64: Wien | C64: W | D64: PLZ-Postfach | E64: extern | F64: Nein | G64: Ja
A65: 1109 | B65: Wien | C65: W | D65: PLZ-Postfach | E65: extern | F65: Nein | G65: Ja
A66: 1110 | B66: Wien | C66: W | D66: PLZ-Adressierung | E66: extern | F66: Ja | G66: Ja
A67: 1111 | B67: Wien Postfach | C67: W | D67: PLZ-Postfach | E67: extern | F67: Nein | G67: Ja
A68: 1112 | B68: Wien | C68: W | D68: PLZ-Postfach | E68: extern | F68: Nein | G68: Ja
A69: 1113 | B69: Wien | C69: W | D69: PLZ-Postfach | E69: extern | F69: Nein | G69: Ja
A70: 1120 | B70: Wien | C70: W | D70: PLZ-Adressierung | E70: extern | F70: Ja | G70: Ja
A71: 1121 | B71: Wien Postfach | C71: W | D71: PLZ-Postfach | E71: extern | F71: Nein | G71: Ja
A72: 1122 | B72: Wien | C72: W | D72: PLZ-Postfach | E72: extern | F72: Nein | G72: Ja
A73: 1125 | B73: Wien | C73: W | D73: PLZ-Postfach | E73: extern | F73: Nein | G73: Ja
A74: 1126 | B74: Wien | C74: W | D74: PLZ-Postfach | E74: extern | F74: Nein | G74: Ja
A75: 1127 | B75: Wien | C75: W | D75: PLZ-Postfach | E75: extern | F75: Nein | G75: Ja
A76: 1130 | B76: Wien | C76: W | D76: PLZ-Adressierung | E76: extern | F76: Ja | G76: Ja
A77: 1131 | B77: Wien Postfach | C77: W | D77: PLZ-Postfach | E77: extern | F77: Nein | G77: Ja
A78: 1132 | B78: Wien | C78: W | D78: PLZ-Postfach | E78: extern | F78: Nein | G78: Ja
A79: 1133 | B79: Wien | C79: W | D79: PLZ-Postfach | E79: extern | F79: Nein | G79: Ja
A80: 1134 | B80: Wien | C80: W | D80: PLZ-Postfach | E80: extern | F80: Nein | G80: Ja
A81: 1136 | B81: Wien | C81: W | D81: InteressentenPLZ | E81: extern | F81: Nein | G81: Ja
A82: 1140 | B82: Wien | C82: W | D82: PLZ-Adressierung | E82: extern | F82: Ja | G82: Ja
A83: 1141 | B83: Wien Postfach | C83: W | D83: PLZ-Postfach | E83: extern | F83: Nein | G83: Ja
A84: 1142 | B84: Wien | C84: W | D84: PLZ-Postfach | E84: extern | F84: Nein | G84: Ja
A85: 1143 | B85: Wien | C85: W | D85: PLZ-Postfach | E85: extern | F85: Nein | G85: Ja
A86: 1144 | B86: Wien | C86: W | D86: PLZ-Postfach | E86: extern | F86: Nein | G86: Ja
A87: 1145 | B87: Wien | C87: W | D87: PLZ-Postfach | E87: extern | F87: Nein | G87: Ja
A88: 1147 | B88: Wien | C88: W | D88: PLZ-Postfach | E88: extern | F88: Nein | G88: Ja
A89: 1148 | B89: Wien | C89: W | D89: InteressentenPLZ | E89: extern | F89: Nein | G89: Ja
A90: 1150 | B90: Wien | C90: W | D90: PLZ-Adressierung | E90: extern | F90: Ja | G90: Ja
A91: 1151 | B91: Wien Postfach | C91: W | D91: PLZ-Postfach | E91: extern | F91: Nein | G91: Ja
A92: 1152 | B92: Wien | C92: W | D92: PLZ-Postfach | E92: extern | F92: Nein | G92: Ja
A93: 1153 | B93: Wien | C93: W | D93: PLZ-Postfach | E93: extern | F93: Nein | G93: Ja
A94: 1160 | B94: Wien | C94: W | D94: PLZ-Adressierung | E94: extern | F94: Ja | G94: Ja
A95: 1161 | B95: Wien Postfach | C95: W | D95: PLZ-Postfach | E95: extern | F95: Nein | G95: Ja
A96: 1163 | B96: Wien | C96: W | D96: PLZ-Postfach | E96: extern | F96: Nein | G96: Ja
A97: 1165 | B97: Wien | C97: W | D97: PLZ-Postfach | E97: extern | F97: Nein | G97: Ja
A98: 1166 | B98: Wien | C98: W | D98: PLZ-Postfach | E98: extern | F98: Nein | G98: Ja
A99: 1170 | B99: Wien | C99: W | D99: PLZ-Adressierung | E99: extern | F99: Ja | G99: Ja
A100: 1171 | B100: Wien Postfach | C100: W | D100: PLZ-Postfach | E100: extern | F100: Nein | G100: Ja
A101: 1172 | B101: Wien | C101: W | D101: PLZ-Postfach | E101: extern | F101: Nein | G101: Ja
A102: 1173 | B102: Wien | C102: W | D102: PLZ-Postfach | E102: extern | F102: Nein | G102: Ja
A103: 1180 | B103: Wien | C103: W | D103: PLZ-Adressierung | E103: extern | F103: Ja | G103: Ja
A104: 1181 | B104: Wien Postfach | C104: W | D104: PLZ-Postfach | E104: extern | F104: Nein | G104: Ja
A105: 1182 | B105: Wien | C105: W | D105: PLZ-Postfach | E105: extern | F105: Nein | G105: Ja
A106: 1183 | B106: Wien | C106: W | D106: PLZ-Postfach | E106: extern | F106: Nein | G106: Ja
A107: 1190 | B107: Wien | C107: W | D107: PLZ-Adressierung | E107: extern | F107: Ja | G107: Ja
A108: 1191 | B108: Wien Postfach | C108: W | D108: PLZ-Postfach | E108: extern | F108: Nein | G108: Ja
A109: 1192 | B109: Wien | C109: W | D109: PLZ-Postfach | E109: extern | F109: Nein | G109: Ja
A110: 1193 | B110: Wien | C110: W | D110: PLZ-Postfach | E110: extern | F110: Nein | G110: Ja
A111: 1194 | B111: Wien | C111: W | D111: PLZ-Postfach | E111: extern | F111: Nein | G111: Ja
A112: 1195 | B112: Wien | C112: W | D112: PLZ-Postfach | E112: extern | F112: Nein | G112: Ja
A113: 1196 | B113: Wien | C113: W | D113: PLZ-Postfach | E113: extern | F113: Nein | G113: Ja
A114: 1200 | B114: Wien | C114: W | D114: PLZ-Adressierung | E114: extern | F114: Ja | G114: Ja
A115: 1201 | B115: Wien Postfach | C115: W | D115: PLZ-Postfach | E115: extern | F115: Nein | G115: Ja
A116: 1202 | B116: Wien | C116: W | D116: PLZ-Postfach | E116: extern | F116: Nein | G116: Ja
A117: 1203 | B117: Wien | C117: W | D117: PLZ-Postfach | E117: extern | F117: Nein | G117: Ja
A118: 1204 | B118: Wien | C118: W | D118: PLZ-Postfach | E118: extern | F118: Nein | G118: Ja
A119: 1205 | B119: Wien | C119: W | D119: PLZ-Postfach | E119: extern | F119: Nein | G119: Ja
A120: 1206 | B120: Wien | C120: W | D120: PLZ-Postfach | E120: extern | F120: Nein | G120: Ja
A121: 1210 | B121: Wien | C121: W | D121: PLZ-Adressierung | E121: extern | F121: Ja | G121: Ja
A122: 1211 | B122: Wien Postfach | C122: W | D122: PLZ-Postfach | E122: extern | F122: Nein | G122: Ja
A123: 1212 | B123: Wien | C123: W | D123: PLZ-Postfach | E123: extern | F123: Nein | G123: Ja
A124: 1213 | B124: Wien | C124: W | D124: PLZ-Postfach | E124: extern | F124: Nein | G124: Ja
A125: 1214 | B125: Wien | C125: W | D125: PLZ-Postfach | E125: extern | F125: Nein | G125: Ja
A126: 1215 | B126: Wien | C126: W | D126: PLZ-Postfach | E126: extern | F126: Nein | G126: Ja
A127: 1216 | B127: Wien | C127: W | D127: PLZ-Postfach | E127: extern | F127: Nein | G127: Ja
A128: 1217 | B128: Wien | C128: W | D128: PLZ-Postfach | E128: extern | F128: Nein | G128: Ja
A129: 1218 | B129: Wien | C129: W | D129: PLZ-Postfach | E129: extern | F129: Nein | G129: Ja
A130: 1220 | B130: Wien | C130: W | D130: PLZ-Adressierung | E130: extern | F130: Ja | G130: Ja
A131: 1221 | B131: Wien Postfach | C131: W | D131: PLZ-Postfach | E131: extern | F131: Nein | G131: Ja
A132: 1222 | B132: Wien | C132: W | D132: PLZ-Postfach | E132: extern | F132: Nein | G132: Ja
A133: 1223 | B133: Wien | C133: W | D133: PLZ-Postfach | E133: extern | F133: Nein | G133: Ja
A134: 1224 | B134: Wien | C134: W | D134: PLZ-Postfach | E134: extern | F134: Nein | G134: Ja
A135: 1225 | B135: Wien | C135: W | D135: PLZ-Postfach | E135: extern | F135: Nein | G135: Ja
A136: 1226 | B136: Wien | C136: W | D136: PLZ-Postfach | E136: extern | F136: Nein | G136: Ja
A137: 1228 | B137: Wien | C137: W | D137: PLZ-Postfach | E137: extern | F137: Nein | G137: Ja
A138: 1229 | B138: Wien | C138: W | D138: PLZ-Postfach | E138: extern | F138: Nein | G138: Ja
A139: 1230 | B139: Wien | C139: W | D139: PLZ-Adressierung | E139: extern | F139: Ja | G139: Ja
A140: 1231 | B140: Wien Postfach | C140: W | D140: PLZ-Postfach | E140: extern | F140: Nein | G140: Ja
A141: 1232 | B141: Wien | C141: W | D141: PLZ-Postfach | E141: extern | F141: Nein | G141: Ja
A142: 1233 | B142: Wien | C142: W | D142: PLZ-Postfach | E142: extern | F142: Nein | G142: Ja
A143: 1234 | B143: Wien | C143: W | D143: PLZ-Postfach | E143: extern | F143: Nein | G143: Ja
A144: 1235 | B144: Wien | C144: W | D144: PLZ-Postfach | E144: extern | F144: Nein | G144: Ja
A145: 1236 | B145: Wien | C145: W | D145: PLZ-Postfach | E145: extern | F145: Nein | G145: Ja
A146: 1238 | B146: Wien | C146: W | D146: PLZ-Postfach | E146: extern | F146: Nein | G146: Ja
A147: 1239 | B147: Wien | C147: W | D147: PLZ-Postfach | E147: extern | F147: Nein | G147: Ja
A148: 1300 | B148: Wien-Flughafen | C148: W | D148: PLZ-Adressierung | E148: extern | F148: Ja | G148: Ja
A149: 1400 | B149: Wien-Vereinte Nationen | C149: W | D149: PLZ-Postfach | E149: extern | F149: Nein | G149: Ja
A150: 1402 | B150: Wien | C150: W | D150: PLZ-Postfach | E150: extern | F150: Nein | G150: Ja
A151: 1423 | B151: Wien | C151: W | D151: PLZ-Postfach | E151: extern | F151: Nein | G151: Ja
A152: 1500 | B152: UNDOF AUSBATT | C152: W | D152: FeldPLZ | E152: extern | F152: Nein | G152: Ja
A153: 1502 | B153: AUCON EUFOR | C153: W | D153: FeldPLZ | E153: extern | F153: Nein | G153: Ja
A154: 1503 | B154: AUCON KFOR | C154: W | D154: FeldPLZ | E154: extern | F154: Nein | G154: Ja
A155: 1600 | B155: Wien | C155: W | D155: InteressentenPLZ | E155: extern | F155: Nein | G155: Ja
A156: 2000 | B156: Stockerau | C156: N | D156: PLZ-Adressierung | E156: extern | F156: Ja | G156: Ja
A157: 2002 | B157: Großmugl | C157: N | D157: PLZ-Adressierung | E157: extern | F157: Ja | G157: Nein
A158: 2003 | B158: Leitzersdorf | C158: N | D158: PLZ-Adressierung | E158: extern | F158: Ja | G158: Nein
A159: 2004 | B159: Niederhollabrunn | C159: N | D159: PLZ-Adressierung | E159: extern | F159: Ja | G159: Nein
A160: 2011 | B160: Sierndorf | C160: N | D160: PLZ-Adressierung | E160: extern | F160: Ja | G160: Nein
A161: 2013 | B161: Göllersdorf | C161: N | D161: PLZ-Adressierung | E161: extern | F161: Ja | G161: Nein
A162: 2014 | B162: Breitenwaida | C162: N | D162: PLZ-Adressierung | E162: extern | F162: Ja | G162: Nein
A163: 2020 | B163: Hollabrunn | C163: N | D163: PLZ-Adressierung | E163: extern | F163: Ja | G163: Ja
A164: 2022 | B164: Immendorf | C164: N | D164: PLZ-Adressierung | E164: extern | F164: Ja | G164: Nein
A165: 2023 | B165: Nappersdorf | C165: N | D165: PLZ-Adressierung | E165: extern | F165: Ja | G165: Ja
A166: 2024 | B166: Mailberg | C166: N | D166: PLZ-Adressierung | E166: extern | F166: Ja | G166: Nein
A167: 2031 | B167: Eggendorf im Thale | C167: N | D167: PLZ-Adressierung | E167: extern | F167: Ja | G167: Nein
A168: 2032 | B168: Enzersdorf im Thale | C168: N | D168: PLZ-Adressierung | E168: extern | F168: Ja | G168: Nein
A169: 2033 | B169: Kammersdorf | C169: N | D169: PLZ-Adressierung | E169: extern | F169: Ja | G169: Nein
A170: 2034 | B170: Großharras | C170: N | D170: PLZ-Adressierung | E170: extern | F170: Ja | G170: Ja
A171: 2041 | B171: Wullersdorf | C171: N | D171: PLZ-Adressierung | E171: extern | F171: Ja | G171: Ja
A172: 2042 | B172: Guntersdorf | C172: N | D172: PLZ-Adressierung | E172: extern | F172: Ja | G172: Nein
A173: 2051 | B173: Zellerndorf | C173: N | D173: PLZ-Adressierung | E173: extern | F173: Ja | G173: Ja
A174: 2052 | B174: Pernersdorf-Pfaffendorf | C174: N | D174: PLZ-Adressierung | E174: extern | F174: Ja | G174: Nein
A175: 2053 | B175: Jetzelsdorf | C175: N | D175: PLZ-Adressierung | E175: extern | F175: Ja | G175: Nein
A176: 2054 | B176: Haugsdorf | C176: N | D176: PLZ-Adressierung | E176: extern | F176: Ja | G176: Ja
A177: 2061 | B177: Hadres | C177: N | D177: PLZ-Adressierung | E177: extern | F177: Ja | G177: Ja
A178: 2062 | B178: Seefeld-Großkadolz | C178: N | D178: PLZ-Adressierung | E178: extern | F178: Ja | G178: Nein
A179: 2063 | B179: Zwingendorf | C179: N | D179: PLZ-Adressierung | E179: extern | F179: Ja | G179: Nein
A180: 2064 | B180: Wulzeshofen | C180: N | D180: PLZ-Adressierung | E180: extern | F180: Ja | G180: Nein
A181: 2070 | B181: Retz | C181: N | D181: PLZ-Adressierung | E181: extern | F181: Ja | G181: Ja
A182: 2073 | B182: Schrattenthal | C182: N | D182: PLZ-Adressierung | E182: extern | F182: Ja | G182: Nein
A183: 2074 | B183: Unterretzbach | C183: N | D183: PLZ-Adressierung | E183: extern | F183: Ja | G183: Nein
A184: 2081 | B184: Niederfladnitz | C184: N | D184: PLZ-Adressierung | E184: extern | F184: Ja | G184: Nein
A185: 2082 | B185: Hardegg | C185: N | D185: PLZ-Adressierung | E185: extern | F185: Ja | G185: Nein
A186: 2083 | B186: Pleißing | C186: N | D186: PLZ-Adressierung | E186: extern | F186: Ja | G186: Nein
A187: 2084 | B187: Weitersfeld | C187: N | D187: PLZ-Adressierung | E187: extern | F187: Ja | G187: Ja
A188: 2091 | B188: Langau | C188: N | D188: PLZ-Adressierung | E188: extern | F188: Ja | G188: Nein
A189: 2092 | B189: Riegersburg | C189: N | D189: PLZ-Adressierung | E189: extern | F189: Ja | G189: Nein
A190: 2093 | B190: Geras | C190: N | D190: PLZ-Adressierung | E190: extern | F190: Ja | G190: Ja
A191: 2094 | B191: Zissersdorf | C191: N | D191: PLZ-Adressierung | E191: extern | F191: Ja | G191: Nein
A192: 2095 | B192: Drosendorf | C192: N | D192: PLZ-Adressierung | E192: extern | F192: Ja | G192: Nein
A193: 2100 | B193: Korneuburg | C193: N | D193: PLZ-Adressierung | E193: extern | F193: Ja | G193: Ja
A194: 2102 | B194: Bisamberg | C194: N | D194: PLZ-Adressierung | E194: extern | F194: Ja | G194: Ja
A195: 2103 | B195: Langenzersdorf | C195: N | D195: PLZ-Adressierung | E195: extern | F195: Ja | G195: Ja
A196: 2104 | B196: Spillern | C196: N | D196: PLZ-Adressierung | E196: extern | F196: Ja | G196: Ja
A197: 2105 | B197: Oberrohrbach | C197: N | D197: PLZ-Adressierung | E197: extern | F197: Ja | G197: Nein
A198: 2111 | B198: Rückersdorf-Harmannsdorf | C198: N | D198: PLZ-Adressierung | E198: extern | F198: Ja | G198: Nein
A199: 2112 | B199: Würnitz | C199: N | D199: PLZ-Adressierung | E199: extern | F199: Ja | G199: Nein
A200: 2113 | B200: Karnabrunn | C200: N | D200: PLZ-Adressierung | E200: extern | F200: Ja | G200: Nein
... 2260 more rows

Sheet Strompreis (hidden)
A1: Strompreisentwicklung am 17.03.09 | E1: http://www.e-control.at/portal/page/portal/ECONTROL_HOME/STROM/STROMPREISE/ENDVERBRAUCHERPREISE
Q3: Ökostrompreisentwicklung ( für Erzeuger) gemäß energie-Control vom 17.03.09
A35: Abgerufen am 17.03.09 von http://www.oekostrom.at/default.asp?id=60837&tt=OEKOAG_R8&hl=3
A36: Der oekostrom®-Preis beträgt brutto 21,5 ct/kWh mit Preisgarantie bis 31.12.2010 und ist österreichweit einheitlich.
A37: Für geschaltete Leistungen – Wärmepumpen, Warmwasserboiler, Nachtstrom – bieten wir unseren günstigen Tarif oekostrom®-click zu brutto 15,5, ct/kWh mit Preisgarantie bis 31.12.2010
B39: Jan. 02 | C39: 2002-02-01 | D39: Mar.02 | E39: 2002-04-01 | F39: May 02 | G39: 2002-06-01 | H39: 2002-07-01 | I39: 2002-08-01 | J39: 2002-09-01 | K39: Oct.02 | L39: 2002-11-01 | M39: Dec.02 | N39: Jan. 03 | O39: 2003-02-01 | P39: Mar.03 | Q39: 2003-04-01 | R39: May 03 | S39: 2003-06-01 | T39: 2003-07-01 | U39: 2003-08-01 | V39: 2003-09-01 | W39: Oct.03 | X39: 2003-11-01 | Y39: Dec.03 | Z39: Jan. 04 | AA39: 2004-02-01 | AB39: Mar.04 | AC39: 2004-04-01 | AD39: May 04 | AE39: 2004-06-01 | AF39: 2004-07-01 | AG39: 2004-08-01 | AH39: 2004-09-01 | AI39: Oct.04 | AJ39: 2004-11-01 | AK39: Dec. 04 | AL39: Jan. 05 | AM39: 2005-02-01 | AN39: Mar. 05 | AO39: 2005-04-01 | AP39: May 05 | AQ39: June 05 | AR39: July 05 | AS39: 2005-08-01 | AT39: 2005-09-01 | AU39: Oct. 05 | AV39: 2005-11-01 | AW39: Dec. 05 | AX39: Jan 06 | AY39: 2006-02-01 | AZ39: Mar. 06 | BA39: 2006-04-01 | BB39: May 06 | BC39: 2006-06-01 | BD39: 2006-07-01 | BE39: 2006-08-01 | BF39: 2006-09-01 | BG39: Oct. 06 | BH39: 2006-11-01 | BI39: Dec. 06 | BJ39: Jan. 07 | BK39: 2007-02-01 | BL39: Mar. 07 | BM39: 2007-04-01 | BN39: May 07 | BO39: June 07 | BP39: July 07 | BQ39: 2007-08-01 | BR39: 2007-09-01 | BS39: Oct. 07 | BT39: 2007-11-01 | BU39: 2007-12-01 | BV39: Jan. 08 | BW39: 2008-02-01 | BX39: March 08 | BY39: 2008-04-01 | BZ39: 2008-05-01 | CA39: 2008-06-01 | CB39: 2008-07-01 | CC39: 2008-08-01 | CD39: 2008-09-01 | CE39: 2008-10-01 | CF39: 2008-11-01 | CG39: 2008-12-01 | CH39: Jan. 09 | CI39: 2009-02-01
B40: 2002-01-01 | C40: 2002-02-01 | D40: 2002-03-01 | E40: 2002-04-01 | F40: 2002-05-01 | G40: 2002-06-01 | H40: 2002-07-01 | I40: 2002-08-01 | J40: 2002-09-01 | K40: 2002-10-01 | L40: 2002-11-01 | M40: 2002-12-01 | N40: 2003-01-01 | O40: 2003-02-01 | P40: 2003-03-01 | Q40: 2003-04-01 | R40: 2003-05-01 | S40: 2003-06-01 | T40: 2003-07-01 | U40: 2003-08-01 | V40: 2003-09-01 | W40: 2003-10-01 | X40: 2003-11-01 | Y40: 2003-12-01 | Z40: 2004-01-01 | AA40: 2004-02-01 | AB40: 2004-03-01 | AC40: 2004-04-01 | AD40: 2004-05-01 | AE40: 2004-06-01 | AF40: 2004-07-01 | AG40: 2004-08-01 | AH40: 2004-09-01 | AI40: 2004-10-01 | AJ40: 2004-11-01 | AK40: 2004-12-01 | AL40: 2005-01-01 | AM40: 2005-02-01 | AN40: 2005-03-01 | AO40: 2005-04-01 | AP40: 2005-05-01 | AQ40: 2005-06-01 | AR40: 2005-07-01 | AS40: 2005-08-01 | AT40: 2005-09-01 | AU40: 2005-10-01 | AV40: 2005-11-01 | AW40: 2005-12-01 | AX40: 2006-01-01 | AY40: 2006-02-01 | AZ40: 2006-03-01 | BA40: 2006-04-01 | BB40: 2006-05-01 | BC40: 2006-06-01 | BD40: 2006-07-01 | BE40: 2006-08-01 | BF40: 2006-09-01 | BG40: 2006-10-01 | BH40: 2006-11-01 | BI40: 2006-12-01 | BJ40: Jan 07 | BK40: 2007-02-01 | BL40: 2007-03-01 | BM40: 2007-04-01 | BN40: 2007-05-01 | BO40: 2007-06-01 | BP40: 2007-07-01 | BQ40: 2007-08-01 | BR40: 2007-09-01 | BS40: Oct. 07 | BT40: 2007-11-01 | BU40: 2007-12-01 | BV40: Jan. 08 | BW40: 2008-02-01 | BX40: 2008-03-01 | BY40: 2008-04-01 | BZ40: 2008-05-01 | CA40: 2008-06-01 | CB40: 2008-07-01 | CC40: 2008-08-01 | CD40: 2008-09-01 | CE40: 2008-10-01 | CF40: 2008-11-01 | CG40: Dec. 08 | CH40: Jan. 09 | CI40: 2009-02-01
A41: Stromnetz Steiermark GmbH | B41: 16.24171429 | C41: 16.24171429 | D41: 16.24171429 | E41: 16.24217143 | F41: 16.24217143 | G41: 16.24182857 | H41: 16.24182857 | I41: 16.24182857 | J41: 16.24182857 | K41: 16.41325714 | L41: 16.41325714 | M41: 16.41325714 | N41: 16.57097143 | O41: 16.51508571 | P41: 16.51508571 | Q41: 16.51508571 | R41: 16.39165714 | S41: 16.39165714 | T41: 16.39165714 | U41: 16.39165714 | V41: 16.39165714 | W41: 16.39165714 | X41: 16.39165714 | Y41: 16.39165714 | Z41: 16.38582857 | AA41: 16.38582857 | AB41: 16.38582857 | AC41: 16.50548571 | AD41: 16.50548571 | AE41: 16.50548571 | AF41: 16.50548571 | AG41: 16.50548571 | AH41: 16.50582857 | AI41: 16.50582857 | AJ41: 16.50582857 | AK41: 16.50582857 | AL41: 16.50582857 | AM41: 16.50582857 | AN41: 16.52125714 | AO41: 16.52125714 | AP41: 16.52125714 | AQ41: 15.25085714 | AR41: 15.62742857 | AS41: 15.62742857 | AT41: 15.62742857 | AU41: 15.62742857 | AV41: 15.62742857 | AW41: 15.62742857 | AX41: 15.29342857 | AY41: 15.80777143 | AZ41: 15.80777143 | BA41: 15.80777143 | BB41: 15.80777143 | BC41: 15.80777143 | BD41: 15.78342857 | BE41: 15.78342857 | BF41: 15.78342857 | BG41: 15.78342857 | BH41: 15.78342857 | BI41: 15.78342857 | BJ41: 16.996 | BK41: 16.996 | BL41: 16.996 | BM41: 16.996 | BN41: 16.996 | BO41: 16.996 | BP41: 17 | BQ41: 17 | BR41: 17 | BS41: 17 | BT41: 17 | BU41: 16.55 | BV41: 16.94 | BW41: 16.94 | BX41: 16.94 | BY41: 16.94 | BZ41: 16.94 | CA41: 17.66 | CB41: 17.66 | CC41: 17.66 | CD41: 17.66 | CE41: 17.66 | CF41: 17.56 | CG41: 17.56 | CH41: 17.15 | CI41: 16.42
A42: Energie AG | B42: 16.27714286 | C42: 16.27714286 | D42: 16.38114286 | E42: 16.38102857 | F42: 15.7128 | G42: 15.7128 | H42: 15.7128 | I42: 15.7128 | J42: 15.7128 | K42: 15.7128 | L42: 15.7128 | M42: 15.7128 | N42: 16.08754286 | O42: 16.0296 | P42: 16.0296 | Q42: 16.0296 | R42: 16.0296 | S42: 16.0296 | T42: 16.0296 | U42: 16.0296 | V42: 16.0296 | W42: 16.0296 | X42: 15.52628571 | Y42: 15.52628571 | Z42: 15.852 | AA42: 15.852 | AB42: 15.852 | AC42: 15.97165714 | AD42: 15.97165714 | AE42: 15.97165714 | AF42: 15.97165714 | AG42: 15.97165714 | AH42: 15.972 | AI42: 15.972 | AJ42: 15.972 | AK42: 15.972 | AL42: 15.972 | AM42: 15.972 | AN42: 15.98742857 | AO42: 15.98742857 | AP42: 15.98742857 | AQ42: 15.03942857 | AR42: 15.41588571 | AS42: 15.41588571 | AT42: 15.41588571 | AU42: 15.41588571 | AV42: 15.41588571 | AW42: 15.41588571 | AX42: 15.22571429 | AY42: 15.73988571 | AZ42: 15.73988571 | BA42: 15.73988571 | BB42: 15.73988571 | BC42: 15.73988571 | BD42: 15.696 | BE42: 15.696 | BF42: 15.696 | BG42: 15.696 | BH42: 15.696 | BI42: 15.696 | BJ42: 16.68542857 | BK42: 16.68542857 | BL42: 16.68542857 | BM42: 16.68542857 | BN42: 16.68542857 | BO42: 16.68542857 | BP42: 16.69 | BQ42: 16.69 | BR42: 16.69 | BS42: 16.69 | BT42: 16.69 | BU42: 16.24 | BV42: 16.61 | BW42: 16.61 | BX42: 16.61 | BY42: 16.61 | BZ42: 16.61 | CA42: 17.33 | CB42: 17.33 | CC42: 17.33 | CD42: 17.33 | CE42: 17.33 | CF42: 17.23 | CG42: 17.23 | CH42: 17.15 | CI42: 16.45
A43: Salzburg AG | B43: 15.75171429 | C43: 15.75171429 | D43: 15.74114286 | E43: 15.74125714 | F43: 15.74125714 | G43: 15.52148571 | H43: 15.52148571 | I43: 15.52148571 | J43: 15.41828571 | K43: 15.41828571 | L43: 15.41828571 | M43: 15.41828571 | N43: 15.28525714 | O43: 15.28525714 | P43: 15.56742857 | Q43: 15.79337143 | R43: 15.79337143 | S43: 15.79337143 | T43: 15.79337143 | U43: 15.79337143 | V43: 15.79337143 | W43: 15.79337143 | X43: 15.35417143 | Y43: 15.35417143 | Z43: 15.67988571 | AA43: 15.67988571 | AB43: 15.67988571 | AC43: 15.79954286 | AD43: 15.79954286 | AE43: 15.79954286 | AF43: 15.79954286 | AG43: 15.79954286 | AH43: 15.79988571 | AI43: 15.79988571 | AJ43: 15.79988571 | AK43: 15.79988571 | AL43: 15.79988571 | AM43: 15.07817143 | AN43: 15.07817143 | AO43: 15.07817143 | AP43: 15.07817143 | AQ43: 15.07817143 | AR43: 15.45462857 | AS43: 15.45462857 | AT43: 15.45462857 | AU43: 15.45462857 | AV43: 15.45462857 | AW43: 15.45462857 | AX43: 15.09714286 | AY43: 15.61131429 | AZ43: 15.61131429 | BA43: 15.61131429 | BB43: 15.61131429 | BC43: 15.61131429 | BD43: 15.55371429 | BE43: 15.55371429 | BF43: 15.55371429 | BG43: 15.55371429 | BH43: 15.55371429 | BI43: 15.55371429 | BJ43: 16.48342857 | BK43: 16.48342857 | BL43: 16.48342857 | BM43: 16.48342857 | BN43: 16.48342857 | BO43: 16.48342857 | BP43: 16.48 | BQ43: 16.48 | BR43: 16.48 | BS43: 16.48 | BT43: 16.48 | BU43: 16.04 | BV43: 16.41 | BW43: 16.41 | BX43: 16.41 | BY43: 16.41 | BZ43: 16.41 | CA43: 17.13 | CB43: 17.13 | CC43: 17.13 | CD43: 17.13 | CE43: 17.13 | CF43: 17.03 | CG43: 17.03 | CH43: 16.91 | CI43: 16.16
A44: KELAG Netz | B44: 14.73685714 | C44: 14.73685714 | D44: 14.73685714 | E44: 14.73668571 | F44: 14.73668571 | G44: 14.73668571 | H44: 14.73668571 | I44: 14.73668571 | J44: 14.73668571 | K44: 14.73668571 | L44: 14.73668571 | M44: 14.73668571 | N44: 15.40217143 | O44: 15.34422857 | P44: 15.34422857 | Q44: 15.34422857 | R44: 15.34422857 | S44: 15.34422857 | T44: 15.34422857 | U44: 15.34422857 | V44: 15.34422857 | W44: 15.34422857 | X44: 15.34937143 | Y44: 15.34937143 | Z44: 15.91954286 | AA44: 15.91954286 | AB44: 15.91954286 | AC44: 16.0392 | AD44: 16.0392 | AE44: 16.0392 | AF44: 16.0392 | AG44: 16.03028571 | AH44: 16.03062857 | AI44: 15.48994286 | AJ44: 15.72788571 | AK44: 15.72788571 | AL44: 15.72788571 | AM44: 15.5214 | AN44: 15.21531429 | AO44: 15.25611429 | AP44: 15.25611429 | AQ44: 15.25611429 | AR44: 15.12514286 | AS44: 15.12514286 | AT44: 15.12514286 | AU44: 15.12514286 | AV44: 15.12514286 | AW44: 15.12514286 | AX44: 15.00342857 | AY44: 15.51771429 | AZ44: 15.51771429 | BA44: 15.51771429 | BB44: 15.51771429 | BC44: 15.51771429 | BD44: 15.47691429 | BE44: 15.47691429 | BF44: 15.47691429 | BG44: 15.47691429 | BH44: 15.47691429 | BI44: 15.47691429 | BJ44: 16.72285714 | BK44: 16.72285714 | BL44: 16.72285714 | BM44: 16.72285714 | BN44: 16.72285714 | BO44: 16.72285714 | BP44: 16.72 | BQ44: 16.72 | BR44: 16.72 | BS44: 16.72 | BT44: 16.72 | BU44: 16.28 | BV44: 16.74 | BW44: 16.74 | BX44: 16.74 | BY44: 16.74 | BZ44: 16.74 | CA44: 17.46 | CB44: 17.46 | CC44: 17.46 | CD44: 17.46 | CE44: 17.46 | CF44: 17.35 | CG44: 17.35 | CH44: 17.46 | CI44: 16.7
A45: BEWAG | B45: 17.00228571 | C45: 17.00228571 | D45: 17.00228571 | E45: 15.98811429 | F45: 15.98811429 | G45: 15.98811429 | H45: 15.98811429 | I45: 16.33371429 | J45: 16.33371429 | K45: 16.33371429 | L45: 16.33371429 | M45: 16.33371429 | N45: 16.57645714 | O45: 16.51851429 | P45: 16.51851429 | Q45: 16.51851429 | R45: 16.51851429 | S45: 16.51851429 | T45: 16.51851429 | U45: 16.51851429 | V45: 16.51851429 | W45: 16.51851429 | X45: 15.91988571 | Y45: 15.91988571 | Z45: 16.43485714 | AA45: 16.43485714 | AB45: 16.43485714 | AC45: 16.55451429 | AD45: 16.55451429 | AE45: 16.55451429 | AF45: 16.55451429 | AG45: 16.55451429 | AH45: 16.55485714 | AI45: 16.55485714 | AJ45: 16.55485714 | AK45: 16.55485714 | AL45: 16.55485714 | AM45: 14.69245714 | AN45: 14.69245714 | AO45: 14.69245714 | AP45: 14.69245714 | AQ45: 14.69245714 | AR45: 15.06891429 | AS45: 15.06891429 | AT45: 15.06891429 | AU45: 15.06891429 | AV45: 15.06891429 | AW45: 15.06891429 | AX45: 14.732 | AY45: 15.24651429 | AZ45: 15.24651429 | BA45: 15.24651429 | BB45: 15.24651429 | BC45: 15.24651429 | BD45: 15.13577143 | BE45: 15.13577143 | BF45: 15.13577143 | BG45: 15.13577143 | BH45: 15.13577143 | BI45: 15.13577143 | BJ45: 16.19257143 | BK45: 16.19257143 | BL45: 16.19257143 | BM45: 16.19257143 | BN45: 16.19257143 | BO45: 16.19257143 | BP45: 16.19 | BQ45: 16.19 | BR45: 16.19 | BS45: 16.19 | BT45: 16.19 | BU45: 15.75 | BV45: 16.14 | BW45: 16.14 | BX45: 16.14 | BY45: 16.14 | BZ45: 16.14 | CA45: 16.86 | CB45: 16.86 | CC45: 16.86 | CD45: 16.86 | CE45: 16.86 | CF45: 16.86 | CG45: 16.94 | CH45: 16.85 | CI45: 16.85
A46: Linz Strom | B46: 15.44 | C46: 15.54371429 | D46: 15.54371429 | E46: 15.54377143 | F46: 14.70514286 | G46: 14.70514286 | H46: 14.70514286 | I46: 14.70514286 | J46: 14.70514286 | K46: 14.70514286 | L46: 14.70514286 | M46: 14.70514286 | N46: 15.07988571 | O46: 15.02194286 | P46: 15.02194286 | Q46: 15.02194286 | R46: 15.02194286 | S46: 15.02194286 | T46: 15.02194286 | U46: 15.02194286 | V46: 15.02194286 | W46: 15.02194286 | X46: 14.77131429 | Y46: 14.77131429 | Z46: 15.17931429 | AA46: 15.17931429 | AB46: 15.17931429 | AC46: 15.29897143 | AD46: 15.29897143 | AE46: 15.29897143 | AF46: 15.29897143 | AG46: 15.29897143 | AH46: 15.29931429 | AI46: 15.29931429 | AJ46: 15.29931429 | AK46: 15.29931429 | AL46: 15.29931429 | AM46: 15.29931429 | AN46: 15.31474286 | AO46: 15.31474286 | AP46: 15.31474286 | AQ46: 14.37657143 | AR46: 14.75314286 | AS46: 14.75314286 | AT46: 14.75314286 | AU46: 14.75314286 | AV46: 14.75314286 | AW46: 14.75314286 | AX46: 14.408 | AY46: 15.01611429 | AZ46: 15.01611429 | BA46: 15.01611429 | BB46: 15.01611429 | BC46: 15.01611429 | BD46: 14.99657143 | BE46: 14.99657143 | BF46: 14.99657143 | BG46: 14.99657143 | BH46: 14.99657143 | BI46: 14.99657143 | BJ46: 16.126 | BK46: 16.126 | BL46: 16.126 | BM46: 16.126 | BN46: 16.126 | BO46: 16.126 | BP46: 16.13 | BQ46: 16.13 | BR46: 16.13 | BS46: 16.13 | BT46: 16.13 | BU46: 15.68 | BV46: 15.92 | BW46: 15.92 | BX46: 15.92 | BY46: 15.92 | BZ46: 15.92 | CA46: 16.64 | CB46: 16.64 | CC46: 16.64 | CD46: 16.64 | CE46: 16.64 | CF46: 16.54 | CG46: 16.54 | CH46: 16.29 | CI46: 15.51
A47: VKW | B47: 12.88142857 | C47: 12.88142857 | D47: 12.88171429 | E47: 12.88182857 | F47: 12.88182857 | G47: 12.88182857 | H47: 12.768 | I47: 12.768 | J47: 12.80434286 | K47: 12.80434286 | L47: 12.80434286 | M47: 12.80434286 | N47: 13.21405714 | O47: 13.10468571 | P47: 13.10468571 | Q47: 13.10468571 | R47: 13.10468571 | S47: 13.10468571 | T47: 13.10468571 | U47: 13.10468571 | V47: 13.10468571 | W47: 13.10468571 | X47: 13.12011429 | Y47: 13.12011429 | Z47: 13.74 | AA47: 13.74 | AB47: 13.74 | AC47: 13.85965714 | AD47: 13.85965714 | AE47: 13.85965714 | AF47: 13.85965714 | AG47: 13.85965714 | AH47: 13.86 | AI47: 13.86 | AJ47: 13.86 | AK47: 13.86 | AL47: 13.86 | AM47: 13.86 | AN47: 13.87542857 | AO47: 13.3944 | AP47: 13.3944 | AQ47: 13.3944 | AR47: 13.46982857 | AS47: 13.46982857 | AT47: 13.46982857 | AU47: 13.46982857 | AV47: 13.46982857 | AW47: 13.46982857 | AX47: 14.196 | AY47: 14.71028571 | AZ47: 14.71028571 | BA47: 14.71028571 | BB47: 14.71028571 | BC47: 14.71028571 | BD47: 14.68422857 | BE47: 14.68422857 | BF47: 14.68422857 | BG47: 14.68422857 | BH47: 14.68422857 | BI47: 14.68422857 | BJ47: 16.03371429 | BK47: 16.03371429 | BL47: 16.03371429 | BM47: 16.03371429 | BN47: 16.03371429 | BO47: 16.03371429 | BP47: 16.03 | BQ47: 16.03 | BR47: 16.03 | BS47: 16.03 | BT47: 16.03 | BU47: 15.59 | BV47: 16.02 | BW47: 16.02 | BX47: 16.02 | BY47: 16.02 | BZ47: 16.02 | CA47: 16.74 | CB47: 16.74 | CC47: 16.74 | CD47: 16.74 | CE47: 16.74 | CF47: 16.64 | CG47: 16.64 | CH47: 16.71 | CI47: 15.92
A48: EVN | B48: 14.32542857 | C48: 14.32542857 | D48: 14.32571429 | E48: 14.3256 | F48: 14.3256 | G48: 13.98582857 | H48: 13.98582857 | I48: 13.98582857 | J48: 14.06982857 | K48: 14.06982857 | L48: 14.06982857 | M48: 14.06982857 | N48: 14.51657143 | O48: 14.45862857 | P48: 14.45862857 | Q48: 14.45862857 | R48: 14.45862857 | S48: 14.45862857 | T48: 14.45862857 | U48: 14.45862857 | V48: 14.45862857 | W48: 14.45862857 | X48: 14.04205714 | Y48: 14.04205714 | Z48: 14.36777143 | AA48: 14.36777143 | AB48: 14.36777143 | AC48: 14.48742857 | AD48: 14.48742857 | AE48: 14.48742857 | AF48: 14.48742857 | AG48: 14.48742857 | AH48: 14.48777143 | AI48: 14.48777143 | AJ48: 14.48777143 | AK48: 14.48777143 | AL48: 14.48777143 | AM48: 14.48777143 | AN48: 14.5032 | AO48: 13.94777143 | AP48: 13.94777143 | AQ48: 13.94777143 | AR48: 14.32422857 | AS48: 14.32422857 | AT48: 14.32422857 | AU48: 14.32422857 | AV48: 14.32422857 | AW48: 14.32422857 | AX48: 14.15485714 | AY48: 14.79051429 | AZ48: 14.79051429 | BA48: 14.79051429 | BB48: 14.79051429 | BC48: 14.79051429 | BD48: 14.73942857 | BE48: 14.73942857 | BF48: 14.73942857 | BG48: 14.73942857 | BH48: 14.73942857 | BI48: 14.73942857 | BJ48: 15.85914286 | BK48: 15.85914286 | BL48: 15.85914286 | BM48: 15.85914286 | BN48: 15.85914286 | BO48: 15.85914286 | BP48: 15.86 | BQ48: 15.86 | BR48: 15.86 | BS48: 15.86 | BT48: 15.86 | BU48: 15.41 | BV48: 15.8 | BW48: 15.8 | BX48: 15.8 | BY48: 15.8 | BZ48: 15.8 | CA48: 16.52 | CB48: 16.52 | CC48: 16.52 | CD48: 16.52 | CE48: 16.52 | CF48: 16.6 | CG48: 16.69 | CH48: 16.75 | CI48: 16.75
A49: Wien Energie Stromnetz GmbH | B49: 14.75657143 | C49: 14.75657143 | D49: 14.75657143 | E49: 14.09108571 | F49: 14.09108571 | G49: 14.09108571 | H49: 14.09108571 | I49: 14.09108571 | J49: 14.09074286 | K49: 14.09074286 | L49: 14.09074286 | M49: 14.09074286 | N49: 13.76365714 | O49: 13.70571429 | P49: 13.70571429 | Q49: 13.70571429 | R49: 13.70571429 | S49: 13.70571429 | T49: 13.70571429 | U49: 13.70571429 | V49: 13.70571429 | W49: 13.70571429 | X49: 13.3776 | Y49: 13.3776 | Z49: 13.70331429 | AA49: 13.70331429 | AB49: 13.70331429 | AC49: 13.82297143 | AD49: 13.82297143 | AE49: 13.82297143 | AF49: 13.82297143 | AG49: 13.82297143 | AH49: 13.82331429 | AI49: 13.82331429 | AJ49: 13.82331429 | AK49: 13.82331429 | AL49: 13.82331429 | AM49: 13.82331429 | AN49: 13.83874286 | AO49: 13.33748571 | AP49: 13.33748571 | AQ49: 13.33748571 | AR49: 13.71394286 | AS49: 13.71394286 | AT49: 13.71394286 | AU49: 13.71394286 | AV49: 13.71394286 | AW49: 13.71394286 | AX49: 13.67571429 | AY49: 14.18982857 | AZ49: 14.18982857 | BA49: 14.18982857 | BB49: 14.18982857 | BC49: 14.18982857 | BD49: 14.12777143 | BE49: 14.12777143 | BF49: 14.12777143 | BG49: 14.12777143 | BH49: 14.12777143 | BI49: 14.12777143 | BJ49: 15.32114286 | BK49: 15.32114286 | BL49: 15.32114286 | BM49: 15.32114286 | BN49: 15.32114286 | BO49: 15.32114286 | BP49: 15.32 | BQ49: 15.32 | BR49: 15.32 | BS49: 15.32 | BT49: 15.32 | BU49: 14.89 | BV49: 15.5 | BW49: 15.5 | BX49: 15.5 | BY49: 15.5 | BZ49: 15.5 | CA49: 16.22 | CB49: 16.22 | CC49: 16.22 | CD49: 16.22 | CE49: 16.22 | CF49: 16.3 | CG49: 16.3 | CH49: 16.4 | CI49: 16.58
A50: Stromnetz Graz GmbH & Co KG | B50: 14.26485714 | C50: 14.26485714 | D50: 14.26485714 | E50: 14.26525714 | F50: 14.26525714 | G50: 14.26525714 | H50: 14.26525714 | I50: 14.26525714 | J50: 14.26525714 | K50: 14.43668571 | L50: 14.43668571 | M50: 14.43668571 | N50: 14.59645714 | O50: 14.53851429 | P50: 14.53851429 | Q50: 14.53851429 | R50: 14.53851429 | S50: 14.53851429 | T50: 14.53851429 | U50: 14.53851429 | V50: 14.53851429 | W50: 14.53851429 | X50: 14.53851429 | Y50: 14.53851429 | Z50: 14.11371429 | AA50: 14.11371429 | AB50: 14.11371429 | AC50: 14.23337143 | AD50: 14.23337143 | AE50: 14.23337143 | AF50: 14.23337143 | AG50: 14.23337143 | AH50: 14.23371429 | AI50: 14.23371429 | AJ50: 14.23371429 | AK50: 14.23371429 | AL50: 14.23371429 | AM50: 14.23371429 | AN50: 14.24914286 | AO50: 14.24914286 | AP50: 14.24914286 | AQ50: 13.37628571 | AR50: 13.75268571 | AS50: 13.75268571 | AT50: 13.75268571 | AU50: 13.75268571 | AV50: 13.75268571 | AW50: 13.75268571 | AX50: 13.48342857 | AY50: 13.99782857 | AZ50: 13.99782857 | BA50: 13.99782857 | BB50: 13.99782857 | BC50: 13.99782857 | BD50: 13.96182857 | BE50: 13.96182857 | BF50: 13.96182857 | BG50: 13.96182857 | BH50: 13.96182857 | BI50: 13.96182857 | BJ50: 15.06142857 | BK50: 15.06142857 | BL50: 15.06142857 | BM50: 15.06142857 | BN50: 15.06142857 | BO50: 15.06142857 | BP50: 15.06 | BQ50: 15.06 | BR50: 15.06 | BS50: 15.06 | BT50: 15.06 | BU50: 14.62 | BV50: 14.93 | BW50: 14.93 | BX50: 14.93 | BY50: 14.93 | BZ50: 14.93 | CA50: 15.65 | CB50: 15.65 | CC50: 15.65 | CD50: 15.65 | CE50: 15.65 | CF50: 15.55 | CG50: 15.55 | CH50: 15.49 | CI50: 14.83
A51: Tiwag | B51: 12.68371429 | C51: 12.68371429 | D51: 12.68371429 | E51: 12.68365714 | F51: 12.68365714 | G51: 12.68365714 | H51: 12.68365714 | I51: 12.68365714 | J51: 12.68365714 | K51: 12.57737143 | L51: 12.57737143 | M51: 12.57737143 | N51: 13.13211429 | O51: 13.07417143 | P51: 13.07417143 | Q51: 13.07417143 | R51: 13.07417143 | S51: 13.07417143 | T51: 13.07417143 | U51: 13.07417143 | V51: 13.07417143 | W51: 13.07417143 | X51: 12.45771429 | Y51: 12.45771429 | Z51: 13.77085714 | AA51: 13.77085714 | AB51: 13.77085714 | AC51: 13.89051429 | AD51: 13.89051429 | AE51: 13.89051429 | AF51: 13.89051429 | AG51: 13.89051429 | AH51: 13.89085714 | AI51: 13.89085714 | AJ51: 13.89085714 | AK51: 13.82365714 | AL51: 13.82365714 | AM51: 13.82365714 | AN51: 13.90628571 | AO51: 13.52194286 | AP51: 13.52194286 | AQ51: 13.52194286 | AR51: 13.8984 | AS51: 13.8984 | AT51: 13.8984 | AU51: 13.8984 | AV51: 13.8984 | AW51: 13.8984 | AX51: 13.46742857 | AY51: 13.98171429 | AZ51: 13.98171429 | BA51: 13.98171429 | BB51: 13.98171429 | BC51: 13.98171429 | BD51: 13.49794286 | BE51: 13.49794286 | BF51: 13.49794286 | BG51: 13.49794286 | BH51: 13.49794286 | BI51: 13.49794286 | BJ51: 15.276 | BK51: 15.276 | BL51: 15.276 | BM51: 15.276 | BN51: 15.276 | BO51: 15.276 | BP51: 15.28 | BQ51: 15.28 | BR51: 15.28 | BS51: 15.28 | BT51: 15.28 | BU51: 14.83 | BV51: 15.28 | BW51: 15.28 | BX51: 15.28 | BY51: 15.28 | BZ51: 15.28 | CA51: 15.8 | CB51: 15.8 | CC51: 15.8 | CD51: 15.8 | CE51: 15.8 | CF51: 15.8 | CG51: 15.8 | CH51: 15.9 | CI51: 15.2
A52: IKB | B52: 12.69228571 | C52: 12.69228571 | D52: 12.69228571 | E52: 12.69222857 | F52: 12.69222857 | G52: 12.69222857 | H52: 12.69222857 | I52: 12.69222857 | J52: 12.69222857 | K52: 12.40457143 | L52: 12.40457143 | M52: 12.40457143 | N52: 12.91817143 | O52: 13.05291429 | P52: 13.05291429 | Q52: 13.05291429 | R52: 13.05291429 | S52: 13.05291429 | T52: 13.05291429 | U52: 13.05291429 | V52: 13.05291429 | W52: 13.05291429 | X52: 12.79302857 | Y52: 12.79302857 | Z52: 13.11874286 | AA52: 13.11908571 | AB52: 13.11908571 | AC52: 13.23874286 | AD52: 13.23874286 | AE52: 13.23874286 | AF52: 13.23874286 | AG52: 13.23874286 | AH52: 13.23908571 | AI52: 13.17188571 | AJ52: 13.17188571 | AK52: 13.17188571 | AL52: 13.17188571 | AM52: 13.17188571 | AN52: 13.25451429 | AO52: 12.89245714 | AP52: 12.89245714 | AQ52: 12.89245714 | AR52: 13.51508571 | AS52: 13.51508571 | AT52: 13.51508571 | AU52: 13.51508571 | AV52: 13.51508571 | AW52: 13.51508571 | AX52: 13.324 | AY52: 13.50891429 | AZ52: 13.50891429 | BA52: 13.50891429 | BB52: 13.50891429 | BC52: 13.50891429 | BD52: 13.96251429 | BE52: 13.96251429 | BF52: 13.96251429 | BG52: 13.96251429 | BH52: 13.96251429 | BI52: 13.96251429 | BJ52: 14.77 | BK52: 14.77 | BL52: 14.77 | BM52: 14.77 | BN52: 14.77 | BO52: 14.77 | BP52: 14.77 | BQ52: 14.77 | BR52: 14.77 | BS52: 14.77 | BT52: 14.77 | BU52: 14.33 | BV52: 14.69 | BW52: 14.69 | BX52: 14.69 | BY52: 14.69 | BZ52: 14.69 | CA52: 15.41 | CB52: 15.41 | CC52: 15.41 | CD52: 15.41 | CE52: 15.41 | CF52: 15.49 | CG52: 15.49 | CH52: 15.53 | CI52: 16.05
A53: Energie Klagenfurt GmbH | B53: 12.48342857 | C53: 12.48342857 | D53: 12.48342857 | E53: 12.48342857 | F53: 12.48342857 | G53: 12.48342857 | H53: 12.48342857 | I53: 12.48342857 | J53: 12.48342857 | K53: 12.53451429 | L53: 12.53451429 | M53: 12.53451429 | N53: 13.03851429 | O53: 12.98057143 | P53: 12.98057143 | Q53: 12.98057143 | R53: 12.98057143 | S53: 12.98057143 | T53: 12.98057143 | U53: 12.98057143 | V53: 12.98057143 | W53: 12.98057143 | X53: 12.61542857 | Y53: 12.61542857 | Z53: 12.94114286 | AA53: 12.94114286 | AB53: 12.94114286 | AC53: 13.0608 | AD53: 13.0608 | AE53: 13.0608 | AF53: 13.0608 | AG53: 13.0608 | AH53: 13.06114286 | AI53: 12.99394286 | AJ53: 12.99394286 | AK53: 12.99394286 | AL53: 12.99394286 | AM53: 12.6528 | AN53: 12.6528 | AO53: 12.6528 | AP53: 12.6528 | AQ53: 12.6528 | AR53: 13.02925714 | AS53: 13.02925714 | AT53: 13.02925714 | AU53: 13.02925714 | AV53: 13.02925714 | AW53: 13.02925714 | AX53: 12.91971429 | AY53: 13.43382857 | AZ53: 13.43382857 | BA53: 13.43382857 | BB53: 13.43382857 | BC53: 13.43382857 | BD53: 13.40228571 | BE53: 13.40228571 | BF53: 13.40228571 | BG53: 13.40228571 | BH53: 13.40228571 | BI53: 13.40228571 | BJ53: 13.89 | BK53: 13.89 | BL53: 13.89 | BM53: 13.89 | BN53: 13.89 | BO53: 13.89 | BP53: 13.89 | BQ53: 13.89 | BR53: 13.89 | BS53: 13.89 | BT53: 13.89 | BU53: 13.44 | BV53: 13.77 | BW53: 13.77 | BX53: 13.77 | BY53: 13.77 | BZ53: 13.77 | CA53: 14.49 | CB53: 14.49 | CC53: 14.49 | CD53: 14.49 | CE53: 14.49 | CF53: 14.57 | CG53: 14.57 | CH53: 14.76 | CI53: 14.76
A54: STEG | B54: 15.60514286 | C54: 15.60514286 | D54: 15.60514286 | E54: 15.60548571 | F54: 15.60548571 | G54: 15.60548571 | H54: 15.60548571 | I54: 15.60548571 | J54: 15.60514286 | K54: 15.77657143 | L54: 15.77657143 | M54: 15.77657143 | N54: 15.93634286 | O54: 15.8784 | P54: 15.8784 | Q54: 15.8784 | R54: 15.8784 | S54: 15.8784 | T54: 15.8784 | U54: 15.8784 | V54: 15.8784 | W54: 15.8784 | X54: 15.8784 | Y54: 15.8784
B55: =AVERAGE(B41:B54) -> 14.65304082 | C55: 14.66044898 | D55: 14.66716327 | E55: 14.54725714 | F55: 14.43962449 | G55: 14.39963265 | H55: 14.39150204 | I55: 14.41618776 | J55: 14.41736327 | K55: 14.42960816 | L55: 14.42960816 | M55: 14.42960816 | N55: 14.72272653 | O55: 14.67915918 | P55: 14.69931429 | Q55: 14.71545306 | R55: 14.70663673 | S55: 14.70663673 | T55: 14.70663673 | U55: 14.70663673 | V55: 14.70663673 | W55: 14.70663673 | X55: 14.43825306 | Y55: 14.43825306 | Z55: 14.70822857 | AA55: 14.70825495 | AB55: 14.70825495 | AC55: 14.82791209 | AD55: 14.82791209 | AE55: 14.82791209 | AF55: 14.82791209 | AG55: 14.82722637 | AH55: =AVERAGE(AH41:AH54) -> 14.82756923 | AI55: 14.77563956 | AJ55: 14.79394286 | AK55: 14.78877363 | AL55: 14.78877363 | AM55: 14.54787033 | AN55: 14.54534505 | AO55: 14.37278242 | AP55: 14.37278242 | AQ55: 14.06282637 | AR55: 14.39604396 | AS55: 14.39604396 | AT55: 14.39604396 | AU55: 14.39604396 | AV55: 14.39604396 | AW55: 14.39604396 | AX55: 14.2292967 | AY55: 14.73478681 | AZ55: 14.73478681 | BA55: 14.73478681 | BB55: 14.73478681 | BC55: 14.73478681 | BD55: 14.69372308 | BE55: 14.69372308 | BF55: 14.69372308 | BG55: 14.69372308 | BH55: 14.69372308 | BI55: 14.69372308 | BJ55: 15.80136264 | BK55: 15.80136264 | BL55: 15.80136264 | BM55: 15.80136264 | BN55: =AVERAGE(BN41:BN54) -> 15.80136264 | BO55: 15.80136264 | BP55: 15.80153846 | BQ55: 15.80153846 | BR55: 15.80153846 | BS55: 15.80153846 | BT55: 15.80153846 | BU55: 15.35769231 | BV55: 15.75 | BW55: 15.75 | BX55: 15.75 | BY55: 15.75 | BZ55: 15.75 | CA55: 16.45461538 | CB55: 16.45461538 | CC55: 16.45461538 | CD55: 16.45461538 | CE55: 16.45461538 | CF55: 16.42461538 | CG55: 16.43769231 | CH55: 16.41153846 | CI55: 16.01384615
B94: Derzeit durchschnittlicher Strompreis: | G94: =CI55 -> 16.01384615 | H94: cent/kWh
B95: Derzeit Ökostrompreis (ökostrom-ag): | G95: 21.5 | H95: cent/kWh
B96: Einspeisepreis für Ökostrom: | G96: 5.59 | H96: cent/kWh
A102: =$B$55*(1+(D102/100))^7 -> 16.26260281 | D102: 1.5
A103: =Eingabe!#REF!*(1+(Eingabe!$G$71/100))^Berechnungen!#REF! -> 
A104: =Eingabe!#REF!*(1+(Eingabe!$G$71/100))^Berechnungen!#REF! -> 
A105: =Eingabe!#REF!*(1+(Eingabe!$G$71/100))^Berechnungen!#REF! -> 
A106: =Eingabe!#REF!*(1+(Eingabe!$G$71/100))^Berechnungen!#REF! -> 
A107: =Eingabe!#REF!*(1+(Eingabe!$G$71/100))^Berechnungen!#REF! -> 
A108: =Eingabe!#REF!*(1+(Eingabe!$G$71/100))^Berechnungen!#REF! -> 
A109: =Eingabe!#REF!*(1+(Eingabe!$G$71/100))^Berechnungen!#REF! -> 
A110: =Eingabe!#REF!*(1+(Eingabe!$G$71/100))^Berechnungen!#REF! -> 
A111: =Eingabe!#REF!*(1+(Eingabe!$G$71/100))^Berechnungen!#REF! -> 
A112: =Eingabe!#REF!*(1+(Eingabe!$G$71/100))^Berechnungen!#REF! -> 
A113: =Eingabe!#REF!*(1+(Eingabe!$G$71/100))^Berechnungen!#REF! -> 
A114: =Eingabe!#REF!*(1+(Eingabe!$G$71/100))^Berechnungen!#REF! -> 
A115: =Eingabe!#REF!*(1+(Eingabe!$G$71/100))^Berechnungen!#REF! -> 
A116: =Eingabe!#REF!*(1+(Eingabe!$G$71/100))^Berechnungen!#REF! -> 
A117: =Eingabe!#REF!*(1+(Eingabe!$G$71/100))^Berechnungen!#REF! -> 
A118: =Eingabe!#REF!*(1+(Eingabe!$G$71/100))^Berechnungen!#REF! -> 
A119: =Eingabe!#REF!*(1+(Eingabe!$G$71/100))^Berechnungen!#REF! -> 
A120: =Eingabe!#REF!*(1+(Eingabe!$G$71/100))^Berechnungen!#REF! -> 
A121: =Eingabe!#REF!*(1+(Eingabe!$G$71/100))^Berechnungen!#REF! -> 
A122: =Eingabe!#REF!*(1+(Eingabe!$G$71/100))^Berechnungen!#REF! -> 
A123: =Eingabe!#REF!*(1+(Eingabe!$G$71/100))^Berechnungen!#REF! -> 
A124: =Eingabe!#REF!*(1+(Eingabe!$G$71/100))^Berechnungen!#REF! -> 
A125: =Eingabe!#REF!*(1+(Eingabe!$G$71/100))^Berechnungen!#REF! -> 
A126: =Eingabe!#REF!*(1+(Eingabe!$G$71/100))^Berechnungen!#REF! -> 

Sheet Motorbez. Versicherungssteuer (hidden)
A1: Berechung NEU | E1: Motorbezogene Versicherungssteuer NEU | L1: Werte ab 01.10.2020 | R1: Jahr | T1: Jahr der Anschaffung | U1: CO2 Grenzwert | V1: Leistung Grenzwert
A2: jährliche | C2: =(IF((Eingabe!M17-$O$5)>5,(Eingabe!M17-$O$5)*$M$5,5*$M$5)+IF((Eingabe!M22-$O$3)>5,(Eingabe!M22-$O$3)*$M$3,5*$M$3))*12 -> 328.32 | E2: =VLOOKUP(Eingabe!C42,'Motorbez. Versicherungssteuer'!A2:C5,3,FALSE) -> 328.32 | T2: [a] | U2: [g/km] | V2: [kW]
A3: ½-jährliche | C3: =(IF((Eingabe!M17-$O$5)>5,(Eingabe!M17-$O$5)*$M$5,5*$M$5)+IF((Eingabe!M22-$O$3)>5,(Eingabe!M22-$O$3)*$M$3,5*$M$3))*6 -> 164.16 | L3: CO2 | M3: 0.72 | N3: € pro g/km ab | O3: =VLOOKUP(R3,T3:V7,2,TRUE) -> 115 | P3: g/km | R3: 2020 | T3: 2020 | U3: 115 | V3: 65
A4: ¼-jährliche | C4: =(IF((Eingabe!M17-$O$5)>5,(Eingabe!M17-$O$5)*$M$5,5*$M$5)+IF((Eingabe!M22-$O$3)>5,(Eingabe!M22-$O$3)*$M$3,5*$M$3))*3 -> 82.08 | T4: 2021 | U4: 112 | V4: 64
A5: monatliche | C5: =(IF((Eingabe!M17-$O$5)>5,(Eingabe!M17-$O$5)*$M$5,5*$M$5)+IF((Eingabe!M22-$O$3)>5,(Eingabe!M22-$O$3)*$M$3,5*$M$3)) -> 27.36 | L5: Leistung | M5: 0.72 | N5: € pro kW ab | O5: =VLOOKUP(R3,T3:V7,3,TRUE) -> 65 | P5: kW | T5: 2022 | U5: 109 | V5: 63
T6: 2023 | U6: 106 | V6: 62
A7: Leistung | B7: Staffelung | C7: Motorbezogene Versicherungssteuer (spezifisch) | G7: Absolutbeträge | T7: 2024 | U7: 103 | V7: 61
A8: [kW] | C8: [€/kW und Monat] | G8: [€/a]
C9: jährliche | D9: ½-jährliche | E9: ¼-jährliche | F9: monatliche | G9: jährliche | H9: ½-jährliche | I9: ¼-jährliche | J9: monatliche
A10: 1 | B10: 1 | C10: 0 | D10: 0 | E10: 0 | F10: 0 | G10: =C10*A10*12 -> 0 | H10: =D10*B10*12 -> 0 | I10: 0 | J10: 0
A11: 2 | B11: 2 | C11: 0 | D11: 0 | E11: 0 | F11: 0 | G11: =C11*A11*12 -> 0 | H11: 0 | I11: 0 | J11: 0
A12: 3 | B12: 3 | C12: 0 | D12: 0 | E12: 0 | F12: 0 | G12: 0 | H12: 0 | I12: 0 | J12: 0
A13: 4 | B13: 4 | C13: 0 | D13: 0 | E13: 0 | F13: 0 | G13: 0 | H13: 0 | I13: 0 | J13: 0
A14: 5 | B14: 5 | C14: 0 | D14: 0 | E14: 0 | F14: 0 | G14: 0 | H14: 0 | I14: 0 | J14: 0
A15: 6 | B15: 6 | C15: 0 | D15: 0 | E15: 0 | F15: 0 | G15: 0 | H15: 0 | I15: 0 | J15: 0
A16: 7 | B16: 7 | C16: 0 | D16: 0 | E16: 0 | F16: 0 | G16: 0 | H16: 0 | I16: 0 | J16: 0
A17: 8 | B17: 8 | C17: 0 | D17: 0 | E17: 0 | F17: 0 | G17: 0 | H17: 0 | I17: 0 | J17: 0
A18: 9 | B18: 9 | C18: 0 | D18: 0 | E18: 0 | F18: 0 | G18: 0 | H18: 0 | I18: 0 | J18: 0
A19: 10 | B19: 10 | C19: 0 | D19: 0 | E19: 0 | F19: 0 | G19: 0 | H19: 0 | I19: 0 | J19: 0
A20: 11 | B20: 11 | C20: 0 | D20: 0 | E20: 0 | F20: 0 | G20: 0 | H20: 0 | I20: 0 | J20: 0
A21: 12 | B21: 12 | C21: 0 | D21: 0 | E21: 0 | F21: 0 | G21: 0 | H21: 0 | I21: 0 | J21: 0
A22: 13 | B22: 13 | C22: 0 | D22: 0 | E22: 0 | F22: 0 | G22: 0 | H22: 0 | I22: 0 | J22: 0
A23: 14 | B23: 14 | C23: 0 | D23: 0 | E23: 0 | F23: 0 | G23: 0 | H23: 0 | I23: 0 | J23: 0
A24: 15 | B24: 15 | C24: 0 | D24: 0 | E24: 0 | F24: 0 | G24: 0 | H24: 0 | I24: 0 | J24: 0
A25: 16 | B25: 16 | C25: 0 | D25: 0 | E25: 0 | F25: 0 | G25: 0 | H25: 0 | I25: 0 | J25: 0
A26: 17 | B26: 17 | C26: 0 | D26: 0 | E26: 0 | F26: 0 | G26: 0 | H26: =D26*B26*12 -> 0 | I26: =E26*C26*12 -> 0 | J26: =F26*D26*12 -> 0
A27: 18 | B27: 18 | C27: 0 | D27: 0 | E27: 0 | F27: 0 | G27: 0 | H27: 0 | I27: 0 | J27: 0
A28: 19 | B28: 19 | C28: 0 | D28: 0 | E28: 0 | F28: 0 | G28: 0 | H28: 0 | I28: 0 | J28: 0
A29: 20 | B29: 20 | C29: 0 | D29: 0 | E29: 0 | F29: 0 | G29: 0 | H29: 0 | I29: 0 | J29: 0
A30: 21 | B30: 21 | C30: 0 | D30: 0 | E30: 0 | F30: 0 | G30: 0 | H30: 0 | I30: 0 | J30: 0
A31: 22 | B31: 22 | C31: 0 | D31: 0 | E31: 0 | F31: 0 | G31: 0 | H31: 0 | I31: 0 | J31: 0
A32: 23 | B32: 23 | C32: 0 | D32: 0 | E32: 0 | F32: 0 | G32: 0 | H32: 0 | I32: 0 | J32: 0
A33: 24 | B33: 24 | C33: 0 | D33: 0 | E33: 0 | F33: 0 | G33: 0 | H33: 0 | I33: 0 | J33: 0
A34: 25 | B34: 1 | C34: 0.62 | D34: 0.6572 | E34: 0.6696 | F34: 0.682 | G34: =C34*$B34*12 -> 7.44 | H34: =D34*$B34*12 -> 7.8864 | I34: 8.0352 | J34: 8.184
A35: 26 | B35: 2 | C35: 0.62 | D35: 0.6572 | E35: 0.6696 | F35: 0.682 | G35: =C35*$B35*12 -> 14.88 | H35: 15.7728 | I35: 16.0704 | J35: 16.368
A36: 27 | B36: 3 | C36: 0.62 | D36: 0.6572 | E36: 0.6696 | F36: 0.682 | G36: 22.32 | H36: 23.6592 | I36: 24.1056 | J36: 24.552
A37: 28 | B37: 4 | C37: 0.62 | D37: 0.6572 | E37: 0.6696 | F37: 0.682 | G37: 29.76 | H37: 31.5456 | I37: 32.1408 | J37: 32.736
A38: 29 | B38: 5 | C38: 0.62 | D38: 0.6572 | E38: 0.6696 | F38: 0.682 | G38: 37.2 | H38: 39.432 | I38: 40.176 | J38: 40.92
A39: 30 | B39: 6 | C39: 0.62 | D39: 0.6572 | E39: 0.6696 | F39: 0.682 | G39: 44.64 | H39: 47.3184 | I39: 48.2112 | J39: 49.104
A40: 31 | B40: 7 | C40: 0.62 | D40: 0.6572 | E40: 0.6696 | F40: 0.682 | G40: 52.08 | H40: 55.2048 | I40: 56.2464 | J40: 57.288
A41: 32 | B41: 8 | C41: 0.62 | D41: 0.6572 | E41: 0.6696 | F41: 0.682 | G41: 59.52 | H41: 63.0912 | I41: 64.2816 | J41: 65.472
A42: 33 | B42: 9 | C42: 0.62 | D42: 0.6572 | E42: 0.6696 | F42: 0.682 | G42: 66.96 | H42: 70.9776 | I42: 72.3168 | J42: 73.656
A43: 34 | B43: 10 | C43: 0.62 | D43: 0.6572 | E43: 0.6696 | F43: 0.682 | G43: 74.4 | H43: 78.864 | I43: 80.352 | J43: 81.84
A44: 35 | B44: 11 | C44: 0.62 | D44: 0.6572 | E44: 0.6696 | F44: 0.682 | G44: 81.84 | H44: 86.7504 | I44: 88.3872 | J44: 90.024
A45: 36 | B45: 12 | C45: 0.62 | D45: 0.6572 | E45: 0.6696 | F45: 0.682 | G45: 89.28 | H45: 94.6368 | I45: 96.4224 | J45: 98.208
A46: 37 | B46: 13 | C46: 0.62 | D46: 0.6572 | E46: 0.6696 | F46: 0.682 | G46: 96.72 | H46: 102.5232 | I46: 104.4576 | J46: 106.392
A47: 38 | B47: 14 | C47: 0.62 | D47: 0.6572 | E47: 0.6696 | F47: 0.682 | G47: 104.16 | H47: 110.4096 | I47: 112.4928 | J47: 114.576
A48: 39 | B48: 15 | C48: 0.62 | D48: 0.6572 | E48: 0.6696 | F48: 0.682 | G48: 111.6 | H48: 118.296 | I48: 120.528 | J48: 122.76
A49: 40 | B49: 16 | C49: 0.62 | D49: 0.6572 | E49: 0.6696 | F49: 0.682 | G49: 119.04 | H49: 126.1824 | I49: 128.5632 | J49: 130.944
A50: 41 | B50: 17 | C50: 0.62 | D50: 0.6572 | E50: 0.6696 | F50: 0.682 | G50: 126.48 | H50: =D50*$B50*12 -> 134.0688 | I50: =E50*$B50*12 -> 136.5984 | J50: =F50*$B50*12 -> 139.128
A51: 42 | B51: 18 | C51: 0.62 | D51: 0.6572 | E51: 0.6696 | F51: 0.682 | G51: 133.92 | H51: 141.9552 | I51: 144.6336 | J51: 147.312
A52: 43 | B52: 19 | C52: 0.62 | D52: 0.6572 | E52: 0.6696 | F52: 0.682 | G52: 141.36 | H52: 149.8416 | I52: 152.6688 | J52: 155.496
A53: 44 | B53: 20 | C53: 0.62 | D53: 0.6572 | E53: 0.6696 | F53: 0.682 | G53: 148.8 | H53: 157.728 | I53: 160.704 | J53: 163.68
A54: 45 | B54: 21 | C54: 0.62 | D54: 0.6572 | E54: 0.6696 | F54: 0.682 | G54: 156.24 | H54: 165.6144 | I54: 168.7392 | J54: 171.864
A55: 46 | B55: 22 | C55: 0.62 | D55: 0.6572 | E55: 0.6696 | F55: 0.682 | G55: 163.68 | H55: 173.5008 | I55: 176.7744 | J55: 180.048
A56: 47 | B56: 23 | C56: 0.62 | D56: 0.6572 | E56: 0.6696 | F56: 0.682 | G56: 171.12 | H56: 181.3872 | I56: 184.8096 | J56: 188.232
A57: 48 | B57: 24 | C57: 0.62 | D57: 0.6572 | E57: 0.6696 | F57: 0.682 | G57: 178.56 | H57: 189.2736 | I57: 192.8448 | J57: 196.416
A58: 49 | B58: 25 | C58: 0.62 | D58: 0.6572 | E58: 0.6696 | F58: 0.682 | G58: 186 | H58: 197.16 | I58: 200.88 | J58: 204.6
A59: 50 | B59: 26 | C59: 0.62 | D59: 0.6572 | E59: 0.6696 | F59: 0.682 | G59: 193.44 | H59: 205.0464 | I59: 208.9152 | J59: 212.784
A60: 51 | B60: 27 | C60: 0.62 | D60: 0.6572 | E60: 0.6696 | F60: 0.682 | G60: 200.88 | H60: 212.9328 | I60: 216.9504 | J60: 220.968
A61: 52 | B61: 28 | C61: 0.62 | D61: 0.6572 | E61: 0.6696 | F61: 0.682 | G61: 208.32 | H61: 220.8192 | I61: 224.9856 | J61: 229.152
A62: 53 | B62: 29 | C62: 0.62 | D62: 0.6572 | E62: 0.6696 | F62: 0.682 | G62: 215.76 | H62: 228.7056 | I62: 233.0208 | J62: 237.336
A63: 54 | B63: 30 | C63: 0.62 | D63: 0.6572 | E63: 0.6696 | F63: 0.682 | G63: 223.2 | H63: 236.592 | I63: 241.056 | J63: 245.52
A64: 55 | B64: 31 | C64: 0.62 | D64: 0.6572 | E64: 0.6696 | F64: 0.682 | G64: 230.64 | H64: 244.4784 | I64: 249.0912 | J64: 253.704
A65: 56 | B65: 32 | C65: 0.62 | D65: 0.6572 | E65: 0.6696 | F65: 0.682 | G65: 238.08 | H65: 252.3648 | I65: 257.1264 | J65: 261.888
A66: 57 | B66: 33 | C66: 0.62 | D66: 0.6572 | E66: 0.6696 | F66: 0.682 | G66: 245.52 | H66: 260.2512 | I66: 265.1616 | J66: 270.072
A67: 58 | B67: 34 | C67: 0.62 | D67: 0.6572 | E67: 0.6696 | F67: 0.682 | G67: 252.96 | H67: 268.1376 | I67: 273.1968 | J67: 278.256
A68: 59 | B68: 35 | C68: 0.62 | D68: 0.6572 | E68: 0.6696 | F68: 0.682 | G68: 260.4 | H68: 276.024 | I68: 281.232 | J68: 286.44
A69: 60 | B69: 36 | C69: 0.62 | D69: 0.6572 | E69: 0.6696 | F69: 0.682 | G69: 267.84 | H69: 283.9104 | I69: 289.2672 | J69: 294.624
A70: 61 | B70: 37 | C70: 0.62 | D70: 0.6572 | E70: 0.6696 | F70: 0.682 | G70: 275.28 | H70: 291.7968 | I70: 297.3024 | J70: 302.808
A71: 62 | B71: 38 | C71: 0.62 | D71: 0.6572 | E71: 0.6696 | F71: 0.682 | G71: 282.72 | H71: 299.6832 | I71: 305.3376 | J71: 310.992
A72: 63 | B72: 39 | C72: 0.62 | D72: 0.6572 | E72: 0.6696 | F72: 0.682 | G72: 290.16 | H72: 307.5696 | I72: 313.3728 | J72: 319.176
A73: 64 | B73: 40 | C73: 0.62 | D73: 0.6572 | E73: 0.6696 | F73: 0.682 | G73: 297.6 | H73: 315.456 | I73: 321.408 | J73: 327.36
A74: 65 | B74: 41 | C74: 0.62 | D74: 0.6572 | E74: 0.6696 | F74: 0.682 | G74: 305.04 | H74: 323.3424 | I74: 329.4432 | J74: 335.544
A75: 66 | B75: 42 | C75: 0.62 | D75: 0.6572 | E75: 0.6696 | F75: 0.682 | G75: 312.48 | H75: 331.2288 | I75: 337.4784 | J75: 343.728
A76: 67 | B76: 43 | C76: 0.62 | D76: 0.6572 | E76: 0.6696 | F76: 0.682 | G76: 319.92 | H76: 339.1152 | I76: 345.5136 | J76: 351.912
A77: 68 | B77: 44 | C77: 0.62 | D77: 0.6572 | E77: 0.6696 | F77: 0.682 | G77: 327.36 | H77: 347.0016 | I77: 353.5488 | J77: 360.096
A78: 69 | B78: 45 | C78: 0.62 | D78: 0.6572 | E78: 0.6696 | F78: 0.682 | G78: 334.8 | H78: 354.888 | I78: 361.584 | J78: 368.28
A79: 70 | B79: 46 | C79: 0.62 | D79: 0.6572 | E79: 0.6696 | F79: 0.682 | G79: 342.24 | H79: 362.7744 | I79: 369.6192 | J79: 376.464
A80: 71 | B80: 47 | C80: 0.62 | D80: 0.6572 | E80: 0.6696 | F80: 0.682 | G80: 349.68 | H80: 370.6608 | I80: 377.6544 | J80: 384.648
A81: 72 | B81: 48 | C81: 0.62 | D81: 0.6572 | E81: 0.6696 | F81: 0.682 | G81: 357.12 | H81: 378.5472 | I81: 385.6896 | J81: 392.832
A82: 73 | B82: 49 | C82: 0.62 | D82: 0.6572 | E82: 0.6696 | F82: 0.682 | G82: 364.56 | H82: 386.4336 | I82: 393.7248 | J82: 401.016
A83: 74 | B83: 50 | C83: 0.62 | D83: 0.6572 | E83: 0.6696 | F83: 0.682 | G83: 372 | H83: 394.32 | I83: 401.76 | J83: 409.2
A84: 75 | B84: 51 | C84: 0.62 | D84: 0.6572 | E84: 0.6696 | F84: 0.682 | G84: 379.44 | H84: 402.2064 | I84: 409.7952 | J84: 417.384
A85: 76 | B85: 52 | C85: 0.62 | D85: 0.6572 | E85: 0.6696 | F85: 0.682 | G85: 386.88 | H85: 410.0928 | I85: 417.8304 | J85: 425.568
A86: 77 | B86: 53 | C86: 0.62 | D86: 0.6572 | E86: 0.6696 | F86: 0.682 | G86: 394.32 | H86: 417.9792 | I86: 425.8656 | J86: 433.752
A87: 78 | B87: 54 | C87: 0.62 | D87: 0.6572 | E87: 0.6696 | F87: 0.682 | G87: 401.76 | H87: 425.8656 | I87: 433.9008 | J87: 441.936
A88: 79 | B88: 55 | C88: 0.62 | D88: 0.6572 | E88: 0.6696 | F88: 0.682 | G88: 409.2 | H88: 433.752 | I88: 441.936 | J88: 450.12
A89: 80 | B89: 56 | C89: 0.62 | D89: 0.6572 | E89: 0.6696 | F89: 0.682 | G89: 416.64 | H89: 441.6384 | I89: 449.9712 | J89: 458.304
A90: 81 | B90: 57 | C90: 0.62 | D90: 0.6572 | E90: 0.6696 | F90: 0.682 | G90: 424.08 | H90: 449.5248 | I90: 458.0064 | J90: 466.488
A91: 82 | B91: 58 | C91: 0.62 | D91: 0.6572 | E91: 0.6696 | F91: 0.682 | G91: 431.52 | H91: 457.4112 | I91: 466.0416 | J91: 474.672
A92: 83 | B92: 59 | C92: 0.62 | D92: 0.6572 | E92: 0.6696 | F92: 0.682 | G92: 438.96 | H92: 465.2976 | I92: 474.0768 | J92: 482.856
A93: 84 | B93: 60 | C93: 0.62 | D93: 0.6572 | E93: 0.6696 | F93: 0.682 | G93: 446.4 | H93: 473.184 | I93: 482.112 | J93: 491.04
A94: 85 | B94: 61 | C94: 0.62 | D94: 0.6572 | E94: 0.6696 | F94: 0.682 | G94: 453.84 | H94: 481.0704 | I94: 490.1472 | J94: 499.224
A95: 86 | B95: 62 | C95: 0.62 | D95: 0.6572 | E95: 0.6696 | F95: 0.682 | G95: 461.28 | H95: 488.9568 | I95: 498.1824 | J95: 507.408
A96: 87 | B96: 63 | C96: 0.62 | D96: 0.6572 | E96: 0.6696 | F96: 0.682 | G96: 468.72 | H96: 496.8432 | I96: 506.2176 | J96: 515.592
A97: 88 | B97: 64 | C97: 0.62 | D97: 0.6572 | E97: 0.6696 | F97: 0.682 | G97: 476.16 | H97: 504.7296 | I97: 514.2528 | J97: 523.776
A98: 89 | B98: 65 | C98: 0.62 | D98: 0.6572 | E98: 0.6696 | F98: 0.682 | G98: 483.6 | H98: 512.616 | I98: 522.288 | J98: 531.96
A99: 90 | B99: 66 | C99: 0.62 | D99: 0.6572 | E99: 0.6696 | F99: 0.682 | G99: =C99*$B99*12 -> 491.04 | H99: 520.5024 | I99: 530.3232 | J99: 540.144
A100: 91 | B100: 1 | C100: 0.66 | D100: 0.6996 | E100: 0.7128 | F100: 0.726 | G100: =G$99+C100*$B100*12 -> 498.96 | H100: =H$99+D100*$B100*12 -> 528.8976 | I100: 538.8768 | J100: 548.856
A101: 92 | B101: 2 | C101: 0.66 | D101: 0.6996 | E101: 0.7128 | F101: 0.726 | G101: =G$99+C101*$B101*12 -> 506.88 | H101: 537.2928 | I101: 547.4304 | J101: 557.568
A102: 93 | B102: 3 | C102: 0.66 | D102: 0.6996 | E102: 0.7128 | F102: 0.726 | G102: 514.8 | H102: 545.688 | I102: 555.984 | J102: 566.28
A103: 94 | B103: 4 | C103: 0.66 | D103: 0.6996 | E103: 0.7128 | F103: 0.726 | G103: 522.72 | H103: 554.0832 | I103: 564.5376 | J103: 574.992
A104: 95 | B104: 5 | C104: 0.66 | D104: 0.6996 | E104: 0.7128 | F104: 0.726 | G104: 530.64 | H104: 562.4784 | I104: 573.0912 | J104: 583.704
A105: 96 | B105: 6 | C105: 0.66 | D105: 0.6996 | E105: 0.7128 | F105: 0.726 | G105: 538.56 | H105: 570.8736 | I105: 581.6448 | J105: 592.416
A106: 97 | B106: 7 | C106: 0.66 | D106: 0.6996 | E106: 0.7128 | F106: 0.726 | G106: 546.48 | H106: 579.2688 | I106: 590.1984 | J106: 601.128
A107: 98 | B107: 8 | C107: 0.66 | D107: 0.6996 | E107: 0.7128 | F107: 0.726 | G107: 554.4 | H107: 587.664 | I107: 598.752 | J107: 609.84
A108: 99 | B108: 9 | C108: 0.66 | D108: 0.6996 | E108: 0.7128 | F108: 0.726 | G108: 562.32 | H108: 596.0592 | I108: 607.3056 | J108: 618.552
A109: 100 | B109: 10 | C109: 0.66 | D109: 0.6996 | E109: 0.7128 | F109: 0.726 | G109: 570.24 | H109: 604.4544 | I109: 615.8592 | J109: 627.264
A110: 101 | B110: 11 | C110: 0.66 | D110: 0.6996 | E110: 0.7128 | F110: 0.726 | G110: 578.16 | H110: 612.8496 | I110: 624.4128 | J110: 635.976
A111: 102 | B111: 12 | C111: 0.66 | D111: 0.6996 | E111: 0.7128 | F111: 0.726 | G111: 586.08 | H111: 621.2448 | I111: 632.9664 | J111: 644.688
A112: 103 | B112: 13 | C112: 0.66 | D112: 0.6996 | E112: 0.7128 | F112: 0.726 | G112: 594 | H112: 629.64 | I112: 641.52 | J112: 653.4
A113: 104 | B113: 14 | C113: 0.66 | D113: 0.6996 | E113: 0.7128 | F113: 0.726 | G113: 601.92 | H113: 638.0352 | I113: 650.0736 | J113: 662.112
A114: 105 | B114: 15 | C114: 0.66 | D114: 0.6996 | E114: 0.7128 | F114: 0.726 | G114: 609.84 | H114: 646.4304 | I114: 658.6272 | J114: 670.824
A115: 106 | B115: 16 | C115: 0.66 | D115: 0.6996 | E115: 0.7128 | F115: 0.726 | G115: 617.76 | H115: 654.8256 | I115: 667.1808 | J115: 679.536
A116: 107 | B116: 17 | C116: 0.66 | D116: 0.6996 | E116: 0.7128 | F116: 0.726 | G116: 625.68 | H116: =H$99+D116*$B116*12 -> 663.2208 | I116: =I$99+E116*$B116*12 -> 675.7344 | J116: =J$99+F116*$B116*12 -> 688.248
A117: 108 | B117: 18 | C117: 0.66 | D117: 0.6996 | E117: 0.7128 | F117: 0.726 | G117: 633.6 | H117: 671.616 | I117: 684.288 | J117: 696.96
A118: 109 | B118: 19 | C118: 0.66 | D118: 0.6996 | E118: 0.7128 | F118: 0.726 | G118: 641.52 | H118: 680.0112 | I118: 692.8416 | J118: 705.672
A119: 110 | B119: 20 | C119: 0.66 | D119: 0.6996 | E119: 0.7128 | F119: 0.726 | G119: 649.44 | H119: 688.4064 | I119: 701.3952 | J119: 714.384
A120: 111 | B120: 1 | C120: 0.75 | D120: 0.795 | E120: 0.81 | F120: 0.825 | G120: =G$119+$B120*C120*12 -> 658.44 | H120: =H$119+$B120*D120*12 -> 697.9464 | I120: 711.1152 | J120: 724.284
A121: 112 | B121: 2 | C121: 0.75 | D121: 0.795 | E121: 0.81 | F121: 0.825 | G121: =G$119+$B121*C121*12 -> 667.44 | H121: 707.4864 | I121: 720.8352 | J121: 734.184
A122: 113 | B122: 3 | C122: 0.75 | D122: 0.795 | E122: 0.81 | F122: 0.825 | G122: 676.44 | H122: 717.0264 | I122: 730.5552 | J122: 744.084
A123: 114 | B123: 4 | C123: 0.75 | D123: 0.795 | E123: 0.81 | F123: 0.825 | G123: 685.44 | H123: 726.5664 | I123: 740.2752 | J123: 753.984
A124: 115 | B124: 5 | C124: 0.75 | D124: 0.795 | E124: 0.81 | F124: 0.825 | G124: 694.44 | H124: 736.1064 | I124: 749.9952 | J124: 763.884
A125: 116 | B125: 6 | C125: 0.75 | D125: 0.795 | E125: 0.81 | F125: 0.825 | G125: 703.44 | H125: 745.6464 | I125: 759.7152 | J125: 773.784
A126: 117 | B126: 7 | C126: 0.75 | D126: 0.795 | E126: 0.81 | F126: 0.825 | G126: 712.44 | H126: 755.1864 | I126: 769.4352 | J126: 783.684
A127: 118 | B127: 8 | C127: 0.75 | D127: 0.795 | E127: 0.81 | F127: 0.825 | G127: 721.44 | H127: 764.7264 | I127: 779.1552 | J127: 793.584
A128: 119 | B128: 9 | C128: 0.75 | D128: 0.795 | E128: 0.81 | F128: 0.825 | G128: 730.44 | H128: 774.2664 | I128: 788.8752 | J128: 803.484
A129: 120 | B129: 10 | C129: 0.75 | D129: 0.795 | E129: 0.81 | F129: 0.825 | G129: 739.44 | H129: 783.8064 | I129: 798.5952 | J129: 813.384
A130: 121 | B130: 11 | C130: 0.75 | D130: 0.795 | E130: 0.81 | F130: 0.825 | G130: 748.44 | H130: 793.3464 | I130: 808.3152 | J130: 823.284
A131: 122 | B131: 12 | C131: 0.75 | D131: 0.795 | E131: 0.81 | F131: 0.825 | G131: 757.44 | H131: 802.8864 | I131: 818.0352 | J131: 833.184
A132: 123 | B132: 13 | C132: 0.75 | D132: 0.795 | E132: 0.81 | F132: 0.825 | G132: 766.44 | H132: 812.4264 | I132: 827.7552 | J132: 843.084
A133: 124 | B133: 14 | C133: 0.75 | D133: 0.795 | E133: 0.81 | F133: 0.825 | G133: 775.44 | H133: 821.9664 | I133: 837.4752 | J133: 852.984
A134: 125 | B134: 15 | C134: 0.75 | D134: 0.795 | E134: 0.81 | F134: 0.825 | G134: 784.44 | H134: 831.5064 | I134: 847.1952 | J134: 862.884
A135: 126 | B135: 16 | C135: 0.75 | D135: 0.795 | E135: 0.81 | F135: 0.825 | G135: 793.44 | H135: 841.0464 | I135: 856.9152 | J135: 872.784
A136: 127 | B136: 17 | C136: 0.75 | D136: 0.795 | E136: 0.81 | F136: 0.825 | G136: 802.44 | H136: =H$119+$B136*D136*12 -> 850.5864 | I136: =I$119+$B136*E136*12 -> 866.6352 | J136: =J$119+$B136*F136*12 -> 882.684
A137: 128 | B137: 18 | C137: 0.75 | D137: 0.795 | E137: 0.81 | F137: 0.825 | G137: 811.44 | H137: 860.1264 | I137: 876.3552 | J137: 892.584
A138: 129 | B138: 19 | C138: 0.75 | D138: 0.795 | E138: 0.81 | F138: 0.825 | G138: 820.44 | H138: 869.6664 | I138: 886.0752 | J138: 902.484
A139: 130 | B139: 20 | C139: 0.75 | D139: 0.795 | E139: 0.81 | F139: 0.825 | G139: 829.44 | H139: 879.2064 | I139: 895.7952 | J139: 912.384
A140: 131 | B140: 21 | C140: 0.75 | D140: 0.795 | E140: 0.81 | F140: 0.825 | G140: 838.44 | H140: 888.7464 | I140: 905.5152 | J140: 922.284
A141: 132 | B141: 22 | C141: 0.75 | D141: 0.795 | E141: 0.81 | F141: 0.825 | G141: 847.44 | H141: 898.2864 | I141: 915.2352 | J141: 932.184
A142: 133 | B142: 23 | C142: 0.75 | D142: 0.795 | E142: 0.81 | F142: 0.825 | G142: 856.44 | H142: 907.8264 | I142: 924.9552 | J142: 942.084
A143: 134 | B143: 24 | C143: 0.75 | D143: 0.795 | E143: 0.81 | F143: 0.825 | G143: 865.44 | H143: 917.3664 | I143: 934.6752 | J143: 951.984
A144: 135 | B144: 25 | C144: 0.75 | D144: 0.795 | E144: 0.81 | F144: 0.825 | G144: 874.44 | H144: 926.9064 | I144: 944.3952 | J144: 961.884
A145: 136 | B145: 26 | C145: 0.75 | D145: 0.795 | E145: 0.81 | F145: 0.825 | G145: 883.44 | H145: 936.4464 | I145: 954.1152 | J145: 971.784
A146: 137 | B146: 27 | C146: 0.75 | D146: 0.795 | E146: 0.81 | F146: 0.825 | G146: 892.44 | H146: 945.9864 | I146: 963.8352 | J146: 981.684
A147: 138 | B147: 28 | C147: 0.75 | D147: 0.795 | E147: 0.81 | F147: 0.825 | G147: 901.44 | H147: 955.5264 | I147: 973.5552 | J147: 991.584
A148: 139 | B148: 29 | C148: 0.75 | D148: 0.795 | E148: 0.81 | F148: 0.825 | G148: 910.44 | H148: 965.0664 | I148: 983.2752 | J148: 1001.484
A149: 140 | B149: 30 | C149: 0.75 | D149: 0.795 | E149: 0.81 | F149: 0.825 | G149: 919.44 | H149: 974.6064 | I149: 992.9952 | J149: 1011.384
A150: 141 | B150: 31 | C150: 0.75 | D150: 0.795 | E150: 0.81 | F150: 0.825 | G150: 928.44 | H150: 984.1464 | I150: 1002.7152 | J150: 1021.284
A151: 142 | B151: 32 | C151: 0.75 | D151: 0.795 | E151: 0.81 | F151: 0.825 | G151: 937.44 | H151: 993.6864 | I151: 1012.4352 | J151: 1031.184
A152: 143 | B152: 33 | C152: 0.75 | D152: 0.795 | E152: 0.81 | F152: 0.825 | G152: 946.44 | H152: 1003.2264 | I152: 1022.1552 | J152: 1041.084
A153: 144 | B153: 34 | C153: 0.75 | D153: 0.795 | E153: 0.81 | F153: 0.825 | G153: 955.44 | H153: 1012.7664 | I153: 1031.8752 | J153: 1050.984
A154: 145 | B154: 35 | C154: 0.75 | D154: 0.795 | E154: 0.81 | F154: 0.825 | G154: 964.44 | H154: 1022.3064 | I154: 1041.5952 | J154: 1060.884
A155: 146 | B155: 36 | C155: 0.75 | D155: 0.795 | E155: 0.81 | F155: 0.825 | G155: 973.44 | H155: 1031.8464 | I155: 1051.3152 | J155: 1070.784
A156: 147 | B156: 37 | C156: 0.75 | D156: 0.795 | E156: 0.81 | F156: 0.825 | G156: 982.44 | H156: 1041.3864 | I156: 1061.0352 | J156: 1080.684
A157: 148 | B157: 38 | C157: 0.75 | D157: 0.795 | E157: 0.81 | F157: 0.825 | G157: 991.44 | H157: 1050.9264 | I157: 1070.7552 | J157: 1090.584
A158: 149 | B158: 39 | C158: 0.75 | D158: 0.795 | E158: 0.81 | F158: 0.825 | G158: 1000.44 | H158: 1060.4664 | I158: 1080.4752 | J158: 1100.484
A159: 150 | B159: 40 | C159: 0.75 | D159: 0.795 | E159: 0.81 | F159: 0.825 | G159: 1009.44 | H159: 1070.0064 | I159: 1090.1952 | J159: 1110.384
A160: 151 | B160: 41 | C160: 0.75 | D160: 0.795 | E160: 0.81 | F160: 0.825 | G160: 1018.44 | H160: 1079.5464 | I160: 1099.9152 | J160: 1120.284
A161: 152 | B161: 42 | C161: 0.75 | D161: 0.795 | E161: 0.81 | F161: 0.825 | G161: 1027.44 | H161: 1089.0864 | I161: 1109.6352 | J161: 1130.184
A162: 153 | B162: 43 | C162: 0.75 | D162: 0.795 | E162: 0.81 | F162: 0.825 | G162: 1036.44 | H162: 1098.6264 | I162: 1119.3552 | J162: 1140.084
A163: 154 | B163: 44 | C163: 0.75 | D163: 0.795 | E163: 0.81 | F163: 0.825 | G163: 1045.44 | H163: 1108.1664 | I163: 1129.0752 | J163: 1149.984
A164: 155 | B164: 45 | C164: 0.75 | D164: 0.795 | E164: 0.81 | F164: 0.825 | G164: 1054.44 | H164: 1117.7064 | I164: 1138.7952 | J164: 1159.884
A165: 156 | B165: 46 | C165: 0.75 | D165: 0.795 | E165: 0.81 | F165: 0.825 | G165: 1063.44 | H165: 1127.2464 | I165: 1148.5152 | J165: 1169.784
A166: 157 | B166: 47 | C166: 0.75 | D166: 0.795 | E166: 0.81 | F166: 0.825 | G166: 1072.44 | H166: 1136.7864 | I166: 1158.2352 | J166: 1179.684
A167: 158 | B167: 48 | C167: 0.75 | D167: 0.795 | E167: 0.81 | F167: 0.825 | G167: 1081.44 | H167: 1146.3264 | I167: 1167.9552 | J167: 1189.584
A168: 159 | B168: 49 | C168: 0.75 | D168: 0.795 | E168: 0.81 | F168: 0.825 | G168: 1090.44 | H168: 1155.8664 | I168: 1177.6752 | J168: 1199.484
A169: 160 | B169: 50 | C169: 0.75 | D169: 0.795 | E169: 0.81 | F169: 0.825 | G169: 1099.44 | H169: 1165.4064 | I169: 1187.3952 | J169: 1209.384
A170: 161 | B170: 51 | C170: 0.75 | D170: 0.795 | E170: 0.81 | F170: 0.825 | G170: 1108.44 | H170: 1174.9464 | I170: 1197.1152 | J170: 1219.284
A171: 162 | B171: 52 | C171: 0.75 | D171: 0.795 | E171: 0.81 | F171: 0.825 | G171: 1117.44 | H171: 1184.4864 | I171: 1206.8352 | J171: 1229.184
A172: 163 | B172: 53 | C172: 0.75 | D172: 0.795 | E172: 0.81 | F172: 0.825 | G172: 1126.44 | H172: 1194.0264 | I172: 1216.5552 | J172: 1239.084
A173: 164 | B173: 54 | C173: 0.75 | D173: 0.795 | E173: 0.81 | F173: 0.825 | G173: 1135.44 | H173: 1203.5664 | I173: 1226.2752 | J173: 1248.984
A174: 165 | B174: 55 | C174: 0.75 | D174: 0.795 | E174: 0.81 | F174: 0.825 | G174: 1144.44 | H174: 1213.1064 | I174: 1235.9952 | J174: 1258.884
A175: 166 | B175: 56 | C175: 0.75 | D175: 0.795 | E175: 0.81 | F175: 0.825 | G175: 1153.44 | H175: 1222.6464 | I175: 1245.7152 | J175: 1268.784
A176: 167 | B176: 57 | C176: 0.75 | D176: 0.795 | E176: 0.81 | F176: 0.825 | G176: 1162.44 | H176: 1232.1864 | I176: 1255.4352 | J176: 1278.684
A177: 168 | B177: 58 | C177: 0.75 | D177: 0.795 | E177: 0.81 | F177: 0.825 | G177: 1171.44 | H177: 1241.7264 | I177: 1265.1552 | J177: 1288.584
A178: 169 | B178: 59 | C178: 0.75 | D178: 0.795 | E178: 0.81 | F178: 0.825 | G178: 1180.44 | H178: 1251.2664 | I178: 1274.8752 | J178: 1298.484
A179: 170 | B179: 60 | C179: 0.75 | D179: 0.795 | E179: 0.81 | F179: 0.825 | G179: 1189.44 | H179: 1260.8064 | I179: 1284.5952 | J179: 1308.384
A180: 171 | B180: 61 | C180: 0.75 | D180: 0.795 | E180: 0.81 | F180: 0.825 | G180: 1198.44 | H180: 1270.3464 | I180: 1294.3152 | J180: 1318.284
A181: 172 | B181: 62 | C181: 0.75 | D181: 0.795 | E181: 0.81 | F181: 0.825 | G181: 1207.44 | H181: 1279.8864 | I181: 1304.0352 | J181: 1328.184
A182: 173 | B182: 63 | C182: 0.75 | D182: 0.795 | E182: 0.81 | F182: 0.825 | G182: 1216.44 | H182: 1289.4264 | I182: 1313.7552 | J182: 1338.084
A183: 174 | B183: 64 | C183: 0.75 | D183: 0.795 | E183: 0.81 | F183: 0.825 | G183: 1225.44 | H183: 1298.9664 | I183: 1323.4752 | J183: 1347.984
A184: 175 | B184: 65 | C184: 0.75 | D184: 0.795 | E184: 0.81 | F184: 0.825 | G184: 1234.44 | H184: 1308.5064 | I184: 1333.1952 | J184: 1357.884
A185: 176 | B185: 66 | C185: 0.75 | D185: 0.795 | E185: 0.81 | F185: 0.825 | G185: =G$119+$B185*C185*12 -> 1243.44 | H185: 1318.0464 | I185: 1342.9152 | J185: 1367.784
A186: 177 | B186: 67 | C186: 0.75 | D186: 0.795 | E186: 0.81 | F186: 0.825 | G186: 1252.44 | H186: 1327.5864 | I186: 1352.6352 | J186: 1377.684
A187: 178 | B187: 68 | C187: 0.75 | D187: 0.795 | E187: 0.81 | F187: 0.825 | G187: 1261.44 | H187: 1337.1264 | I187: 1362.3552 | J187: 1387.584
A188: 179 | B188: 69 | C188: 0.75 | D188: 0.795 | E188: 0.81 | F188: 0.825 | G188: 1270.44 | H188: 1346.6664 | I188: 1372.0752 | J188: 1397.484
A189: 180 | B189: 70 | C189: 0.75 | D189: 0.795 | E189: 0.81 | F189: 0.825 | G189: 1279.44 | H189: 1356.2064 | I189: 1381.7952 | J189: 1407.384
A190: 181 | B190: 71 | C190: 0.75 | D190: 0.795 | E190: 0.81 | F190: 0.825 | G190: 1288.44 | H190: 1365.7464 | I190: 1391.5152 | J190: 1417.284
A191: 182 | B191: 72 | C191: 0.75 | D191: 0.795 | E191: 0.81 | F191: 0.825 | G191: 1297.44 | H191: 1375.2864 | I191: 1401.2352 | J191: 1427.184
A192: 183 | B192: 73 | C192: 0.75 | D192: 0.795 | E192: 0.81 | F192: 0.825 | G192: 1306.44 | H192: 1384.8264 | I192: 1410.9552 | J192: 1437.084
A193: 184 | B193: 74 | C193: 0.75 | D193: 0.795 | E193: 0.81 | F193: 0.825 | G193: 1315.44 | H193: 1394.3664 | I193: 1420.6752 | J193: 1446.984
A194: 185 | B194: 75 | C194: 0.75 | D194: 0.795 | E194: 0.81 | F194: 0.825 | G194: 1324.44 | H194: 1403.9064 | I194: 1430.3952 | J194: 1456.884
A195: 186 | B195: 76 | C195: 0.75 | D195: 0.795 | E195: 0.81 | F195: 0.825 | G195: 1333.44 | H195: 1413.4464 | I195: 1440.1152 | J195: 1466.784
A196: 187 | B196: 77 | C196: 0.75 | D196: 0.795 | E196: 0.81 | F196: 0.825 | G196: 1342.44 | H196: 1422.9864 | I196: 1449.8352 | J196: 1476.684
A197: 188 | B197: 78 | C197: 0.75 | D197: 0.795 | E197: 0.81 | F197: 0.825 | G197: 1351.44 | H197: 1432.5264 | I197: 1459.5552 | J197: 1486.584
A198: 189 | B198: 79 | C198: 0.75 | D198: 0.795 | E198: 0.81 | F198: 0.825 | G198: 1360.44 | H198: 1442.0664 | I198: 1469.2752 | J198: 1496.484
A199: 190 | B199: 80 | C199: 0.75 | D199: 0.795 | E199: 0.81 | F199: 0.825 | G199: 1369.44 | H199: 1451.6064 | I199: 1478.9952 | J199: 1506.384
A200: 191 | B200: 81 | C200: 0.75 | D200: 0.795 | E200: 0.81 | F200: 0.825 | G200: 1378.44 | H200: =H$119+$B200*D200*12 -> 1461.1464 | I200: =I$119+$B200*E200*12 -> 1488.7152 | J200: =J$119+$B200*F200*12 -> 1516.284
... 309 more rows

Sheet Enamo-Tarif (hidden)
I1: Tarif (brutto) | J1: Tarif (brutto) inkl. Pauschalen
A2: Unterbrechbarer Tarif | C2: Arbeitspreis 06:00 – 22:00 Uhr [cent] | D2: 7 | E2: 2.39 | F2: 1.5 | G2: 0.777 | H2: 11.667 | I2: 14 | J2: =I2+$I$7*100 -> 17.00300273
C3: Arbeitspreis 22:00 – 06:00 Uhr [cent] | D3: 5.6 | E3: 2.39 | F3: 1.5 | G3: 0.777 | H3: 10.267 | I3: 12.32 | J3: =I3+$I$7*100 -> 15.32300273
C4: Grundpreis / Pauschale [€/a] | G4: 33 | H4: 33 | I4: 39.6
C5: Messleistung für 2. Zähler | H5: 24.9 | I5: =H5*1.2 -> 29.88
I6: =SUM(I4:I5) -> 69.48
I7: =I6/Eingabe!G21 -> 0.0300300273

Sheet topprodukte-elektro (hidden)
A1: Marke | C1: Modellname | E1: Kaufpreis | G1: Reichweite mind. | I1: Verbrauch | K1: Spitzengeschwindigkeit | M1: Antriebssystem | R1: Leistung [kW] | S1: max. Drehmoment [Nm] | U1: Batterien | X1: Energieinhalt [kWh] | Y1: Ladezyklen | Z1: der Batterie | AA1: Ladegerät | AD1: Standardladezeit | AE1: [h] | AF1: Sitzplätze | AG1: Anmerkung
E2: inkl. MWSt. [EUR] | G2: [km] | I2: [kWh/100 km] | K2: [km/h]
A3: TESLA | C3: Model S | E3: 65740 | G3: 502 | I3: 18 | K3: 210 | M3: Vierpoliger | N3: Dreiphasen | O3: wechselstrom- | P3: Induktionsmotor | Q3: mit Kupferläufer | R3: 350 | S3: 600 | U3: Li-Ion | X3: 85 | Y3: k.A. | AA3: Integriertes Ladegerät | AD3: 8 | AF3: 5 Sitzer | AG3: Erhältlich auch | AH3: mit 60 kWh | AI3: Batterie
A4: TESLA | C4: Roadster | E4: 100000 | G4: 350 | I4: k.A. | K4: 200 | M4: 3-Phasen | N4: Asynchron | R4: 185 | S4: k.A. | U4: Li-Ion | X4: k.A. | Y4: k.A. | AA4: k.A. | AD4: 4 | AF4: 2 Sitzer
A5: RENAULT | C5: Zoe | E5: 20780 | G5: 210 | I5: 15 | K5: 135 | M5: fremderregter | N5: Synchronmotor | O5: Rekuperation der | P5: bremsenergie | R5: 65 | S5: 220 | U5: Li-Ion | X5: 22 | Y5: k.A. | AA5: Mietbatterie | AB5: in Fahrzeug | AC5: integriert | AD5: 9 | AF5: 5 Sitzer | AG5: Modelle: | AH5: Life, Zen, | AI5: Intens
A6: Fiat Umbau durch | B6: MP Eco Drive | C6: E-Ducato Kombi | E6: 108000 | G6: 200 | I6: k.A. | K6: 90 | M6: asynchron mit | N6: Wasserkühlung | R6: 140 | S6: k.A. | U6: Li-Ion | X6: 62 | Y6: k.A. | AA6: k.A. | AD6: 8 | AF6: 12 Sitzer
A7: NISSAN | C7: Leaf | E7: 23390 | G7: 199 | I7: 15 | K7: 144 | M7: E-Motor | R7: 90 | S7: 254 | U7: Li-Ion | X7: 24 | Y7: k.A. | AA7: Mietbatterie | AB7: in Fahrzeug | AC7: integriert | AD7: 8 | AF7: 4 Sitzer | AG7: Modelle: | AH7: Visia,Acenta, | AI7: Tekna
A8: BMW | C8: BMW i3 | E8: 35700 | G8: 190 | I8: 13 | K8: 150 | M8: E-synchron | N8: motor | R8: 125 | S8: 250 | U8: Li-Ion | X8: k.A. | Y8: k.A. | AA8: k.A. | AD8: 6 | AF8: 5 Sitzer
A9: RENAULT | C9: Kangoo | E9: 24360 | G9: 170 | I9: 16 | K9: 130 | M9: fremderregter | N9: Synchronmotor | R9: 44 | S9: 226 | U9: Li-Ion | X9: 22 | Y9: k.A. | AA9: Mietbatterie | AB9: in Fahrzeug | AC9: integriert | AD9: 9 | AF9: 2 Sitzer
A10: FORD | C10: Ford Focus Electric | E10: 39990 | G10: 162 | I10: 15 | K10: 135 | M10: k.A. | R10: 107 | S10: 250 | U10: Li-Ion | X10: 23 | Y10: k.A. | AA10: Integriertes Ladegerät | AD10: 7 | AF10: 5 Sitzer
A11: VW | C11: E-up | E11: 25350 | G11: 160 | I11: 12 | K11: 130 | M11: Permanenterregte | N11: Synchronmaschine | O11: (PSM) | R11: 60 | S11: 210 | U11: Li-Ion | X11: 19 | Y11: k.A. | AA11: Integriertes Ladegerät | AD11: 7 | AF11: 5 Sitzer
A12: CITROEN | C12: C Zero | E12: 27588 | G12: 150 | I12: k.A. | K12: 130 | M12: Permanent- | N12: magnet- | O12: Synchronantrieb | R12: 49 | S12: 180 | U12: Li-Ion | X12: 16 | Y12: k.A. | AA12: k.A. | AD12: 6 | AF12: 330 | AG12: Modelle: | AH12: Attraction | AI12: Seduction
A13: MITSUBISHI | C13: i-MiEV | E13: 29500 | G13: 150 | I13: k.A. | K13: 130 | M13: Permanent- | N13: magnetischer | O13: Synchronmotor | R13: 49 | S13: 180 | U13: Li-Ion | X13: 16 | Y13: k.A. | AA13: k.A. | AD13: 8 | AF13: 4 Sitzer
A14: PEUGEOT | C14: i On | E14: 31800 | G14: 150 | I14: 14 | K14: 130 | M14: synchroner | N14: E-Motor | R14: 49 | S14: 180 | U14: Li-Ion | X14: 16 | Y14: k.A. | AA14: in Fahrzeug | AB14: eingebaut | AD14: 9 | AF14: 2 Sitzer
A15: SMART | C15: Smart fortwo | D15: electronicdrive | E15: 19420 | G15: 145 | I15: 15 | K15: 125 | M15: Heck, | N15: Permanent- | O15: Magnet-Motor | R15: 55 | S15: 130 | U15: Li-Ion | X15: k.A. | Y15: k.A. | AA15: k.A. | AD15: 7 | AF15: 2 Sitzer
A16: SMART | C16: Brabus | E16: k.A. | G16: 145 | I16: 18 | K16: 130 | M16: Heck, Permanent | N16: -Magnet-Motor | R16: 60 | S16: 135 | U16: Li-Ion | X16: k.A. | Y16: k.A. | AA16: k.A. | AD16: 7 | AF16: 2 Sitzer
A17: TAZZARI | C17: Tazzari Zero | E17: 22560 | G17: 140 | I17: 9.2 | K17: 100 | M17: Asynchron- | N17: Drehstrommotor | R17: 15 | S17: 150 | U17: Li-Ion Fe | X17: 12.8 | Y17: k.A. | AA17: k.A. | AD17: 9 | AF17: 150 | AG17: Modelle: | AH17: classic, evo, | AI17: Speedster, | AJ17: Anniversary
A18: STROMOS | C18: Coolcar Van | E18: k.A. | G18: 110 | I18: k.A. | K18: 90 | M18: k.A. | R18: 20 | S18: k.A. | U18: Blei Gel | X18: k.A. | Y18: k.A. | AA18: k.A. | AD18: 8 | AF18: 5 Sitzer
A19: RENAULT | C19: Twizy | E19: 6990 | G19: 100 | I19: 5,8/6,1 | K19: 45/80 | M19: Drehstrom | N19: Rekuperation der | O19: bremsenergie | R19: 3 | S19: 33-57 | U19: Li-Ion | X19: 6 | Y19: k.A. | AA19: Mietbatterie | AB19: in Fahrzeug | AC19: integriert | AD19: 4 | AF19: 2 Sitzer | AG19: Modelle: | AH19: Urban, Technic
A20: STROMOS | C20: Coolcar | E20: k.A. | G20: 90 | I20: k.A. | K20: 90 | M20: k.A. | R20: 20 | S20: k.A. | U20: Blei Gel | X20: k.A. | Y20: k.A. | AA20: k.A. | AD20: 8 | AF20: 4 Sitzer | AG20: Modell: | AH20: Indimo Coolcar
A21: NF | C21: Nano | E21: ab 18.500 | G21: 90 | I21: k.A. | K21: 43 | M21: k.A. | R21: 3 | S21: k.A. | U21: k.A. | X21: k.A. | Y21: k.A. | AA21: k.A. | AD21: 8 | AF21: 2 Sitzer | AG21: Karosse aus | AH21: Kunststoff
A22: OPEL | C22: Ampera | E22: 38400 | G22: 83 | I22: 19 | K22: 161 | M22: E-Motor | R22: 111 | S22: 130 | U22: Li-Ion | X22: 16 | Y22: k.A. | AA22: Integriertes Ladegerät | AD22: 6 | AF22: 5 Sitzer | AG22: Erweiterte Reichweite | AH22: durch eingebauten | AI22: Benzinmotor | AJ22: als Stromgenerator
A23: CHEVROLET | C23: Volt | E23: 38000 | G23: 80 | I23: 17 | K23: 160 | M23: E-Motor | R23: 111 | S23: 130 | U23: Li-Ion | X23: 16 | Y23: k.A. | AA23: Integriertes Ladegerät | AD23: 6 | AF23: 5 Sitzer | AG23: Erweiterte Reichweite | AH23: durch eingebauten | AI23: Benzinmotor | AJ23: als Stromgenerator
A24: Estrima Biro | C24: Estrima Biro | E24: 8868 | G24: 50 | I24: k.A. | K24: 45 | M24: k.A. | R24: 4 | S24: k.A. | U24: Blei Gel | X24: k.A. | Y24: k.A. | AA24: k.A. | AD24: k.A. | AF24: 2 Sitzer
A25: Start Lab | C25: Start Lab | E25: 8300 | G25: 50 | I25: 13 | K25: 45 | M25: Gleichstrommotor | R25: 4 | S25: Motorumdrehung | T25: -4.100/3.500 U/min | U25: Blei-Gel, | V25: 4x Northstar | W25: NSB125 | X25: k.A. | Y25: k.A. | AA25: Integriertes Ladegerät | AD25: 7 | AF25: 3 Sitzer
A26: MITSUBISHI | C26: Outlander PHEV | E26: k.A. | G26: 50 | I26: k.A. | K26: k.A. | M26: Permanent | N26: magnetischer | O26: Synchronmotor | R26: 70 | S26: 137 vorne | T26: 195 hinten | U26: Li-Ion | X26: 12 | Y26: k.A. | AA26: Integriertes Ladegerät | AD26: 4 | AF26: 5 Sitzer | AG26: Plug-in-Hybrid | AH26: mit EV-System | AI26: (Benzimotor als | AJ26: Generator)
Z43: Marke und
Z44: Modell anonymisiert
Z45: k.A.
Z47: k.A.
Z50: 7.3
Z52: 171
Z54: 5
Z55: 5
Z56: 110
Z58: 150
Z60: M5
Z61: k.A.
Z62: k.A.
Z63: k.A.

Sheet topprodukte-benzin-diesel (hidden)
A1: MARKE | B1: Modell | D1: Motor | F1: Kaufpreis bei | G1: Grundausstattung | H1: [ab EUR] inkl MWSt. | I1: Kraftstoff | J1: Benzin/Diesel | K1: CO2-Emissionen | L1: [g/km] | M1: EU-Abgasnorm | N1: Sitzplätze | O1: Leistung | P1: [kW] | Q1: Leistung | R1: [PS] | S1: Getriebe | T1: Länge [mm] | U1: Breite mit Außenspiegel [mm] | V1: Höhe ohne Dachreeling [mm] | W1: andere Motoren | X1: (Verbrauch, CO2-Emission, | Y1: Leistung [kW], Leistung [PS]) | AB1: Modellvarianten
A2: Audi | B2: A1 SB | C2: 25 TSFI | F2: 21780 | I2: 5.6 | J2: Benzin | K2: 126 | M2: 6d-TEMP | N2: 4 | O2: 70 | Q2: 95 | S2: M5 | T2: 3954 | U2: 1906 | V2: 1416 | W2: 1110 | X2: 30 TSFI | Y2: (4.8,122,85,116) | AA2: advanced, | AB2: S-line | AE2: S-line
A3: Audi | B3: A3 SB | C3: 30 TDI | F3: 29600 | I3: 4.4 | J3: Benzin | K3: 114 | M3: 6d-TEMP | N3: 5 | O3: 85 | Q3: 115 | S3: M6 | T3: 4313 | U3: 1785 | V3: 1426 | W3: 1360 | X3: 35 TDI | Y3: (4.4,115,110,150) | AB3: sport, design | AI3: Auch als Combi | AJ3: erhältlich
A4: Audi | B4: A4 Limousine | C4: 30 TDI | F4: 36970 | I4: 4.9 | J4: Benzin | K4: 128 | M4: 6d-TEMP | N4: 5 | O4: 90 | Q4: 122 | S4: M6 | T4: 4762 | U4: 2022 | V4: 1428 | W4: 1540 | X4: 35 TDI | Y4: (5.0,131,120,163) | Z4: 40 TDI | AA4: (5.2,136,140,190) | AB4: advanced, S line | AI4: Auch als Combi | AJ4: erhältlich
A5: Audi | B5: A3 SB | C5: 30 TDI | F5: 29600 | I5: 4.4 | J5: Diesel | K5: 114 | M5: 6d-TEMP | N5: 5 | O5: 85 | Q5: 115 | S5: M6 | T5: 4 313 | U5: 1 785 | V5: 1 426 | W5: 1 360 | X5: 35 TDI | Y5: (4.4,115,110,150) | AB5: sport, design
A6: Audi | B6: A4 Limousine | C6: 30 TDI | F6: 36970 | I6: 4.9 | J6: Diesel | K6: 128 | M6: 6d-TEMP | N6: 5 | O6: 90 | Q6: 122 | S6: M6 | T6: 4 762 | U6: 2 022 | V6: 1 428 | W6: 1 540 | X6: 35 TDI | Y6: (5.0,131,120,163) | Z6: 40 TDI | AA6: (5.2,136,140,190) | AB6: advanced, S line | AE6: erhältlich
A7: BMW | B7: 2er Gran Tourer | C7: 216i | F7: 31350 | I7: 6.4 | J7: Benzin | K7: 146 | M7: 6d-TEMP | N7: 5 | O7: 80 | Q7: 109 | S7: AMT6 | T7: 4556 | U7: 1800 | V7: 1608 | W7: 1515 | X7: 218i | Y7: (6.5,146,103,140) | Z7: 220i | AA7: (6.8,154,141,192)
A8: BMW | B8: 1er Limousine | C8: 116d | F8: 31160 | I8: 4.5 | J8: Benzin | K8: 118 | M8: 6d | N8: 5 | O8: 85 | Q8: 115 | S8: M6 | T8: 4319 | U8: 1799 | V8: 1434 | W8: 1375 | X8: 118d | Y8: (4.7,122,11,150)
A9: BMW | B9: 3er Limousine | C9: 318d | F9: 38950 | I9: 4.8 | J9: Benzin | K9: 125 | M9: 6d-TEMP | N9: 5 | O9: 110 | Q9: 150 | S9: M6 | T9: 4709 | U9: 2068 | V9: 1435 | W9: 1520 | X9: 320d | Y9: (4.9,128,140,190) | AE9: Kompakt-Van
A10: BMW | B10: 2er Active Tourer | C10: 216d | F10: 32050 | I10: 4.7 | J10: Benzin | K10: 123 | M10: 6d | N10: 5 | O10: 85 | Q10: 116 | S10: M6 | T10: 4354 | U10: 2039 | V10: 1555 | W10: 1495 | X10: 218d | Y10: (4.9,129,110,150) | Z10: 220d | AA10: (5.1,134,140,190) | AD10: Länge entspricht | AE10: Live | AG10: Als 3-Türer oder | AH10: 5-Türer erhältlich
A11: BMW | B11: 2er Gran Tourer | C11: 216d | F11: 33600 | I11: 4.9 | J11: Benzin | K11: 128 | M11: 6d | N11: 5 | O11: 85 | Q11: 116 | S11: M6 | T11: 4565 | U11: 2038 | V11: 1606 | W11: 1560 | X11: 218d | Y11: (5.1,134,110,150) | Z11: 220d | AA11: (5.3,140,140,190) | AF11: Feel, Shine, Live
A12: BMW | B12: 1er Limousine | C12: 116d | F12: 31160 | I12: 4.5 | J12: Diesel | K12: 118 | M12: 6d | N12: 5 | O12: 85 | Q12: 115 | S12: M6 | T12: 4 319 | U12: 1 799 | V12: 1 434 | W12: 1 375 | X12: 118d | Y12: (4.7,122,11,150)
A13: BMW | B13: 3er Limousine | C13: 318d | F13: 38950 | I13: 4.8 | J13: Diesel | K13: 125 | M13: 6d-TEMP | N13: 5 | O13: 110 | Q13: 150 | S13: M6 | T13: 4 709 | U13: 2 068 | V13: 1 435 | W13: 1 520 | X13: 320d | Y13: (4.9,128,140,190) | AG13: Auch als 7-Sitzer | AH13: erhältlich
A14: BMW | B14: 2er Active Tourer | C14: 216d | F14: 32050 | I14: 4.7 | J14: Diesel | K14: 123 | M14: 6d | N14: 5 | O14: 85 | Q14: 116 | S14: M6 | T14: 4 354 | U14: 2 039 | V14: 1 555 | W14: 1 495 | X14: 218d | Y14: (4.9,129,110,150) | Z14: 220d | AA14: (5.1,134,140,190) | AD14: Länge entspricht
A15: Citroen | B15: C1 | C15: VTi 72 | F15: 11490 | I15: 4.8 | J15: Benzin | K15: 110 | M15: 6d-TEMP | N15: 4 | O15: 53 | Q15: 72 | S15: M5 | T15: 3466 | U15: 1884 | V15: 1460 | W15: 867 | AA15: Feel, Shine, Origins
A16: Citroen | B16: C3 | C16: PureTech 82 | F16: 13390 | I16: 5.7 | J16: Benzin | K16: 127 | M16: 6d-TEMP-EVAP | N16: 5 | O16: 61 | Q16: 83 | S16: M5 | T16: 3996 | U16: 2009 | V16: 1490 | W16: 1037 | X16: PureTech 110 | Y16: (5.8,131,81,110) | AA16: Feel, Shine
A17: Citroen | B17: C3 Aircross | C17: PureTech 110 | D17: S&S | F17: 20320 | I17: 6.2 | J17: Benzin | K17: 141 | M17: 6d-TEMP-EVAP | N17: 5 | O17: 81 | Q17: 110 | S17: M6 | T17: 4154 | U17: 1976 | V17: 1597 | W17: 1247 | X17: PureTech 130 | Y17: (6.6,148,96,130) | AB17: Feel, Shine, C-Series
A18: Citroen | B18: Grand C4 Spacetourer | C18: PureTech 130 | D18: Start&Stop | F18: 28550 | I18: 6.3 | J18: Benzin | K18: 143 | M18: 6d-TEMP-EVAP | N18: 7 | O18: 96 | Q18: 131 | S18: M6 | T18: 4597 | U18: 2117 | V18: 1638 | W18: 1423 | AB18: Feel, Shine
A19: Citroen | B19: C5 Aircross | C19: PureTech 130 | D19: Start&Stop | F19: 26690 | I19: 6.6 | J19: Benzin | K19: 149 | M19: 6d-TEMP | N19: 5 | O19: 96 | Q19: 131 | S19: M6 | T19: 4500 | U19: 2099 | V19: 1654 | W19: 1468 | AB19: Live, Feel | AE19: Spacetourer erhältlich
A20: Citroen | B20: C4 Cactus | C20: BlueHDi 100 | D20: S&S | F20: 20275 | I20: 4.5 | J20: Benzin | K20: 118 | M20: 6d-TEMP | N20: 5 | O20: 75 | Q20: 102 | S20: M6 | T20: 4170 | U20: 1979 | V20: 1480 | W20: 1148 | X20: BlueHDi 120 | Y20: (5.0, 130, 88, 120) | AB20: Feel, Shine
A21: Citroen | B21: C3 Aircross | C21: Blue HDi 100 | D21: S&S | F21: 20790 | I21: 4.7 | J21: Benzin | K21: 123 | M21: 6d-TEMP | N21: 5 | O21: 75 | Q21: 102 | S21: M6 | T21: 4154 | U21: 1976 | V21: 1597 | W21: 1292 | X21: Blue HDi 120 | Y21: (5.2,137,88,120) | AB21: Feel, Shine
A22: Citroen | B22: C4 Spacetourer | C22: BlueHDi 130 | D22: Start&Stop | F22: 28400 | I22: 5 | J22: Benzin | K22: 130 | M22: 6d-TEMP | N22: 5 | O22: 96 | Q22: 130 | S22: M6 | T22: 4438 | U22: 1826 | V22: 1610 | W22: 1410 | AB22: Feel | AF22: Ambiance, Supreme
A23: Citroen | B23: C5 Aircross | C23: BlueHDi 130 | D23: Start&Stop | F23: 29390 | I23: 5.2 | J23: Benzin | K23: 138 | M23: 6d-TEMP | N23: 5 | O23: 96 | Q23: 130 | S23: M6 | T23: 4500 | U23: 1969 | V23: 1654 | W23: 1507 | AB23: Live, Feel, | AC23: Shine, C-Series
A24: Citroen | B24: C3 | C24: BlueHDi 100 | D24: Start&Stop | F24: 18290 | I24: 4.5 | J24: Diesel | K24: 117 | M24: 6d-TEMP | N24: 5 | O24: 75 | Q24: 102 | S24: M5 | T24: 3996 | U24: 2009 | V24: 1474 | W24: 1146 | AA24: Feel, Shine
A25: Citroen | B25: C4 Cactus | C25: BlueHDi 100 | D25: S&S | F25: 20275 | I25: 4.5 | J25: Diesel | K25: 118 | M25: 6d-TEMP | N25: 5 | O25: 75 | Q25: 102 | S25: M6 | T25: 4 170 | U25: 1 979 | V25: 1 480 | W25: 1 148 | X25: BlueHDi 120 | Y25: (5.0, 130, 88, 120) | AB25: Feel, Shine
A26: Citroen | B26: C3 Aircross | C26: Blue HDi 100 | D26: S&S | F26: 20790 | I26: 4.7 | J26: Diesel | K26: 123 | M26: 6d-TEMP | N26: 5 | O26: 75 | Q26: 102 | S26: M6 | T26: 4 154 | U26: 1 976 | V26: 1 597 | W26: 1 292 | X26: Blue HDi 120 | Y26: (5.2,137,88,120) | AB26: Feel, Shine | AE26: erhältlich
A27: Dacia | B27: Logan MCV | C27: SCe 75 S&S | F27: 8590 | I27: 5.7 | J27: Benzin | K27: 129 | M27: 6d-TEMP | N27: 5 | O27: 54 | Q27: 73 | S27: M5 | T27: 4501 | U27: 1994 | V27: 1521 | W27: 1112 | X27: TCe 90 S&S | Y27: (5.9,133,66,90) | AD27: Access, Essential, | AE27: Performance Line
A28: Dacia | B28: Sandero | C28: SCe 75 | F28: 7790 | I28: 5.7 | J28: Benzin | K28: 129 | M28: 6d-TEMP | N28: 5 | O28: 54 | Q28: 73 | S28: M5 | T28: 4069 | U28: 1994 | V28: 1555 | W28: 1052 | X28: TCe 90 | Y28: (5.9,133,66,90) | AB28: Access, Essential, | AC28: Comfort, Stepway, | AD28: Celebration
A29: Dacia | B29: Duster | C29: TCe 100 | F29: 12990 | I29: 6.1 | J29: Benzin | K29: 138 | M29: 6d-TEMP | N29: 5 | O29: 74 | Q29: 100 | S29: M5 | T29: 4341 | U29: 2052 | V29: 1693 | W29: 1191 | X29: TCe 130 | Y29: (6.6,149,96,130) | Z29: TCe 150 | AA29: (7.1,162,110,150) | AB29: Access, Comfort, | AC29: Essential, Prestige, | AD29: Celebration | AE29: Mirror, Lounge, Pop
A30: Dacia | B30: Sandero | C30: Blue dCi 75 | D30: S&S | F30: 11340 | I30: 4.4 | J30: Benzin | K30: 116 | M30: 6d-TEMP | N30: 5 | O30: 55 | Q30: 75 | S30: M5 | T30: 4069 | U30: 1994 | V30: 1555 | W30: 1190 | X30: dCi 95 | Y30: (4.4,116,70,95) | AB30: Comfort, Stepway, | AC30: Celebration
A31: Dacia | B31: Lodgy | C31: Blue dCi 95 | F31: 15350 | I31: 4.8 | J31: Benzin | K31: 126 | M31: 6d-TEMP | N31: 5 | O31: 70 | Q31: 95 | S31: M6 | T31: 4498 | U31: 2004 | V31: 1682 | W31: 1263 | X31: Blue dCi 115 | Y31: (4.8,126,85,115) | AB31: Supreme, Stepway
A32: Dacia | B32: Duster | C32: Blue dCi 95 | F32: 15490 | I32: 4.9 | J32: Benzin | K32: 128 | M32: 6d-TEMP | N32: 5 | O32: 70 | Q32: 95 | S32: M6 | T32: 4341 | U32: 2052 | V32: 1693 | W32: 1314 | X32: Blue dCi 115 | Y32: (4.9,128,85,115) | AB32: Essential, Comfort, | AC32: Prestige, Celebration
A33: Dacia | B33: Dokker | C33: Blue dCi 95 | F33: 14250 | I33: 5 | J33: Benzin | K33: 132 | M33: 6d-TEMP | N33: 5 | O33: 70 | Q33: 95 | S33: M6 | T33: 4363 | U33: 2004 | V33: 1804 | W33: 1368 | AB33: Supreme, Stepway
A34: Dacia | B34: Sandero | C34: Blue dCi 75 | D34: S&S | F34: 11340 | I34: 4.4 | J34: Diesel | K34: 116 | M34: 6d-TEMP | N34: 5 | O34: 55 | Q34: 75 | S34: M5 | T34: 4 069 | U34: 1 994 | V34: 1 555 | W34: 1 190 | X34: dCi 95 | Y34: (4.4,116,70,95) | AB34: Comfort, Stepway, | AC34: Celebration | AE34: (4.9,112,103,140) | AF34: Trend, Titanium, | AG34: ST-Line, Vignale | AI34: Auch als 5-Türer | AJ34: erhältlich
A35: DS Automobiles | B35: DS 7 | C35: BlueHDi 130 | F35: 41290 | I35: 5.2 | J35: Benzin | K35: 136 | M35: 6d-TEMP | N35: 5 | O35: 96 | Q35: 130 | S35: A8 | T35: 4573 | U35: 2098 | V35: 1625 | W35: 1527 | X35: BlueHDI 180 | Y35: (6.1,161,130,180) | AB35: Be Chic, So Chic, | AC35: Performance Line | AF35: Trend, Titanium, | AG35: Active, ST-Line, | AH35: Vignale | AI35: Auch als Kombi | AJ35: erhältlich
A36: Fiat | B36: 500 | C36: 1.2 Fire 70 | D36: Dualogic | F36: 18170 | I36: 5.5 | J36: Benzin | K36: 135 | M36: 6d-TEMP-EVAP | N36: 4 | O36: 51 | Q36: 69 | S36: A5 | T36: 3571 | U36: 1627 | V36: 1488 | W36: 900 | AA36: 500C, 500S | AB36: Lounge, Sport | AC36: Star, Rockstar | AD36: Hybrid-Variante | AE36: (5.5,125,134,182) | AF36: Trend, Titanium, | AG36: ST-Line, Vignale
A37: Fiat | B37: Panda | C37: 1.2 Fire 70 | F37: 12100 | I37: 5.7 | J37: Benzin | K37: 133 | M37: 6d-TEMP-EVAP-ISC | N37: 4 | O37: 51 | Q37: 69 | S37: M5 | T37: 3653 | U37: 1882 | V37: 1551 | W37: 980 | AB37: Easy, Lounge | AE37: Kompakt-Van
A38: Fiat | B38: Tipo Kombi | C38: MultiJet 95 SCR | F38: 21170 | I38: 4.6 | J38: Benzin | K38: 120 | M38: 6d-TEMP-EVAP | N38: 5 | O38: 70 | Q38: 95 | S38: M5 | T38: 4571 | U38: 1792 | V38: 1514 | W38: 1395 | X38: MultiJet 120 SCR | Y38: (5.1,130,88,120) | AB38: Street, Mirror, | AC38: Lounge, S-Design | AE38: Kompakt-Van
A39: Fiat | B39: 500X Urban | C39: 1.6 MultiJet | D39: 95 SCR | F39: 22100 | I39: 4.8 | J39: Benzin | K39: 126 | M39: 6d-TEMP-EVAP-ISC | N39: 5 | O39: 70 | Q39: 95 | S39: M5 | T39: 4264 | U39: 2025 | V39: 1595 | W39: 1320 | X39: 1.6 MultiJet | Y39: (5.2,137,88,120) | AB39: Lounge, Cross, Sport | AD39: Länge entspricht | AE39: Titanium
A40: Fiat | B40: Tipo Kombi | C40: MultiJet 95 SCR | F40: 21170 | I40: 4.6 | J40: Diesel | K40: 120 | M40: 6d-TEMP-EVAP | N40: 5 | O40: 70 | Q40: 95 | S40: M5 | T40: 4 571 | U40: 1 792 | V40: 1 514 | W40: 1 395 | X40: MultiJet 120 SCR | Y40: (5.1,130,88,120) | AB40: Street, Mirror, | AC40: Lounge, S-Design
A41: Fiat | B41: 500X Urban | C41: 1.6 MultiJet | D41: 95 SCR | F41: 22100 | I41: 4.8 | J41: Diesel | K41: 126 | M41: 6d-TEMP-EVAP-ISC | N41: 5 | O41: 70 | Q41: 95 | S41: M5 | T41: 4 264 | U41: 2 025 | V41: 1 595 | W41: 1 320 | X41: 1.6 MultiJet | Y41: (5.2,137,88,120) | AB41: Lounge, Cross, Sport | AD41: Länge entspricht
A42: Ford | B42: Fiesta Coupe | C42: 1.0 Ecoboost | D42: Start&Stop | F42: 15300 | I42: 5.1 | J42: Benzin | K42: 115 | M42: 6d-TEMP-EVAP-ISC | N42: 5 | O42: 70 | Q42: 95 | S42: M6 | T42: 4065 | U42: 1941 | V42: 1466 | W42: 1163 | X42: 1.1l | Y42: (5.3,120,55,75) | Z42: 1.0 Ecoboost | AA42: (5.1,115,70,95) | AB42: 1.0 Ecoboost | AC42: (5.6,127,92,125) | AD42: Trend, Cool-Connect, | AE42: erhältlich
A43: Ford | B43: Focus | C43: 1.0 EcoBoost | F43: 22100 | I43: 5.3 | J43: Benzin | K43: 119 | M43: 6d-TEMP-EVAP-ISC | N43: 5 | O43: 74 | Q43: 100 | S43: M6 | T43: 4378 | U43: 1979 | V43: 1471 | W43: 1322 | X43: 1.0 EcoBoost | Y43: (5.5, 124, 92, 125) | Z43: 1.0 EcoBoost | AA43: (5.9,133,92,125) | AB43: 1.5 EcoBoost | AC43: (6.3,142,110,150) | AD43: Trend, Titanium,
A44: Ford | B44: Focus Turnier | C44: 1.0 EcoBoost | F44: 23600 | I44: 5.3 | J44: Benzin | K44: 119 | M44: 6d-TEMP-EVAP-ISC | N44: 5 | O44: 74 | Q44: 100 | S44: M6 | T44: 4668 | U44: 1979 | V44: 1494 | W44: 1383 | X44: 1.0 EcoBoost | Y44: (5.6,126,92,125) | Z44: 1.5 EcoBoost | AA44: (5.8,132,110,150) | AB44: 1.5 EcoBoost | AC44: (6.0,137,134,182) | AD44: Trend, Titanium, | AE44: Kompakt-Van
A45: Ford | B45: EcoSport | C45: 1.0 EcoBoost | F45: 20300 | I45: 5.9 | J45: Benzin | K45: 134 | M45: 6d-TEMP-EVAP-ISC | N45: 5 | O45: 74 | Q45: 100 | S45: M6 | T45: 4096 | U45: 2057 | V45: 1653 | W45: 1349 | X45: 1.0 EcoBoost | Y45: (6.0,135,92,125) | Z45: 1.0 EcoBoost | AA45: (6.0,136,103,140) | AB45: ST-Line, Trend | AC45: Titanium, | AD45: Cool & Connect | AE45: Kompakt-Van
A46: Ford | B46: Fiesta | C46: 1.5 TDCi | D46: Start&Stop | F46: 16650 | I46: 4.2 | J46: Benzin | K46: 111 | M46: 6d-TEMP-EVAP-ISC | N46: 5 | O46: 63 | Q46: 85 | S46: M6 | T46: 4040 | U46: 1735 | V46: 1476 | W46: 1194 | AB46: Trend, Titanium | AC46: Cool&Connect, | AD46: ST-Line | AF46: Comfort, Elegance, | AG46: Executive, Dynamic, | AH46: Sport
A47: Ford | B47: Focus | C47: 1.5 l EcoBlue | F47: 23650 | I47: 4.5 | J47: Benzin | K47: 117 | M47: 6d-TEMP-EVAP-ISC | N47: 5 | O47: 70 | Q47: 95 | S47: M6 | T47: 4378 | U47: 1825 | V47: 1454 | W47: 1363 | X47: 1.5 EcoBlue | Y47: (4.5,117,88,120) | Z47: 2.0 EcoBlue | AA47: (4.7,124,110,150) | AB47: Trend, Titanium | AC47: ST-Line, Vignale, | AD47: Active, | AE47: Executive
A48: Ford | B48: Puma | C48: 1.5 l EcoBlue | F48: 25890 | I48: 4.5 | J48: Benzin | K48: 118 | M48: 6d-TEMP-EVAP-ISC | N48: 5 | O48: 88 | Q48: 120 | S48: M6 | T48: 4186 | U48: 1930 | V48: 1536 | W48: 1280 | AB48: Titanium, ST-Line
A49: Ford | B49: Focus Turnier | C49: 1.5 EcoBlue | F49: 25150 | I49: 4.5 | J49: Benzin | K49: 119 | M49: 6d-TEMP-EVAP-ISC | N49: 5 | O49: 70 | Q49: 95 | S49: M6 | T49: 4668 | U49: 1979 | V49: 1494 | W49: 1413 | X49: 1.5 EcoBlue | Y49: (4.5,119,88,120) | Z49: 2.0 EcoBlue | AA49: (4.7,124,110,150) | AB49: Trend, Titanium, | AC49: ST-Line, Vignale, | AD49: Active, | AF49: Level 1,2,3,4,5 | AI49: Auch als 3-Türer | AJ49: erhältlich
A50: Ford | B50: Mondeo | C50: 2.0l EcoBlue SCR | F50: 34100 | I50: 4.9 | J50: Benzin | K50: 128 | M50: 6d-TEMP | N50: 5 | O50: 88 | Q50: 120 | S50: M6 | T50: 4871 | U50: 2121 | V50: 1482 | W50: 1707 | X50: 2.0l EcoBlue | Y50: (5.0,131,110,150) | Z50: 2.0l EcoBlue | AA50: (5.3,140,140,190) | AB50: Trend, Titanium, | AC50: ST-Line, Vignale | AF50: Level 2,3,4,5,6
A51: Ford | B51: EcoSport | C51: 1.5 l EcoBlue | F51: 23700 | I51: 4.9 | J51: Benzin | K51: 129 | M51: 6d-TEMP-EVAP-ISC | N51: 5 | O51: 74 | Q51: 100 | S51: M6 | T51: 4096 | U51: 2057 | V51: 1653 | W51: 1395 | X51: 1.5 EcoBlue | Y51: (5.3,138,88,120) | AB51: ST-Line, Titanium | AC51: Cool&Connect | AD51: Höhe entspricht
A52: Ford | B52: Tourneo Courier | C52: 1.5 TDCi S&S | F52: 18142 | I52: 5.4 | J52: Benzin | K52: 141 | M52: 6d-TEMP-EVAP-ISC | N52: 5 | O52: 55 | Q52: 75 | S52: M6 | T52: 4157 | U52: 2112 | V52: 1741 | W52: 1420 | X52: 1.5 TDCi SS | Y52: (5.5,144,74,101) | AB52: Trend, Titanium, Sport | AD52: Höhe entspricht
A53: Ford | B53: Fiesta | C53: 1.5 TDCi | D53: Start&Stop | F53: 16650 | I53: 4.2 | J53: Diesel | K53: 111 | M53: 6d-TEMP-EVAP-ISC | N53: 5 | O53: 63 | Q53: 85 | S53: M6 | T53: 4 040 | U53: 1 735 | V53: 1 476 | W53: 1 194 | AB53: Trend, Titanium | AC53: Cool&Connect, | AD53: ST-Line | AE53: erhältlich
A54: Ford | B54: Focus | C54: 1.5 l EcoBlue | F54: 23650 | I54: 4.5 | J54: Diesel | K54: 117 | M54: 6d-TEMP-EVAP-ISC | N54: 5 | O54: 70 | Q54: 95 | S54: M6 | T54: 4 378 | U54: 1 825 | V54: 1 454 | W54: 1 363 | X54: 1.5 EcoBlue | Y54: (4.5,117,88,120) | Z54: 2.0 EcoBlue | AA54: (4.7,124,110,150) | AB54: Trend, Titanium | AC54: ST-Line, Vignale, | AD54: Active,
A55: Ford | B55: Puma | C55: 1.5 l EcoBlue | F55: 25890 | I55: 4.5 | J55: Diesel | K55: 118 | M55: 6d-TEMP-EVAP-ISC | N55: 5 | O55: 88 | Q55: 120 | S55: M6 | T55: 4 186 | U55: 1 930 | V55: 1 536 | W55: 1 280 | AB55: Titanium, ST-Line
A56: Ford | B56: Focus Turnier | C56: 1.5 EcoBlue | F56: 25150 | I56: 4.5 | J56: Diesel | K56: 119 | M56: 6d-TEMP-EVAP-ISC | N56: 5 | O56: 70 | Q56: 95 | S56: M6 | T56: 4 668 | U56: 1 979 | V56: 1 494 | W56: 1 413 | X56: 1.5 EcoBlue | Y56: (4.5,119,88,120) | Z56: 2.0 EcoBlue | AA56: (4.7,124,110,150) | AB56: Trend, Titanium, | AC56: ST-Line, Vignale, | AD56: Active, | AF56: Gold, Silber, | AG56: Titan, Platin | AI56: Auch als Kombi | AJ56: erhältlich
A57: Ford | B57: Mondeo | C57: 2.0l EcoBlue SCR | F57: 34100 | I57: 4.9 | J57: Diesel | K57: 128 | M57: 6d-TEMP | N57: 5 | O57: 88 | Q57: 120 | S57: M6 | T57: 4 871 | U57: 2 121 | V57: 1 482 | W57: 1 707 | X57: 2.0l EcoBlue | Y57: (5.0,131,110,150) | Z57: 2.0l EcoBlue | AA57: (5.3,140,140,190) | AB57: Trend, Titanium, | AC57: ST-Line, Vignale | AF57: Gold, Silber | AG57: Titan, Platin
A58: Ford | B58: EcoSport | C58: 1.5 l EcoBlue | F58: 23700 | I58: 4.9 | J58: Diesel | K58: 129 | M58: 6d-TEMP-EVAP-ISC | N58: 5 | O58: 74 | Q58: 100 | S58: M6 | T58: 4 096 | U58: 2 057 | V58: 1 653 | W58: 1 395 | X58: 1.5 EcoBlue | Y58: (5.3,138,88,120) | AB58: ST-Line, Titanium | AC58: Cool&Connect | AD58: Höhe entspricht
A59: Ford | B59: Tourneo Courier | C59: 1.5 TDCi S&S | F59: 18142 | I59: 5.4 | J59: Diesel | K59: 141 | M59: 6d-TEMP-EVAP-ISC | N59: 5 | O59: 55 | Q59: 75 | S59: M6 | T59: 4 157 | U59: 2 112 | V59: 1 741 | W59: 1 420 | X59: 1.5 TDCi SS | Y59: (5.5,144,74,101) | AB59: Trend, Titanium, Sport | AD59: Höhe entspricht
A60: Honda | B60: Civic | C60: 1.0 VTEC | D60: Turbo | F60: 22890 | I60: 5.7 | J60: Benzin | K60: 128 | M60: 6d-TEMP | N60: 5 | O60: 93 | Q60: 126 | S60: M6 | T60: 4518 | U60: 2076 | V60: 1434 | W60: 1229 | X60: 1.5 VTEC Turbo | Y60: (6.1,139,134,182) | AD60: Comfort, Elegance, | AE60: erhältlich
A61: Honda | B61: HR-V | C61: 1,5 i-VTEC | F61: 23290 | I61: 6.6 | J61: Benzin | K61: 148 | M61: 6d-TEMP | N61: 5 | O61: 96 | Q61: 131 | S61: M6 | T61: 4294 | U61: 1772 | V61: 1605 | W61: 1243 | AB61: Comfort, Elegance, | AC61: Executive | AF61: Attraction | AG61: Takumi, Revolution
A62: Honda | B62: Civic | C62: 1.6i-DTEC | F62: 24390 | I62: 4.6 | J62: Benzin | K62: 121 | M62: 6d-TEMP | N62: 5 | O62: 88 | Q62: 120 | S62: M6 | T62: 4518 | U62: 2079 | V62: 1434 | W62: 1342 | AB62: Elegance, Executive, | AC62: S, Comfort
A63: Honda | B63: HR-V | C63: 1.6 i-DTEC | F63: 25790 | I63: 5 | J63: Benzin | K63: 132 | M63: 6d-TEMP | N63: 5 | O63: 88 | Q63: 120 | S63: M6 | T63: 4294 | U63: 1772 | V63: 1689 | W63: 1395 | AB63: Comfort. Elegance, | AC63: Executive | AI63: Auch als Combi | AJ63: erhältlich
A64: Honda | B64: Civic | C64: 1.6i-DTEC | F64: 24390 | I64: 4.6 | J64: Diesel | K64: 121 | M64: 6d-TEMP | N64: 5 | O64: 88 | Q64: 120 | S64: M6 | T64: 4 518 | U64: 2 079 | V64: 1 434 | W64: 1 342 | AB64: Elegance, Executive, | AC64: S, Comfort
A65: Hyundai | B65: i10 | C65: 1.0l | F65: 10990 | I65: 4.8 | J65: Benzin | K65: 110 | M65: 6d-TEMP-EVAP | N65: 4 | O65: 49 | Q65: 67 | S65: M5 | T65: 3670 | U65: 1680 | V65: 1480 | W65: 924 | X65: 1.2l (5.2,117,62,84) | AA65: Level 1,2,3,4 | AD65: Auch als 5-Sitzer | AE65: erhältlich
A66: Hyundai | B66: i20 | C66: 1.0 T-GDI | F66: 17190 | I66: 5.5 | J66: Benzin | K66: 126 | M66: 6d-TEMP-EVAP | N66: 5 | O66: 74 | Q66: 100 | S66: M5 | T66: 4035 | U66: 1734 | V66: 1474 | W66: 1065 | X66: 1.25l | Y66: (5.9,133,55,75) | Z66: 1.25l | AA66: (5.8,132,62,84) | AB66: 1.0 TGDI | AC66: (5.6,137,88,120) | AD66: Level 1,2,3,4,5
A67: Hyundai | B67: i30 Combi | C67: 1.0 T-GDI | F67: 20590 | I67: 5.4 | J67: Benzin | K67: 123 | M67: 6d-TEMP-EVAP | N67: 5 | O67: 88 | Q67: 120 | S67: M6 | T67: 4585 | U67: 2039 | V67: 1465 | W67: 1231 | X67: 1.5 DPI | Y67: (6.0,137,81,110) | AD67: Level 2,3,4,5,6
A68: Hyundai | B68: Kona | C68: 1.0 T-GDi | F68: 20690 | I68: 6.2 | J68: Benzin | K68: 142 | M68: 6d-TEMP-EVAP | N68: 5 | O68: 88 | Q68: 120 | S68: M6 | T68: 4165 | U68: 2070 | V68: 1550 | W68: 1223 | AB68: Level 2,3,4,6 | AE68: Kompakt-Van
A69: Hyundai | B69: i30 | C69: 1.6 CRDi | F69: 22590 | I69: 4.6 | J69: Benzin | K69: 118 | M69: 6d-TEMP-EVAP | N69: 5 | O69: 85 | Q69: 115 | S69: M6 | T69: 4340 | U69: 1795 | V69: 1455 | W69: 1313 | AB69: Level 2,3,4,5,6 | AE69: Invite Connect
A70: Hyundai | B70: i30 CW | C70: 1.6 CRDi | F70: 22590 | I70: 4.5 | J70: Benzin | K70: 118 | M70: 6d-TEMP-EVAP | N70: 5 | O70: 85 | Q70: 116 | S70: M6 | T70: 4585 | U70: 2039 | V70: 1465 | W70: 1370 | X70: 1.6 CRDi | Y70: (4.6,120,100,136) | AB70: Level 2,3,4,5,6
A71: Hyundai | B71: Kona | C71: 1.6 CRDi | F71: 22690 | I71: 5 | J71: Benzin | K71: 129 | M71: 6d-TEMP-EVAP | N71: 5 | O71: 85 | Q71: 116 | S71: M6 | T71: 4165 | U71: 2070 | V71: 1550 | W71: 1318 | X71: 1.6 CRDi | Y71: (5.1,134,100,136) | AB71: Level 2,3,4,6
A72: Hyundai | B72: i30 | C72: 1.6 CRDi | F72: 22590 | I72: 4.6 | J72: Diesel | K72: 118 | M72: 6d-TEMP-EVAP | N72: 5 | O72: 85 | Q72: 115 | S72: M6 | T72: 4 340 | U72: 1 795 | V72: 1 455 | W72: 1 313 | AB72: Level 2,3,4,5,6 | AF72: Edition, Dynamic | AG72: Innovation | AI72: Auch als Kombi | AJ72: erhältlich
A73: Hyundai | B73: i30 CW | C73: 1.6 CRDi | F73: 22590 | I73: 4.5 | J73: Diesel | K73: 118 | M73: 6d-TEMP-EVAP | N73: 5 | O73: 85 | Q73: 116 | S73: M6 | T73: 4 585 | U73: 2 039 | V73: 1 465 | W73: 1 370 | X73: 1.6 CRDi | Y73: (4.6,120,100,136) | AB73: Level 2,3,4,5,6 | AF73: Edition, Dynamic, | AG73: Innovation
A74: Hyundai | B74: Kona | C74: 1.6 CRDi | F74: 22690 | I74: 5 | J74: Diesel | K74: 129 | M74: 6d-TEMP-EVAP | N74: 5 | O74: 85 | Q74: 116 | S74: M6 | T74: 4 165 | U74: 2 070 | V74: 1 550 | W74: 1 318 | X74: 1.6 CRDi | Y74: (5.1,134,100,136) | AB74: Level 2,3,4,6 | AF74: Edition, Dynamic, | AG74: Innovation, | AH74: Ultimate | AI74: Auch als Combi | AJ74: erhältlich
A75: KIA | B75: Picanto | C75: 1.0 MPI ISG | F75: 10190 | I75: 5.1 | J75: Benzin | K75: 116 | M75: 6d-TEMP-EVAP | N75: 4 | O75: 49 | Q75: 67 | S75: M5 | T75: 3595 | U75: 1595 | V75: 1485 | W75: 588 | X75: 1.2 MPI ISG | Y75: (5.6,126,62,84) | AA75: Neon, Titan, Silber, | AB75: Gold, GT-Line, X-Line | AD75: Auch als 5-Sitzer | AE75: Edition, Ultimate | AF75: Innovation
A76: KIA | B76: Rio | C76: 1.0 TGDI GPF ISG | F76: 18090 | I76: 5.5 | J76: Benzin | K76: 126 | M76: 6d-TEMP-EVAP | N76: 5 | O76: 74 | Q76: 100 | S76: M5 | T76: 4065 | U76: 1725 | V76: 1450 | W76: 1080 | X76: 1.25 MPI ISG | Y76: (5.8,132,62,84) | Z76: 1.0 TGDI GPF ISG | AA76: (5.8,133,88,120) | AD76: Neon, Titan, Silber, | AE76: Edition, Ultimate | AF76: Innovation
A77: KIA | B77: Ceed | C77: 1.0 TGDI GPF ISG | F77: 17790 | I77: 5.6 | J77: Benzin | K77: 126 | M77: 6d-TEMP-EVAP | N77: 5 | O77: 74 | Q77: 100 | S77: M6 | T77: 4310 | U77: 1800 | V77: 1447 | W77: 1222 | X77: 1.0 TGDI GPF ISG | Y77: (5.6,126,88,120) | Z77: 1.4 TGDI GPF ISG | AA77: (5.9,135,103,140) | AD77: Titan, Silber,Gold | AE77: Innovation
A78: KIA | B78: Ceed SW | C78: 1.0 TGDI GPF ISG | F78: 18990 | I78: 5.6 | J78: Benzin | K78: 127 | M78: 6d-TEMP-EVAP | N78: 5 | O78: 74 | Q78: 100 | S78: M6 | T78: 4600 | U78: 1800 | V78: 1465 | W78: 1259 | X78: 1.4 TGDI ISG | Y78: (5.9,135,103,140) | AD78: Titan, Silber, Gold,
A79: KIA | B79: ceed SW | C79: 1.6 CRDi ISG | F79: 22790 | I79: 4.6 | J79: Benzin | K79: 121 | M79: 6d-TEMP-EVAP | N79: 5 | O79: 85 | Q79: 116 | S79: M6 | T79: 4600 | U79: 1800 | V79: 1465 | W79: 1350 | X79: 1.6 CRDi ISG | Y79: (4.8,125,100,136) | AB79: Gold, Silber | AC79: Titan, Platin, | AD79: GT-Line
A80: KIA | B80: Sportage | C80: 1.6 CRDI SCR | F80: 31190 | I80: 5.3 | J80: Benzin | K80: 135 | M80: 6d-TEMP-EVAP | N80: 5 | O80: 85 | Q80: 116 | S80: M6 | T80: 4485 | U80: 1855 | V80: 1635 | W80: 1534 | X80: 1.6 CRDI SCR | Y80: (5.4,141,100,136) | AB80: Titan, Silber, | AC80: Gold, Platin, | AD80: GT-Line
A81: KIA | B81: ceed SW | C81: 1.6 CRDi ISG | F81: 22790 | I81: 4.6 | J81: Diesel | K81: 121 | M81: 6d-TEMP-EVAP | N81: 5 | O81: 85 | Q81: 116 | S81: M6 | T81: 4 600 | U81: 1 800 | V81: 1 465 | W81: 1 350 | X81: 1.6 CRDi ISG | Y81: (4.8,125,100,136) | AB81: Gold, Silber | AC81: Titan, Platin, | AD81: GT-Line
A82: Mazda | B82: 2 | C82: G75 Life | F82: 14690 | I82: 5.3 | J82: Benzin | K82: 120 | M82: 6d | N82: 5 | O82: 55 | Q82: 75 | S82: M6 | T82: 4070 | U82: 1695 | V82: 1495 | W82: 1100 | X82: G90 | Y82: (5.3,120,66,90) | AD82: Life, Takumi,
A83: Mercedes | B83: A-Klasse | C83: A 180 | F83: 29670 | I83: 5.9 | J83: Benzin | K83: 133 | M83: 6d ISC-FCM | N83: 5 | O83: 100 | Q83: 136 | S83: M6 | T83: 4549 | U83: 1796 | V83: 1446 | W83: 1360 | X83: A 200 | Y83: (5.8,131,120,163)
A84: Mercedes | B84: A-Klasse | C84: 160 d | F84: 29590 | I84: 4.5 | J84: Benzin | K84: 118 | M84: 6d-TEMP-EVAP-ISC | N84: 5 | O84: 70 | Q84: 95 | S84: M6 | T84: 4419 | U84: 1796 | V84: 1440 | W84: 1425 | X84: A180d | Y84: (4.5,118,85,116) | Z84: A200d | AA84: (4.8,125,110,150) | AE84: GT-Line, Signature
A85: Mercedes | B85: CLA-Klasse | C85: 180 d | F85: 35460 | I85: 4.5 | J85: Benzin | K85: 118 | M85: 6d-TEMP-EVAP-ISC | N85: 5 | O85: 85 | Q85: 116 | S85: M6 | T85: 4688 | U85: 1830 | V85: 1439 | W85: 1470 | X85: 200d | Y85: (4.8,125,110,150) | Z85: 220d | AA85: (4.8,127,140,190) | AF85: Active, Style, GT-Line | AG85: Access, Allure | AI85: Auch als Kombi | AJ85: erhältlich
A86: Mercedes | B86: C-Klasse | C86: 200 d | F86: 40470 | I86: 4.8 | J86: Benzin | K86: 127 | M86: 6d-ISC-FCM | N86: 5 | O86: 118 | Q86: 160 | S86: M6 | T86: 4686 | U86: 1810 | V86: 1442 | W86: 1555 | X86: 180d | Y86: (5.0,130,90,122) | Z86: 220d | AA86: (5.0,132,143,194) | AF86: Active, Style, | AG86: Access, Allure
A87: Mercedes | B87: A-Klasse | C87: 160 d | F87: 29590 | I87: 4.5 | J87: Diesel | K87: 118 | M87: 6d-TEMP-EVAP-ISC | N87: 5 | O87: 70 | Q87: 95 | S87: M6 | T87: 4 419 | U87: 1 796 | V87: 1 440 | W87: 1 425 | X87: A180d | Y87: (4.5,118,85,116) | Z87: A200d | AA87: (4.8,125,110,150) | AF87: Active, Allure, | AG87: GT Line | AI87: Auch als Combi | AJ87: erhältlich
A88: Mercedes | B88: CLA-Klasse | C88: 180 d | F88: 35460 | I88: 4.5 | J88: Diesel | K88: 118 | M88: 6d-TEMP-EVAP-ISC | N88: 5 | O88: 85 | Q88: 116 | S88: M6 | T88: 4 688 | U88: 1 830 | V88: 1 439 | W88: 1 470 | X88: 200d | Y88: (4.8,125,110,150) | Z88: 220d | AA88: (4.8,127,140,190)
A89: Mercedes | B89: C-Klasse | C89: 200 d | F89: 40470 | I89: 4.8 | J89: Diesel | K89: 127 | M89: 6d-ISC-FCM | N89: 5 | O89: 118 | Q89: 160 | S89: M6 | T89: 4 686 | U89: 1 810 | V89: 1 442 | W89: 1 555 | X89: 180d | Y89: (5.0,130,90,122) | Z89: 220d | AA89: (5.0,132,143,194) | AE89: Access, GT Line, | AF89: Crossway | AG89: Auch als 7-Sitzer | AH89: erhältlich
A90: Mini | B90: Mini 3-Türer | C90: One First | F90: 19750 | I90: 5.8 | J90: Benzin | K90: 133 | M90: 6d-TEMP | N90: 4 | O90: 55 | Q90: 75 | S90: M6 | T90: 3821 | U90: 1727 | V90: 1414 | W90: 1215 | X90: One (5.0,114,75,102), | Y90: Cooper | Z90: (5.0,115,100,136) | AA90: Salt, Pepper, Chili | AD90: Auch als 5-Türer | AE90: Access, GT Line, | AF90: Crossway | AG90: Auch als 7-Sitzer | AH90: erhältlich
A91: Mini | B91: Countryman | C91: One | F91: 28500 | I91: 4.9 | J91: Benzin | K91: 129 | M91: 6d-TEMP | N91: 5 | O91: 85 | Q91: 116 | S91: M6 | T91: 4299 | U91: 1822 | V91: 1557 | W91: 1505 | X91: Cooper D | Y91: (5.0,130,110,150) | Z91: Cooper SD | AA91: (5.3,139,140,190) | AB91: One, Cooper | AD91: Länge entspricht
A92: Mini | B92: Countryman | C92: One | F92: 28500 | I92: 4.9 | J92: Diesel | K92: 129 | M92: 6d-TEMP | N92: 5 | O92: 85 | Q92: 116 | S92: M6 | T92: 4 299 | U92: 1 822 | V92: 1 557 | W92: 1 505 | X92: Cooper D | Y92: (5.0,130,110,150) | Z92: Cooper SD | AA92: (5.3,139,140,190) | AB92: One, Cooper | AD92: Länge entspricht
A93: MItsubishi | B93: Space Star | C93: 1.0 MIVEC AS&G | F93: 12990 | I93: 5.1 | J93: Benzin | K93: 115 | M93: 6d-TEMP | N93: 5 | O93: 52 | Q93: 71 | S93: M5 | T93: 3795 | U93: 1665 | V93: 1505 | W93: 870 | X93: 1.2 MIVEC AS&G | Y93: (5.3, 121, 59, 80) | AA93: Inform, | AB93: Invite Connect
A94: Nissan | B94: Micra | C94: 1.0 IGT 100 | F94: 15090 | I94: 5.6 | J94: Benzin | K94: 126 | M94: 6d-TEMP | N94: 5 | O94: 74 | Q94: 100 | S94: M5 | T94: 3999 | U94: 1935 | V94: 1455 | W94: 1135 | X94: DIG-T 117 | Y94: (5.9,133,86,117) | AA94: Visia, Acenta, Tekna, | AB94: N-Connecta, | AC94: Visia Plus
A95: Nissan | B95: Juke | C95: DIG-T 117 | F95: 19600 | I95: 5.9 | J95: Benzin | K95: 135 | M95: 6d-TEMP | N95: 5 | O95: 86 | Q95: 117 | S95: M6 | T95: 4210 | U95: 1983 | V95: 1595 | W95: 1182 | AB95: Visia, Acenta, | AC95: N-Connecta, Tekna, | AD95: N-Design | AE95: erhältlich
A96: Opel | B96: Astra | C96: 1.2 Turbo | D96: Direct Injection | F96: 21739 | I96: 5.2 | J96: Benzin | K96: 119 | M96: 6d | N96: 5 | O96: 81 | Q96: 110 | S96: M6 | T96: 4370 | U96: 2042 | V96: 1485 | W96: 1280 | X96: 1.2 TDI | Y96: (5.3,120,96,130) | Z96: 1.2 TDI | AA96: (5.3,120,107,145) | AD96: Edition, GS-Line,
A97: Opel | B97: Corsa | C97: 1.2l | F97: 14999 | I97: 5.4 | J97: Benzin | K97: 123 | M97: 6d | N97: 5 | O97: 55 | Q97: 75 | S97: M5 | T97: 4060 | U97: 1960 | V97: 1433 | W97: 1055 | X97: 1.2 (5.5,124,74,100) | Y97: 1.2 (5.6,128,96,130) | AD97: Edition, Elegance,
A98: Opel | B98: Astra ST | C98: 1.2 Turbo | D98: Direct Injection | F98: 23339 | I98: 5.4 | J98: Benzin | K98: 122 | M98: 6d | N98: 5 | O98: 81 | Q98: 110 | S98: M6 | T98: 4702 | U98: 2040 | V98: 1510 | W98: 1355 | X98: 1.2 TDI | Y98: (5.4,122,96,130) | Z98: 1.2 TDI | AA98: (5.4,122,107,145) | AD98: Edition, GS Line, | AE98: erhältlich
A99: Opel | B99: Insignia | C99: 1.5 Turbo | D99: Direct Injection | F99: 30730 | I99: 6.1 | J99: Benzin | K99: 138 | M99: 6d-TEMP | N99: 5 | O99: 103 | Q99: 140 | S99: M6 | T99: 4897 | U99: 2093 | V99: 1455 | W99: 1441 | X99: 1.5 TDI | Y99: (6.1,138,121,165) | AD99: Edition, Dynamic,
A100: Opel | B100: Crossland X | C100: 1.2l | F100: 19839 | I100: 6.2 | J100: Benzin | K100: 139 | M100: 6d | N100: 5 | O100: 60 | Q100: 81 | S100: M5 | T100: 4212 | U100: 1976 | V100: 1605 | W100: 1174 | X100: 1.2 Turbo | Y100: (6.1,138,81,110) | Z100: 1.2 Turbo | AA100: (5.9,134,96,130) | AB100: Edition, Ultimate | AC100: Innovation | AE100: Allure | AG100: Als 3-Türer oder | AH100: 5-Türer erhältlich
A101: Opel | B101: Grandland X | C101: 1.2 Turbo | F101: 26729 | I101: 6.4 | J101: Benzin | K101: 145 | M101: 6d | N101: 5 | O101: 96 | Q101: 130 | S101: M6 | T101: 4477 | U101: 2098 | V101: 1609 | W101: 1350 | X101: 1.6 Turbo | Y101: (7.2,163,133,181) | AB101: Edition, Ultimate | AC101: Innovation | AE101: Limited, | AF101: La Parisienne | AG101: Höhe entspricht | AH101: Micro-Van
A102: Opel | B102: Corsa | C102: 44317 | F102: 20389 | I102: 4.1 | J102: Benzin | K102: 107 | M102: 6d-TEMP | N102: 5 | O102: 75 | Q102: 102 | S102: M6 | T102: 4060 | U102: 1960 | V102: 1433 | W102: 1165 | AB102: Edition, GS-Line, | AC102: Elegance | AF102: Zen, Limited, | AG102: Intens, Life | AI102: Auch als Kombi | AJ102: erhältlich
A103: Opel | B103: Astra | C103: 1.5 CDTI | F103: 23739 | I103: 4.3 | J103: Benzin | K103: 112 | M103: 6d | N103: 5 | O103: 77 | Q103: 105 | S103: M6 | T103: 4370 | U103: 2042 | V103: 1485 | W103: 1371 | X103: 1.5 CDTI | Y103: (4.4,116,90,122) | AB103: Edition, GS-Line, | AC103: Elegance, Ultimate | AF103: Intens, Life, Bose | AG103: GT-Line
A104: Opel | B104: Astra Sports Tourer | C104: 1.5 CDTI | F104: 25339 | I104: 4.3 | J104: Benzin | K104: 113 | M104: 6d | N104: 5 | O104: 77 | Q104: 105 | S104: M6 | T104: 4702 | U104: 2042 | V104: 1485 | W104: 1395 | X104: 1.5 CDTI | Y104: (4.4,116,90,122) | AB104: Astra, Edition, | AC104: GS Line, Elegance, | AD104: Ultimate
A105: Opel | B105: Insignia | C105: 1.5 CDTI | F105: 32699 | I105: 4.6 | J105: Benzin | K105: 121 | M105: 6d-TEMP | N105: 5 | O105: 90 | Q105: 122 | S105: M6 | T105: 4897 | U105: 2093 | V105: 1455 | W105: 1503 | X105: 2.0 CDTI | Y105: (4.7,122,128,174) | AB105: Edition, Business | AC105: Elegance | AG105: Auch als Grand | AH105: Scenic erhältlich
A106: Opel | B106: Crossland X | C106: 1.5 CDTI | F106: 22349 | I106: 4.7 | J106: Benzin | K106: 123 | M106: 6d-TEMP | N106: 5 | O106: 75 | Q106: 102 | S106: M6 | T106: 4212 | U106: 1976 | V106: 1605 | W106: 1289 | X106: 1.5 CDTI | Y106: (5.2,137,88,120) | AB106: Edition, Innovation, | AC106: Ultimate | AE106: Grandtour erhältlich
A107: Opel | B107: Grandland X | C107: 1.5 CDTI | F107: 29309 | I107: 5.2 | J107: Benzin | K107: 136 | M107: 6d-TEMP | N107: 5 | O107: 96 | Q107: 130 | S107: M6 | T107: 4477 | U107: 2098 | V107: 1609 | W107: 1435 | AB107: Edition, Innovation, | AC107: Ultimate
A108: Opel | B108: Corsa | C108: 44317 | F108: 20389 | I108: 4.1 | J108: Diesel | K108: 107 | M108: 6d-TEMP | N108: 5 | O108: 75 | Q108: 102 | S108: M6 | T108: 4 060 | U108: 1 960 | V108: 1 433 | W108: 1 165 | AB108: Edition, GS-Line, | AC108: Elegance
A109: Opel | B109: Astra | C109: 1.5 CDTI | F109: 23739 | I109: 4.3 | J109: Diesel | K109: 112 | M109: 6d | N109: 5 | O109: 77 | Q109: 105 | S109: M6 | T109: 4 370 | U109: 2 042 | V109: 1 485 | W109: 1 371 | X109: 1.5 CDTI | Y109: (4.4,116,90,122) | AB109: Edition, GS-Line, | AC109: Elegance, Ultimate
A110: Opel | B110: Astra Sports Tourer | C110: 1.5 CDTI | F110: 25339 | I110: 4.3 | J110: Diesel | K110: 113 | M110: 6d | N110: 5 | O110: 77 | Q110: 105 | S110: M6 | T110: 4 702 | U110: 2 042 | V110: 1 485 | W110: 1 395 | X110: 1.5 CDTI | Y110: (4.4,116,90,122) | AB110: Astra, Edition, | AC110: GS Line, Elegance, | AD110: Ultimate
A111: Opel | B111: Insignia | C111: 1.5 CDTI | F111: 32699 | I111: 4.6 | J111: Diesel | K111: 121 | M111: 6d-TEMP | N111: 5 | O111: 90 | Q111: 122 | S111: M6 | T111: 4 897 | U111: 2 093 | V111: 1 455 | W111: 1 503 | X111: 2.0 CDTI | Y111: (4.7,122,128,174) | AB111: Edition, Business | AC111: Elegance | AF111: Style, Xcellence, | AG111: Reference
A112: Peugeot | B112: 208 | C112: PureTech 75 | D112: S&S | F112: 15990 | I112: 5.4 | J112: Benzin | K112: 123 | M112: 6d | N112: 5 | O112: 55 | Q112: 75 | S112: M5 | T112: 4055 | U112: 1960 | V112: 1430 | W112: 1055 | X112: PureTech 100 | Y112: (5.4,123,74,101) | Z112: PureTech 130 | AA112: (5.6,127,96,131) | AD112: Like, Active, Allure | AF112: Style, Xcellence | AI112: Auch als Kombi | AJ112: erhältlich
A113: Peugeot | B113: 308 SW | C113: PureTech 130 | D113: Start&Stop | F113: 23600 | I113: 5.9 | J113: Benzin | K113: 134 | M113: 6d | N113: 5 | O113: 81 | Q113: 110 | S113: M6 | T113: 4585 | U113: 2043 | V113: 1472 | W113: 1205 | X113: PureTech 130 | Y113: (5.8, 130, 96, 131) | AD113: Active, Style,
A114: Peugeot | B114: 508 | C114: PureTech 180 | F114: 42250 | I114: 6.5 | J114: Benzin | K114: 145 | M114: 6d | N114: 5 | O114: 133 | Q114: 181 | S114: A8 | T114: 4750 | U114: 2079 | V114: 1403 | W114: 1420 | AD114: Allure, GT Line | AE114: Xcellence
A115: Peugeot | B115: 3008 | C115: PureTech 130 | F115: 26790 | I115: 6.3 | J115: Benzin | K115: 144 | M115: 6d | N115: 5 | O115: 96 | Q115: 131 | S115: M6 | T115: 4447 | U115: 2098 | V115: 1624 | W115: 1320 | AB115: Allure, Active, | AC115: Access, GT Line
A116: Peugeot | B116: 5008 | C116: PureTech 130 | F116: 28790 | I116: 6.5 | J116: Benzin | K116: 147 | M116: 6d | N116: 5 | O116: 96 | Q116: 131 | S116: M6 | T116: 4641 | U116: 2098 | V116: 1646 | W116: 1410 | AB116: Allure, Active, | AC116: Access, GT Line
A117: Peugeot | B117: 208 | C117: BlueHDi 100 | D117: Start&Stop | F117: 19530 | I117: 4.1 | J117: Benzin | K117: 108 | M117: 6d-TEMP | N117: 5 | O117: 75 | Q117: 102 | S117: M6 | T117: 4055 | U117: 1960 | V117: 1430 | W117: 1165 | AB117: Like, Active, | AC117: Allure, GT Line
A118: Peugeot | B118: 308 | C118: BlueHDi 100 | F118: 23850 | I118: 4.5 | J118: Benzin | K118: 118 | M118: 6d-TEMP | N118: 5 | O118: 75 | Q118: 102 | S118: M6 | T118: 4253 | U118: 2043 | V118: 1457 | W118: 1205 | X118: 1.5 BlueHDi 130 | Y118: (4.5,119,96,131) | AB118: Active, Allure, Access, | AC118: GT-Line, Style | AE118: Style, Monte Carlo | AG118: Auch als Combi | AH118: erhältlich
A119: Peugeot | B119: 508 | C119: BlueHDi 130 | F119: 36750 | I119: 4.7 | J119: Benzin | K119: 120 | M119: 6d-TEMP | N119: 5 | O119: 96 | Q119: 130 | S119: M6 | T119: 4750 | U119: 2079 | V119: 1403 | W119: 1415 | X119: BlueHDI 160 | Y119: (5.5,144,120,163), | Z119: BlueHDI 180 | AA119: (5.7,150,130,177) | AB119: Active, Allure, | AC119: GT Line, GT | AF119: Active, Amibition, | AG119: Style, Monte Carlo
A120: Peugeot | B120: 308 SW | C120: BlueHDi 130 | F120: 27800 | I120: 4.7 | J120: Benzin | K120: 122 | M120: 6d-TEMP | N120: 5 | O120: 96 | Q120: 130 | S120: M6 | T120: 4585 | U120: 2043 | V120: 1472 | W120: 1205 | AB120: Active, Allure, | AC120: GT Line, Access, | AD120: Style | AF120: Sport | AI120: Auch als Rapid | AJ120: Spaceback erhältlich
A121: Peugeot | B121: 2008 | C121: BlueHDi 100 | F121: 25510 | I121: 4.5 | J121: Benzin | K121: 118 | M121: 6d-TEMP | N121: 5 | O121: 75 | Q121: 100 | S121: M6 | T121: 4300 | U121: 1987 | V121: 1530 | W121: 1205 | X121: BlueHDi 130 | Y121: (4.9,129,96,130) | AB121: Allure, Active, | AC121: GT-Line | AD121: Länge entspricht | AE121: shine
A122: Peugeot | B122: 3008 | C122: BlueHDi 130 | F122: 33000 | I122: 5.2 | J122: Benzin | K122: 136 | M122: 6d-TEMP | N122: 5 | O122: 96 | Q122: 130 | S122: M6 | T122: 4447 | U122: 2098 | V122: 1624 | W122: 1417 | X122: BlueHDI 180 | Y122: (6.1,162,130,180) | AB122: Allure, GT Line, | AC122: Active, Crossway
A123: Peugeot | B123: 5008 | C123: BlueHDi 130 | F123: 34900 | I123: 5.3 | J123: Benzin | K123: 137 | M123: 6d-TEMP | N123: 5 | O123: 96 | Q123: 130 | S123: M6 | T123: 4641 | U123: 2098 | V123: 1646 | W123: 1430 | AB123: Allure, GT Line, | AC123: Active, Crossway
A124: Peugeot | B124: 208 | C124: BlueHDi 100 | D124: Start&Stop | F124: 19530 | I124: 4.1 | J124: Diesel | K124: 108 | M124: 6d-TEMP | N124: 5 | O124: 75 | Q124: 102 | S124: M6 | T124: 4 055 | U124: 1 960 | V124: 1 430 | W124: 1 165 | AB124: Like, Active, | AC124: Allure, GT Line
A125: Peugeot | B125: 308 | C125: BlueHDi 100 | F125: 23850 | I125: 4.5 | J125: Diesel | K125: 118 | M125: 6d-TEMP | N125: 5 | O125: 75 | Q125: 102 | S125: M6 | T125: 4 253 | U125: 2 043 | V125: 1 457 | W125: 1 205 | X125: 1.5 BlueHDi 130 | Y125: (4.5,119,96,131) | AB125: Active, Allure, Access, | AC125: GT-Line, Style | AE125: Kompakt-Van
A126: Peugeot | B126: 508 | C126: BlueHDi 130 | F126: 36750 | I126: 4.7 | J126: Diesel | K126: 120 | M126: 6d-TEMP | N126: 5 | O126: 96 | Q126: 130 | S126: M6 | T126: 4 750 | U126: 2 079 | V126: 1 403 | W126: 1 415 | X126: BlueHDI 160 | Y126: (5.5,144,120,163), | Z126: BlueHDI 180 | AA126: (5.7,150,130,177) | AB126: Active, Allure, | AC126: GT Line, GT | AE126: Kompakt-Van
A127: Peugeot | B127: 308 SW | C127: BlueHDi 130 | F127: 27800 | I127: 4.7 | J127: Diesel | K127: 122 | M127: 6d-TEMP | N127: 5 | O127: 96 | Q127: 130 | S127: M6 | T127: 4 585 | U127: 2 043 | V127: 1 472 | W127: 1 205 | AB127: Active, Allure, | AC127: GT Line, Access, | AD127: Style | AE127: x-cite, x-clusiv, | AF127: x-style
A128: Peugeot | B128: 2008 | C128: BlueHDi 100 | F128: 25510 | I128: 4.5 | J128: Diesel | K128: 118 | M128: 6d-TEMP | N128: 5 | O128: 75 | Q128: 100 | S128: M6 | T128: 4 300 | U128: 1 987 | V128: 1 530 | W128: 1 205 | X128: BlueHDi 130 | Y128: (4.9,129,96,130) | AB128: Allure, Active, | AC128: GT-Line | AD128: Länge entspricht
A129: Peugeot | B129: 108 | C129: 1.0 VTi 72 | F129: 12740 | I129: 4.8 | J129: Benzin | K129: 109 | M129: 6d-TEMP | N129: 4 | O129: 53 | Q129: 72 | S129: M5 | T129: 3475 | U129: 1884 | V129: 1460 | W129: 915 | AA129: Active, | AB129: Allure, Collection | AD129: Als 3-Türer oder | AF129: Young, Active, | AG129: Style
A130: Renault | B130: Twingo | C130: SCe 75 | F130: 9990 | I130: 5.3 | J130: Benzin | K130: 119 | M130: 6d-TEMP-EVAP | N130: 4 | O130: 54 | Q130: 74 | S130: M5 | T130: 3615 | U130: 1646 | V130: 1541 | W130: 981 | X130: TCe 95 | Y130: (5.3,119,68,93) | AA130: Life, Intens, Zen | AE130: Highline, Trendline, | AF130: Sky
A131: Renault | B131: Clio | C131: SCe 75 | F131: 12940 | I131: 5.4 | J131: Benzin | K131: 120 | M131: 6d-TEMP-EVAP | N131: 5 | O131: 53 | Q131: 72 | S131: M5 | T131: 4050 | U131: 1988 | V131: 1440 | W131: 1148 | X131: TCe 100 | Y131: (5.1,116,74,100) | Z131: TCe 130 | AA131: (5.7,130,96,130) | AD131: Life, Zen, Intens, | AF131: Comfortline, | AG131: Highline
A132: Renault | B132: Megane Grandtour | C132: TCe 115 | F132: 19290 | I132: 5.9 | J132: Benzin | K132: 135 | M132: 6d-TEMP-EVAP | N132: 5 | O132: 84 | Q132: 115 | S132: M6 | T132: 4626 | U132: 2058 | V132: 1457 | W132: 1231 | X132: TCe 140 | Y132: (6.0,136,103,140) | Z132: TCe 160 | AA132: (6.2,140,117,159) | AD132: Intens, Life, Bose | AF132: Highline, Trendline, | AG132: Comfortline, Rabbit
A133: Renault | B133: Captur | C133: TCe 100 | F133: 18540 | I133: 5.9 | J133: Benzin | K133: 134 | M133: 6d-TEMP | N133: 5 | O133: 74 | Q133: 100 | S133: M5 | T133: 4227 | U133: 2003 | V133: 1576 | W133: 1248 | X133: TCe 130 | Y133: (6.3,141,96,130) | AB133: Life, Zen, Intens, | AC133: Edition One, Initiale | AF133: Highline, Trendline, | AG133: Comfortline, Rabbit
A134: Renault | B134: Kadjar | C134: TCe 140 | F134: 22890 | I134: 6.5 | J134: Benzin | K134: 146 | M134: 6d-TEMP-EVAP | N134: 5 | O134: 103 | Q134: 140 | S134: M6 | T134: 4489 | U134: 2058 | V134: 1607 | W134: 1442 | X134: TCe 160 | Y134: (6.6,150,117,160) | AB134: Life, Zen, Intens, | AC134: Black Edition | AF134: Highline, | AG134: Comfortline
